Workbook

Sheet Recherche.
B15: # CR | D15: Date | E15: # Catégorie | F15: Provenance | G15: poids | H15: Commentaire
B16: 8360 | D16: =VLOOKUP(B16,'Base de données'!$E$2:$T$2001,2,FALSE) -> 2016-01-15 | E16: =VLOOKUP(B16,'Base de données'!$E$2:$T$2001,3,FALSE) -> 1 | F16: =VLOOKUP(B16,'Base de données'!$E$2:$T$2001,4,FALSE) -> 0 | G16: =VLOOKUP(B16,'Base de données'!$E$2:$T$2001,5,FALSE) -> 48740 | H16: =VLOOKUP(B16,'Base de données'!$E$2:$T$2001,6,FALSE) -> 0
D18: # camion | E18: Poid Camion | F18: # cont in | G18: poid cont in | H18: Nom chauffeur
D19: =VLOOKUP(B16,'Base de données'!$E$2:$T$2001,7,FALSE) -> 156 | E19: =VLOOKUP(B16,'Base de données'!$E$2:$T$2001,8,FALSE) -> 20800 | F19: =VLOOKUP(B16,'Base de données'!$E$2:$T$2001,9,FALSE) -> 53063 | G19: =VLOOKUP(B16,'Base de données'!$E$2:$T$2001,10,FALSE) -> 18500 | H19: =VLOOKUP(B16,'Base de données'!$E$2:$T$2001,15,FALSE) -> Yves
D21: # cont out | E21: Poid cont out | F21: gross weight | G21: # plaque camion | H21: # Balance
D22: =VLOOKUP(B16,'Base de données'!$E$2:$T$2001,11,FALSE) -> 218 | E22: =VLOOKUP(B16,'Base de données'!$E$2:$T$2001,12,FALSE) -> 1960 | F22: =VLOOKUP(B16,'Base de données'!$E$2:$T$2001,13,FALSE) -> 88900 | G22: =VLOOKUP(B16,'Base de données'!$E$2:$T$2001,14,FALSE) -> L 474653 | H22: =VLOOKUP(B16,'Base de données'!$E$2:$T$2001,16,FALSE) -> 1

Sheet Janvier
A1: Date | B1: # CR | C1: # Catégorie | D1: Provenance | E1: poids | F1: Commentaire | G1: 2016-01-01 | M1: Date | N1: 1 | O1: 2 | P1: 3 | Q1: 4 | R1: 5 | T1: 6 | U1: 7 | V1: 8 | Y1: 9 | Z1: 10
A2: =IFERROR(INDEX('Base de données'!$A$1:$T$200,SMALL(IF('Base de données'!$C$3:$C$200=MONTH($G$1),ROW($3:$199)),ROWS($1:1)),MATCH(A$1,'Base de données'!$E$2:$T$2,0)+4),"") -> 2016-01-06 | B2: =IFERROR(INDEX('Base de données'!$A$1:$T$200,SMALL(IF('Base de données'!$C$3:$C$200=MONTH($G$1),ROW($3:$199)),ROWS($1:1)),MATCH(B$1,'Base de données'!$E$2:$T$2,0)+4),"") -> 8353 | C2: =IFERROR(INDEX('Base de données'!$A$1:$T$200,SMALL(IF('Base de données'!$C$3:$C$200=MONTH($G$1),ROW($3:$199)),ROWS($1:1)),MATCH(C$1,'Base de données'!$E$2:$T$2,0)+4),"") -> 1 | D2: =IFERROR(INDEX('Base de données'!$A$1:$T$200,SMALL(IF('Base de données'!$C$3:$C$200=MONTH($G$1),ROW($3:$199)),ROWS($1:1)),MATCH(D$1,'Base de données'!$E$2:$T$2,0)+4),"") -> USA | E2: =IFERROR(INDEX('Base de données'!$A$1:$T$200,SMALL(IF('Base de données'!$C$3:$C$200=MONTH($G$1),ROW($3:$199)),ROWS($1:1)),MATCH(E$1,'Base de données'!$E$2:$T$2,0)+4),"") -> 49820 | F2: =IFERROR(INDEX('Base de données'!$A$1:$T$200,SMALL(IF('Base de données'!$C$3:$C$200=MONTH($G$1),ROW($3:$199)),ROWS($1:1)),MATCH(F$1,'Base de données'!$E$2:$T$2,0)+4),"") -> test1 | N2: Copeaux d'aluminium propre et sec | O2: Copeaux d'aluminium propre et humides | P2: Copeaux d'aliminium contaminés | Q2: Aluminium en morceau (blocs/plaques) 7000 | R2: Aluminium contaminer mixte en morceau (blocs/plaques) | T2: Aluminium mixte en morceau (autre que blocs/plaques) 2024 | U2: Aluminium de série 7000 en morceau (surdimensionné) | V2: Acier mixte en morceau | Y2: Acier inoxydable mixte en morceau | Z2: Fil de cuivre
A3: =IFERROR(INDEX('Base de données'!$A$1:$T$200,SMALL(IF('Base de données'!$C$3:$C$200=MONTH($G$1),ROW($3:$199)),ROWS($1:2)),MATCH(A$1,'Base de données'!$E$2:$T$2,0)+4),"") -> 2016-01-06 | B3: =IFERROR(INDEX('Base de données'!$A$1:$T$200,SMALL(IF('Base de données'!$C$3:$C$200=MONTH($G$1),ROW($3:$199)),ROWS($1:2)),MATCH(B$1,'Base de données'!$E$2:$T$2,0)+4),"") -> 8354 | C3: =IFERROR(INDEX('Base de données'!$A$1:$T$200,SMALL(IF('Base de données'!$C$3:$C$200=MONTH($G$1),ROW($3:$199)),ROWS($1:2)),MATCH(C$1,'Base de données'!$E$2:$T$2,0)+4),"") -> 8 | D3: =IFERROR(INDEX('Base de données'!$A$1:$T$200,SMALL(IF('Base de données'!$C$3:$C$200=MONTH($G$1),ROW($3:$199)),ROWS($1:2)),MATCH(D$1,'Base de données'!$E$2:$T$2,0)+4),"") -> 0 | E3: =IFERROR(INDEX('Base de données'!$A$1:$T$200,SMALL(IF('Base de données'!$C$3:$C$200=MONTH($G$1),ROW($3:$199)),ROWS($1:2)),MATCH(E$1,'Base de données'!$E$2:$T$2,0)+4),"") -> 21240 | F3: =IFERROR(INDEX('Base de données'!$A$1:$T$200,SMALL(IF('Base de données'!$C$3:$C$200=MONTH($G$1),ROW($3:$199)),ROWS($1:2)),MATCH(F$1,'Base de données'!$E$2:$T$2,0)+4),"") -> 0 | G3: 1 | H3: 2 | I3: 3 | J3: 4 | K3: 5
A4: =IFERROR(INDEX('Base de données'!$A$1:$T$200,SMALL(IF('Base de données'!$C$3:$C$200=MONTH($G$1),ROW($3:$199)),ROWS($1:3)),MATCH(A$1,'Base de données'!$E$2:$T$2,0)+4),"") -> 2016-01-07 | B4: =IFERROR(INDEX('Base de données'!$A$1:$T$200,SMALL(IF('Base de données'!$C$3:$C$200=MONTH($G$1),ROW($3:$199)),ROWS($1:3)),MATCH(B$1,'Base de données'!$E$2:$T$2,0)+4),"") -> 8355 | C4: =IFERROR(INDEX('Base de données'!$A$1:$T$200,SMALL(IF('Base de données'!$C$3:$C$200=MONTH($G$1),ROW($3:$199)),ROWS($1:3)),MATCH(C$1,'Base de données'!$E$2:$T$2,0)+4),"") -> 3 | D4: =IFERROR(INDEX('Base de données'!$A$1:$T$200,SMALL(IF('Base de données'!$C$3:$C$200=MONTH($G$1),ROW($3:$199)),ROWS($1:3)),MATCH(D$1,'Base de données'!$E$2:$T$2,0)+4),"") -> 0 | E4: =IFERROR(INDEX('Base de données'!$A$1:$T$200,SMALL(IF('Base de données'!$C$3:$C$200=MONTH($G$1),ROW($3:$199)),ROWS($1:3)),MATCH(E$1,'Base de données'!$E$2:$T$2,0)+4),"") -> 14240 | F4: =IFERROR(INDEX('Base de données'!$A$1:$T$200,SMALL(IF('Base de données'!$C$3:$C$200=MONTH($G$1),ROW($3:$199)),ROWS($1:3)),MATCH(F$1,'Base de données'!$E$2:$T$2,0)+4),"") -> 0 | G4: Copeaux | H4: Copeaux | I4: Copeaux | J4: Aluminium | K4: Aluminium contaminés
A5: =IFERROR(INDEX('Base de données'!$A$1:$T$200,SMALL(IF('Base de données'!$C$3:$C$200=MONTH($G$1),ROW($3:$199)),ROWS($1:4)),MATCH(A$1,'Base de données'!$E$2:$T$2,0)+4),"") -> 2016-01-07 | B5: =IFERROR(INDEX('Base de données'!$A$1:$T$200,SMALL(IF('Base de données'!$C$3:$C$200=MONTH($G$1),ROW($3:$199)),ROWS($1:4)),MATCH(B$1,'Base de données'!$E$2:$T$2,0)+4),"") -> 8356 | C5: =IFERROR(INDEX('Base de données'!$A$1:$T$200,SMALL(IF('Base de données'!$C$3:$C$200=MONTH($G$1),ROW($3:$199)),ROWS($1:4)),MATCH(C$1,'Base de données'!$E$2:$T$2,0)+4),"") -> 1 | D5: =IFERROR(INDEX('Base de données'!$A$1:$T$200,SMALL(IF('Base de données'!$C$3:$C$200=MONTH($G$1),ROW($3:$199)),ROWS($1:4)),MATCH(D$1,'Base de données'!$E$2:$T$2,0)+4),"") -> 0 | E5: =IFERROR(INDEX('Base de données'!$A$1:$T$200,SMALL(IF('Base de données'!$C$3:$C$200=MONTH($G$1),ROW($3:$199)),ROWS($1:4)),MATCH(E$1,'Base de données'!$E$2:$T$2,0)+4),"") -> 50040 | F5: =IFERROR(INDEX('Base de données'!$A$1:$T$200,SMALL(IF('Base de données'!$C$3:$C$200=MONTH($G$1),ROW($3:$199)),ROWS($1:4)),MATCH(F$1,'Base de données'!$E$2:$T$2,0)+4),"") -> 0 | G5: D'aluminium | H5: D'aluminium | I5: D'aluminium | J5: en morceau | K5: mixte en morceau
A6: =IFERROR(INDEX('Base de données'!$A$1:$T$200,SMALL(IF('Base de données'!$C$3:$C$200=MONTH($G$1),ROW($3:$199)),ROWS($1:5)),MATCH(A$1,'Base de données'!$E$2:$T$2,0)+4),"") -> 2016-01-11 | B6: =IFERROR(INDEX('Base de données'!$A$1:$T$200,SMALL(IF('Base de données'!$C$3:$C$200=MONTH($G$1),ROW($3:$199)),ROWS($1:5)),MATCH(B$1,'Base de données'!$E$2:$T$2,0)+4),"") -> 8357 | C6: =IFERROR(INDEX('Base de données'!$A$1:$T$200,SMALL(IF('Base de données'!$C$3:$C$200=MONTH($G$1),ROW($3:$199)),ROWS($1:5)),MATCH(C$1,'Base de données'!$E$2:$T$2,0)+4),"") -> 4 | D6: =IFERROR(INDEX('Base de données'!$A$1:$T$200,SMALL(IF('Base de données'!$C$3:$C$200=MONTH($G$1),ROW($3:$199)),ROWS($1:5)),MATCH(D$1,'Base de données'!$E$2:$T$2,0)+4),"") -> 0 | E6: =IFERROR(INDEX('Base de données'!$A$1:$T$200,SMALL(IF('Base de données'!$C$3:$C$200=MONTH($G$1),ROW($3:$199)),ROWS($1:5)),MATCH(E$1,'Base de données'!$E$2:$T$2,0)+4),"") -> 43480 | F6: =IFERROR(INDEX('Base de données'!$A$1:$T$200,SMALL(IF('Base de données'!$C$3:$C$200=MONTH($G$1),ROW($3:$199)),ROWS($1:5)),MATCH(F$1,'Base de données'!$E$2:$T$2,0)+4),"") -> 0 | G6: propre et sec | H6: propre et | I6: Contaminés | J6: blocs/plaque | K6: (Blocs/plaques)
A7: =IFERROR(INDEX('Base de données'!$A$1:$T$200,SMALL(IF('Base de données'!$C$3:$C$200=MONTH($G$1),ROW($3:$199)),ROWS($1:6)),MATCH(A$1,'Base de données'!$E$2:$T$2,0)+4),"") -> 2016-01-11 | B7: =IFERROR(INDEX('Base de données'!$A$1:$T$200,SMALL(IF('Base de données'!$C$3:$C$200=MONTH($G$1),ROW($3:$199)),ROWS($1:6)),MATCH(B$1,'Base de données'!$E$2:$T$2,0)+4),"") -> 8358 | C7: =IFERROR(INDEX('Base de données'!$A$1:$T$200,SMALL(IF('Base de données'!$C$3:$C$200=MONTH($G$1),ROW($3:$199)),ROWS($1:6)),MATCH(C$1,'Base de données'!$E$2:$T$2,0)+4),"") -> 1 | D7: =IFERROR(INDEX('Base de données'!$A$1:$T$200,SMALL(IF('Base de données'!$C$3:$C$200=MONTH($G$1),ROW($3:$199)),ROWS($1:6)),MATCH(D$1,'Base de données'!$E$2:$T$2,0)+4),"") -> 0 | E7: =IFERROR(INDEX('Base de données'!$A$1:$T$200,SMALL(IF('Base de données'!$C$3:$C$200=MONTH($G$1),ROW($3:$199)),ROWS($1:6)),MATCH(E$1,'Base de données'!$E$2:$T$2,0)+4),"") -> 48600 | F7: =IFERROR(INDEX('Base de données'!$A$1:$T$200,SMALL(IF('Base de données'!$C$3:$C$200=MONTH($G$1),ROW($3:$199)),ROWS($1:6)),MATCH(F$1,'Base de données'!$E$2:$T$2,0)+4),"") -> 0 | H7: humides | J7: 7000 | K7: U.S 1 | L7: U.S 3 | R7: U.S 1 | S7: U.S 3 | V7: U.S 1 | W7: U.S 3 | X7: U.S 8
A8: =IFERROR(INDEX('Base de données'!$A$1:$T$200,SMALL(IF('Base de données'!$C$3:$C$200=MONTH($G$1),ROW($3:$199)),ROWS($1:7)),MATCH(A$1,'Base de données'!$E$2:$T$2,0)+4),"") -> 2016-01-13 | B8: =IFERROR(INDEX('Base de données'!$A$1:$T$200,SMALL(IF('Base de données'!$C$3:$C$200=MONTH($G$1),ROW($3:$199)),ROWS($1:7)),MATCH(B$1,'Base de données'!$E$2:$T$2,0)+4),"") -> 8359 | C8: =IFERROR(INDEX('Base de données'!$A$1:$T$200,SMALL(IF('Base de données'!$C$3:$C$200=MONTH($G$1),ROW($3:$199)),ROWS($1:7)),MATCH(C$1,'Base de données'!$E$2:$T$2,0)+4),"") -> 1 | D8: =IFERROR(INDEX('Base de données'!$A$1:$T$200,SMALL(IF('Base de données'!$C$3:$C$200=MONTH($G$1),ROW($3:$199)),ROWS($1:7)),MATCH(D$1,'Base de données'!$E$2:$T$2,0)+4),"") -> 0 | E8: =IFERROR(INDEX('Base de données'!$A$1:$T$200,SMALL(IF('Base de données'!$C$3:$C$200=MONTH($G$1),ROW($3:$199)),ROWS($1:7)),MATCH(E$1,'Base de données'!$E$2:$T$2,0)+4),"") -> 49640 | F8: =IFERROR(INDEX('Base de données'!$A$1:$T$200,SMALL(IF('Base de données'!$C$3:$C$200=MONTH($G$1),ROW($3:$199)),ROWS($1:7)),MATCH(F$1,'Base de données'!$E$2:$T$2,0)+4),"") -> 0 | G8: =SUMIF(C2:C46,"1",E2:E46) -> 394578 | H8: =SUMIF(C2:C46,"2",E2:E46) -> 0 | I8: =SUMIF(C2:C46,"3",E2:E46) -> 14240 | J8: =SUMIF(C2:C46,"4",E2:E46) -> 131460 | K8: =SUMIFS(E2:E46,C2:C46,"5",D2:D46,"0") -> 12580 | L8: =SUMIFS(E2:E46,C2:C46,"5",D2:D46,"U.S 3") -> 0 | M8: 2016-01-01 | N8: =SUMIFS(E:E,A:A,M$8:M$46,C:C,"1") -> 0 | O8: =SUMIFS(E:E,A:A,M$8:M$46,C:C,"2") -> 0 | P8: =SUMIFS(E:E,A:A,M$8:M$46,C:C,"3") -> 0 | Q8: =SUMIFS(E:E,A:A,M$8:M$46,C:C,"4") -> 0 | R8: =SUMIFS(E:E,A:A,M$8:M$46,C:C,"5",D:D,"0") -> 0 | S8: =SUMIFS(E:E,A:A,M$8:M$46,C:C,"5",D:D,"U.S 3") -> 0 | T8: =SUMIFS(E:E,A:A,M$8:M$46,C:C,"6") -> 0 | U8: =SUMIFS(E:E,A:A,M$8:M$46,C:C,"7") -> 0 | V8: =SUMIFS(E:E,A:A,M$8:M$46,C:C,"8",D:D,"0") -> 0 | W8: =SUMIFS(E:E,A:A,M$8:M$46,C:C,"8",D:D,"U.S 3") -> 0 | X8: =SUMIFS(E:E,A:A,M$8:M$46,C:C,"8",D:D,"U.S 8") -> 0 | Y8: =SUMIFS(E:E,A:A,M$8:M$46,C:C,"9") -> 0 | Z8: =SUMIFS(E:E,A:A,M$8:M$46,C:C,"10") -> 0
A9: =IFERROR(INDEX('Base de données'!$A$1:$T$200,SMALL(IF('Base de données'!$C$3:$C$200=MONTH($G$1),ROW($3:$199)),ROWS($1:8)),MATCH(A$1,'Base de données'!$E$2:$T$2,0)+4),"") -> 2016-01-15 | B9: =IFERROR(INDEX('Base de données'!$A$1:$T$200,SMALL(IF('Base de données'!$C$3:$C$200=MONTH($G$1),ROW($3:$199)),ROWS($1:8)),MATCH(B$1,'Base de données'!$E$2:$T$2,0)+4),"") -> 8360 | C9: =IFERROR(INDEX('Base de données'!$A$1:$T$200,SMALL(IF('Base de données'!$C$3:$C$200=MONTH($G$1),ROW($3:$199)),ROWS($1:8)),MATCH(C$1,'Base de données'!$E$2:$T$2,0)+4),"") -> 1 | D9: =IFERROR(INDEX('Base de données'!$A$1:$T$200,SMALL(IF('Base de données'!$C$3:$C$200=MONTH($G$1),ROW($3:$199)),ROWS($1:8)),MATCH(D$1,'Base de données'!$E$2:$T$2,0)+4),"") -> 0 | E9: =IFERROR(INDEX('Base de données'!$A$1:$T$200,SMALL(IF('Base de données'!$C$3:$C$200=MONTH($G$1),ROW($3:$199)),ROWS($1:8)),MATCH(E$1,'Base de données'!$E$2:$T$2,0)+4),"") -> 48740 | F9: =IFERROR(INDEX('Base de données'!$A$1:$T$200,SMALL(IF('Base de données'!$C$3:$C$200=MONTH($G$1),ROW($3:$199)),ROWS($1:8)),MATCH(F$1,'Base de données'!$E$2:$T$2,0)+4),"") -> 0 | K9: Total | M9: 2016-01-02 | N9: 0 | O9: 0 | P9: 0 | Q9: 0 | R9: =SUMIFS(E:E,A:A,M$8:M$46,C:C,"5",D:D,"0") -> 0 | S9: 0 | T9: 0 | U9: 0 | V9: =SUMIFS(E:E,A:A,M$8:M$46,C:C,"8",D:D,"0") -> 0 | W9: 0 | X9: 0 | Y9: 0 | Z9: 0
A10: =IFERROR(INDEX('Base de données'!$A$1:$T$200,SMALL(IF('Base de données'!$C$3:$C$200=MONTH($G$1),ROW($3:$199)),ROWS($1:9)),MATCH(A$1,'Base de données'!$E$2:$T$2,0)+4),"") -> 2016-01-18 | B10: =IFERROR(INDEX('Base de données'!$A$1:$T$200,SMALL(IF('Base de données'!$C$3:$C$200=MONTH($G$1),ROW($3:$199)),ROWS($1:9)),MATCH(B$1,'Base de données'!$E$2:$T$2,0)+4),"") -> 8361 | C10: =IFERROR(INDEX('Base de données'!$A$1:$T$200,SMALL(IF('Base de données'!$C$3:$C$200=MONTH($G$1),ROW($3:$199)),ROWS($1:9)),MATCH(C$1,'Base de données'!$E$2:$T$2,0)+4),"") -> 6 | D10: =IFERROR(INDEX('Base de données'!$A$1:$T$200,SMALL(IF('Base de données'!$C$3:$C$200=MONTH($G$1),ROW($3:$199)),ROWS($1:9)),MATCH(D$1,'Base de données'!$E$2:$T$2,0)+4),"") -> 0 | E10: =IFERROR(INDEX('Base de données'!$A$1:$T$200,SMALL(IF('Base de données'!$C$3:$C$200=MONTH($G$1),ROW($3:$199)),ROWS($1:9)),MATCH(E$1,'Base de données'!$E$2:$T$2,0)+4),"") -> 19560 | F10: =IFERROR(INDEX('Base de données'!$A$1:$T$200,SMALL(IF('Base de données'!$C$3:$C$200=MONTH($G$1),ROW($3:$199)),ROWS($1:9)),MATCH(F$1,'Base de données'!$E$2:$T$2,0)+4),"") -> 0 | K10: =SUM(K8+L8) -> 12580 | M10: 2016-01-03 | N10: 0 | O10: 0 | P10: 0 | Q10: 0 | R10: 0 | S10: 0 | T10: 0 | U10: 0 | V10: 0 | W10: 0 | X10: 0 | Y10: 0 | Z10: 0
A11: =IFERROR(INDEX('Base de données'!$A$1:$T$200,SMALL(IF('Base de données'!$C$3:$C$200=MONTH($G$1),ROW($3:$199)),ROWS($1:10)),MATCH(A$1,'Base de données'!$E$2:$T$2,0)+4),"") -> 2016-01-19 | B11: =IFERROR(INDEX('Base de données'!$A$1:$T$200,SMALL(IF('Base de données'!$C$3:$C$200=MONTH($G$1),ROW($3:$199)),ROWS($1:10)),MATCH(B$1,'Base de données'!$E$2:$T$2,0)+4),"") -> 8362 | C11: =IFERROR(INDEX('Base de données'!$A$1:$T$200,SMALL(IF('Base de données'!$C$3:$C$200=MONTH($G$1),ROW($3:$199)),ROWS($1:10)),MATCH(C$1,'Base de données'!$E$2:$T$2,0)+4),"") -> 8 | D11: =IFERROR(INDEX('Base de données'!$A$1:$T$200,SMALL(IF('Base de données'!$C$3:$C$200=MONTH($G$1),ROW($3:$199)),ROWS($1:10)),MATCH(D$1,'Base de données'!$E$2:$T$2,0)+4),"") -> 0 | E11: =IFERROR(INDEX('Base de données'!$A$1:$T$200,SMALL(IF('Base de données'!$C$3:$C$200=MONTH($G$1),ROW($3:$199)),ROWS($1:10)),MATCH(E$1,'Base de données'!$E$2:$T$2,0)+4),"") -> 16920 | F11: =IFERROR(INDEX('Base de données'!$A$1:$T$200,SMALL(IF('Base de données'!$C$3:$C$200=MONTH($G$1),ROW($3:$199)),ROWS($1:10)),MATCH(F$1,'Base de données'!$E$2:$T$2,0)+4),"") -> 0 | G11: 6 | H11: 7 | I11: 8 | K11: 9 | L11: 10 | M11: 2016-01-04 | N11: 0 | O11: 0 | P11: 0 | Q11: 0 | R11: 0 | S11: 0 | T11: 0 | U11: 0 | V11: 0 | W11: 0 | X11: 0 | Y11: 0 | Z11: 0
A12: =IFERROR(INDEX('Base de données'!$A$1:$T$200,SMALL(IF('Base de données'!$C$3:$C$200=MONTH($G$1),ROW($3:$199)),ROWS($1:11)),MATCH(A$1,'Base de données'!$E$2:$T$2,0)+4),"") -> 2016-01-19 | B12: =IFERROR(INDEX('Base de données'!$A$1:$T$200,SMALL(IF('Base de données'!$C$3:$C$200=MONTH($G$1),ROW($3:$199)),ROWS($1:11)),MATCH(B$1,'Base de données'!$E$2:$T$2,0)+4),"") -> 8363 | C12: =IFERROR(INDEX('Base de données'!$A$1:$T$200,SMALL(IF('Base de données'!$C$3:$C$200=MONTH($G$1),ROW($3:$199)),ROWS($1:11)),MATCH(C$1,'Base de données'!$E$2:$T$2,0)+4),"") -> 4 | D12: =IFERROR(INDEX('Base de données'!$A$1:$T$200,SMALL(IF('Base de données'!$C$3:$C$200=MONTH($G$1),ROW($3:$199)),ROWS($1:11)),MATCH(D$1,'Base de données'!$E$2:$T$2,0)+4),"") -> 0 | E12: =IFERROR(INDEX('Base de données'!$A$1:$T$200,SMALL(IF('Base de données'!$C$3:$C$200=MONTH($G$1),ROW($3:$199)),ROWS($1:11)),MATCH(E$1,'Base de données'!$E$2:$T$2,0)+4),"") -> 41240 | F12: =IFERROR(INDEX('Base de données'!$A$1:$T$200,SMALL(IF('Base de données'!$C$3:$C$200=MONTH($G$1),ROW($3:$199)),ROWS($1:11)),MATCH(F$1,'Base de données'!$E$2:$T$2,0)+4),"") -> 0 | G12: Aluminium | H12: Aluminium | I12: Acier mixte | K12: Acier | L12: Fil | M12: 2016-01-05 | N12: 0 | O12: 0 | P12: 0 | Q12: 0 | R12: 0 | S12: 0 | T12: 0 | U12: 0 | V12: 0 | W12: 0 | X12: 0 | Y12: 0 | Z12: 0
A13: =IFERROR(INDEX('Base de données'!$A$1:$T$200,SMALL(IF('Base de données'!$C$3:$C$200=MONTH($G$1),ROW($3:$199)),ROWS($1:12)),MATCH(A$1,'Base de données'!$E$2:$T$2,0)+4),"") -> 2016-01-20 | B13: =IFERROR(INDEX('Base de données'!$A$1:$T$200,SMALL(IF('Base de données'!$C$3:$C$200=MONTH($G$1),ROW($3:$199)),ROWS($1:12)),MATCH(B$1,'Base de données'!$E$2:$T$2,0)+4),"") -> 8364 | C13: =IFERROR(INDEX('Base de données'!$A$1:$T$200,SMALL(IF('Base de données'!$C$3:$C$200=MONTH($G$1),ROW($3:$199)),ROWS($1:12)),MATCH(C$1,'Base de données'!$E$2:$T$2,0)+4),"") -> 1 | D13: =IFERROR(INDEX('Base de données'!$A$1:$T$200,SMALL(IF('Base de données'!$C$3:$C$200=MONTH($G$1),ROW($3:$199)),ROWS($1:12)),MATCH(D$1,'Base de données'!$E$2:$T$2,0)+4),"") -> 0 | E13: =IFERROR(INDEX('Base de données'!$A$1:$T$200,SMALL(IF('Base de données'!$C$3:$C$200=MONTH($G$1),ROW($3:$199)),ROWS($1:12)),MATCH(E$1,'Base de données'!$E$2:$T$2,0)+4),"") -> 50160 | F13: =IFERROR(INDEX('Base de données'!$A$1:$T$200,SMALL(IF('Base de données'!$C$3:$C$200=MONTH($G$1),ROW($3:$199)),ROWS($1:12)),MATCH(F$1,'Base de données'!$E$2:$T$2,0)+4),"") -> 0 | G13: mixte en | H13: série 7000 | I13: en morceau | K13: inoxydable | L13: de | M13: 2016-01-06 | N13: 49820 | O13: 0 | P13: 0 | Q13: 0 | R13: 0 | S13: 0 | T13: 0 | U13: 0 | V13: 21240 | W13: 0 | X13: 0 | Y13: 0 | Z13: 0
A14: =IFERROR(INDEX('Base de données'!$A$1:$T$200,SMALL(IF('Base de données'!$C$3:$C$200=MONTH($G$1),ROW($3:$199)),ROWS($1:13)),MATCH(A$1,'Base de données'!$E$2:$T$2,0)+4),"") -> 2016-01-22 | B14: =IFERROR(INDEX('Base de données'!$A$1:$T$200,SMALL(IF('Base de données'!$C$3:$C$200=MONTH($G$1),ROW($3:$199)),ROWS($1:13)),MATCH(B$1,'Base de données'!$E$2:$T$2,0)+4),"") -> 8365 | C14: =IFERROR(INDEX('Base de données'!$A$1:$T$200,SMALL(IF('Base de données'!$C$3:$C$200=MONTH($G$1),ROW($3:$199)),ROWS($1:13)),MATCH(C$1,'Base de données'!$E$2:$T$2,0)+4),"") -> 5 | D14: =IFERROR(INDEX('Base de données'!$A$1:$T$200,SMALL(IF('Base de données'!$C$3:$C$200=MONTH($G$1),ROW($3:$199)),ROWS($1:13)),MATCH(D$1,'Base de données'!$E$2:$T$2,0)+4),"") -> 0 | E14: =IFERROR(INDEX('Base de données'!$A$1:$T$200,SMALL(IF('Base de données'!$C$3:$C$200=MONTH($G$1),ROW($3:$199)),ROWS($1:13)),MATCH(E$1,'Base de données'!$E$2:$T$2,0)+4),"") -> 12580 | F14: =IFERROR(INDEX('Base de données'!$A$1:$T$200,SMALL(IF('Base de données'!$C$3:$C$200=MONTH($G$1),ROW($3:$199)),ROWS($1:13)),MATCH(F$1,'Base de données'!$E$2:$T$2,0)+4),"") -> 0 | G14: morceau | H14: en morceau | K14: mixte en | L14: cuivre | M14: 2016-01-07 | N14: 50040 | O14: 0 | P14: 14240 | Q14: 0 | R14: 0 | S14: 0 | T14: 0 | U14: 0 | V14: 0 | W14: 0 | X14: 0 | Y14: 0 | Z14: 0
A15: =IFERROR(INDEX('Base de données'!$A$1:$T$200,SMALL(IF('Base de données'!$C$3:$C$200=MONTH($G$1),ROW($3:$199)),ROWS($1:14)),MATCH(A$1,'Base de données'!$E$2:$T$2,0)+4),"") -> 2016-01-22 | B15: =IFERROR(INDEX('Base de données'!$A$1:$T$200,SMALL(IF('Base de données'!$C$3:$C$200=MONTH($G$1),ROW($3:$199)),ROWS($1:14)),MATCH(B$1,'Base de données'!$E$2:$T$2,0)+4),"") -> 8366 | C15: =IFERROR(INDEX('Base de données'!$A$1:$T$200,SMALL(IF('Base de données'!$C$3:$C$200=MONTH($G$1),ROW($3:$199)),ROWS($1:14)),MATCH(C$1,'Base de données'!$E$2:$T$2,0)+4),"") -> 1 | D15: =IFERROR(INDEX('Base de données'!$A$1:$T$200,SMALL(IF('Base de données'!$C$3:$C$200=MONTH($G$1),ROW($3:$199)),ROWS($1:14)),MATCH(D$1,'Base de données'!$E$2:$T$2,0)+4),"") -> 0 | E15: =IFERROR(INDEX('Base de données'!$A$1:$T$200,SMALL(IF('Base de données'!$C$3:$C$200=MONTH($G$1),ROW($3:$199)),ROWS($1:14)),MATCH(E$1,'Base de données'!$E$2:$T$2,0)+4),"") -> 47600 | F15: =IFERROR(INDEX('Base de données'!$A$1:$T$200,SMALL(IF('Base de données'!$C$3:$C$200=MONTH($G$1),ROW($3:$199)),ROWS($1:14)),MATCH(F$1,'Base de données'!$E$2:$T$2,0)+4),"") -> 0 | G15: 2024 | H15: surdimension | I15: U.S 1 | J15: U.S 3 | K15: morceau | M15: 2016-01-08 | N15: 0 | O15: 0 | P15: 0 | Q15: 0 | R15: 0 | S15: 0 | T15: 0 | U15: 0 | V15: 0 | W15: 0 | X15: 0 | Y15: 0 | Z15: 0
A16: =IFERROR(INDEX('Base de données'!$A$1:$T$200,SMALL(IF('Base de données'!$C$3:$C$200=MONTH($G$1),ROW($3:$199)),ROWS($1:15)),MATCH(A$1,'Base de données'!$E$2:$T$2,0)+4),"") -> 2016-01-26 | B16: =IFERROR(INDEX('Base de données'!$A$1:$T$200,SMALL(IF('Base de données'!$C$3:$C$200=MONTH($G$1),ROW($3:$199)),ROWS($1:15)),MATCH(B$1,'Base de données'!$E$2:$T$2,0)+4),"") -> 8367 | C16: =IFERROR(INDEX('Base de données'!$A$1:$T$200,SMALL(IF('Base de données'!$C$3:$C$200=MONTH($G$1),ROW($3:$199)),ROWS($1:15)),MATCH(C$1,'Base de données'!$E$2:$T$2,0)+4),"") -> 4 | D16: =IFERROR(INDEX('Base de données'!$A$1:$T$200,SMALL(IF('Base de données'!$C$3:$C$200=MONTH($G$1),ROW($3:$199)),ROWS($1:15)),MATCH(D$1,'Base de données'!$E$2:$T$2,0)+4),"") -> 0 | E16: =IFERROR(INDEX('Base de données'!$A$1:$T$200,SMALL(IF('Base de données'!$C$3:$C$200=MONTH($G$1),ROW($3:$199)),ROWS($1:15)),MATCH(E$1,'Base de données'!$E$2:$T$2,0)+4),"") -> 46740 | F16: =IFERROR(INDEX('Base de données'!$A$1:$T$200,SMALL(IF('Base de données'!$C$3:$C$200=MONTH($G$1),ROW($3:$199)),ROWS($1:15)),MATCH(F$1,'Base de données'!$E$2:$T$2,0)+4),"") -> 0 | G16: =SUMIF(C2:C46,"6",E2:E46) -> 19560 | H16: =SUMIF(C2:C46,"7",E2:E46) -> 0 | I16: =SUMIFS(E2:E46,C2:C46,"8",D2:D46,"0") -> 38160 | J16: =SUMIFS(E2:E46,C2:C46,"8",D2:D46,"U.S 3") -> 0 | K16: =SUMIF(C2:C46,"9",E2:E46) -> 0 | L16: =SUMIF(C2:C46,"10",E2:E46) -> 0 | M16: 2016-01-09 | N16: 0 | O16: 0 | P16: 0 | Q16: 0 | R16: 0 | S16: 0 | T16: 0 | U16: 0 | V16: 0 | W16: 0 | X16: 0 | Y16: 0 | Z16: 0
A17: =IFERROR(INDEX('Base de données'!$A$1:$T$200,SMALL(IF('Base de données'!$C$3:$C$200=MONTH($G$1),ROW($3:$199)),ROWS($1:16)),MATCH(A$1,'Base de données'!$E$2:$T$2,0)+4),"") -> 2016-01-27 | B17: =IFERROR(INDEX('Base de données'!$A$1:$T$200,SMALL(IF('Base de données'!$C$3:$C$200=MONTH($G$1),ROW($3:$199)),ROWS($1:16)),MATCH(B$1,'Base de données'!$E$2:$T$2,0)+4),"") -> 8368 | C17: =IFERROR(INDEX('Base de données'!$A$1:$T$200,SMALL(IF('Base de données'!$C$3:$C$200=MONTH($G$1),ROW($3:$199)),ROWS($1:16)),MATCH(C$1,'Base de données'!$E$2:$T$2,0)+4),"") -> 1 | D17: =IFERROR(INDEX('Base de données'!$A$1:$T$200,SMALL(IF('Base de données'!$C$3:$C$200=MONTH($G$1),ROW($3:$199)),ROWS($1:16)),MATCH(D$1,'Base de données'!$E$2:$T$2,0)+4),"") -> 0 | E17: =IFERROR(INDEX('Base de données'!$A$1:$T$200,SMALL(IF('Base de données'!$C$3:$C$200=MONTH($G$1),ROW($3:$199)),ROWS($1:16)),MATCH(E$1,'Base de données'!$E$2:$T$2,0)+4),"") -> 49978 | F17: =IFERROR(INDEX('Base de données'!$A$1:$T$200,SMALL(IF('Base de données'!$C$3:$C$200=MONTH($G$1),ROW($3:$199)),ROWS($1:16)),MATCH(F$1,'Base de données'!$E$2:$T$2,0)+4),"") -> 0 | I17: U.S 8 | J17: Total | M17: 2016-01-10 | N17: 0 | O17: 0 | P17: 0 | Q17: 0 | R17: 0 | S17: 0 | T17: 0 | U17: 0 | V17: 0 | W17: 0 | X17: 0 | Y17: 0 | Z17: 0
A18: =IFERROR(INDEX('Base de données'!$A$1:$T$200,SMALL(IF('Base de données'!$C$3:$C$200=MONTH($G$1),ROW($3:$199)),ROWS($1:17)),MATCH(A$1,'Base de données'!$E$2:$T$2,0)+4),"") ->  | B18: =IFERROR(INDEX('Base de données'!$A$1:$T$200,SMALL(IF('Base de données'!$C$3:$C$200=MONTH($G$1),ROW($3:$199)),ROWS($1:17)),MATCH(B$1,'Base de données'!$E$2:$T$2,0)+4),"") ->  | C18: =IFERROR(INDEX('Base de données'!$A$1:$T$200,SMALL(IF('Base de données'!$C$3:$C$200=MONTH($G$1),ROW($3:$199)),ROWS($1:17)),MATCH(C$1,'Base de données'!$E$2:$T$2,0)+4),"") ->  | D18: =IFERROR(INDEX('Base de données'!$A$1:$T$200,SMALL(IF('Base de données'!$C$3:$C$200=MONTH($G$1),ROW($3:$199)),ROWS($1:17)),MATCH(D$1,'Base de données'!$E$2:$T$2,0)+4),"") ->  | E18: =IFERROR(INDEX('Base de données'!$A$1:$T$200,SMALL(IF('Base de données'!$C$3:$C$200=MONTH($G$1),ROW($3:$199)),ROWS($1:17)),MATCH(E$1,'Base de données'!$E$2:$T$2,0)+4),"") ->  | F18: =IFERROR(INDEX('Base de données'!$A$1:$T$200,SMALL(IF('Base de données'!$C$3:$C$200=MONTH($G$1),ROW($3:$199)),ROWS($1:17)),MATCH(F$1,'Base de données'!$E$2:$T$2,0)+4),"") ->  | I18: =SUMIFS(E2:E46,C2:C46,"8",D2:D46,"U.S 8") -> 0 | J18: =SUM(I16+J16+I18) -> 38160 | M18: 2016-01-11 | N18: 48600 | O18: 0 | P18: 0 | Q18: 43480 | R18: 0 | S18: 0 | T18: 0 | U18: 0 | V18: 0 | W18: 0 | X18: 0 | Y18: 0 | Z18: 0
A19: =IFERROR(INDEX('Base de données'!$A$1:$T$200,SMALL(IF('Base de données'!$C$3:$C$200=MONTH($G$1),ROW($3:$199)),ROWS($1:18)),MATCH(A$1,'Base de données'!$E$2:$T$2,0)+4),"") ->  | B19: =IFERROR(INDEX('Base de données'!$A$1:$T$200,SMALL(IF('Base de données'!$C$3:$C$200=MONTH($G$1),ROW($3:$199)),ROWS($1:18)),MATCH(B$1,'Base de données'!$E$2:$T$2,0)+4),"") ->  | C19: =IFERROR(INDEX('Base de données'!$A$1:$T$200,SMALL(IF('Base de données'!$C$3:$C$200=MONTH($G$1),ROW($3:$199)),ROWS($1:18)),MATCH(C$1,'Base de données'!$E$2:$T$2,0)+4),"") ->  | D19: =IFERROR(INDEX('Base de données'!$A$1:$T$200,SMALL(IF('Base de données'!$C$3:$C$200=MONTH($G$1),ROW($3:$199)),ROWS($1:18)),MATCH(D$1,'Base de données'!$E$2:$T$2,0)+4),"") ->  | E19: =IFERROR(INDEX('Base de données'!$A$1:$T$200,SMALL(IF('Base de données'!$C$3:$C$200=MONTH($G$1),ROW($3:$199)),ROWS($1:18)),MATCH(E$1,'Base de données'!$E$2:$T$2,0)+4),"") ->  | F19: =IFERROR(INDEX('Base de données'!$A$1:$T$200,SMALL(IF('Base de données'!$C$3:$C$200=MONTH($G$1),ROW($3:$199)),ROWS($1:18)),MATCH(F$1,'Base de données'!$E$2:$T$2,0)+4),"") ->  | M19: 2016-01-12 | N19: 0 | O19: 0 | P19: 0 | Q19: 0 | R19: 0 | S19: 0 | T19: 0 | U19: 0 | V19: 0 | W19: 0 | X19: 0 | Y19: 0 | Z19: 0
A20: =IFERROR(INDEX('Base de données'!$A$1:$T$200,SMALL(IF('Base de données'!$C$3:$C$200=MONTH($G$1),ROW($3:$199)),ROWS($1:19)),MATCH(A$1,'Base de données'!$E$2:$T$2,0)+4),"") ->  | B20: =IFERROR(INDEX('Base de données'!$A$1:$T$200,SMALL(IF('Base de données'!$C$3:$C$200=MONTH($G$1),ROW($3:$199)),ROWS($1:19)),MATCH(B$1,'Base de données'!$E$2:$T$2,0)+4),"") ->  | C20: =IFERROR(INDEX('Base de données'!$A$1:$T$200,SMALL(IF('Base de données'!$C$3:$C$200=MONTH($G$1),ROW($3:$199)),ROWS($1:19)),MATCH(C$1,'Base de données'!$E$2:$T$2,0)+4),"") ->  | D20: =IFERROR(INDEX('Base de données'!$A$1:$T$200,SMALL(IF('Base de données'!$C$3:$C$200=MONTH($G$1),ROW($3:$199)),ROWS($1:19)),MATCH(D$1,'Base de données'!$E$2:$T$2,0)+4),"") ->  | E20: =IFERROR(INDEX('Base de données'!$A$1:$T$200,SMALL(IF('Base de données'!$C$3:$C$200=MONTH($G$1),ROW($3:$199)),ROWS($1:19)),MATCH(E$1,'Base de données'!$E$2:$T$2,0)+4),"") ->  | F20: =IFERROR(INDEX('Base de données'!$A$1:$T$200,SMALL(IF('Base de données'!$C$3:$C$200=MONTH($G$1),ROW($3:$199)),ROWS($1:19)),MATCH(F$1,'Base de données'!$E$2:$T$2,0)+4),"") ->  | M20: 2016-01-13 | N20: 49640 | O20: 0 | P20: 0 | Q20: 0 | R20: 0 | S20: 0 | T20: 0 | U20: 0 | V20: 0 | W20: 0 | X20: 0 | Y20: 0 | Z20: 0
A21: =IFERROR(INDEX('Base de données'!$A$1:$T$200,SMALL(IF('Base de données'!$C$3:$C$200=MONTH($G$1),ROW($3:$199)),ROWS($1:20)),MATCH(A$1,'Base de données'!$E$2:$T$2,0)+4),"") ->  | B21: =IFERROR(INDEX('Base de données'!$A$1:$T$200,SMALL(IF('Base de données'!$C$3:$C$200=MONTH($G$1),ROW($3:$199)),ROWS($1:20)),MATCH(B$1,'Base de données'!$E$2:$T$2,0)+4),"") ->  | C21: =IFERROR(INDEX('Base de données'!$A$1:$T$200,SMALL(IF('Base de données'!$C$3:$C$200=MONTH($G$1),ROW($3:$199)),ROWS($1:20)),MATCH(C$1,'Base de données'!$E$2:$T$2,0)+4),"") ->  | D21: =IFERROR(INDEX('Base de données'!$A$1:$T$200,SMALL(IF('Base de données'!$C$3:$C$200=MONTH($G$1),ROW($3:$199)),ROWS($1:20)),MATCH(D$1,'Base de données'!$E$2:$T$2,0)+4),"") ->  | E21: =IFERROR(INDEX('Base de données'!$A$1:$T$200,SMALL(IF('Base de données'!$C$3:$C$200=MONTH($G$1),ROW($3:$199)),ROWS($1:20)),MATCH(E$1,'Base de données'!$E$2:$T$2,0)+4),"") ->  | F21: =IFERROR(INDEX('Base de données'!$A$1:$T$200,SMALL(IF('Base de données'!$C$3:$C$200=MONTH($G$1),ROW($3:$199)),ROWS($1:20)),MATCH(F$1,'Base de données'!$E$2:$T$2,0)+4),"") ->  | M21: 2016-01-14 | N21: 0 | O21: 0 | P21: 0 | Q21: 0 | R21: 0 | S21: 0 | T21: 0 | U21: 0 | V21: 0 | W21: 0 | X21: 0 | Y21: 0 | Z21: 0
A22: =IFERROR(INDEX('Base de données'!$A$1:$T$200,SMALL(IF('Base de données'!$C$3:$C$200=MONTH($G$1),ROW($3:$199)),ROWS($1:21)),MATCH(A$1,'Base de données'!$E$2:$T$2,0)+4),"") ->  | B22: =IFERROR(INDEX('Base de données'!$A$1:$T$200,SMALL(IF('Base de données'!$C$3:$C$200=MONTH($G$1),ROW($3:$199)),ROWS($1:21)),MATCH(B$1,'Base de données'!$E$2:$T$2,0)+4),"") ->  | C22: =IFERROR(INDEX('Base de données'!$A$1:$T$200,SMALL(IF('Base de données'!$C$3:$C$200=MONTH($G$1),ROW($3:$199)),ROWS($1:21)),MATCH(C$1,'Base de données'!$E$2:$T$2,0)+4),"") ->  | D22: =IFERROR(INDEX('Base de données'!$A$1:$T$200,SMALL(IF('Base de données'!$C$3:$C$200=MONTH($G$1),ROW($3:$199)),ROWS($1:21)),MATCH(D$1,'Base de données'!$E$2:$T$2,0)+4),"") ->  | E22: =IFERROR(INDEX('Base de données'!$A$1:$T$200,SMALL(IF('Base de données'!$C$3:$C$200=MONTH($G$1),ROW($3:$199)),ROWS($1:21)),MATCH(E$1,'Base de données'!$E$2:$T$2,0)+4),"") ->  | F22: =IFERROR(INDEX('Base de données'!$A$1:$T$200,SMALL(IF('Base de données'!$C$3:$C$200=MONTH($G$1),ROW($3:$199)),ROWS($1:21)),MATCH(F$1,'Base de données'!$E$2:$T$2,0)+4),"") ->  | H22: =IF('Base de données'!$C:$C=1,'Base de données'!E:E,"") ->  | M22: 2016-01-15 | N22: 48740 | O22: 0 | P22: 0 | Q22: 0 | R22: 0 | S22: 0 | T22: 0 | U22: 0 | V22: 0 | W22: 0 | X22: 0 | Y22: 0 | Z22: 0
A23: =IFERROR(INDEX('Base de données'!$A$1:$T$200,SMALL(IF('Base de données'!$C$3:$C$200=MONTH($G$1),ROW($3:$199)),ROWS($1:22)),MATCH(A$1,'Base de données'!$E$2:$T$2,0)+4),"") ->  | B23: =IFERROR(INDEX('Base de données'!$A$1:$T$200,SMALL(IF('Base de données'!$C$3:$C$200=MONTH($G$1),ROW($3:$199)),ROWS($1:22)),MATCH(B$1,'Base de données'!$E$2:$T$2,0)+4),"") ->  | C23: =IFERROR(INDEX('Base de données'!$A$1:$T$200,SMALL(IF('Base de données'!$C$3:$C$200=MONTH($G$1),ROW($3:$199)),ROWS($1:22)),MATCH(C$1,'Base de données'!$E$2:$T$2,0)+4),"") ->  | D23: =IFERROR(INDEX('Base de données'!$A$1:$T$200,SMALL(IF('Base de données'!$C$3:$C$200=MONTH($G$1),ROW($3:$199)),ROWS($1:22)),MATCH(D$1,'Base de données'!$E$2:$T$2,0)+4),"") ->  | E23: =IFERROR(INDEX('Base de données'!$A$1:$T$200,SMALL(IF('Base de données'!$C$3:$C$200=MONTH($G$1),ROW($3:$199)),ROWS($1:22)),MATCH(E$1,'Base de données'!$E$2:$T$2,0)+4),"") ->  | F23: =IFERROR(INDEX('Base de données'!$A$1:$T$200,SMALL(IF('Base de données'!$C$3:$C$200=MONTH($G$1),ROW($3:$199)),ROWS($1:22)),MATCH(F$1,'Base de données'!$E$2:$T$2,0)+4),"") ->  | M23: 2016-01-16 | N23: 0 | O23: 0 | P23: 0 | Q23: 0 | R23: 0 | S23: 0 | T23: 0 | U23: 0 | V23: 0 | W23: 0 | X23: 0 | Y23: 0 | Z23: 0
A24: =IFERROR(INDEX('Base de données'!$A$1:$T$200,SMALL(IF('Base de données'!$C$3:$C$200=MONTH($G$1),ROW($3:$199)),ROWS($1:23)),MATCH(A$1,'Base de données'!$E$2:$T$2,0)+4),"") ->  | B24: =IFERROR(INDEX('Base de données'!$A$1:$T$200,SMALL(IF('Base de données'!$C$3:$C$200=MONTH($G$1),ROW($3:$199)),ROWS($1:23)),MATCH(B$1,'Base de données'!$E$2:$T$2,0)+4),"") ->  | C24: =IFERROR(INDEX('Base de données'!$A$1:$T$200,SMALL(IF('Base de données'!$C$3:$C$200=MONTH($G$1),ROW($3:$199)),ROWS($1:23)),MATCH(C$1,'Base de données'!$E$2:$T$2,0)+4),"") ->  | D24: =IFERROR(INDEX('Base de données'!$A$1:$T$200,SMALL(IF('Base de données'!$C$3:$C$200=MONTH($G$1),ROW($3:$199)),ROWS($1:23)),MATCH(D$1,'Base de données'!$E$2:$T$2,0)+4),"") ->  | E24: =IFERROR(INDEX('Base de données'!$A$1:$T$200,SMALL(IF('Base de données'!$C$3:$C$200=MONTH($G$1),ROW($3:$199)),ROWS($1:23)),MATCH(E$1,'Base de données'!$E$2:$T$2,0)+4),"") ->  | F24: =IFERROR(INDEX('Base de données'!$A$1:$T$200,SMALL(IF('Base de données'!$C$3:$C$200=MONTH($G$1),ROW($3:$199)),ROWS($1:23)),MATCH(F$1,'Base de données'!$E$2:$T$2,0)+4),"") ->  | M24: 2016-01-17 | N24: 0 | O24: 0 | P24: 0 | Q24: 0 | R24: 0 | S24: 0 | T24: 0 | U24: 0 | V24: 0 | W24: 0 | X24: 0 | Y24: 0 | Z24: 0
A25: =IFERROR(INDEX('Base de données'!$A$1:$T$200,SMALL(IF('Base de données'!$C$3:$C$200=MONTH($G$1),ROW($3:$199)),ROWS($1:24)),MATCH(A$1,'Base de données'!$E$2:$T$2,0)+4),"") ->  | B25: =IFERROR(INDEX('Base de données'!$A$1:$T$200,SMALL(IF('Base de données'!$C$3:$C$200=MONTH($G$1),ROW($3:$199)),ROWS($1:24)),MATCH(B$1,'Base de données'!$E$2:$T$2,0)+4),"") ->  | C25: =IFERROR(INDEX('Base de données'!$A$1:$T$200,SMALL(IF('Base de données'!$C$3:$C$200=MONTH($G$1),ROW($3:$199)),ROWS($1:24)),MATCH(C$1,'Base de données'!$E$2:$T$2,0)+4),"") ->  | D25: =IFERROR(INDEX('Base de données'!$A$1:$T$200,SMALL(IF('Base de données'!$C$3:$C$200=MONTH($G$1),ROW($3:$199)),ROWS($1:24)),MATCH(D$1,'Base de données'!$E$2:$T$2,0)+4),"") ->  | E25: =IFERROR(INDEX('Base de données'!$A$1:$T$200,SMALL(IF('Base de données'!$C$3:$C$200=MONTH($G$1),ROW($3:$199)),ROWS($1:24)),MATCH(E$1,'Base de données'!$E$2:$T$2,0)+4),"") ->  | F25: =IFERROR(INDEX('Base de données'!$A$1:$T$200,SMALL(IF('Base de données'!$C$3:$C$200=MONTH($G$1),ROW($3:$199)),ROWS($1:24)),MATCH(F$1,'Base de données'!$E$2:$T$2,0)+4),"") ->  | M25: 2016-01-18 | N25: 0 | O25: 0 | P25: 0 | Q25: 0 | R25: 0 | S25: 0 | T25: 19560 | U25: 0 | V25: 0 | W25: 0 | X25: 0 | Y25: 0 | Z25: 0
A26: =IFERROR(INDEX('Base de données'!$A$1:$T$200,SMALL(IF('Base de données'!$C$3:$C$200=MONTH($G$1),ROW($3:$199)),ROWS($1:25)),MATCH(A$1,'Base de données'!$E$2:$T$2,0)+4),"") ->  | B26: =IFERROR(INDEX('Base de données'!$A$1:$T$200,SMALL(IF('Base de données'!$C$3:$C$200=MONTH($G$1),ROW($3:$199)),ROWS($1:25)),MATCH(B$1,'Base de données'!$E$2:$T$2,0)+4),"") ->  | C26: =IFERROR(INDEX('Base de données'!$A$1:$T$200,SMALL(IF('Base de données'!$C$3:$C$200=MONTH($G$1),ROW($3:$199)),ROWS($1:25)),MATCH(C$1,'Base de données'!$E$2:$T$2,0)+4),"") ->  | D26: =IFERROR(INDEX('Base de données'!$A$1:$T$200,SMALL(IF('Base de données'!$C$3:$C$200=MONTH($G$1),ROW($3:$199)),ROWS($1:25)),MATCH(D$1,'Base de données'!$E$2:$T$2,0)+4),"") ->  | E26: =IFERROR(INDEX('Base de données'!$A$1:$T$200,SMALL(IF('Base de données'!$C$3:$C$200=MONTH($G$1),ROW($3:$199)),ROWS($1:25)),MATCH(E$1,'Base de données'!$E$2:$T$2,0)+4),"") ->  | F26: =IFERROR(INDEX('Base de données'!$A$1:$T$200,SMALL(IF('Base de données'!$C$3:$C$200=MONTH($G$1),ROW($3:$199)),ROWS($1:25)),MATCH(F$1,'Base de données'!$E$2:$T$2,0)+4),"") ->  | M26: 2016-01-19 | N26: 0 | O26: 0 | P26: 0 | Q26: 41240 | R26: 0 | S26: 0 | T26: 0 | U26: 0 | V26: 16920 | W26: 0 | X26: 0 | Y26: 0 | Z26: 0
A27: =IFERROR(INDEX('Base de données'!$A$1:$T$200,SMALL(IF('Base de données'!$C$3:$C$200=MONTH($G$1),ROW($3:$199)),ROWS($1:26)),MATCH(A$1,'Base de données'!$E$2:$T$2,0)+4),"") ->  | B27: =IFERROR(INDEX('Base de données'!$A$1:$T$200,SMALL(IF('Base de données'!$C$3:$C$200=MONTH($G$1),ROW($3:$199)),ROWS($1:26)),MATCH(B$1,'Base de données'!$E$2:$T$2,0)+4),"") ->  | C27: =IFERROR(INDEX('Base de données'!$A$1:$T$200,SMALL(IF('Base de données'!$C$3:$C$200=MONTH($G$1),ROW($3:$199)),ROWS($1:26)),MATCH(C$1,'Base de données'!$E$2:$T$2,0)+4),"") ->  | D27: =IFERROR(INDEX('Base de données'!$A$1:$T$200,SMALL(IF('Base de données'!$C$3:$C$200=MONTH($G$1),ROW($3:$199)),ROWS($1:26)),MATCH(D$1,'Base de données'!$E$2:$T$2,0)+4),"") ->  | E27: =IFERROR(INDEX('Base de données'!$A$1:$T$200,SMALL(IF('Base de données'!$C$3:$C$200=MONTH($G$1),ROW($3:$199)),ROWS($1:26)),MATCH(E$1,'Base de données'!$E$2:$T$2,0)+4),"") ->  | F27: =IFERROR(INDEX('Base de données'!$A$1:$T$200,SMALL(IF('Base de données'!$C$3:$C$200=MONTH($G$1),ROW($3:$199)),ROWS($1:26)),MATCH(F$1,'Base de données'!$E$2:$T$2,0)+4),"") ->  | M27: 2016-01-20 | N27: 50160 | O27: 0 | P27: 0 | Q27: 0 | R27: 0 | S27: 0 | T27: 0 | U27: 0 | V27: 0 | W27: 0 | X27: 0 | Y27: 0 | Z27: 0
A28: =IFERROR(INDEX('Base de données'!$A$1:$T$200,SMALL(IF('Base de données'!$C$3:$C$200=MONTH($G$1),ROW($3:$199)),ROWS($1:27)),MATCH(A$1,'Base de données'!$E$2:$T$2,0)+4),"") ->  | B28: =IFERROR(INDEX('Base de données'!$A$1:$T$200,SMALL(IF('Base de données'!$C$3:$C$200=MONTH($G$1),ROW($3:$199)),ROWS($1:27)),MATCH(B$1,'Base de données'!$E$2:$T$2,0)+4),"") ->  | C28: =IFERROR(INDEX('Base de données'!$A$1:$T$200,SMALL(IF('Base de données'!$C$3:$C$200=MONTH($G$1),ROW($3:$199)),ROWS($1:27)),MATCH(C$1,'Base de données'!$E$2:$T$2,0)+4),"") ->  | D28: =IFERROR(INDEX('Base de données'!$A$1:$T$200,SMALL(IF('Base de données'!$C$3:$C$200=MONTH($G$1),ROW($3:$199)),ROWS($1:27)),MATCH(D$1,'Base de données'!$E$2:$T$2,0)+4),"") ->  | E28: =IFERROR(INDEX('Base de données'!$A$1:$T$200,SMALL(IF('Base de données'!$C$3:$C$200=MONTH($G$1),ROW($3:$199)),ROWS($1:27)),MATCH(E$1,'Base de données'!$E$2:$T$2,0)+4),"") ->  | F28: =IFERROR(INDEX('Base de données'!$A$1:$T$200,SMALL(IF('Base de données'!$C$3:$C$200=MONTH($G$1),ROW($3:$199)),ROWS($1:27)),MATCH(F$1,'Base de données'!$E$2:$T$2,0)+4),"") ->  | M28: 2016-01-21 | N28: 0 | O28: 0 | P28: 0 | Q28: 0 | R28: 0 | S28: 0 | T28: 0 | U28: 0 | V28: 0 | W28: 0 | X28: 0 | Y28: 0 | Z28: 0
A29: =IFERROR(INDEX('Base de données'!$A$1:$T$200,SMALL(IF('Base de données'!$C$3:$C$200=MONTH($G$1),ROW($3:$199)),ROWS($1:28)),MATCH(A$1,'Base de données'!$E$2:$T$2,0)+4),"") ->  | B29: =IFERROR(INDEX('Base de données'!$A$1:$T$200,SMALL(IF('Base de données'!$C$3:$C$200=MONTH($G$1),ROW($3:$199)),ROWS($1:28)),MATCH(B$1,'Base de données'!$E$2:$T$2,0)+4),"") ->  | C29: =IFERROR(INDEX('Base de données'!$A$1:$T$200,SMALL(IF('Base de données'!$C$3:$C$200=MONTH($G$1),ROW($3:$199)),ROWS($1:28)),MATCH(C$1,'Base de données'!$E$2:$T$2,0)+4),"") ->  | D29: =IFERROR(INDEX('Base de données'!$A$1:$T$200,SMALL(IF('Base de données'!$C$3:$C$200=MONTH($G$1),ROW($3:$199)),ROWS($1:28)),MATCH(D$1,'Base de données'!$E$2:$T$2,0)+4),"") ->  | E29: =IFERROR(INDEX('Base de données'!$A$1:$T$200,SMALL(IF('Base de données'!$C$3:$C$200=MONTH($G$1),ROW($3:$199)),ROWS($1:28)),MATCH(E$1,'Base de données'!$E$2:$T$2,0)+4),"") ->  | F29: =IFERROR(INDEX('Base de données'!$A$1:$T$200,SMALL(IF('Base de données'!$C$3:$C$200=MONTH($G$1),ROW($3:$199)),ROWS($1:28)),MATCH(F$1,'Base de données'!$E$2:$T$2,0)+4),"") ->  | M29: 2016-01-22 | N29: 47600 | O29: 0 | P29: 0 | Q29: 0 | R29: 12580 | S29: 0 | T29: 0 | U29: 0 | V29: 0 | W29: 0 | X29: 0 | Y29: 0 | Z29: 0
A30: =IFERROR(INDEX('Base de données'!$A$1:$T$200,SMALL(IF('Base de données'!$C$3:$C$200=MONTH($G$1),ROW($3:$199)),ROWS($1:29)),MATCH(A$1,'Base de données'!$E$2:$T$2,0)+4),"") ->  | B30: =IFERROR(INDEX('Base de données'!$A$1:$T$200,SMALL(IF('Base de données'!$C$3:$C$200=MONTH($G$1),ROW($3:$199)),ROWS($1:29)),MATCH(B$1,'Base de données'!$E$2:$T$2,0)+4),"") ->  | C30: =IFERROR(INDEX('Base de données'!$A$1:$T$200,SMALL(IF('Base de données'!$C$3:$C$200=MONTH($G$1),ROW($3:$199)),ROWS($1:29)),MATCH(C$1,'Base de données'!$E$2:$T$2,0)+4),"") ->  | D30: =IFERROR(INDEX('Base de données'!$A$1:$T$200,SMALL(IF('Base de données'!$C$3:$C$200=MONTH($G$1),ROW($3:$199)),ROWS($1:29)),MATCH(D$1,'Base de données'!$E$2:$T$2,0)+4),"") ->  | E30: =IFERROR(INDEX('Base de données'!$A$1:$T$200,SMALL(IF('Base de données'!$C$3:$C$200=MONTH($G$1),ROW($3:$199)),ROWS($1:29)),MATCH(E$1,'Base de données'!$E$2:$T$2,0)+4),"") ->  | F30: =IFERROR(INDEX('Base de données'!$A$1:$T$200,SMALL(IF('Base de données'!$C$3:$C$200=MONTH($G$1),ROW($3:$199)),ROWS($1:29)),MATCH(F$1,'Base de données'!$E$2:$T$2,0)+4),"") ->  | M30: 2016-01-23 | N30: 0 | O30: 0 | P30: 0 | Q30: 0 | R30: 0 | S30: 0 | T30: 0 | U30: 0 | V30: 0 | W30: 0 | X30: 0 | Y30: 0 | Z30: 0
A31: =IFERROR(INDEX('Base de données'!$A$1:$T$200,SMALL(IF('Base de données'!$C$3:$C$200=MONTH($G$1),ROW($3:$199)),ROWS($1:30)),MATCH(A$1,'Base de données'!$E$2:$T$2,0)+4),"") ->  | B31: =IFERROR(INDEX('Base de données'!$A$1:$T$200,SMALL(IF('Base de données'!$C$3:$C$200=MONTH($G$1),ROW($3:$199)),ROWS($1:30)),MATCH(B$1,'Base de données'!$E$2:$T$2,0)+4),"") ->  | C31: =IFERROR(INDEX('Base de données'!$A$1:$T$200,SMALL(IF('Base de données'!$C$3:$C$200=MONTH($G$1),ROW($3:$199)),ROWS($1:30)),MATCH(C$1,'Base de données'!$E$2:$T$2,0)+4),"") ->  | D31: =IFERROR(INDEX('Base de données'!$A$1:$T$200,SMALL(IF('Base de données'!$C$3:$C$200=MONTH($G$1),ROW($3:$199)),ROWS($1:30)),MATCH(D$1,'Base de données'!$E$2:$T$2,0)+4),"") ->  | E31: =IFERROR(INDEX('Base de données'!$A$1:$T$200,SMALL(IF('Base de données'!$C$3:$C$200=MONTH($G$1),ROW($3:$199)),ROWS($1:30)),MATCH(E$1,'Base de données'!$E$2:$T$2,0)+4),"") ->  | F31: =IFERROR(INDEX('Base de données'!$A$1:$T$200,SMALL(IF('Base de données'!$C$3:$C$200=MONTH($G$1),ROW($3:$199)),ROWS($1:30)),MATCH(F$1,'Base de données'!$E$2:$T$2,0)+4),"") ->  | M31: 2016-01-24 | N31: 0 | O31: 0 | P31: 0 | Q31: 0 | R31: 0 | S31: 0 | T31: 0 | U31: 0 | V31: 0 | W31: 0 | X31: 0 | Y31: 0 | Z31: 0
A32: =IFERROR(INDEX('Base de données'!$A$1:$T$200,SMALL(IF('Base de données'!$C$3:$C$200=MONTH($G$1),ROW($3:$199)),ROWS($1:31)),MATCH(A$1,'Base de données'!$E$2:$T$2,0)+4),"") ->  | B32: =IFERROR(INDEX('Base de données'!$A$1:$T$200,SMALL(IF('Base de données'!$C$3:$C$200=MONTH($G$1),ROW($3:$199)),ROWS($1:31)),MATCH(B$1,'Base de données'!$E$2:$T$2,0)+4),"") ->  | C32: =IFERROR(INDEX('Base de données'!$A$1:$T$200,SMALL(IF('Base de données'!$C$3:$C$200=MONTH($G$1),ROW($3:$199)),ROWS($1:31)),MATCH(C$1,'Base de données'!$E$2:$T$2,0)+4),"") ->  | D32: =IFERROR(INDEX('Base de données'!$A$1:$T$200,SMALL(IF('Base de données'!$C$3:$C$200=MONTH($G$1),ROW($3:$199)),ROWS($1:31)),MATCH(D$1,'Base de données'!$E$2:$T$2,0)+4),"") ->  | E32: =IFERROR(INDEX('Base de données'!$A$1:$T$200,SMALL(IF('Base de données'!$C$3:$C$200=MONTH($G$1),ROW($3:$199)),ROWS($1:31)),MATCH(E$1,'Base de données'!$E$2:$T$2,0)+4),"") ->  | F32: =IFERROR(INDEX('Base de données'!$A$1:$T$200,SMALL(IF('Base de données'!$C$3:$C$200=MONTH($G$1),ROW($3:$199)),ROWS($1:31)),MATCH(F$1,'Base de données'!$E$2:$T$2,0)+4),"") ->  | M32: 2016-01-25 | N32: 0 | O32: 0 | P32: 0 | Q32: 0 | R32: 0 | S32: 0 | T32: 0 | U32: 0 | V32: 0 | W32: 0 | X32: 0 | Y32: 0 | Z32: 0
A33: =IFERROR(INDEX('Base de données'!$A$1:$T$200,SMALL(IF('Base de données'!$C$3:$C$200=MONTH($G$1),ROW($3:$199)),ROWS($1:32)),MATCH(A$1,'Base de données'!$E$2:$T$2,0)+4),"") ->  | B33: =IFERROR(INDEX('Base de données'!$A$1:$T$200,SMALL(IF('Base de données'!$C$3:$C$200=MONTH($G$1),ROW($3:$199)),ROWS($1:32)),MATCH(B$1,'Base de données'!$E$2:$T$2,0)+4),"") ->  | C33: =IFERROR(INDEX('Base de données'!$A$1:$T$200,SMALL(IF('Base de données'!$C$3:$C$200=MONTH($G$1),ROW($3:$199)),ROWS($1:32)),MATCH(C$1,'Base de données'!$E$2:$T$2,0)+4),"") ->  | D33: =IFERROR(INDEX('Base de données'!$A$1:$T$200,SMALL(IF('Base de données'!$C$3:$C$200=MONTH($G$1),ROW($3:$199)),ROWS($1:32)),MATCH(D$1,'Base de données'!$E$2:$T$2,0)+4),"") ->  | E33: =IFERROR(INDEX('Base de données'!$A$1:$T$200,SMALL(IF('Base de données'!$C$3:$C$200=MONTH($G$1),ROW($3:$199)),ROWS($1:32)),MATCH(E$1,'Base de données'!$E$2:$T$2,0)+4),"") ->  | F33: =IFERROR(INDEX('Base de données'!$A$1:$T$200,SMALL(IF('Base de données'!$C$3:$C$200=MONTH($G$1),ROW($3:$199)),ROWS($1:32)),MATCH(F$1,'Base de données'!$E$2:$T$2,0)+4),"") ->  | M33: 2016-01-26 | N33: 0 | O33: 0 | P33: 0 | Q33: 46740 | R33: 0 | S33: 0 | T33: 0 | U33: 0 | V33: 0 | W33: 0 | X33: 0 | Y33: 0 | Z33: 0
A34: =IFERROR(INDEX('Base de données'!$A$1:$T$200,SMALL(IF('Base de données'!$C$3:$C$200=MONTH($G$1),ROW($3:$199)),ROWS($1:33)),MATCH(A$1,'Base de données'!$E$2:$T$2,0)+4),"") ->  | B34: =IFERROR(INDEX('Base de données'!$A$1:$T$200,SMALL(IF('Base de données'!$C$3:$C$200=MONTH($G$1),ROW($3:$199)),ROWS($1:33)),MATCH(B$1,'Base de données'!$E$2:$T$2,0)+4),"") ->  | C34: =IFERROR(INDEX('Base de données'!$A$1:$T$200,SMALL(IF('Base de données'!$C$3:$C$200=MONTH($G$1),ROW($3:$199)),ROWS($1:33)),MATCH(C$1,'Base de données'!$E$2:$T$2,0)+4),"") ->  | D34: =IFERROR(INDEX('Base de données'!$A$1:$T$200,SMALL(IF('Base de données'!$C$3:$C$200=MONTH($G$1),ROW($3:$199)),ROWS($1:33)),MATCH(D$1,'Base de données'!$E$2:$T$2,0)+4),"") ->  | E34: =IFERROR(INDEX('Base de données'!$A$1:$T$200,SMALL(IF('Base de données'!$C$3:$C$200=MONTH($G$1),ROW($3:$199)),ROWS($1:33)),MATCH(E$1,'Base de données'!$E$2:$T$2,0)+4),"") ->  | F34: =IFERROR(INDEX('Base de données'!$A$1:$T$200,SMALL(IF('Base de données'!$C$3:$C$200=MONTH($G$1),ROW($3:$199)),ROWS($1:33)),MATCH(F$1,'Base de données'!$E$2:$T$2,0)+4),"") ->  | M34: 2016-01-27 | N34: 49978 | O34: 0 | P34: 0 | Q34: 0 | R34: 0 | S34: 0 | T34: 0 | U34: 0 | V34: 0 | W34: 0 | X34: 0 | Y34: 0 | Z34: 0
A35: =IFERROR(INDEX('Base de données'!$A$1:$T$200,SMALL(IF('Base de données'!$C$3:$C$200=MONTH($G$1),ROW($3:$199)),ROWS($1:34)),MATCH(A$1,'Base de données'!$E$2:$T$2,0)+4),"") ->  | B35: =IFERROR(INDEX('Base de données'!$A$1:$T$200,SMALL(IF('Base de données'!$C$3:$C$200=MONTH($G$1),ROW($3:$199)),ROWS($1:34)),MATCH(B$1,'Base de données'!$E$2:$T$2,0)+4),"") ->  | C35: =IFERROR(INDEX('Base de données'!$A$1:$T$200,SMALL(IF('Base de données'!$C$3:$C$200=MONTH($G$1),ROW($3:$199)),ROWS($1:34)),MATCH(C$1,'Base de données'!$E$2:$T$2,0)+4),"") ->  | D35: =IFERROR(INDEX('Base de données'!$A$1:$T$200,SMALL(IF('Base de données'!$C$3:$C$200=MONTH($G$1),ROW($3:$199)),ROWS($1:34)),MATCH(D$1,'Base de données'!$E$2:$T$2,0)+4),"") ->  | E35: =IFERROR(INDEX('Base de données'!$A$1:$T$200,SMALL(IF('Base de données'!$C$3:$C$200=MONTH($G$1),ROW($3:$199)),ROWS($1:34)),MATCH(E$1,'Base de données'!$E$2:$T$2,0)+4),"") ->  | F35: =IFERROR(INDEX('Base de données'!$A$1:$T$200,SMALL(IF('Base de données'!$C$3:$C$200=MONTH($G$1),ROW($3:$199)),ROWS($1:34)),MATCH(F$1,'Base de données'!$E$2:$T$2,0)+4),"") ->  | M35: 2016-01-28 | N35: 0 | O35: 0 | P35: 0 | Q35: 0 | R35: 0 | S35: 0 | T35: 0 | U35: 0 | V35: 0 | W35: 0 | X35: 0 | Y35: 0 | Z35: 0
A36: =IFERROR(INDEX('Base de données'!$A$1:$T$200,SMALL(IF('Base de données'!$C$3:$C$200=MONTH($G$1),ROW($3:$199)),ROWS($1:35)),MATCH(A$1,'Base de données'!$E$2:$T$2,0)+4),"") ->  | B36: =IFERROR(INDEX('Base de données'!$A$1:$T$200,SMALL(IF('Base de données'!$C$3:$C$200=MONTH($G$1),ROW($3:$199)),ROWS($1:35)),MATCH(B$1,'Base de données'!$E$2:$T$2,0)+4),"") ->  | C36: =IFERROR(INDEX('Base de données'!$A$1:$T$200,SMALL(IF('Base de données'!$C$3:$C$200=MONTH($G$1),ROW($3:$199)),ROWS($1:35)),MATCH(C$1,'Base de données'!$E$2:$T$2,0)+4),"") ->  | D36: =IFERROR(INDEX('Base de données'!$A$1:$T$200,SMALL(IF('Base de données'!$C$3:$C$200=MONTH($G$1),ROW($3:$199)),ROWS($1:35)),MATCH(D$1,'Base de données'!$E$2:$T$2,0)+4),"") ->  | E36: =IFERROR(INDEX('Base de données'!$A$1:$T$200,SMALL(IF('Base de données'!$C$3:$C$200=MONTH($G$1),ROW($3:$199)),ROWS($1:35)),MATCH(E$1,'Base de données'!$E$2:$T$2,0)+4),"") ->  | F36: =IFERROR(INDEX('Base de données'!$A$1:$T$200,SMALL(IF('Base de données'!$C$3:$C$200=MONTH($G$1),ROW($3:$199)),ROWS($1:35)),MATCH(F$1,'Base de données'!$E$2:$T$2,0)+4),"") ->  | M36: 2016-01-29 | N36: 0 | O36: 0 | P36: 0 | Q36: 0 | R36: 0 | S36: 0 | T36: 0 | U36: 0 | V36: 0 | W36: 0 | X36: 0 | Y36: 0 | Z36: 0
A37: =IFERROR(INDEX('Base de données'!$A$1:$T$200,SMALL(IF('Base de données'!$C$3:$C$200=MONTH($G$1),ROW($3:$199)),ROWS($1:36)),MATCH(A$1,'Base de données'!$E$2:$T$2,0)+4),"") ->  | B37: =IFERROR(INDEX('Base de données'!$A$1:$T$200,SMALL(IF('Base de données'!$C$3:$C$200=MONTH($G$1),ROW($3:$199)),ROWS($1:36)),MATCH(B$1,'Base de données'!$E$2:$T$2,0)+4),"") ->  | C37: =IFERROR(INDEX('Base de données'!$A$1:$T$200,SMALL(IF('Base de données'!$C$3:$C$200=MONTH($G$1),ROW($3:$199)),ROWS($1:36)),MATCH(C$1,'Base de données'!$E$2:$T$2,0)+4),"") ->  | D37: =IFERROR(INDEX('Base de données'!$A$1:$T$200,SMALL(IF('Base de données'!$C$3:$C$200=MONTH($G$1),ROW($3:$199)),ROWS($1:36)),MATCH(D$1,'Base de données'!$E$2:$T$2,0)+4),"") ->  | E37: =IFERROR(INDEX('Base de données'!$A$1:$T$200,SMALL(IF('Base de données'!$C$3:$C$200=MONTH($G$1),ROW($3:$199)),ROWS($1:36)),MATCH(E$1,'Base de données'!$E$2:$T$2,0)+4),"") ->  | F37: =IFERROR(INDEX('Base de données'!$A$1:$T$200,SMALL(IF('Base de données'!$C$3:$C$200=MONTH($G$1),ROW($3:$199)),ROWS($1:36)),MATCH(F$1,'Base de données'!$E$2:$T$2,0)+4),"") ->  | M37: 2016-01-30 | N37: 0 | O37: 0 | P37: 0 | Q37: 0 | R37: 0 | S37: 0 | T37: 0 | U37: 0 | V37: 0 | W37: 0 | X37: 0 | Y37: 0 | Z37: 0
A38: =IFERROR(INDEX('Base de données'!$A$1:$T$200,SMALL(IF('Base de données'!$C$3:$C$200=MONTH($G$1),ROW($3:$199)),ROWS($1:37)),MATCH(A$1,'Base de données'!$E$2:$T$2,0)+4),"") ->  | B38: =IFERROR(INDEX('Base de données'!$A$1:$T$200,SMALL(IF('Base de données'!$C$3:$C$200=MONTH($G$1),ROW($3:$199)),ROWS($1:37)),MATCH(B$1,'Base de données'!$E$2:$T$2,0)+4),"") ->  | C38: =IFERROR(INDEX('Base de données'!$A$1:$T$200,SMALL(IF('Base de données'!$C$3:$C$200=MONTH($G$1),ROW($3:$199)),ROWS($1:37)),MATCH(C$1,'Base de données'!$E$2:$T$2,0)+4),"") ->  | D38: =IFERROR(INDEX('Base de données'!$A$1:$T$200,SMALL(IF('Base de données'!$C$3:$C$200=MONTH($G$1),ROW($3:$199)),ROWS($1:37)),MATCH(D$1,'Base de données'!$E$2:$T$2,0)+4),"") ->  | E38: =IFERROR(INDEX('Base de données'!$A$1:$T$200,SMALL(IF('Base de données'!$C$3:$C$200=MONTH($G$1),ROW($3:$199)),ROWS($1:37)),MATCH(E$1,'Base de données'!$E$2:$T$2,0)+4),"") ->  | F38: =IFERROR(INDEX('Base de données'!$A$1:$T$200,SMALL(IF('Base de données'!$C$3:$C$200=MONTH($G$1),ROW($3:$199)),ROWS($1:37)),MATCH(F$1,'Base de données'!$E$2:$T$2,0)+4),"") ->  | M38: 2016-01-31 | N38: 0 | O38: 0 | P38: 0 | Q38: 0 | R38: 0 | S38: 0 | T38: 0 | U38: 0 | V38: 0 | W38: 0 | X38: 0 | Y38: 0 | Z38: 0
A39: =IFERROR(INDEX('Base de données'!$A$1:$T$200,SMALL(IF('Base de données'!$C$3:$C$200=MONTH($G$1),ROW($3:$199)),ROWS($1:38)),MATCH(A$1,'Base de données'!$E$2:$T$2,0)+4),"") ->  | B39: =IFERROR(INDEX('Base de données'!$A$1:$T$200,SMALL(IF('Base de données'!$C$3:$C$200=MONTH($G$1),ROW($3:$199)),ROWS($1:38)),MATCH(B$1,'Base de données'!$E$2:$T$2,0)+4),"") ->  | C39: =IFERROR(INDEX('Base de données'!$A$1:$T$200,SMALL(IF('Base de données'!$C$3:$C$200=MONTH($G$1),ROW($3:$199)),ROWS($1:38)),MATCH(C$1,'Base de données'!$E$2:$T$2,0)+4),"") ->  | D39: =IFERROR(INDEX('Base de données'!$A$1:$T$200,SMALL(IF('Base de données'!$C$3:$C$200=MONTH($G$1),ROW($3:$199)),ROWS($1:38)),MATCH(D$1,'Base de données'!$E$2:$T$2,0)+4),"") ->  | E39: =IFERROR(INDEX('Base de données'!$A$1:$T$200,SMALL(IF('Base de données'!$C$3:$C$200=MONTH($G$1),ROW($3:$199)),ROWS($1:38)),MATCH(E$1,'Base de données'!$E$2:$T$2,0)+4),"") ->  | F39: =IFERROR(INDEX('Base de données'!$A$1:$T$200,SMALL(IF('Base de données'!$C$3:$C$200=MONTH($G$1),ROW($3:$199)),ROWS($1:38)),MATCH(F$1,'Base de données'!$E$2:$T$2,0)+4),"") -> 
A40: =IFERROR(INDEX('Base de données'!$A$1:$T$200,SMALL(IF('Base de données'!$C$3:$C$200=MONTH($G$1),ROW($3:$199)),ROWS($1:39)),MATCH(A$1,'Base de données'!$E$2:$T$2,0)+4),"") ->  | B40: =IFERROR(INDEX('Base de données'!$A$1:$T$200,SMALL(IF('Base de données'!$C$3:$C$200=MONTH($G$1),ROW($3:$199)),ROWS($1:39)),MATCH(B$1,'Base de données'!$E$2:$T$2,0)+4),"") ->  | C40: =IFERROR(INDEX('Base de données'!$A$1:$T$200,SMALL(IF('Base de données'!$C$3:$C$200=MONTH($G$1),ROW($3:$199)),ROWS($1:39)),MATCH(C$1,'Base de données'!$E$2:$T$2,0)+4),"") ->  | D40: =IFERROR(INDEX('Base de données'!$A$1:$T$200,SMALL(IF('Base de données'!$C$3:$C$200=MONTH($G$1),ROW($3:$199)),ROWS($1:39)),MATCH(D$1,'Base de données'!$E$2:$T$2,0)+4),"") ->  | E40: =IFERROR(INDEX('Base de données'!$A$1:$T$200,SMALL(IF('Base de données'!$C$3:$C$200=MONTH($G$1),ROW($3:$199)),ROWS($1:39)),MATCH(E$1,'Base de données'!$E$2:$T$2,0)+4),"") ->  | F40: =IFERROR(INDEX('Base de données'!$A$1:$T$200,SMALL(IF('Base de données'!$C$3:$C$200=MONTH($G$1),ROW($3:$199)),ROWS($1:39)),MATCH(F$1,'Base de données'!$E$2:$T$2,0)+4),"") -> 
A41: =IFERROR(INDEX('Base de données'!$A$1:$T$200,SMALL(IF('Base de données'!$C$3:$C$200=MONTH($G$1),ROW($3:$199)),ROWS($1:40)),MATCH(A$1,'Base de données'!$E$2:$T$2,0)+4),"") ->  | B41: =IFERROR(INDEX('Base de données'!$A$1:$T$200,SMALL(IF('Base de données'!$C$3:$C$200=MONTH($G$1),ROW($3:$199)),ROWS($1:40)),MATCH(B$1,'Base de données'!$E$2:$T$2,0)+4),"") ->  | C41: =IFERROR(INDEX('Base de données'!$A$1:$T$200,SMALL(IF('Base de données'!$C$3:$C$200=MONTH($G$1),ROW($3:$199)),ROWS($1:40)),MATCH(C$1,'Base de données'!$E$2:$T$2,0)+4),"") ->  | D41: =IFERROR(INDEX('Base de données'!$A$1:$T$200,SMALL(IF('Base de données'!$C$3:$C$200=MONTH($G$1),ROW($3:$199)),ROWS($1:40)),MATCH(D$1,'Base de données'!$E$2:$T$2,0)+4),"") ->  | E41: =IFERROR(INDEX('Base de données'!$A$1:$T$200,SMALL(IF('Base de données'!$C$3:$C$200=MONTH($G$1),ROW($3:$199)),ROWS($1:40)),MATCH(E$1,'Base de données'!$E$2:$T$2,0)+4),"") ->  | F41: =IFERROR(INDEX('Base de données'!$A$1:$T$200,SMALL(IF('Base de données'!$C$3:$C$200=MONTH($G$1),ROW($3:$199)),ROWS($1:40)),MATCH(F$1,'Base de données'!$E$2:$T$2,0)+4),"") -> 
A42: =IFERROR(INDEX('Base de données'!$A$1:$T$200,SMALL(IF('Base de données'!$C$3:$C$200=MONTH($G$1),ROW($3:$199)),ROWS($1:41)),MATCH(A$1,'Base de données'!$E$2:$T$2,0)+4),"") ->  | B42: =IFERROR(INDEX('Base de données'!$A$1:$T$200,SMALL(IF('Base de données'!$C$3:$C$200=MONTH($G$1),ROW($3:$199)),ROWS($1:41)),MATCH(B$1,'Base de données'!$E$2:$T$2,0)+4),"") ->  | C42: =IFERROR(INDEX('Base de données'!$A$1:$T$200,SMALL(IF('Base de données'!$C$3:$C$200=MONTH($G$1),ROW($3:$199)),ROWS($1:41)),MATCH(C$1,'Base de données'!$E$2:$T$2,0)+4),"") ->  | D42: =IFERROR(INDEX('Base de données'!$A$1:$T$200,SMALL(IF('Base de données'!$C$3:$C$200=MONTH($G$1),ROW($3:$199)),ROWS($1:41)),MATCH(D$1,'Base de données'!$E$2:$T$2,0)+4),"") ->  | E42: =IFERROR(INDEX('Base de données'!$A$1:$T$200,SMALL(IF('Base de données'!$C$3:$C$200=MONTH($G$1),ROW($3:$199)),ROWS($1:41)),MATCH(E$1,'Base de données'!$E$2:$T$2,0)+4),"") ->  | F42: =IFERROR(INDEX('Base de données'!$A$1:$T$200,SMALL(IF('Base de données'!$C$3:$C$200=MONTH($G$1),ROW($3:$199)),ROWS($1:41)),MATCH(F$1,'Base de données'!$E$2:$T$2,0)+4),"") -> 
A43: =IFERROR(INDEX('Base de données'!$A$1:$T$200,SMALL(IF('Base de données'!$C$3:$C$200=MONTH($G$1),ROW($3:$199)),ROWS($1:42)),MATCH(A$1,'Base de données'!$E$2:$T$2,0)+4),"") ->  | B43: =IFERROR(INDEX('Base de données'!$A$1:$T$200,SMALL(IF('Base de données'!$C$3:$C$200=MONTH($G$1),ROW($3:$199)),ROWS($1:42)),MATCH(B$1,'Base de données'!$E$2:$T$2,0)+4),"") ->  | C43: =IFERROR(INDEX('Base de données'!$A$1:$T$200,SMALL(IF('Base de données'!$C$3:$C$200=MONTH($G$1),ROW($3:$199)),ROWS($1:42)),MATCH(C$1,'Base de données'!$E$2:$T$2,0)+4),"") ->  | D43: =IFERROR(INDEX('Base de données'!$A$1:$T$200,SMALL(IF('Base de données'!$C$3:$C$200=MONTH($G$1),ROW($3:$199)),ROWS($1:42)),MATCH(D$1,'Base de données'!$E$2:$T$2,0)+4),"") ->  | E43: =IFERROR(INDEX('Base de données'!$A$1:$T$200,SMALL(IF('Base de données'!$C$3:$C$200=MONTH($G$1),ROW($3:$199)),ROWS($1:42)),MATCH(E$1,'Base de données'!$E$2:$T$2,0)+4),"") ->  | F43: =IFERROR(INDEX('Base de données'!$A$1:$T$200,SMALL(IF('Base de données'!$C$3:$C$200=MONTH($G$1),ROW($3:$199)),ROWS($1:42)),MATCH(F$1,'Base de données'!$E$2:$T$2,0)+4),"") -> 
A44: =IFERROR(INDEX('Base de données'!$A$1:$T$200,SMALL(IF('Base de données'!$C$3:$C$200=MONTH($G$1),ROW($3:$199)),ROWS($1:43)),MATCH(A$1,'Base de données'!$E$2:$T$2,0)+4),"") ->  | B44: =IFERROR(INDEX('Base de données'!$A$1:$T$200,SMALL(IF('Base de données'!$C$3:$C$200=MONTH($G$1),ROW($3:$199)),ROWS($1:43)),MATCH(B$1,'Base de données'!$E$2:$T$2,0)+4),"") ->  | C44: =IFERROR(INDEX('Base de données'!$A$1:$T$200,SMALL(IF('Base de données'!$C$3:$C$200=MONTH($G$1),ROW($3:$199)),ROWS($1:43)),MATCH(C$1,'Base de données'!$E$2:$T$2,0)+4),"") ->  | D44: =IFERROR(INDEX('Base de données'!$A$1:$T$200,SMALL(IF('Base de données'!$C$3:$C$200=MONTH($G$1),ROW($3:$199)),ROWS($1:43)),MATCH(D$1,'Base de données'!$E$2:$T$2,0)+4),"") ->  | E44: =IFERROR(INDEX('Base de données'!$A$1:$T$200,SMALL(IF('Base de données'!$C$3:$C$200=MONTH($G$1),ROW($3:$199)),ROWS($1:43)),MATCH(E$1,'Base de données'!$E$2:$T$2,0)+4),"") ->  | F44: =IFERROR(INDEX('Base de données'!$A$1:$T$200,SMALL(IF('Base de données'!$C$3:$C$200=MONTH($G$1),ROW($3:$199)),ROWS($1:43)),MATCH(F$1,'Base de données'!$E$2:$T$2,0)+4),"") -> 
A45: =IFERROR(INDEX('Base de données'!$A$1:$T$200,SMALL(IF('Base de données'!$C$3:$C$200=MONTH($G$1),ROW($3:$199)),ROWS($1:44)),MATCH(A$1,'Base de données'!$E$2:$T$2,0)+4),"") ->  | B45: =IFERROR(INDEX('Base de données'!$A$1:$T$200,SMALL(IF('Base de données'!$C$3:$C$200=MONTH($G$1),ROW($3:$199)),ROWS($1:44)),MATCH(B$1,'Base de données'!$E$2:$T$2,0)+4),"") ->  | C45: =IFERROR(INDEX('Base de données'!$A$1:$T$200,SMALL(IF('Base de données'!$C$3:$C$200=MONTH($G$1),ROW($3:$199)),ROWS($1:44)),MATCH(C$1,'Base de données'!$E$2:$T$2,0)+4),"") ->  | D45: =IFERROR(INDEX('Base de données'!$A$1:$T$200,SMALL(IF('Base de données'!$C$3:$C$200=MONTH($G$1),ROW($3:$199)),ROWS($1:44)),MATCH(D$1,'Base de données'!$E$2:$T$2,0)+4),"") ->  | E45: =IFERROR(INDEX('Base de données'!$A$1:$T$200,SMALL(IF('Base de données'!$C$3:$C$200=MONTH($G$1),ROW($3:$199)),ROWS($1:44)),MATCH(E$1,'Base de données'!$E$2:$T$2,0)+4),"") ->  | F45: =IFERROR(INDEX('Base de données'!$A$1:$T$200,SMALL(IF('Base de données'!$C$3:$C$200=MONTH($G$1),ROW($3:$199)),ROWS($1:44)),MATCH(F$1,'Base de données'!$E$2:$T$2,0)+4),"") -> 
B46: =IFERROR(INDEX('Base de données'!$A$1:$T$200,SMALL(IF('Base de données'!$C$3:$C$200=MONTH($G$1),ROW($3:$199)),ROWS($1:45)),MATCH(B$1,'Base de données'!$E$2:$T$2,0)+4),"") ->  | E46: =SUM(E2:E45) -> 610578

Sheet Février
A1: Date | B1: # CR | C1: # Catégorie | D1: Provenance | E1: poids | F1: Commentaire | G1: 2016-02-01 | M1: Date | N1: 1 | O1: 2 | P1: 3 | Q1: 4 | R1: 5 | T1: 6 | U1: 7 | V1: 8 | Y1: 9 | Z1: 10
A2: =IFERROR(INDEX('Base de données'!$A$1:$T$200,SMALL(IF('Base de données'!$C$3:$C$200=MONTH($G$1),ROW($3:$199)),ROWS($1:1)),MATCH(A$1,'Base de données'!$E$2:$T$2,0)+4),"") -> 2016-02-01 | B2: =IFERROR(INDEX('Base de données'!$A$1:$T$200,SMALL(IF('Base de données'!$C$3:$C$200=MONTH($G$1),ROW($3:$199)),ROWS($1:1)),MATCH(B$1,'Base de données'!$E$2:$T$2,0)+4),"") -> 8369 | C2: =IFERROR(INDEX('Base de données'!$A$1:$T$200,SMALL(IF('Base de données'!$C$3:$C$200=MONTH($G$1),ROW($3:$199)),ROWS($1:1)),MATCH(C$1,'Base de données'!$E$2:$T$2,0)+4),"") -> 1 | D2: =IFERROR(INDEX('Base de données'!$A$1:$T$200,SMALL(IF('Base de données'!$C$3:$C$200=MONTH($G$1),ROW($3:$199)),ROWS($1:1)),MATCH(D$1,'Base de données'!$E$2:$T$2,0)+4),"") -> 0 | E2: =IFERROR(INDEX('Base de données'!$A$1:$T$200,SMALL(IF('Base de données'!$C$3:$C$200=MONTH($G$1),ROW($3:$199)),ROWS($1:1)),MATCH(E$1,'Base de données'!$E$2:$T$2,0)+4),"") -> 49640 | F2: =IFERROR(INDEX('Base de données'!$A$1:$T$200,SMALL(IF('Base de données'!$C$3:$C$200=MONTH($G$1),ROW($3:$199)),ROWS($1:1)),MATCH(F$1,'Base de données'!$E$2:$T$2,0)+4),"") -> 0 | N2: Copeaux d'aluminium propre et sec | O2: Copeaux d'aluminium propre et humides | P2: Copeaux d'aliminium contaminés | Q2: Aluminium en morceau (blocs/plaques) 7000 | R2: Aluminium contaminer mixte en morceau (blocs/plaques) | T2: Aluminium mixte en morceau (autre que blocs/plaques) 2024 | U2: Aluminium de série 7000 en morceau (surdimensionné) | V2: Acier mixte en morceau | Y2: Acier inoxydable mixte en morceau | Z2: Fil de cuivre
A3: =IFERROR(INDEX('Base de données'!$A$1:$T$200,SMALL(IF('Base de données'!$C$3:$C$200=MONTH($G$1),ROW($3:$199)),ROWS($1:2)),MATCH(A$1,'Base de données'!$E$2:$T$2,0)+4),"") -> 2016-02-03 | B3: =IFERROR(INDEX('Base de données'!$A$1:$T$200,SMALL(IF('Base de données'!$C$3:$C$200=MONTH($G$1),ROW($3:$199)),ROWS($1:2)),MATCH(B$1,'Base de données'!$E$2:$T$2,0)+4),"") -> 8370 | C3: =IFERROR(INDEX('Base de données'!$A$1:$T$200,SMALL(IF('Base de données'!$C$3:$C$200=MONTH($G$1),ROW($3:$199)),ROWS($1:2)),MATCH(C$1,'Base de données'!$E$2:$T$2,0)+4),"") -> 1 | D3: =IFERROR(INDEX('Base de données'!$A$1:$T$200,SMALL(IF('Base de données'!$C$3:$C$200=MONTH($G$1),ROW($3:$199)),ROWS($1:2)),MATCH(D$1,'Base de données'!$E$2:$T$2,0)+4),"") -> 0 | E3: =IFERROR(INDEX('Base de données'!$A$1:$T$200,SMALL(IF('Base de données'!$C$3:$C$200=MONTH($G$1),ROW($3:$199)),ROWS($1:2)),MATCH(E$1,'Base de données'!$E$2:$T$2,0)+4),"") -> 52040 | F3: =IFERROR(INDEX('Base de données'!$A$1:$T$200,SMALL(IF('Base de données'!$C$3:$C$200=MONTH($G$1),ROW($3:$199)),ROWS($1:2)),MATCH(F$1,'Base de données'!$E$2:$T$2,0)+4),"") -> 0 | G3: 1 | H3: 2 | I3: 3 | J3: 4 | K3: 5
A4: =IFERROR(INDEX('Base de données'!$A$1:$T$200,SMALL(IF('Base de données'!$C$3:$C$200=MONTH($G$1),ROW($3:$199)),ROWS($1:3)),MATCH(A$1,'Base de données'!$E$2:$T$2,0)+4),"") -> 2016-02-03 | B4: =IFERROR(INDEX('Base de données'!$A$1:$T$200,SMALL(IF('Base de données'!$C$3:$C$200=MONTH($G$1),ROW($3:$199)),ROWS($1:3)),MATCH(B$1,'Base de données'!$E$2:$T$2,0)+4),"") -> 8371 | C4: =IFERROR(INDEX('Base de données'!$A$1:$T$200,SMALL(IF('Base de données'!$C$3:$C$200=MONTH($G$1),ROW($3:$199)),ROWS($1:3)),MATCH(C$1,'Base de données'!$E$2:$T$2,0)+4),"") -> 3 | D4: =IFERROR(INDEX('Base de données'!$A$1:$T$200,SMALL(IF('Base de données'!$C$3:$C$200=MONTH($G$1),ROW($3:$199)),ROWS($1:3)),MATCH(D$1,'Base de données'!$E$2:$T$2,0)+4),"") -> 0 | E4: =IFERROR(INDEX('Base de données'!$A$1:$T$200,SMALL(IF('Base de données'!$C$3:$C$200=MONTH($G$1),ROW($3:$199)),ROWS($1:3)),MATCH(E$1,'Base de données'!$E$2:$T$2,0)+4),"") -> 15780 | F4: =IFERROR(INDEX('Base de données'!$A$1:$T$200,SMALL(IF('Base de données'!$C$3:$C$200=MONTH($G$1),ROW($3:$199)),ROWS($1:3)),MATCH(F$1,'Base de données'!$E$2:$T$2,0)+4),"") -> 0 | G4: Copeaux | H4: Copeaux | I4: Copeaux | J4: Aluminium | K4: Aluminium contaminés
A5: =IFERROR(INDEX('Base de données'!$A$1:$T$200,SMALL(IF('Base de données'!$C$3:$C$200=MONTH($G$1),ROW($3:$199)),ROWS($1:4)),MATCH(A$1,'Base de données'!$E$2:$T$2,0)+4),"") -> 2016-02-03 | B5: =IFERROR(INDEX('Base de données'!$A$1:$T$200,SMALL(IF('Base de données'!$C$3:$C$200=MONTH($G$1),ROW($3:$199)),ROWS($1:4)),MATCH(B$1,'Base de données'!$E$2:$T$2,0)+4),"") -> 8372 | C5: =IFERROR(INDEX('Base de données'!$A$1:$T$200,SMALL(IF('Base de données'!$C$3:$C$200=MONTH($G$1),ROW($3:$199)),ROWS($1:4)),MATCH(C$1,'Base de données'!$E$2:$T$2,0)+4),"") -> 4 | D5: =IFERROR(INDEX('Base de données'!$A$1:$T$200,SMALL(IF('Base de données'!$C$3:$C$200=MONTH($G$1),ROW($3:$199)),ROWS($1:4)),MATCH(D$1,'Base de données'!$E$2:$T$2,0)+4),"") -> 0 | E5: =IFERROR(INDEX('Base de données'!$A$1:$T$200,SMALL(IF('Base de données'!$C$3:$C$200=MONTH($G$1),ROW($3:$199)),ROWS($1:4)),MATCH(E$1,'Base de données'!$E$2:$T$2,0)+4),"") -> 41880 | F5: =IFERROR(INDEX('Base de données'!$A$1:$T$200,SMALL(IF('Base de données'!$C$3:$C$200=MONTH($G$1),ROW($3:$199)),ROWS($1:4)),MATCH(F$1,'Base de données'!$E$2:$T$2,0)+4),"") -> 0 | G5: D'aluminium | H5: D'aluminium | I5: D'aluminium | J5: en morceau | K5: mixte en morceau
A6: =IFERROR(INDEX('Base de données'!$A$1:$T$200,SMALL(IF('Base de données'!$C$3:$C$200=MONTH($G$1),ROW($3:$199)),ROWS($1:5)),MATCH(A$1,'Base de données'!$E$2:$T$2,0)+4),"") -> 2016-02-04 | B6: =IFERROR(INDEX('Base de données'!$A$1:$T$200,SMALL(IF('Base de données'!$C$3:$C$200=MONTH($G$1),ROW($3:$199)),ROWS($1:5)),MATCH(B$1,'Base de données'!$E$2:$T$2,0)+4),"") -> 8373 | C6: =IFERROR(INDEX('Base de données'!$A$1:$T$200,SMALL(IF('Base de données'!$C$3:$C$200=MONTH($G$1),ROW($3:$199)),ROWS($1:5)),MATCH(C$1,'Base de données'!$E$2:$T$2,0)+4),"") -> 6 | D6: =IFERROR(INDEX('Base de données'!$A$1:$T$200,SMALL(IF('Base de données'!$C$3:$C$200=MONTH($G$1),ROW($3:$199)),ROWS($1:5)),MATCH(D$1,'Base de données'!$E$2:$T$2,0)+4),"") -> 0 | E6: =IFERROR(INDEX('Base de données'!$A$1:$T$200,SMALL(IF('Base de données'!$C$3:$C$200=MONTH($G$1),ROW($3:$199)),ROWS($1:5)),MATCH(E$1,'Base de données'!$E$2:$T$2,0)+4),"") -> 18520 | F6: =IFERROR(INDEX('Base de données'!$A$1:$T$200,SMALL(IF('Base de données'!$C$3:$C$200=MONTH($G$1),ROW($3:$199)),ROWS($1:5)),MATCH(F$1,'Base de données'!$E$2:$T$2,0)+4),"") -> 0 | G6: propre et sec | H6: propre et | I6: Contaminés | J6: blocs/plaque | K6: (Blocs/plaques)
A7: =IFERROR(INDEX('Base de données'!$A$1:$T$200,SMALL(IF('Base de données'!$C$3:$C$200=MONTH($G$1),ROW($3:$199)),ROWS($1:6)),MATCH(A$1,'Base de données'!$E$2:$T$2,0)+4),"") -> 2016-02-05 | B7: =IFERROR(INDEX('Base de données'!$A$1:$T$200,SMALL(IF('Base de données'!$C$3:$C$200=MONTH($G$1),ROW($3:$199)),ROWS($1:6)),MATCH(B$1,'Base de données'!$E$2:$T$2,0)+4),"") -> 8374 | C7: =IFERROR(INDEX('Base de données'!$A$1:$T$200,SMALL(IF('Base de données'!$C$3:$C$200=MONTH($G$1),ROW($3:$199)),ROWS($1:6)),MATCH(C$1,'Base de données'!$E$2:$T$2,0)+4),"") -> 8 | D7: =IFERROR(INDEX('Base de données'!$A$1:$T$200,SMALL(IF('Base de données'!$C$3:$C$200=MONTH($G$1),ROW($3:$199)),ROWS($1:6)),MATCH(D$1,'Base de données'!$E$2:$T$2,0)+4),"") -> U.S 8 | E7: =IFERROR(INDEX('Base de données'!$A$1:$T$200,SMALL(IF('Base de données'!$C$3:$C$200=MONTH($G$1),ROW($3:$199)),ROWS($1:6)),MATCH(E$1,'Base de données'!$E$2:$T$2,0)+4),"") -> 19340 | F7: =IFERROR(INDEX('Base de données'!$A$1:$T$200,SMALL(IF('Base de données'!$C$3:$C$200=MONTH($G$1),ROW($3:$199)),ROWS($1:6)),MATCH(F$1,'Base de données'!$E$2:$T$2,0)+4),"") -> 0 | H7: humides | J7: 7000 | K7: U.S 1 | L7: U.S 3 | R7: U.S 1 | S7: U.S 3 | V7: U.S 1 | W7: U.S 3 | X7: U.S 8
A8: =IFERROR(INDEX('Base de données'!$A$1:$T$200,SMALL(IF('Base de données'!$C$3:$C$200=MONTH($G$1),ROW($3:$199)),ROWS($1:7)),MATCH(A$1,'Base de données'!$E$2:$T$2,0)+4),"") -> 2016-02-08 | B8: =IFERROR(INDEX('Base de données'!$A$1:$T$200,SMALL(IF('Base de données'!$C$3:$C$200=MONTH($G$1),ROW($3:$199)),ROWS($1:7)),MATCH(B$1,'Base de données'!$E$2:$T$2,0)+4),"") -> 8375 | C8: =IFERROR(INDEX('Base de données'!$A$1:$T$200,SMALL(IF('Base de données'!$C$3:$C$200=MONTH($G$1),ROW($3:$199)),ROWS($1:7)),MATCH(C$1,'Base de données'!$E$2:$T$2,0)+4),"") -> 8 | D8: =IFERROR(INDEX('Base de données'!$A$1:$T$200,SMALL(IF('Base de données'!$C$3:$C$200=MONTH($G$1),ROW($3:$199)),ROWS($1:7)),MATCH(D$1,'Base de données'!$E$2:$T$2,0)+4),"") -> U.S 3 | E8: =IFERROR(INDEX('Base de données'!$A$1:$T$200,SMALL(IF('Base de données'!$C$3:$C$200=MONTH($G$1),ROW($3:$199)),ROWS($1:7)),MATCH(E$1,'Base de données'!$E$2:$T$2,0)+4),"") -> 13780 | F8: =IFERROR(INDEX('Base de données'!$A$1:$T$200,SMALL(IF('Base de données'!$C$3:$C$200=MONTH($G$1),ROW($3:$199)),ROWS($1:7)),MATCH(F$1,'Base de données'!$E$2:$T$2,0)+4),"") -> 0 | G8: =SUMIF(C2:C46,"1",E2:E46) -> 249180 | H8: =SUMIF(C2:C46,"2",E2:E46) -> 0 | I8: =SUMIF(C2:C46,"3",E2:E46) -> 15780 | J8: =SUMIF(C2:C46,"4",E2:E46) -> 91200 | K8: =SUMIFS(E2:E46,C2:C46,"5",D2:D46,"0") -> 11120 | L8: =SUMIFS(E2:E46,C2:C46,"5",D2:D46,"U.S 3") -> 0 | M8: 2016-02-01 | N8: =SUMIFS(E:E,A:A,M$8:M$46,C:C,"1") -> 49640 | O8: =SUMIFS(E:E,A:A,M$8:M$46,C:C,"2") -> 0 | P8: =SUMIFS(E:E,A:A,M$8:M$46,C:C,"3") -> 0 | Q8: =SUMIFS(E:E,A:A,M$8:M$46,C:C,"4") -> 0 | R8: =SUMIFS(E:E,A:A,M$8:M$46,C:C,"5",D:D,"0") -> 0 | S8: =SUMIFS(E:E,A:A,M$8:M$46,C:C,"5",D:D,"U.S 3") -> 0 | T8: =SUMIFS(E:E,A:A,M$8:M$46,C:C,"6") -> 0 | U8: =SUMIFS(E:E,A:A,M$8:M$46,C:C,"7") -> 0 | V8: =SUMIFS(E:E,A:A,M$8:M$46,C:C,"8",D:D,"0") -> 0 | W8: =SUMIFS(E:E,A:A,M$8:M$46,C:C,"8",D:D,"U.S 3") -> 0 | X8: =SUMIFS(E:E,A:A,M$8:M$46,C:C,"8",D:D,"U.S 8") -> 0 | Y8: =SUMIFS(E:E,A:A,M$8:M$46,C:C,"9") -> 0 | Z8: =SUMIFS(E:E,A:A,M$8:M$46,C:C,"10") -> 0
A9: =IFERROR(INDEX('Base de données'!$A$1:$T$200,SMALL(IF('Base de données'!$C$3:$C$200=MONTH($G$1),ROW($3:$199)),ROWS($1:8)),MATCH(A$1,'Base de données'!$E$2:$T$2,0)+4),"") -> 2016-02-08 | B9: =IFERROR(INDEX('Base de données'!$A$1:$T$200,SMALL(IF('Base de données'!$C$3:$C$200=MONTH($G$1),ROW($3:$199)),ROWS($1:8)),MATCH(B$1,'Base de données'!$E$2:$T$2,0)+4),"") -> 8376 | C9: =IFERROR(INDEX('Base de données'!$A$1:$T$200,SMALL(IF('Base de données'!$C$3:$C$200=MONTH($G$1),ROW($3:$199)),ROWS($1:8)),MATCH(C$1,'Base de données'!$E$2:$T$2,0)+4),"") -> 1 | D9: =IFERROR(INDEX('Base de données'!$A$1:$T$200,SMALL(IF('Base de données'!$C$3:$C$200=MONTH($G$1),ROW($3:$199)),ROWS($1:8)),MATCH(D$1,'Base de données'!$E$2:$T$2,0)+4),"") -> 0 | E9: =IFERROR(INDEX('Base de données'!$A$1:$T$200,SMALL(IF('Base de données'!$C$3:$C$200=MONTH($G$1),ROW($3:$199)),ROWS($1:8)),MATCH(E$1,'Base de données'!$E$2:$T$2,0)+4),"") -> 51460 | F9: =IFERROR(INDEX('Base de données'!$A$1:$T$200,SMALL(IF('Base de données'!$C$3:$C$200=MONTH($G$1),ROW($3:$199)),ROWS($1:8)),MATCH(F$1,'Base de données'!$E$2:$T$2,0)+4),"") -> 0 | K9: Total | M9: 2016-02-02 | N9: 0 | O9: 0 | P9: 0 | Q9: 0 | R9: =SUMIFS(E:E,A:A,M$8:M$46,C:C,"5",D:D,"0") -> 0 | S9: 0 | T9: 0 | U9: 0 | V9: =SUMIFS(E:E,A:A,M$8:M$46,C:C,"8",D:D,"0") -> 0 | W9: 0 | X9: 0 | Y9: 0 | Z9: 0
A10: =IFERROR(INDEX('Base de données'!$A$1:$T$200,SMALL(IF('Base de données'!$C$3:$C$200=MONTH($G$1),ROW($3:$199)),ROWS($1:9)),MATCH(A$1,'Base de données'!$E$2:$T$2,0)+4),"") -> 2016-02-10 | B10: =IFERROR(INDEX('Base de données'!$A$1:$T$200,SMALL(IF('Base de données'!$C$3:$C$200=MONTH($G$1),ROW($3:$199)),ROWS($1:9)),MATCH(B$1,'Base de données'!$E$2:$T$2,0)+4),"") -> 8377 | C10: =IFERROR(INDEX('Base de données'!$A$1:$T$200,SMALL(IF('Base de données'!$C$3:$C$200=MONTH($G$1),ROW($3:$199)),ROWS($1:9)),MATCH(C$1,'Base de données'!$E$2:$T$2,0)+4),"") -> 1 | D10: =IFERROR(INDEX('Base de données'!$A$1:$T$200,SMALL(IF('Base de données'!$C$3:$C$200=MONTH($G$1),ROW($3:$199)),ROWS($1:9)),MATCH(D$1,'Base de données'!$E$2:$T$2,0)+4),"") -> 0 | E10: =IFERROR(INDEX('Base de données'!$A$1:$T$200,SMALL(IF('Base de données'!$C$3:$C$200=MONTH($G$1),ROW($3:$199)),ROWS($1:9)),MATCH(E$1,'Base de données'!$E$2:$T$2,0)+4),"") -> 47900 | F10: =IFERROR(INDEX('Base de données'!$A$1:$T$200,SMALL(IF('Base de données'!$C$3:$C$200=MONTH($G$1),ROW($3:$199)),ROWS($1:9)),MATCH(F$1,'Base de données'!$E$2:$T$2,0)+4),"") -> 0 | K10: =SUM(K8+L8) -> 11120 | M10: 2016-02-03 | N10: 52040 | O10: 0 | P10: 15780 | Q10: 41880 | R10: 0 | S10: 0 | T10: 0 | U10: 0 | V10: 0 | W10: 0 | X10: 0 | Y10: 0 | Z10: 0
A11: =IFERROR(INDEX('Base de données'!$A$1:$T$200,SMALL(IF('Base de données'!$C$3:$C$200=MONTH($G$1),ROW($3:$199)),ROWS($1:10)),MATCH(A$1,'Base de données'!$E$2:$T$2,0)+4),"") -> 2016-02-11 | B11: =IFERROR(INDEX('Base de données'!$A$1:$T$200,SMALL(IF('Base de données'!$C$3:$C$200=MONTH($G$1),ROW($3:$199)),ROWS($1:10)),MATCH(B$1,'Base de données'!$E$2:$T$2,0)+4),"") -> 8378 | C11: =IFERROR(INDEX('Base de données'!$A$1:$T$200,SMALL(IF('Base de données'!$C$3:$C$200=MONTH($G$1),ROW($3:$199)),ROWS($1:10)),MATCH(C$1,'Base de données'!$E$2:$T$2,0)+4),"") -> 4 | D11: =IFERROR(INDEX('Base de données'!$A$1:$T$200,SMALL(IF('Base de données'!$C$3:$C$200=MONTH($G$1),ROW($3:$199)),ROWS($1:10)),MATCH(D$1,'Base de données'!$E$2:$T$2,0)+4),"") -> 0 | E11: =IFERROR(INDEX('Base de données'!$A$1:$T$200,SMALL(IF('Base de données'!$C$3:$C$200=MONTH($G$1),ROW($3:$199)),ROWS($1:10)),MATCH(E$1,'Base de données'!$E$2:$T$2,0)+4),"") -> 49320 | F11: =IFERROR(INDEX('Base de données'!$A$1:$T$200,SMALL(IF('Base de données'!$C$3:$C$200=MONTH($G$1),ROW($3:$199)),ROWS($1:10)),MATCH(F$1,'Base de données'!$E$2:$T$2,0)+4),"") -> 0 | G11: 6 | H11: 7 | I11: 8 | K11: 9 | L11: 10 | M11: 2016-02-04 | N11: 0 | O11: 0 | P11: 0 | Q11: 0 | R11: 0 | S11: 0 | T11: 18520 | U11: 0 | V11: 0 | W11: 0 | X11: 0 | Y11: 0 | Z11: 0
A12: =IFERROR(INDEX('Base de données'!$A$1:$T$200,SMALL(IF('Base de données'!$C$3:$C$200=MONTH($G$1),ROW($3:$199)),ROWS($1:11)),MATCH(A$1,'Base de données'!$E$2:$T$2,0)+4),"") -> 2016-02-11 | B12: =IFERROR(INDEX('Base de données'!$A$1:$T$200,SMALL(IF('Base de données'!$C$3:$C$200=MONTH($G$1),ROW($3:$199)),ROWS($1:11)),MATCH(B$1,'Base de données'!$E$2:$T$2,0)+4),"") -> 8379 | C12: =IFERROR(INDEX('Base de données'!$A$1:$T$200,SMALL(IF('Base de données'!$C$3:$C$200=MONTH($G$1),ROW($3:$199)),ROWS($1:11)),MATCH(C$1,'Base de données'!$E$2:$T$2,0)+4),"") -> 5 | D12: =IFERROR(INDEX('Base de données'!$A$1:$T$200,SMALL(IF('Base de données'!$C$3:$C$200=MONTH($G$1),ROW($3:$199)),ROWS($1:11)),MATCH(D$1,'Base de données'!$E$2:$T$2,0)+4),"") -> 0 | E12: =IFERROR(INDEX('Base de données'!$A$1:$T$200,SMALL(IF('Base de données'!$C$3:$C$200=MONTH($G$1),ROW($3:$199)),ROWS($1:11)),MATCH(E$1,'Base de données'!$E$2:$T$2,0)+4),"") -> 11120 | F12: =IFERROR(INDEX('Base de données'!$A$1:$T$200,SMALL(IF('Base de données'!$C$3:$C$200=MONTH($G$1),ROW($3:$199)),ROWS($1:11)),MATCH(F$1,'Base de données'!$E$2:$T$2,0)+4),"") -> 0 | G12: Aluminium | H12: Aluminium | I12: Acier mixte | K12: Acier | L12: Fil | M12: 2016-02-05 | N12: 0 | O12: 0 | P12: 0 | Q12: 0 | R12: 0 | S12: 0 | T12: 0 | U12: 0 | V12: 0 | W12: 0 | X12: 19340 | Y12: 0 | Z12: 0
A13: =IFERROR(INDEX('Base de données'!$A$1:$T$200,SMALL(IF('Base de données'!$C$3:$C$200=MONTH($G$1),ROW($3:$199)),ROWS($1:12)),MATCH(A$1,'Base de données'!$E$2:$T$2,0)+4),"") -> 2016-02-15 | B13: =IFERROR(INDEX('Base de données'!$A$1:$T$200,SMALL(IF('Base de données'!$C$3:$C$200=MONTH($G$1),ROW($3:$199)),ROWS($1:12)),MATCH(B$1,'Base de données'!$E$2:$T$2,0)+4),"") -> 8380 | C13: =IFERROR(INDEX('Base de données'!$A$1:$T$200,SMALL(IF('Base de données'!$C$3:$C$200=MONTH($G$1),ROW($3:$199)),ROWS($1:12)),MATCH(C$1,'Base de données'!$E$2:$T$2,0)+4),"") -> 1 | D13: =IFERROR(INDEX('Base de données'!$A$1:$T$200,SMALL(IF('Base de données'!$C$3:$C$200=MONTH($G$1),ROW($3:$199)),ROWS($1:12)),MATCH(D$1,'Base de données'!$E$2:$T$2,0)+4),"") -> 0 | E13: =IFERROR(INDEX('Base de données'!$A$1:$T$200,SMALL(IF('Base de données'!$C$3:$C$200=MONTH($G$1),ROW($3:$199)),ROWS($1:12)),MATCH(E$1,'Base de données'!$E$2:$T$2,0)+4),"") -> 48140 | F13: =IFERROR(INDEX('Base de données'!$A$1:$T$200,SMALL(IF('Base de données'!$C$3:$C$200=MONTH($G$1),ROW($3:$199)),ROWS($1:12)),MATCH(F$1,'Base de données'!$E$2:$T$2,0)+4),"") -> 0 | G13: mixte en | H13: série 7000 | I13: en morceau | K13: inoxydable | L13: de | M13: 2016-02-06 | N13: 0 | O13: 0 | P13: 0 | Q13: 0 | R13: 0 | S13: 0 | T13: 0 | U13: 0 | V13: 0 | W13: 0 | X13: 0 | Y13: 0 | Z13: 0
A14: =IFERROR(INDEX('Base de données'!$A$1:$T$200,SMALL(IF('Base de données'!$C$3:$C$200=MONTH($G$1),ROW($3:$199)),ROWS($1:13)),MATCH(A$1,'Base de données'!$E$2:$T$2,0)+4),"") ->  | B14: =IFERROR(INDEX('Base de données'!$A$1:$T$200,SMALL(IF('Base de données'!$C$3:$C$200=MONTH($G$1),ROW($3:$199)),ROWS($1:13)),MATCH(B$1,'Base de données'!$E$2:$T$2,0)+4),"") ->  | C14: =IFERROR(INDEX('Base de données'!$A$1:$T$200,SMALL(IF('Base de données'!$C$3:$C$200=MONTH($G$1),ROW($3:$199)),ROWS($1:13)),MATCH(C$1,'Base de données'!$E$2:$T$2,0)+4),"") ->  | D14: =IFERROR(INDEX('Base de données'!$A$1:$T$200,SMALL(IF('Base de données'!$C$3:$C$200=MONTH($G$1),ROW($3:$199)),ROWS($1:13)),MATCH(D$1,'Base de données'!$E$2:$T$2,0)+4),"") ->  | E14: =IFERROR(INDEX('Base de données'!$A$1:$T$200,SMALL(IF('Base de données'!$C$3:$C$200=MONTH($G$1),ROW($3:$199)),ROWS($1:13)),MATCH(E$1,'Base de données'!$E$2:$T$2,0)+4),"") ->  | F14: =IFERROR(INDEX('Base de données'!$A$1:$T$200,SMALL(IF('Base de données'!$C$3:$C$200=MONTH($G$1),ROW($3:$199)),ROWS($1:13)),MATCH(F$1,'Base de données'!$E$2:$T$2,0)+4),"") ->  | G14: morceau | H14: en morceau | K14: mixte en | L14: cuivre | M14: 2016-02-07 | N14: 0 | O14: 0 | P14: 0 | Q14: 0 | R14: 0 | S14: 0 | T14: 0 | U14: 0 | V14: 0 | W14: 0 | X14: 0 | Y14: 0 | Z14: 0
A15: =IFERROR(INDEX('Base de données'!$A$1:$T$200,SMALL(IF('Base de données'!$C$3:$C$200=MONTH($G$1),ROW($3:$199)),ROWS($1:14)),MATCH(A$1,'Base de données'!$E$2:$T$2,0)+4),"") ->  | B15: =IFERROR(INDEX('Base de données'!$A$1:$T$200,SMALL(IF('Base de données'!$C$3:$C$200=MONTH($G$1),ROW($3:$199)),ROWS($1:14)),MATCH(B$1,'Base de données'!$E$2:$T$2,0)+4),"") ->  | C15: =IFERROR(INDEX('Base de données'!$A$1:$T$200,SMALL(IF('Base de données'!$C$3:$C$200=MONTH($G$1),ROW($3:$199)),ROWS($1:14)),MATCH(C$1,'Base de données'!$E$2:$T$2,0)+4),"") ->  | D15: =IFERROR(INDEX('Base de données'!$A$1:$T$200,SMALL(IF('Base de données'!$C$3:$C$200=MONTH($G$1),ROW($3:$199)),ROWS($1:14)),MATCH(D$1,'Base de données'!$E$2:$T$2,0)+4),"") ->  | E15: =IFERROR(INDEX('Base de données'!$A$1:$T$200,SMALL(IF('Base de données'!$C$3:$C$200=MONTH($G$1),ROW($3:$199)),ROWS($1:14)),MATCH(E$1,'Base de données'!$E$2:$T$2,0)+4),"") ->  | F15: =IFERROR(INDEX('Base de données'!$A$1:$T$200,SMALL(IF('Base de données'!$C$3:$C$200=MONTH($G$1),ROW($3:$199)),ROWS($1:14)),MATCH(F$1,'Base de données'!$E$2:$T$2,0)+4),"") ->  | G15: 2024 | H15: surdimension | I15: U.S 1 | J15: U.S 3 | K15: morceau | M15: 2016-02-08 | N15: 51460 | O15: 0 | P15: 0 | Q15: 0 | R15: 0 | S15: 0 | T15: 0 | U15: 0 | V15: 0 | W15: 13780 | X15: 0 | Y15: 0 | Z15: 0
A16: =IFERROR(INDEX('Base de données'!$A$1:$T$200,SMALL(IF('Base de données'!$C$3:$C$200=MONTH($G$1),ROW($3:$199)),ROWS($1:15)),MATCH(A$1,'Base de données'!$E$2:$T$2,0)+4),"") ->  | B16: =IFERROR(INDEX('Base de données'!$A$1:$T$200,SMALL(IF('Base de données'!$C$3:$C$200=MONTH($G$1),ROW($3:$199)),ROWS($1:15)),MATCH(B$1,'Base de données'!$E$2:$T$2,0)+4),"") ->  | C16: =IFERROR(INDEX('Base de données'!$A$1:$T$200,SMALL(IF('Base de données'!$C$3:$C$200=MONTH($G$1),ROW($3:$199)),ROWS($1:15)),MATCH(C$1,'Base de données'!$E$2:$T$2,0)+4),"") ->  | D16: =IFERROR(INDEX('Base de données'!$A$1:$T$200,SMALL(IF('Base de données'!$C$3:$C$200=MONTH($G$1),ROW($3:$199)),ROWS($1:15)),MATCH(D$1,'Base de données'!$E$2:$T$2,0)+4),"") ->  | E16: =IFERROR(INDEX('Base de données'!$A$1:$T$200,SMALL(IF('Base de données'!$C$3:$C$200=MONTH($G$1),ROW($3:$199)),ROWS($1:15)),MATCH(E$1,'Base de données'!$E$2:$T$2,0)+4),"") ->  | F16: =IFERROR(INDEX('Base de données'!$A$1:$T$200,SMALL(IF('Base de données'!$C$3:$C$200=MONTH($G$1),ROW($3:$199)),ROWS($1:15)),MATCH(F$1,'Base de données'!$E$2:$T$2,0)+4),"") ->  | G16: =SUMIF(C2:C46,"6",E2:E46) -> 18520 | H16: =SUMIF(C2:C46,"7",E2:E46) -> 0 | I16: =SUMIFS(E2:E46,C2:C46,"8",D2:D46,"0") -> 0 | J16: =SUMIFS(E2:E46,C2:C46,"8",D2:D46,"U.S 3") -> 13780 | K16: =SUMIF(C2:C46,"9",E2:E46) -> 0 | L16: =SUMIF(C2:C46,"10",E2:E46) -> 0 | M16: 2016-02-09 | N16: 0 | O16: 0 | P16: 0 | Q16: 0 | R16: 0 | S16: 0 | T16: 0 | U16: 0 | V16: 0 | W16: 0 | X16: 0 | Y16: 0 | Z16: 0
A17: =IFERROR(INDEX('Base de données'!$A$1:$T$200,SMALL(IF('Base de données'!$C$3:$C$200=MONTH($G$1),ROW($3:$199)),ROWS($1:16)),MATCH(A$1,'Base de données'!$E$2:$T$2,0)+4),"") ->  | B17: =IFERROR(INDEX('Base de données'!$A$1:$T$200,SMALL(IF('Base de données'!$C$3:$C$200=MONTH($G$1),ROW($3:$199)),ROWS($1:16)),MATCH(B$1,'Base de données'!$E$2:$T$2,0)+4),"") ->  | C17: =IFERROR(INDEX('Base de données'!$A$1:$T$200,SMALL(IF('Base de données'!$C$3:$C$200=MONTH($G$1),ROW($3:$199)),ROWS($1:16)),MATCH(C$1,'Base de données'!$E$2:$T$2,0)+4),"") ->  | D17: =IFERROR(INDEX('Base de données'!$A$1:$T$200,SMALL(IF('Base de données'!$C$3:$C$200=MONTH($G$1),ROW($3:$199)),ROWS($1:16)),MATCH(D$1,'Base de données'!$E$2:$T$2,0)+4),"") ->  | E17: =IFERROR(INDEX('Base de données'!$A$1:$T$200,SMALL(IF('Base de données'!$C$3:$C$200=MONTH($G$1),ROW($3:$199)),ROWS($1:16)),MATCH(E$1,'Base de données'!$E$2:$T$2,0)+4),"") ->  | F17: =IFERROR(INDEX('Base de données'!$A$1:$T$200,SMALL(IF('Base de données'!$C$3:$C$200=MONTH($G$1),ROW($3:$199)),ROWS($1:16)),MATCH(F$1,'Base de données'!$E$2:$T$2,0)+4),"") ->  | I17: U.S 8 | J17: Total | M17: 2016-02-10 | N17: 47900 | O17: 0 | P17: 0 | Q17: 0 | R17: 0 | S17: 0 | T17: 0 | U17: 0 | V17: 0 | W17: 0 | X17: 0 | Y17: 0 | Z17: 0
A18: =IFERROR(INDEX('Base de données'!$A$1:$T$200,SMALL(IF('Base de données'!$C$3:$C$200=MONTH($G$1),ROW($3:$199)),ROWS($1:17)),MATCH(A$1,'Base de données'!$E$2:$T$2,0)+4),"") ->  | B18: =IFERROR(INDEX('Base de données'!$A$1:$T$200,SMALL(IF('Base de données'!$C$3:$C$200=MONTH($G$1),ROW($3:$199)),ROWS($1:17)),MATCH(B$1,'Base de données'!$E$2:$T$2,0)+4),"") ->  | C18: =IFERROR(INDEX('Base de données'!$A$1:$T$200,SMALL(IF('Base de données'!$C$3:$C$200=MONTH($G$1),ROW($3:$199)),ROWS($1:17)),MATCH(C$1,'Base de données'!$E$2:$T$2,0)+4),"") ->  | D18: =IFERROR(INDEX('Base de données'!$A$1:$T$200,SMALL(IF('Base de données'!$C$3:$C$200=MONTH($G$1),ROW($3:$199)),ROWS($1:17)),MATCH(D$1,'Base de données'!$E$2:$T$2,0)+4),"") ->  | E18: =IFERROR(INDEX('Base de données'!$A$1:$T$200,SMALL(IF('Base de données'!$C$3:$C$200=MONTH($G$1),ROW($3:$199)),ROWS($1:17)),MATCH(E$1,'Base de données'!$E$2:$T$2,0)+4),"") ->  | F18: =IFERROR(INDEX('Base de données'!$A$1:$T$200,SMALL(IF('Base de données'!$C$3:$C$200=MONTH($G$1),ROW($3:$199)),ROWS($1:17)),MATCH(F$1,'Base de données'!$E$2:$T$2,0)+4),"") ->  | I18: =SUMIFS(E2:E46,C2:C46,"8",D2:D46,"U.S 8") -> 19340 | J18: =SUM(I16+J16+I18) -> 33120 | M18: 2016-02-11 | N18: 0 | O18: 0 | P18: 0 | Q18: 49320 | R18: 11120 | S18: 0 | T18: 0 | U18: 0 | V18: 0 | W18: 0 | X18: 0 | Y18: 0 | Z18: 0
A19: =IFERROR(INDEX('Base de données'!$A$1:$T$200,SMALL(IF('Base de données'!$C$3:$C$200=MONTH($G$1),ROW($3:$199)),ROWS($1:18)),MATCH(A$1,'Base de données'!$E$2:$T$2,0)+4),"") ->  | B19: =IFERROR(INDEX('Base de données'!$A$1:$T$200,SMALL(IF('Base de données'!$C$3:$C$200=MONTH($G$1),ROW($3:$199)),ROWS($1:18)),MATCH(B$1,'Base de données'!$E$2:$T$2,0)+4),"") ->  | C19: =IFERROR(INDEX('Base de données'!$A$1:$T$200,SMALL(IF('Base de données'!$C$3:$C$200=MONTH($G$1),ROW($3:$199)),ROWS($1:18)),MATCH(C$1,'Base de données'!$E$2:$T$2,0)+4),"") ->  | D19: =IFERROR(INDEX('Base de données'!$A$1:$T$200,SMALL(IF('Base de données'!$C$3:$C$200=MONTH($G$1),ROW($3:$199)),ROWS($1:18)),MATCH(D$1,'Base de données'!$E$2:$T$2,0)+4),"") ->  | E19: =IFERROR(INDEX('Base de données'!$A$1:$T$200,SMALL(IF('Base de données'!$C$3:$C$200=MONTH($G$1),ROW($3:$199)),ROWS($1:18)),MATCH(E$1,'Base de données'!$E$2:$T$2,0)+4),"") ->  | F19: =IFERROR(INDEX('Base de données'!$A$1:$T$200,SMALL(IF('Base de données'!$C$3:$C$200=MONTH($G$1),ROW($3:$199)),ROWS($1:18)),MATCH(F$1,'Base de données'!$E$2:$T$2,0)+4),"") ->  | M19: 2016-02-12 | N19: 0 | O19: 0 | P19: 0 | Q19: 0 | R19: 0 | S19: 0 | T19: 0 | U19: 0 | V19: 0 | W19: 0 | X19: 0 | Y19: 0 | Z19: 0
A20: =IFERROR(INDEX('Base de données'!$A$1:$T$200,SMALL(IF('Base de données'!$C$3:$C$200=MONTH($G$1),ROW($3:$199)),ROWS($1:19)),MATCH(A$1,'Base de données'!$E$2:$T$2,0)+4),"") ->  | B20: =IFERROR(INDEX('Base de données'!$A$1:$T$200,SMALL(IF('Base de données'!$C$3:$C$200=MONTH($G$1),ROW($3:$199)),ROWS($1:19)),MATCH(B$1,'Base de données'!$E$2:$T$2,0)+4),"") ->  | C20: =IFERROR(INDEX('Base de données'!$A$1:$T$200,SMALL(IF('Base de données'!$C$3:$C$200=MONTH($G$1),ROW($3:$199)),ROWS($1:19)),MATCH(C$1,'Base de données'!$E$2:$T$2,0)+4),"") ->  | D20: =IFERROR(INDEX('Base de données'!$A$1:$T$200,SMALL(IF('Base de données'!$C$3:$C$200=MONTH($G$1),ROW($3:$199)),ROWS($1:19)),MATCH(D$1,'Base de données'!$E$2:$T$2,0)+4),"") ->  | E20: =IFERROR(INDEX('Base de données'!$A$1:$T$200,SMALL(IF('Base de données'!$C$3:$C$200=MONTH($G$1),ROW($3:$199)),ROWS($1:19)),MATCH(E$1,'Base de données'!$E$2:$T$2,0)+4),"") ->  | F20: =IFERROR(INDEX('Base de données'!$A$1:$T$200,SMALL(IF('Base de données'!$C$3:$C$200=MONTH($G$1),ROW($3:$199)),ROWS($1:19)),MATCH(F$1,'Base de données'!$E$2:$T$2,0)+4),"") ->  | M20: 2016-02-13 | N20: 0 | O20: 0 | P20: 0 | Q20: 0 | R20: 0 | S20: 0 | T20: 0 | U20: 0 | V20: 0 | W20: 0 | X20: 0 | Y20: 0 | Z20: 0
A21: =IFERROR(INDEX('Base de données'!$A$1:$T$200,SMALL(IF('Base de données'!$C$3:$C$200=MONTH($G$1),ROW($3:$199)),ROWS($1:20)),MATCH(A$1,'Base de données'!$E$2:$T$2,0)+4),"") ->  | B21: =IFERROR(INDEX('Base de données'!$A$1:$T$200,SMALL(IF('Base de données'!$C$3:$C$200=MONTH($G$1),ROW($3:$199)),ROWS($1:20)),MATCH(B$1,'Base de données'!$E$2:$T$2,0)+4),"") ->  | C21: =IFERROR(INDEX('Base de données'!$A$1:$T$200,SMALL(IF('Base de données'!$C$3:$C$200=MONTH($G$1),ROW($3:$199)),ROWS($1:20)),MATCH(C$1,'Base de données'!$E$2:$T$2,0)+4),"") ->  | D21: =IFERROR(INDEX('Base de données'!$A$1:$T$200,SMALL(IF('Base de données'!$C$3:$C$200=MONTH($G$1),ROW($3:$199)),ROWS($1:20)),MATCH(D$1,'Base de données'!$E$2:$T$2,0)+4),"") ->  | E21: =IFERROR(INDEX('Base de données'!$A$1:$T$200,SMALL(IF('Base de données'!$C$3:$C$200=MONTH($G$1),ROW($3:$199)),ROWS($1:20)),MATCH(E$1,'Base de données'!$E$2:$T$2,0)+4),"") ->  | F21: =IFERROR(INDEX('Base de données'!$A$1:$T$200,SMALL(IF('Base de données'!$C$3:$C$200=MONTH($G$1),ROW($3:$199)),ROWS($1:20)),MATCH(F$1,'Base de données'!$E$2:$T$2,0)+4),"") ->  | M21: 2016-02-14 | N21: 0 | O21: 0 | P21: 0 | Q21: 0 | R21: 0 | S21: 0 | T21: 0 | U21: 0 | V21: 0 | W21: 0 | X21: 0 | Y21: 0 | Z21: 0
A22: =IFERROR(INDEX('Base de données'!$A$1:$T$200,SMALL(IF('Base de données'!$C$3:$C$200=MONTH($G$1),ROW($3:$199)),ROWS($1:21)),MATCH(A$1,'Base de données'!$E$2:$T$2,0)+4),"") ->  | B22: =IFERROR(INDEX('Base de données'!$A$1:$T$200,SMALL(IF('Base de données'!$C$3:$C$200=MONTH($G$1),ROW($3:$199)),ROWS($1:21)),MATCH(B$1,'Base de données'!$E$2:$T$2,0)+4),"") ->  | C22: =IFERROR(INDEX('Base de données'!$A$1:$T$200,SMALL(IF('Base de données'!$C$3:$C$200=MONTH($G$1),ROW($3:$199)),ROWS($1:21)),MATCH(C$1,'Base de données'!$E$2:$T$2,0)+4),"") ->  | D22: =IFERROR(INDEX('Base de données'!$A$1:$T$200,SMALL(IF('Base de données'!$C$3:$C$200=MONTH($G$1),ROW($3:$199)),ROWS($1:21)),MATCH(D$1,'Base de données'!$E$2:$T$2,0)+4),"") ->  | E22: =IFERROR(INDEX('Base de données'!$A$1:$T$200,SMALL(IF('Base de données'!$C$3:$C$200=MONTH($G$1),ROW($3:$199)),ROWS($1:21)),MATCH(E$1,'Base de données'!$E$2:$T$2,0)+4),"") ->  | F22: =IFERROR(INDEX('Base de données'!$A$1:$T$200,SMALL(IF('Base de données'!$C$3:$C$200=MONTH($G$1),ROW($3:$199)),ROWS($1:21)),MATCH(F$1,'Base de données'!$E$2:$T$2,0)+4),"") ->  | M22: 2016-02-15 | N22: 48140 | O22: 0 | P22: 0 | Q22: 0 | R22: 0 | S22: 0 | T22: 0 | U22: 0 | V22: 0 | W22: 0 | X22: 0 | Y22: 0 | Z22: 0
A23: =IFERROR(INDEX('Base de données'!$A$1:$T$200,SMALL(IF('Base de données'!$C$3:$C$200=MONTH($G$1),ROW($3:$199)),ROWS($1:22)),MATCH(A$1,'Base de données'!$E$2:$T$2,0)+4),"") ->  | B23: =IFERROR(INDEX('Base de données'!$A$1:$T$200,SMALL(IF('Base de données'!$C$3:$C$200=MONTH($G$1),ROW($3:$199)),ROWS($1:22)),MATCH(B$1,'Base de données'!$E$2:$T$2,0)+4),"") ->  | C23: =IFERROR(INDEX('Base de données'!$A$1:$T$200,SMALL(IF('Base de données'!$C$3:$C$200=MONTH($G$1),ROW($3:$199)),ROWS($1:22)),MATCH(C$1,'Base de données'!$E$2:$T$2,0)+4),"") ->  | D23: =IFERROR(INDEX('Base de données'!$A$1:$T$200,SMALL(IF('Base de données'!$C$3:$C$200=MONTH($G$1),ROW($3:$199)),ROWS($1:22)),MATCH(D$1,'Base de données'!$E$2:$T$2,0)+4),"") ->  | E23: =IFERROR(INDEX('Base de données'!$A$1:$T$200,SMALL(IF('Base de données'!$C$3:$C$200=MONTH($G$1),ROW($3:$199)),ROWS($1:22)),MATCH(E$1,'Base de données'!$E$2:$T$2,0)+4),"") ->  | F23: =IFERROR(INDEX('Base de données'!$A$1:$T$200,SMALL(IF('Base de données'!$C$3:$C$200=MONTH($G$1),ROW($3:$199)),ROWS($1:22)),MATCH(F$1,'Base de données'!$E$2:$T$2,0)+4),"") ->  | M23: 2016-02-16 | N23: 0 | O23: 0 | P23: 0 | Q23: 0 | R23: 0 | S23: 0 | T23: 0 | U23: 0 | V23: 0 | W23: 0 | X23: 0 | Y23: 0 | Z23: 0
A24: =IFERROR(INDEX('Base de données'!$A$1:$T$200,SMALL(IF('Base de données'!$C$3:$C$200=MONTH($G$1),ROW($3:$199)),ROWS($1:23)),MATCH(A$1,'Base de données'!$E$2:$T$2,0)+4),"") ->  | B24: =IFERROR(INDEX('Base de données'!$A$1:$T$200,SMALL(IF('Base de données'!$C$3:$C$200=MONTH($G$1),ROW($3:$199)),ROWS($1:23)),MATCH(B$1,'Base de données'!$E$2:$T$2,0)+4),"") ->  | C24: =IFERROR(INDEX('Base de données'!$A$1:$T$200,SMALL(IF('Base de données'!$C$3:$C$200=MONTH($G$1),ROW($3:$199)),ROWS($1:23)),MATCH(C$1,'Base de données'!$E$2:$T$2,0)+4),"") ->  | D24: =IFERROR(INDEX('Base de données'!$A$1:$T$200,SMALL(IF('Base de données'!$C$3:$C$200=MONTH($G$1),ROW($3:$199)),ROWS($1:23)),MATCH(D$1,'Base de données'!$E$2:$T$2,0)+4),"") ->  | E24: =IFERROR(INDEX('Base de données'!$A$1:$T$200,SMALL(IF('Base de données'!$C$3:$C$200=MONTH($G$1),ROW($3:$199)),ROWS($1:23)),MATCH(E$1,'Base de données'!$E$2:$T$2,0)+4),"") ->  | F24: =IFERROR(INDEX('Base de données'!$A$1:$T$200,SMALL(IF('Base de données'!$C$3:$C$200=MONTH($G$1),ROW($3:$199)),ROWS($1:23)),MATCH(F$1,'Base de données'!$E$2:$T$2,0)+4),"") ->  | M24: 2016-02-17 | N24: 0 | O24: 0 | P24: 0 | Q24: 0 | R24: 0 | S24: 0 | T24: 0 | U24: 0 | V24: 0 | W24: 0 | X24: 0 | Y24: 0 | Z24: 0
A25: =IFERROR(INDEX('Base de données'!$A$1:$T$200,SMALL(IF('Base de données'!$C$3:$C$200=MONTH($G$1),ROW($3:$199)),ROWS($1:24)),MATCH(A$1,'Base de données'!$E$2:$T$2,0)+4),"") ->  | B25: =IFERROR(INDEX('Base de données'!$A$1:$T$200,SMALL(IF('Base de données'!$C$3:$C$200=MONTH($G$1),ROW($3:$199)),ROWS($1:24)),MATCH(B$1,'Base de données'!$E$2:$T$2,0)+4),"") ->  | C25: =IFERROR(INDEX('Base de données'!$A$1:$T$200,SMALL(IF('Base de données'!$C$3:$C$200=MONTH($G$1),ROW($3:$199)),ROWS($1:24)),MATCH(C$1,'Base de données'!$E$2:$T$2,0)+4),"") ->  | D25: =IFERROR(INDEX('Base de données'!$A$1:$T$200,SMALL(IF('Base de données'!$C$3:$C$200=MONTH($G$1),ROW($3:$199)),ROWS($1:24)),MATCH(D$1,'Base de données'!$E$2:$T$2,0)+4),"") ->  | E25: =IFERROR(INDEX('Base de données'!$A$1:$T$200,SMALL(IF('Base de données'!$C$3:$C$200=MONTH($G$1),ROW($3:$199)),ROWS($1:24)),MATCH(E$1,'Base de données'!$E$2:$T$2,0)+4),"") ->  | F25: =IFERROR(INDEX('Base de données'!$A$1:$T$200,SMALL(IF('Base de données'!$C$3:$C$200=MONTH($G$1),ROW($3:$199)),ROWS($1:24)),MATCH(F$1,'Base de données'!$E$2:$T$2,0)+4),"") ->  | M25: 2016-02-18 | N25: 0 | O25: 0 | P25: 0 | Q25: 0 | R25: 0 | S25: 0 | T25: 0 | U25: 0 | V25: 0 | W25: 0 | X25: 0 | Y25: 0 | Z25: 0
A26: =IFERROR(INDEX('Base de données'!$A$1:$T$200,SMALL(IF('Base de données'!$C$3:$C$200=MONTH($G$1),ROW($3:$199)),ROWS($1:25)),MATCH(A$1,'Base de données'!$E$2:$T$2,0)+4),"") ->  | B26: =IFERROR(INDEX('Base de données'!$A$1:$T$200,SMALL(IF('Base de données'!$C$3:$C$200=MONTH($G$1),ROW($3:$199)),ROWS($1:25)),MATCH(B$1,'Base de données'!$E$2:$T$2,0)+4),"") ->  | C26: =IFERROR(INDEX('Base de données'!$A$1:$T$200,SMALL(IF('Base de données'!$C$3:$C$200=MONTH($G$1),ROW($3:$199)),ROWS($1:25)),MATCH(C$1,'Base de données'!$E$2:$T$2,0)+4),"") ->  | D26: =IFERROR(INDEX('Base de données'!$A$1:$T$200,SMALL(IF('Base de données'!$C$3:$C$200=MONTH($G$1),ROW($3:$199)),ROWS($1:25)),MATCH(D$1,'Base de données'!$E$2:$T$2,0)+4),"") ->  | E26: =IFERROR(INDEX('Base de données'!$A$1:$T$200,SMALL(IF('Base de données'!$C$3:$C$200=MONTH($G$1),ROW($3:$199)),ROWS($1:25)),MATCH(E$1,'Base de données'!$E$2:$T$2,0)+4),"") ->  | F26: =IFERROR(INDEX('Base de données'!$A$1:$T$200,SMALL(IF('Base de données'!$C$3:$C$200=MONTH($G$1),ROW($3:$199)),ROWS($1:25)),MATCH(F$1,'Base de données'!$E$2:$T$2,0)+4),"") ->  | M26: 2016-02-19 | N26: 0 | O26: 0 | P26: 0 | Q26: 0 | R26: 0 | S26: 0 | T26: 0 | U26: 0 | V26: 0 | W26: 0 | X26: 0 | Y26: 0 | Z26: 0
A27: =IFERROR(INDEX('Base de données'!$A$1:$T$200,SMALL(IF('Base de données'!$C$3:$C$200=MONTH($G$1),ROW($3:$199)),ROWS($1:26)),MATCH(A$1,'Base de données'!$E$2:$T$2,0)+4),"") ->  | B27: =IFERROR(INDEX('Base de données'!$A$1:$T$200,SMALL(IF('Base de données'!$C$3:$C$200=MONTH($G$1),ROW($3:$199)),ROWS($1:26)),MATCH(B$1,'Base de données'!$E$2:$T$2,0)+4),"") ->  | C27: =IFERROR(INDEX('Base de données'!$A$1:$T$200,SMALL(IF('Base de données'!$C$3:$C$200=MONTH($G$1),ROW($3:$199)),ROWS($1:26)),MATCH(C$1,'Base de données'!$E$2:$T$2,0)+4),"") ->  | D27: =IFERROR(INDEX('Base de données'!$A$1:$T$200,SMALL(IF('Base de données'!$C$3:$C$200=MONTH($G$1),ROW($3:$199)),ROWS($1:26)),MATCH(D$1,'Base de données'!$E$2:$T$2,0)+4),"") ->  | E27: =IFERROR(INDEX('Base de données'!$A$1:$T$200,SMALL(IF('Base de données'!$C$3:$C$200=MONTH($G$1),ROW($3:$199)),ROWS($1:26)),MATCH(E$1,'Base de données'!$E$2:$T$2,0)+4),"") ->  | F27: =IFERROR(INDEX('Base de données'!$A$1:$T$200,SMALL(IF('Base de données'!$C$3:$C$200=MONTH($G$1),ROW($3:$199)),ROWS($1:26)),MATCH(F$1,'Base de données'!$E$2:$T$2,0)+4),"") ->  | M27: 2016-02-20 | N27: 0 | O27: 0 | P27: 0 | Q27: 0 | R27: 0 | S27: 0 | T27: 0 | U27: 0 | V27: 0 | W27: 0 | X27: 0 | Y27: 0 | Z27: 0
A28: =IFERROR(INDEX('Base de données'!$A$1:$T$200,SMALL(IF('Base de données'!$C$3:$C$200=MONTH($G$1),ROW($3:$199)),ROWS($1:27)),MATCH(A$1,'Base de données'!$E$2:$T$2,0)+4),"") ->  | B28: =IFERROR(INDEX('Base de données'!$A$1:$T$200,SMALL(IF('Base de données'!$C$3:$C$200=MONTH($G$1),ROW($3:$199)),ROWS($1:27)),MATCH(B$1,'Base de données'!$E$2:$T$2,0)+4),"") ->  | C28: =IFERROR(INDEX('Base de données'!$A$1:$T$200,SMALL(IF('Base de données'!$C$3:$C$200=MONTH($G$1),ROW($3:$199)),ROWS($1:27)),MATCH(C$1,'Base de données'!$E$2:$T$2,0)+4),"") ->  | D28: =IFERROR(INDEX('Base de données'!$A$1:$T$200,SMALL(IF('Base de données'!$C$3:$C$200=MONTH($G$1),ROW($3:$199)),ROWS($1:27)),MATCH(D$1,'Base de données'!$E$2:$T$2,0)+4),"") ->  | E28: =IFERROR(INDEX('Base de données'!$A$1:$T$200,SMALL(IF('Base de données'!$C$3:$C$200=MONTH($G$1),ROW($3:$199)),ROWS($1:27)),MATCH(E$1,'Base de données'!$E$2:$T$2,0)+4),"") ->  | F28: =IFERROR(INDEX('Base de données'!$A$1:$T$200,SMALL(IF('Base de données'!$C$3:$C$200=MONTH($G$1),ROW($3:$199)),ROWS($1:27)),MATCH(F$1,'Base de données'!$E$2:$T$2,0)+4),"") ->  | M28: 2016-02-21 | N28: 0 | O28: 0 | P28: 0 | Q28: 0 | R28: 0 | S28: 0 | T28: 0 | U28: 0 | V28: 0 | W28: 0 | X28: 0 | Y28: 0 | Z28: 0
A29: =IFERROR(INDEX('Base de données'!$A$1:$T$200,SMALL(IF('Base de données'!$C$3:$C$200=MONTH($G$1),ROW($3:$199)),ROWS($1:28)),MATCH(A$1,'Base de données'!$E$2:$T$2,0)+4),"") ->  | B29: =IFERROR(INDEX('Base de données'!$A$1:$T$200,SMALL(IF('Base de données'!$C$3:$C$200=MONTH($G$1),ROW($3:$199)),ROWS($1:28)),MATCH(B$1,'Base de données'!$E$2:$T$2,0)+4),"") ->  | C29: =IFERROR(INDEX('Base de données'!$A$1:$T$200,SMALL(IF('Base de données'!$C$3:$C$200=MONTH($G$1),ROW($3:$199)),ROWS($1:28)),MATCH(C$1,'Base de données'!$E$2:$T$2,0)+4),"") ->  | D29: =IFERROR(INDEX('Base de données'!$A$1:$T$200,SMALL(IF('Base de données'!$C$3:$C$200=MONTH($G$1),ROW($3:$199)),ROWS($1:28)),MATCH(D$1,'Base de données'!$E$2:$T$2,0)+4),"") ->  | E29: =IFERROR(INDEX('Base de données'!$A$1:$T$200,SMALL(IF('Base de données'!$C$3:$C$200=MONTH($G$1),ROW($3:$199)),ROWS($1:28)),MATCH(E$1,'Base de données'!$E$2:$T$2,0)+4),"") ->  | F29: =IFERROR(INDEX('Base de données'!$A$1:$T$200,SMALL(IF('Base de données'!$C$3:$C$200=MONTH($G$1),ROW($3:$199)),ROWS($1:28)),MATCH(F$1,'Base de données'!$E$2:$T$2,0)+4),"") ->  | M29: 2016-02-22 | N29: 0 | O29: 0 | P29: 0 | Q29: 0 | R29: 0 | S29: 0 | T29: 0 | U29: 0 | V29: 0 | W29: 0 | X29: 0 | Y29: 0 | Z29: 0
A30: =IFERROR(INDEX('Base de données'!$A$1:$T$200,SMALL(IF('Base de données'!$C$3:$C$200=MONTH($G$1),ROW($3:$199)),ROWS($1:29)),MATCH(A$1,'Base de données'!$E$2:$T$2,0)+4),"") ->  | B30: =IFERROR(INDEX('Base de données'!$A$1:$T$200,SMALL(IF('Base de données'!$C$3:$C$200=MONTH($G$1),ROW($3:$199)),ROWS($1:29)),MATCH(B$1,'Base de données'!$E$2:$T$2,0)+4),"") ->  | C30: =IFERROR(INDEX('Base de données'!$A$1:$T$200,SMALL(IF('Base de données'!$C$3:$C$200=MONTH($G$1),ROW($3:$199)),ROWS($1:29)),MATCH(C$1,'Base de données'!$E$2:$T$2,0)+4),"") ->  | D30: =IFERROR(INDEX('Base de données'!$A$1:$T$200,SMALL(IF('Base de données'!$C$3:$C$200=MONTH($G$1),ROW($3:$199)),ROWS($1:29)),MATCH(D$1,'Base de données'!$E$2:$T$2,0)+4),"") ->  | E30: =IFERROR(INDEX('Base de données'!$A$1:$T$200,SMALL(IF('Base de données'!$C$3:$C$200=MONTH($G$1),ROW($3:$199)),ROWS($1:29)),MATCH(E$1,'Base de données'!$E$2:$T$2,0)+4),"") ->  | F30: =IFERROR(INDEX('Base de données'!$A$1:$T$200,SMALL(IF('Base de données'!$C$3:$C$200=MONTH($G$1),ROW($3:$199)),ROWS($1:29)),MATCH(F$1,'Base de données'!$E$2:$T$2,0)+4),"") ->  | M30: 2016-02-23 | N30: 0 | O30: 0 | P30: 0 | Q30: 0 | R30: 0 | S30: 0 | T30: 0 | U30: 0 | V30: 0 | W30: 0 | X30: 0 | Y30: 0 | Z30: 0
A31: =IFERROR(INDEX('Base de données'!$A$1:$T$200,SMALL(IF('Base de données'!$C$3:$C$200=MONTH($G$1),ROW($3:$199)),ROWS($1:30)),MATCH(A$1,'Base de données'!$E$2:$T$2,0)+4),"") ->  | B31: =IFERROR(INDEX('Base de données'!$A$1:$T$200,SMALL(IF('Base de données'!$C$3:$C$200=MONTH($G$1),ROW($3:$199)),ROWS($1:30)),MATCH(B$1,'Base de données'!$E$2:$T$2,0)+4),"") ->  | C31: =IFERROR(INDEX('Base de données'!$A$1:$T$200,SMALL(IF('Base de données'!$C$3:$C$200=MONTH($G$1),ROW($3:$199)),ROWS($1:30)),MATCH(C$1,'Base de données'!$E$2:$T$2,0)+4),"") ->  | D31: =IFERROR(INDEX('Base de données'!$A$1:$T$200,SMALL(IF('Base de données'!$C$3:$C$200=MONTH($G$1),ROW($3:$199)),ROWS($1:30)),MATCH(D$1,'Base de données'!$E$2:$T$2,0)+4),"") ->  | E31: =IFERROR(INDEX('Base de données'!$A$1:$T$200,SMALL(IF('Base de données'!$C$3:$C$200=MONTH($G$1),ROW($3:$199)),ROWS($1:30)),MATCH(E$1,'Base de données'!$E$2:$T$2,0)+4),"") ->  | F31: =IFERROR(INDEX('Base de données'!$A$1:$T$200,SMALL(IF('Base de données'!$C$3:$C$200=MONTH($G$1),ROW($3:$199)),ROWS($1:30)),MATCH(F$1,'Base de données'!$E$2:$T$2,0)+4),"") ->  | M31: 2016-02-24 | N31: 0 | O31: 0 | P31: 0 | Q31: 0 | R31: 0 | S31: 0 | T31: 0 | U31: 0 | V31: 0 | W31: 0 | X31: 0 | Y31: 0 | Z31: 0
A32: =IFERROR(INDEX('Base de données'!$A$1:$T$200,SMALL(IF('Base de données'!$C$3:$C$200=MONTH($G$1),ROW($3:$199)),ROWS($1:31)),MATCH(A$1,'Base de données'!$E$2:$T$2,0)+4),"") ->  | B32: =IFERROR(INDEX('Base de données'!$A$1:$T$200,SMALL(IF('Base de données'!$C$3:$C$200=MONTH($G$1),ROW($3:$199)),ROWS($1:31)),MATCH(B$1,'Base de données'!$E$2:$T$2,0)+4),"") ->  | C32: =IFERROR(INDEX('Base de données'!$A$1:$T$200,SMALL(IF('Base de données'!$C$3:$C$200=MONTH($G$1),ROW($3:$199)),ROWS($1:31)),MATCH(C$1,'Base de données'!$E$2:$T$2,0)+4),"") ->  | D32: =IFERROR(INDEX('Base de données'!$A$1:$T$200,SMALL(IF('Base de données'!$C$3:$C$200=MONTH($G$1),ROW($3:$199)),ROWS($1:31)),MATCH(D$1,'Base de données'!$E$2:$T$2,0)+4),"") ->  | E32: =IFERROR(INDEX('Base de données'!$A$1:$T$200,SMALL(IF('Base de données'!$C$3:$C$200=MONTH($G$1),ROW($3:$199)),ROWS($1:31)),MATCH(E$1,'Base de données'!$E$2:$T$2,0)+4),"") ->  | F32: =IFERROR(INDEX('Base de données'!$A$1:$T$200,SMALL(IF('Base de données'!$C$3:$C$200=MONTH($G$1),ROW($3:$199)),ROWS($1:31)),MATCH(F$1,'Base de données'!$E$2:$T$2,0)+4),"") ->  | M32: 2016-02-25 | N32: 0 | O32: 0 | P32: 0 | Q32: 0 | R32: 0 | S32: 0 | T32: 0 | U32: 0 | V32: 0 | W32: 0 | X32: 0 | Y32: 0 | Z32: 0
A33: =IFERROR(INDEX('Base de données'!$A$1:$T$200,SMALL(IF('Base de données'!$C$3:$C$200=MONTH($G$1),ROW($3:$199)),ROWS($1:32)),MATCH(A$1,'Base de données'!$E$2:$T$2,0)+4),"") ->  | B33: =IFERROR(INDEX('Base de données'!$A$1:$T$200,SMALL(IF('Base de données'!$C$3:$C$200=MONTH($G$1),ROW($3:$199)),ROWS($1:32)),MATCH(B$1,'Base de données'!$E$2:$T$2,0)+4),"") ->  | C33: =IFERROR(INDEX('Base de données'!$A$1:$T$200,SMALL(IF('Base de données'!$C$3:$C$200=MONTH($G$1),ROW($3:$199)),ROWS($1:32)),MATCH(C$1,'Base de données'!$E$2:$T$2,0)+4),"") ->  | D33: =IFERROR(INDEX('Base de données'!$A$1:$T$200,SMALL(IF('Base de données'!$C$3:$C$200=MONTH($G$1),ROW($3:$199)),ROWS($1:32)),MATCH(D$1,'Base de données'!$E$2:$T$2,0)+4),"") ->  | E33: =IFERROR(INDEX('Base de données'!$A$1:$T$200,SMALL(IF('Base de données'!$C$3:$C$200=MONTH($G$1),ROW($3:$199)),ROWS($1:32)),MATCH(E$1,'Base de données'!$E$2:$T$2,0)+4),"") ->  | F33: =IFERROR(INDEX('Base de données'!$A$1:$T$200,SMALL(IF('Base de données'!$C$3:$C$200=MONTH($G$1),ROW($3:$199)),ROWS($1:32)),MATCH(F$1,'Base de données'!$E$2:$T$2,0)+4),"") ->  | M33: 2016-02-26 | N33: 0 | O33: 0 | P33: 0 | Q33: 0 | R33: 0 | S33: 0 | T33: 0 | U33: 0 | V33: 0 | W33: 0 | X33: 0 | Y33: 0 | Z33: 0
A34: =IFERROR(INDEX('Base de données'!$A$1:$T$200,SMALL(IF('Base de données'!$C$3:$C$200=MONTH($G$1),ROW($3:$199)),ROWS($1:33)),MATCH(A$1,'Base de données'!$E$2:$T$2,0)+4),"") ->  | B34: =IFERROR(INDEX('Base de données'!$A$1:$T$200,SMALL(IF('Base de données'!$C$3:$C$200=MONTH($G$1),ROW($3:$199)),ROWS($1:33)),MATCH(B$1,'Base de données'!$E$2:$T$2,0)+4),"") ->  | C34: =IFERROR(INDEX('Base de données'!$A$1:$T$200,SMALL(IF('Base de données'!$C$3:$C$200=MONTH($G$1),ROW($3:$199)),ROWS($1:33)),MATCH(C$1,'Base de données'!$E$2:$T$2,0)+4),"") ->  | D34: =IFERROR(INDEX('Base de données'!$A$1:$T$200,SMALL(IF('Base de données'!$C$3:$C$200=MONTH($G$1),ROW($3:$199)),ROWS($1:33)),MATCH(D$1,'Base de données'!$E$2:$T$2,0)+4),"") ->  | E34: =IFERROR(INDEX('Base de données'!$A$1:$T$200,SMALL(IF('Base de données'!$C$3:$C$200=MONTH($G$1),ROW($3:$199)),ROWS($1:33)),MATCH(E$1,'Base de données'!$E$2:$T$2,0)+4),"") ->  | F34: =IFERROR(INDEX('Base de données'!$A$1:$T$200,SMALL(IF('Base de données'!$C$3:$C$200=MONTH($G$1),ROW($3:$199)),ROWS($1:33)),MATCH(F$1,'Base de données'!$E$2:$T$2,0)+4),"") ->  | M34: 2016-02-27 | N34: 0 | O34: 0 | P34: 0 | Q34: 0 | R34: 0 | S34: 0 | T34: 0 | U34: 0 | V34: 0 | W34: 0 | X34: 0 | Y34: 0 | Z34: 0
A35: =IFERROR(INDEX('Base de données'!$A$1:$T$200,SMALL(IF('Base de données'!$C$3:$C$200=MONTH($G$1),ROW($3:$199)),ROWS($1:34)),MATCH(A$1,'Base de données'!$E$2:$T$2,0)+4),"") ->  | B35: =IFERROR(INDEX('Base de données'!$A$1:$T$200,SMALL(IF('Base de données'!$C$3:$C$200=MONTH($G$1),ROW($3:$199)),ROWS($1:34)),MATCH(B$1,'Base de données'!$E$2:$T$2,0)+4),"") ->  | C35: =IFERROR(INDEX('Base de données'!$A$1:$T$200,SMALL(IF('Base de données'!$C$3:$C$200=MONTH($G$1),ROW($3:$199)),ROWS($1:34)),MATCH(C$1,'Base de données'!$E$2:$T$2,0)+4),"") ->  | D35: =IFERROR(INDEX('Base de données'!$A$1:$T$200,SMALL(IF('Base de données'!$C$3:$C$200=MONTH($G$1),ROW($3:$199)),ROWS($1:34)),MATCH(D$1,'Base de données'!$E$2:$T$2,0)+4),"") ->  | E35: =IFERROR(INDEX('Base de données'!$A$1:$T$200,SMALL(IF('Base de données'!$C$3:$C$200=MONTH($G$1),ROW($3:$199)),ROWS($1:34)),MATCH(E$1,'Base de données'!$E$2:$T$2,0)+4),"") ->  | F35: =IFERROR(INDEX('Base de données'!$A$1:$T$200,SMALL(IF('Base de données'!$C$3:$C$200=MONTH($G$1),ROW($3:$199)),ROWS($1:34)),MATCH(F$1,'Base de données'!$E$2:$T$2,0)+4),"") ->  | M35: 2016-02-28 | N35: 0 | O35: 0 | P35: 0 | Q35: 0 | R35: 0 | S35: 0 | T35: 0 | U35: 0 | V35: 0 | W35: 0 | X35: 0 | Y35: 0 | Z35: 0
A36: =IFERROR(INDEX('Base de données'!$A$1:$T$200,SMALL(IF('Base de données'!$C$3:$C$200=MONTH($G$1),ROW($3:$199)),ROWS($1:35)),MATCH(A$1,'Base de données'!$E$2:$T$2,0)+4),"") ->  | B36: =IFERROR(INDEX('Base de données'!$A$1:$T$200,SMALL(IF('Base de données'!$C$3:$C$200=MONTH($G$1),ROW($3:$199)),ROWS($1:35)),MATCH(B$1,'Base de données'!$E$2:$T$2,0)+4),"") ->  | C36: =IFERROR(INDEX('Base de données'!$A$1:$T$200,SMALL(IF('Base de données'!$C$3:$C$200=MONTH($G$1),ROW($3:$199)),ROWS($1:35)),MATCH(C$1,'Base de données'!$E$2:$T$2,0)+4),"") ->  | D36: =IFERROR(INDEX('Base de données'!$A$1:$T$200,SMALL(IF('Base de données'!$C$3:$C$200=MONTH($G$1),ROW($3:$199)),ROWS($1:35)),MATCH(D$1,'Base de données'!$E$2:$T$2,0)+4),"") ->  | E36: =IFERROR(INDEX('Base de données'!$A$1:$T$200,SMALL(IF('Base de données'!$C$3:$C$200=MONTH($G$1),ROW($3:$199)),ROWS($1:35)),MATCH(E$1,'Base de données'!$E$2:$T$2,0)+4),"") ->  | F36: =IFERROR(INDEX('Base de données'!$A$1:$T$200,SMALL(IF('Base de données'!$C$3:$C$200=MONTH($G$1),ROW($3:$199)),ROWS($1:35)),MATCH(F$1,'Base de données'!$E$2:$T$2,0)+4),"") ->  | M36: 2016-02-29 | N36: 0 | O36: 0 | P36: 0 | Q36: 0 | R36: 0 | S36: 0 | T36: 0 | U36: 0 | V36: 0 | W36: 0 | X36: 0 | Y36: 0 | Z36: 0
A37: =IFERROR(INDEX('Base de données'!$A$1:$T$200,SMALL(IF('Base de données'!$C$3:$C$200=MONTH($G$1),ROW($3:$199)),ROWS($1:36)),MATCH(A$1,'Base de données'!$E$2:$T$2,0)+4),"") ->  | B37: =IFERROR(INDEX('Base de données'!$A$1:$T$200,SMALL(IF('Base de données'!$C$3:$C$200=MONTH($G$1),ROW($3:$199)),ROWS($1:36)),MATCH(B$1,'Base de données'!$E$2:$T$2,0)+4),"") ->  | C37: =IFERROR(INDEX('Base de données'!$A$1:$T$200,SMALL(IF('Base de données'!$C$3:$C$200=MONTH($G$1),ROW($3:$199)),ROWS($1:36)),MATCH(C$1,'Base de données'!$E$2:$T$2,0)+4),"") ->  | D37: =IFERROR(INDEX('Base de données'!$A$1:$T$200,SMALL(IF('Base de données'!$C$3:$C$200=MONTH($G$1),ROW($3:$199)),ROWS($1:36)),MATCH(D$1,'Base de données'!$E$2:$T$2,0)+4),"") ->  | E37: =IFERROR(INDEX('Base de données'!$A$1:$T$200,SMALL(IF('Base de données'!$C$3:$C$200=MONTH($G$1),ROW($3:$199)),ROWS($1:36)),MATCH(E$1,'Base de données'!$E$2:$T$2,0)+4),"") ->  | F37: =IFERROR(INDEX('Base de données'!$A$1:$T$200,SMALL(IF('Base de données'!$C$3:$C$200=MONTH($G$1),ROW($3:$199)),ROWS($1:36)),MATCH(F$1,'Base de données'!$E$2:$T$2,0)+4),"") -> 
A38: =IFERROR(INDEX('Base de données'!$A$1:$T$200,SMALL(IF('Base de données'!$C$3:$C$200=MONTH($G$1),ROW($3:$199)),ROWS($1:37)),MATCH(A$1,'Base de données'!$E$2:$T$2,0)+4),"") ->  | B38: =IFERROR(INDEX('Base de données'!$A$1:$T$200,SMALL(IF('Base de données'!$C$3:$C$200=MONTH($G$1),ROW($3:$199)),ROWS($1:37)),MATCH(B$1,'Base de données'!$E$2:$T$2,0)+4),"") ->  | C38: =IFERROR(INDEX('Base de données'!$A$1:$T$200,SMALL(IF('Base de données'!$C$3:$C$200=MONTH($G$1),ROW($3:$199)),ROWS($1:37)),MATCH(C$1,'Base de données'!$E$2:$T$2,0)+4),"") ->  | D38: =IFERROR(INDEX('Base de données'!$A$1:$T$200,SMALL(IF('Base de données'!$C$3:$C$200=MONTH($G$1),ROW($3:$199)),ROWS($1:37)),MATCH(D$1,'Base de données'!$E$2:$T$2,0)+4),"") ->  | E38: =IFERROR(INDEX('Base de données'!$A$1:$T$200,SMALL(IF('Base de données'!$C$3:$C$200=MONTH($G$1),ROW($3:$199)),ROWS($1:37)),MATCH(E$1,'Base de données'!$E$2:$T$2,0)+4),"") ->  | F38: =IFERROR(INDEX('Base de données'!$A$1:$T$200,SMALL(IF('Base de données'!$C$3:$C$200=MONTH($G$1),ROW($3:$199)),ROWS($1:37)),MATCH(F$1,'Base de données'!$E$2:$T$2,0)+4),"") -> 
A39: =IFERROR(INDEX('Base de données'!$A$1:$T$200,SMALL(IF('Base de données'!$C$3:$C$200=MONTH($G$1),ROW($3:$199)),ROWS($1:38)),MATCH(A$1,'Base de données'!$E$2:$T$2,0)+4),"") ->  | B39: =IFERROR(INDEX('Base de données'!$A$1:$T$200,SMALL(IF('Base de données'!$C$3:$C$200=MONTH($G$1),ROW($3:$199)),ROWS($1:38)),MATCH(B$1,'Base de données'!$E$2:$T$2,0)+4),"") ->  | C39: =IFERROR(INDEX('Base de données'!$A$1:$T$200,SMALL(IF('Base de données'!$C$3:$C$200=MONTH($G$1),ROW($3:$199)),ROWS($1:38)),MATCH(C$1,'Base de données'!$E$2:$T$2,0)+4),"") ->  | D39: =IFERROR(INDEX('Base de données'!$A$1:$T$200,SMALL(IF('Base de données'!$C$3:$C$200=MONTH($G$1),ROW($3:$199)),ROWS($1:38)),MATCH(D$1,'Base de données'!$E$2:$T$2,0)+4),"") ->  | E39: =IFERROR(INDEX('Base de données'!$A$1:$T$200,SMALL(IF('Base de données'!$C$3:$C$200=MONTH($G$1),ROW($3:$199)),ROWS($1:38)),MATCH(E$1,'Base de données'!$E$2:$T$2,0)+4),"") ->  | F39: =IFERROR(INDEX('Base de données'!$A$1:$T$200,SMALL(IF('Base de données'!$C$3:$C$200=MONTH($G$1),ROW($3:$199)),ROWS($1:38)),MATCH(F$1,'Base de données'!$E$2:$T$2,0)+4),"") -> 
A40: =IFERROR(INDEX('Base de données'!$A$1:$T$200,SMALL(IF('Base de données'!$C$3:$C$200=MONTH($G$1),ROW($3:$199)),ROWS($1:39)),MATCH(A$1,'Base de données'!$E$2:$T$2,0)+4),"") ->  | B40: =IFERROR(INDEX('Base de données'!$A$1:$T$200,SMALL(IF('Base de données'!$C$3:$C$200=MONTH($G$1),ROW($3:$199)),ROWS($1:39)),MATCH(B$1,'Base de données'!$E$2:$T$2,0)+4),"") ->  | C40: =IFERROR(INDEX('Base de données'!$A$1:$T$200,SMALL(IF('Base de données'!$C$3:$C$200=MONTH($G$1),ROW($3:$199)),ROWS($1:39)),MATCH(C$1,'Base de données'!$E$2:$T$2,0)+4),"") ->  | D40: =IFERROR(INDEX('Base de données'!$A$1:$T$200,SMALL(IF('Base de données'!$C$3:$C$200=MONTH($G$1),ROW($3:$199)),ROWS($1:39)),MATCH(D$1,'Base de données'!$E$2:$T$2,0)+4),"") ->  | E40: =IFERROR(INDEX('Base de données'!$A$1:$T$200,SMALL(IF('Base de données'!$C$3:$C$200=MONTH($G$1),ROW($3:$199)),ROWS($1:39)),MATCH(E$1,'Base de données'!$E$2:$T$2,0)+4),"") ->  | F40: =IFERROR(INDEX('Base de données'!$A$1:$T$200,SMALL(IF('Base de données'!$C$3:$C$200=MONTH($G$1),ROW($3:$199)),ROWS($1:39)),MATCH(F$1,'Base de données'!$E$2:$T$2,0)+4),"") -> 
A41: =IFERROR(INDEX('Base de données'!$A$1:$T$200,SMALL(IF('Base de données'!$C$3:$C$200=MONTH($G$1),ROW($3:$199)),ROWS($1:40)),MATCH(A$1,'Base de données'!$E$2:$T$2,0)+4),"") ->  | B41: =IFERROR(INDEX('Base de données'!$A$1:$T$200,SMALL(IF('Base de données'!$C$3:$C$200=MONTH($G$1),ROW($3:$199)),ROWS($1:40)),MATCH(B$1,'Base de données'!$E$2:$T$2,0)+4),"") ->  | C41: =IFERROR(INDEX('Base de données'!$A$1:$T$200,SMALL(IF('Base de données'!$C$3:$C$200=MONTH($G$1),ROW($3:$199)),ROWS($1:40)),MATCH(C$1,'Base de données'!$E$2:$T$2,0)+4),"") ->  | D41: =IFERROR(INDEX('Base de données'!$A$1:$T$200,SMALL(IF('Base de données'!$C$3:$C$200=MONTH($G$1),ROW($3:$199)),ROWS($1:40)),MATCH(D$1,'Base de données'!$E$2:$T$2,0)+4),"") ->  | E41: =IFERROR(INDEX('Base de données'!$A$1:$T$200,SMALL(IF('Base de données'!$C$3:$C$200=MONTH($G$1),ROW($3:$199)),ROWS($1:40)),MATCH(E$1,'Base de données'!$E$2:$T$2,0)+4),"") ->  | F41: =IFERROR(INDEX('Base de données'!$A$1:$T$200,SMALL(IF('Base de données'!$C$3:$C$200=MONTH($G$1),ROW($3:$199)),ROWS($1:40)),MATCH(F$1,'Base de données'!$E$2:$T$2,0)+4),"") -> 
A42: =IFERROR(INDEX('Base de données'!$A$1:$T$200,SMALL(IF('Base de données'!$C$3:$C$200=MONTH($G$1),ROW($3:$199)),ROWS($1:41)),MATCH(A$1,'Base de données'!$E$2:$T$2,0)+4),"") ->  | B42: =IFERROR(INDEX('Base de données'!$A$1:$T$200,SMALL(IF('Base de données'!$C$3:$C$200=MONTH($G$1),ROW($3:$199)),ROWS($1:41)),MATCH(B$1,'Base de données'!$E$2:$T$2,0)+4),"") ->  | C42: =IFERROR(INDEX('Base de données'!$A$1:$T$200,SMALL(IF('Base de données'!$C$3:$C$200=MONTH($G$1),ROW($3:$199)),ROWS($1:41)),MATCH(C$1,'Base de données'!$E$2:$T$2,0)+4),"") ->  | D42: =IFERROR(INDEX('Base de données'!$A$1:$T$200,SMALL(IF('Base de données'!$C$3:$C$200=MONTH($G$1),ROW($3:$199)),ROWS($1:41)),MATCH(D$1,'Base de données'!$E$2:$T$2,0)+4),"") ->  | E42: =IFERROR(INDEX('Base de données'!$A$1:$T$200,SMALL(IF('Base de données'!$C$3:$C$200=MONTH($G$1),ROW($3:$199)),ROWS($1:41)),MATCH(E$1,'Base de données'!$E$2:$T$2,0)+4),"") ->  | F42: =IFERROR(INDEX('Base de données'!$A$1:$T$200,SMALL(IF('Base de données'!$C$3:$C$200=MONTH($G$1),ROW($3:$199)),ROWS($1:41)),MATCH(F$1,'Base de données'!$E$2:$T$2,0)+4),"") -> 
A43: =IFERROR(INDEX('Base de données'!$A$1:$T$200,SMALL(IF('Base de données'!$C$3:$C$200=MONTH($G$1),ROW($3:$199)),ROWS($1:42)),MATCH(A$1,'Base de données'!$E$2:$T$2,0)+4),"") ->  | B43: =IFERROR(INDEX('Base de données'!$A$1:$T$200,SMALL(IF('Base de données'!$C$3:$C$200=MONTH($G$1),ROW($3:$199)),ROWS($1:42)),MATCH(B$1,'Base de données'!$E$2:$T$2,0)+4),"") ->  | C43: =IFERROR(INDEX('Base de données'!$A$1:$T$200,SMALL(IF('Base de données'!$C$3:$C$200=MONTH($G$1),ROW($3:$199)),ROWS($1:42)),MATCH(C$1,'Base de données'!$E$2:$T$2,0)+4),"") ->  | D43: =IFERROR(INDEX('Base de données'!$A$1:$T$200,SMALL(IF('Base de données'!$C$3:$C$200=MONTH($G$1),ROW($3:$199)),ROWS($1:42)),MATCH(D$1,'Base de données'!$E$2:$T$2,0)+4),"") ->  | E43: =IFERROR(INDEX('Base de données'!$A$1:$T$200,SMALL(IF('Base de données'!$C$3:$C$200=MONTH($G$1),ROW($3:$199)),ROWS($1:42)),MATCH(E$1,'Base de données'!$E$2:$T$2,0)+4),"") ->  | F43: =IFERROR(INDEX('Base de données'!$A$1:$T$200,SMALL(IF('Base de données'!$C$3:$C$200=MONTH($G$1),ROW($3:$199)),ROWS($1:42)),MATCH(F$1,'Base de données'!$E$2:$T$2,0)+4),"") -> 
A44: =IFERROR(INDEX('Base de données'!$A$1:$T$200,SMALL(IF('Base de données'!$C$3:$C$200=MONTH($G$1),ROW($3:$199)),ROWS($1:43)),MATCH(A$1,'Base de données'!$E$2:$T$2,0)+4),"") ->  | B44: =IFERROR(INDEX('Base de données'!$A$1:$T$200,SMALL(IF('Base de données'!$C$3:$C$200=MONTH($G$1),ROW($3:$199)),ROWS($1:43)),MATCH(B$1,'Base de données'!$E$2:$T$2,0)+4),"") ->  | C44: =IFERROR(INDEX('Base de données'!$A$1:$T$200,SMALL(IF('Base de données'!$C$3:$C$200=MONTH($G$1),ROW($3:$199)),ROWS($1:43)),MATCH(C$1,'Base de données'!$E$2:$T$2,0)+4),"") ->  | D44: =IFERROR(INDEX('Base de données'!$A$1:$T$200,SMALL(IF('Base de données'!$C$3:$C$200=MONTH($G$1),ROW($3:$199)),ROWS($1:43)),MATCH(D$1,'Base de données'!$E$2:$T$2,0)+4),"") ->  | E44: =IFERROR(INDEX('Base de données'!$A$1:$T$200,SMALL(IF('Base de données'!$C$3:$C$200=MONTH($G$1),ROW($3:$199)),ROWS($1:43)),MATCH(E$1,'Base de données'!$E$2:$T$2,0)+4),"") ->  | F44: =IFERROR(INDEX('Base de données'!$A$1:$T$200,SMALL(IF('Base de données'!$C$3:$C$200=MONTH($G$1),ROW($3:$199)),ROWS($1:43)),MATCH(F$1,'Base de données'!$E$2:$T$2,0)+4),"") -> 
A45: =IFERROR(INDEX('Base de données'!$A$1:$T$200,SMALL(IF('Base de données'!$C$3:$C$200=MONTH($G$1),ROW($3:$199)),ROWS($1:44)),MATCH(A$1,'Base de données'!$E$2:$T$2,0)+4),"") ->  | B45: =IFERROR(INDEX('Base de données'!$A$1:$T$200,SMALL(IF('Base de données'!$C$3:$C$200=MONTH($G$1),ROW($3:$199)),ROWS($1:44)),MATCH(B$1,'Base de données'!$E$2:$T$2,0)+4),"") ->  | C45: =IFERROR(INDEX('Base de données'!$A$1:$T$200,SMALL(IF('Base de données'!$C$3:$C$200=MONTH($G$1),ROW($3:$199)),ROWS($1:44)),MATCH(C$1,'Base de données'!$E$2:$T$2,0)+4),"") ->  | D45: =IFERROR(INDEX('Base de données'!$A$1:$T$200,SMALL(IF('Base de données'!$C$3:$C$200=MONTH($G$1),ROW($3:$199)),ROWS($1:44)),MATCH(D$1,'Base de données'!$E$2:$T$2,0)+4),"") ->  | E45: =IFERROR(INDEX('Base de données'!$A$1:$T$200,SMALL(IF('Base de données'!$C$3:$C$200=MONTH($G$1),ROW($3:$199)),ROWS($1:44)),MATCH(E$1,'Base de données'!$E$2:$T$2,0)+4),"") ->  | F45: =IFERROR(INDEX('Base de données'!$A$1:$T$200,SMALL(IF('Base de données'!$C$3:$C$200=MONTH($G$1),ROW($3:$199)),ROWS($1:44)),MATCH(F$1,'Base de données'!$E$2:$T$2,0)+4),"") -> 
B46: Total mois | E46: =SUM(E2:E45) -> 418920

Sheet Mars
A1: Date | B1: # CR | C1: # Catégorie | D1: Provenance | E1: poids | F1: Commentaire | G1: 2016-03-01 | M1: Date | N1: 1 | O1: 2 | P1: 3 | Q1: 4 | R1: 5 | T1: 6 | U1: 7 | V1: 8 | Y1: 9 | Z1: 10
A2: =IFERROR(INDEX('Base de données'!$A$1:$T$200,SMALL(IF('Base de données'!$C$3:$C$200=MONTH($G$1),ROW($3:$199)),ROWS($1:1)),MATCH(A$1,'Base de données'!$E$2:$T$2,0)+4),"") ->  | B2: =IFERROR(INDEX('Base de données'!$A$1:$T$200,SMALL(IF('Base de données'!$C$3:$C$200=MONTH($G$1),ROW($3:$199)),ROWS($1:1)),MATCH(B$1,'Base de données'!$E$2:$T$2,0)+4),"") ->  | C2: =IFERROR(INDEX('Base de données'!$A$1:$T$200,SMALL(IF('Base de données'!$C$3:$C$200=MONTH($G$1),ROW($3:$199)),ROWS($1:1)),MATCH(C$1,'Base de données'!$E$2:$T$2,0)+4),"") ->  | D2: =IFERROR(INDEX('Base de données'!$A$1:$T$200,SMALL(IF('Base de données'!$C$3:$C$200=MONTH($G$1),ROW($3:$199)),ROWS($1:1)),MATCH(D$1,'Base de données'!$E$2:$T$2,0)+4),"") ->  | E2: =IFERROR(INDEX('Base de données'!$A$1:$T$200,SMALL(IF('Base de données'!$C$3:$C$200=MONTH($G$1),ROW($3:$199)),ROWS($1:1)),MATCH(E$1,'Base de données'!$E$2:$T$2,0)+4),"") ->  | F2: =IFERROR(INDEX('Base de données'!$A$1:$T$200,SMALL(IF('Base de données'!$C$3:$C$200=MONTH($G$1),ROW($3:$199)),ROWS($1:1)),MATCH(F$1,'Base de données'!$E$2:$T$2,0)+4),"") ->  | N2: Copeaux d'aluminium propre et sec | O2: Copeaux d'aluminium propre et humides | P2: Copeaux d'aliminium contaminés | Q2: Aluminium en morceau (blocs/plaques) 7000 | R2: Aluminium contaminer mixte en morceau (blocs/plaques) | T2: Aluminium mixte en morceau (autre que blocs/plaques) 2024 | U2: Aluminium de série 7000 en morceau (surdimensionné) | V2: Acier mixte en morceau | Y2: Acier inoxydable mixte en morceau | Z2: Fil de cuivre
A3: =IFERROR(INDEX('Base de données'!$A$1:$T$200,SMALL(IF('Base de données'!$C$3:$C$200=MONTH($G$1),ROW($3:$199)),ROWS($1:2)),MATCH(A$1,'Base de données'!$E$2:$T$2,0)+4),"") ->  | B3: =IFERROR(INDEX('Base de données'!$A$1:$T$200,SMALL(IF('Base de données'!$C$3:$C$200=MONTH($G$1),ROW($3:$199)),ROWS($1:2)),MATCH(B$1,'Base de données'!$E$2:$T$2,0)+4),"") ->  | C3: =IFERROR(INDEX('Base de données'!$A$1:$T$200,SMALL(IF('Base de données'!$C$3:$C$200=MONTH($G$1),ROW($3:$199)),ROWS($1:2)),MATCH(C$1,'Base de données'!$E$2:$T$2,0)+4),"") ->  | D3: =IFERROR(INDEX('Base de données'!$A$1:$T$200,SMALL(IF('Base de données'!$C$3:$C$200=MONTH($G$1),ROW($3:$199)),ROWS($1:2)),MATCH(D$1,'Base de données'!$E$2:$T$2,0)+4),"") ->  | E3: =IFERROR(INDEX('Base de données'!$A$1:$T$200,SMALL(IF('Base de données'!$C$3:$C$200=MONTH($G$1),ROW($3:$199)),ROWS($1:2)),MATCH(E$1,'Base de données'!$E$2:$T$2,0)+4),"") ->  | F3: =IFERROR(INDEX('Base de données'!$A$1:$T$200,SMALL(IF('Base de données'!$C$3:$C$200=MONTH($G$1),ROW($3:$199)),ROWS($1:2)),MATCH(F$1,'Base de données'!$E$2:$T$2,0)+4),"") ->  | G3: 1 | H3: 2 | I3: 3 | J3: 4 | K3: 5
A4: =IFERROR(INDEX('Base de données'!$A$1:$T$200,SMALL(IF('Base de données'!$C$3:$C$200=MONTH($G$1),ROW($3:$199)),ROWS($1:3)),MATCH(A$1,'Base de données'!$E$2:$T$2,0)+4),"") ->  | B4: =IFERROR(INDEX('Base de données'!$A$1:$T$200,SMALL(IF('Base de données'!$C$3:$C$200=MONTH($G$1),ROW($3:$199)),ROWS($1:3)),MATCH(B$1,'Base de données'!$E$2:$T$2,0)+4),"") ->  | C4: =IFERROR(INDEX('Base de données'!$A$1:$T$200,SMALL(IF('Base de données'!$C$3:$C$200=MONTH($G$1),ROW($3:$199)),ROWS($1:3)),MATCH(C$1,'Base de données'!$E$2:$T$2,0)+4),"") ->  | D4: =IFERROR(INDEX('Base de données'!$A$1:$T$200,SMALL(IF('Base de données'!$C$3:$C$200=MONTH($G$1),ROW($3:$199)),ROWS($1:3)),MATCH(D$1,'Base de données'!$E$2:$T$2,0)+4),"") ->  | E4: =IFERROR(INDEX('Base de données'!$A$1:$T$200,SMALL(IF('Base de données'!$C$3:$C$200=MONTH($G$1),ROW($3:$199)),ROWS($1:3)),MATCH(E$1,'Base de données'!$E$2:$T$2,0)+4),"") ->  | F4: =IFERROR(INDEX('Base de données'!$A$1:$T$200,SMALL(IF('Base de données'!$C$3:$C$200=MONTH($G$1),ROW($3:$199)),ROWS($1:3)),MATCH(F$1,'Base de données'!$E$2:$T$2,0)+4),"") ->  | G4: Copeaux | H4: Copeaux | I4: Copeaux | J4: Aluminium | K4: Aluminium contaminés
A5: =IFERROR(INDEX('Base de données'!$A$1:$T$200,SMALL(IF('Base de données'!$C$3:$C$200=MONTH($G$1),ROW($3:$199)),ROWS($1:4)),MATCH(A$1,'Base de données'!$E$2:$T$2,0)+4),"") ->  | B5: =IFERROR(INDEX('Base de données'!$A$1:$T$200,SMALL(IF('Base de données'!$C$3:$C$200=MONTH($G$1),ROW($3:$199)),ROWS($1:4)),MATCH(B$1,'Base de données'!$E$2:$T$2,0)+4),"") ->  | C5: =IFERROR(INDEX('Base de données'!$A$1:$T$200,SMALL(IF('Base de données'!$C$3:$C$200=MONTH($G$1),ROW($3:$199)),ROWS($1:4)),MATCH(C$1,'Base de données'!$E$2:$T$2,0)+4),"") ->  | D5: =IFERROR(INDEX('Base de données'!$A$1:$T$200,SMALL(IF('Base de données'!$C$3:$C$200=MONTH($G$1),ROW($3:$199)),ROWS($1:4)),MATCH(D$1,'Base de données'!$E$2:$T$2,0)+4),"") ->  | E5: =IFERROR(INDEX('Base de données'!$A$1:$T$200,SMALL(IF('Base de données'!$C$3:$C$200=MONTH($G$1),ROW($3:$199)),ROWS($1:4)),MATCH(E$1,'Base de données'!$E$2:$T$2,0)+4),"") ->  | F5: =IFERROR(INDEX('Base de données'!$A$1:$T$200,SMALL(IF('Base de données'!$C$3:$C$200=MONTH($G$1),ROW($3:$199)),ROWS($1:4)),MATCH(F$1,'Base de données'!$E$2:$T$2,0)+4),"") ->  | G5: D'aluminium | H5: D'aluminium | I5: D'aluminium | J5: en morceau | K5: mixte en morceau
A6: =IFERROR(INDEX('Base de données'!$A$1:$T$200,SMALL(IF('Base de données'!$C$3:$C$200=MONTH($G$1),ROW($3:$199)),ROWS($1:5)),MATCH(A$1,'Base de données'!$E$2:$T$2,0)+4),"") ->  | B6: =IFERROR(INDEX('Base de données'!$A$1:$T$200,SMALL(IF('Base de données'!$C$3:$C$200=MONTH($G$1),ROW($3:$199)),ROWS($1:5)),MATCH(B$1,'Base de données'!$E$2:$T$2,0)+4),"") ->  | C6: =IFERROR(INDEX('Base de données'!$A$1:$T$200,SMALL(IF('Base de données'!$C$3:$C$200=MONTH($G$1),ROW($3:$199)),ROWS($1:5)),MATCH(C$1,'Base de données'!$E$2:$T$2,0)+4),"") ->  | D6: =IFERROR(INDEX('Base de données'!$A$1:$T$200,SMALL(IF('Base de données'!$C$3:$C$200=MONTH($G$1),ROW($3:$199)),ROWS($1:5)),MATCH(D$1,'Base de données'!$E$2:$T$2,0)+4),"") ->  | E6: =IFERROR(INDEX('Base de données'!$A$1:$T$200,SMALL(IF('Base de données'!$C$3:$C$200=MONTH($G$1),ROW($3:$199)),ROWS($1:5)),MATCH(E$1,'Base de données'!$E$2:$T$2,0)+4),"") ->  | F6: =IFERROR(INDEX('Base de données'!$A$1:$T$200,SMALL(IF('Base de données'!$C$3:$C$200=MONTH($G$1),ROW($3:$199)),ROWS($1:5)),MATCH(F$1,'Base de données'!$E$2:$T$2,0)+4),"") ->  | G6: propre et sec | H6: propre et | I6: Contaminés | J6: blocs/plaque | K6: (Blocs/plaques)
A7: =IFERROR(INDEX('Base de données'!$A$1:$T$200,SMALL(IF('Base de données'!$C$3:$C$200=MONTH($G$1),ROW($3:$199)),ROWS($1:6)),MATCH(A$1,'Base de données'!$E$2:$T$2,0)+4),"") ->  | B7: =IFERROR(INDEX('Base de données'!$A$1:$T$200,SMALL(IF('Base de données'!$C$3:$C$200=MONTH($G$1),ROW($3:$199)),ROWS($1:6)),MATCH(B$1,'Base de données'!$E$2:$T$2,0)+4),"") ->  | C7: =IFERROR(INDEX('Base de données'!$A$1:$T$200,SMALL(IF('Base de données'!$C$3:$C$200=MONTH($G$1),ROW($3:$199)),ROWS($1:6)),MATCH(C$1,'Base de données'!$E$2:$T$2,0)+4),"") ->  | D7: =IFERROR(INDEX('Base de données'!$A$1:$T$200,SMALL(IF('Base de données'!$C$3:$C$200=MONTH($G$1),ROW($3:$199)),ROWS($1:6)),MATCH(D$1,'Base de données'!$E$2:$T$2,0)+4),"") ->  | E7: =IFERROR(INDEX('Base de données'!$A$1:$T$200,SMALL(IF('Base de données'!$C$3:$C$200=MONTH($G$1),ROW($3:$199)),ROWS($1:6)),MATCH(E$1,'Base de données'!$E$2:$T$2,0)+4),"") ->  | F7: =IFERROR(INDEX('Base de données'!$A$1:$T$200,SMALL(IF('Base de données'!$C$3:$C$200=MONTH($G$1),ROW($3:$199)),ROWS($1:6)),MATCH(F$1,'Base de données'!$E$2:$T$2,0)+4),"") ->  | H7: humides | J7: 7000 | K7: U.S 1 | L7: U.S 3 | R7: U.S 1 | S7: U.S 3 | V7: U.S 1 | W7: U.S 3 | X7: U.S 8
A8: =IFERROR(INDEX('Base de données'!$A$1:$T$200,SMALL(IF('Base de données'!$C$3:$C$200=MONTH($G$1),ROW($3:$199)),ROWS($1:7)),MATCH(A$1,'Base de données'!$E$2:$T$2,0)+4),"") ->  | B8: =IFERROR(INDEX('Base de données'!$A$1:$T$200,SMALL(IF('Base de données'!$C$3:$C$200=MONTH($G$1),ROW($3:$199)),ROWS($1:7)),MATCH(B$1,'Base de données'!$E$2:$T$2,0)+4),"") ->  | C8: =IFERROR(INDEX('Base de données'!$A$1:$T$200,SMALL(IF('Base de données'!$C$3:$C$200=MONTH($G$1),ROW($3:$199)),ROWS($1:7)),MATCH(C$1,'Base de données'!$E$2:$T$2,0)+4),"") ->  | D8: =IFERROR(INDEX('Base de données'!$A$1:$T$200,SMALL(IF('Base de données'!$C$3:$C$200=MONTH($G$1),ROW($3:$199)),ROWS($1:7)),MATCH(D$1,'Base de données'!$E$2:$T$2,0)+4),"") ->  | E8: =IFERROR(INDEX('Base de données'!$A$1:$T$200,SMALL(IF('Base de données'!$C$3:$C$200=MONTH($G$1),ROW($3:$199)),ROWS($1:7)),MATCH(E$1,'Base de données'!$E$2:$T$2,0)+4),"") ->  | F8: =IFERROR(INDEX('Base de données'!$A$1:$T$200,SMALL(IF('Base de données'!$C$3:$C$200=MONTH($G$1),ROW($3:$199)),ROWS($1:7)),MATCH(F$1,'Base de données'!$E$2:$T$2,0)+4),"") ->  | G8: =SUMIF(C2:C46,"1",E2:E46) -> 0 | H8: =SUMIF(C2:C46,"2",E2:E46) -> 0 | I8: =SUMIF(C2:C46,"3",E2:E46) -> 0 | J8: =SUMIF(C2:C46,"4",E2:E46) -> 0 | K8: =SUMIFS(E2:E46,C2:C46,"5",D2:D46,"0") -> 0 | L8: =SUMIFS(E2:E46,C2:C46,"5",D2:D46,"U.S 3") -> 0 | M8: 2016-03-01 | N8: =SUMIFS(E:E,A:A,M$8:M$46,C:C,"1") -> 0 | O8: =SUMIFS(E:E,A:A,M$8:M$46,C:C,"2") -> 0 | P8: =SUMIFS(E:E,A:A,M$8:M$46,C:C,"3") -> 0 | Q8: =SUMIFS(E:E,A:A,M$8:M$46,C:C,"4") -> 0 | R8: =SUMIFS(E:E,A:A,M$8:M$46,C:C,"5",D:D,"0") -> 0 | S8: =SUMIFS(E:E,A:A,M$8:M$46,C:C,"5",D:D,"U.S 3") -> 0 | T8: =SUMIFS(E:E,A:A,M$8:M$46,C:C,"6") -> 0 | U8: =SUMIFS(E:E,A:A,M$8:M$46,C:C,"7") -> 0 | V8: =SUMIFS(E:E,A:A,M$8:M$46,C:C,"8",D:D,"0") -> 0 | W8: =SUMIFS(E:E,A:A,M$8:M$46,C:C,"8",D:D,"U.S 3") -> 0 | X8: =SUMIFS(E:E,A:A,M$8:M$46,C:C,"8",D:D,"U.S 8") -> 0 | Y8: =SUMIFS(E:E,A:A,M$8:M$46,C:C,"9") -> 0 | Z8: =SUMIFS(E:E,A:A,M$8:M$46,C:C,"10") -> 0
A9: =IFERROR(INDEX('Base de données'!$A$1:$T$200,SMALL(IF('Base de données'!$C$3:$C$200=MONTH($G$1),ROW($3:$199)),ROWS($1:8)),MATCH(A$1,'Base de données'!$E$2:$T$2,0)+4),"") ->  | B9: =IFERROR(INDEX('Base de données'!$A$1:$T$200,SMALL(IF('Base de données'!$C$3:$C$200=MONTH($G$1),ROW($3:$199)),ROWS($1:8)),MATCH(B$1,'Base de données'!$E$2:$T$2,0)+4),"") ->  | C9: =IFERROR(INDEX('Base de données'!$A$1:$T$200,SMALL(IF('Base de données'!$C$3:$C$200=MONTH($G$1),ROW($3:$199)),ROWS($1:8)),MATCH(C$1,'Base de données'!$E$2:$T$2,0)+4),"") ->  | D9: =IFERROR(INDEX('Base de données'!$A$1:$T$200,SMALL(IF('Base de données'!$C$3:$C$200=MONTH($G$1),ROW($3:$199)),ROWS($1:8)),MATCH(D$1,'Base de données'!$E$2:$T$2,0)+4),"") ->  | E9: =IFERROR(INDEX('Base de données'!$A$1:$T$200,SMALL(IF('Base de données'!$C$3:$C$200=MONTH($G$1),ROW($3:$199)),ROWS($1:8)),MATCH(E$1,'Base de données'!$E$2:$T$2,0)+4),"") ->  | F9: =IFERROR(INDEX('Base de données'!$A$1:$T$200,SMALL(IF('Base de données'!$C$3:$C$200=MONTH($G$1),ROW($3:$199)),ROWS($1:8)),MATCH(F$1,'Base de données'!$E$2:$T$2,0)+4),"") ->  | K9: Total | M9: 2016-03-02 | N9: 0 | O9: 0 | P9: 0 | Q9: 0 | R9: =SUMIFS(E:E,A:A,M$8:M$46,C:C,"5",D:D,"0") -> 0 | S9: 0 | T9: 0 | U9: 0 | V9: =SUMIFS(E:E,A:A,M$8:M$46,C:C,"8",D:D,"0") -> 0 | W9: 0 | X9: 0 | Y9: 0 | Z9: 0
A10: =IFERROR(INDEX('Base de données'!$A$1:$T$200,SMALL(IF('Base de données'!$C$3:$C$200=MONTH($G$1),ROW($3:$199)),ROWS($1:9)),MATCH(A$1,'Base de données'!$E$2:$T$2,0)+4),"") ->  | B10: =IFERROR(INDEX('Base de données'!$A$1:$T$200,SMALL(IF('Base de données'!$C$3:$C$200=MONTH($G$1),ROW($3:$199)),ROWS($1:9)),MATCH(B$1,'Base de données'!$E$2:$T$2,0)+4),"") ->  | C10: =IFERROR(INDEX('Base de données'!$A$1:$T$200,SMALL(IF('Base de données'!$C$3:$C$200=MONTH($G$1),ROW($3:$199)),ROWS($1:9)),MATCH(C$1,'Base de données'!$E$2:$T$2,0)+4),"") ->  | D10: =IFERROR(INDEX('Base de données'!$A$1:$T$200,SMALL(IF('Base de données'!$C$3:$C$200=MONTH($G$1),ROW($3:$199)),ROWS($1:9)),MATCH(D$1,'Base de données'!$E$2:$T$2,0)+4),"") ->  | E10: =IFERROR(INDEX('Base de données'!$A$1:$T$200,SMALL(IF('Base de données'!$C$3:$C$200=MONTH($G$1),ROW($3:$199)),ROWS($1:9)),MATCH(E$1,'Base de données'!$E$2:$T$2,0)+4),"") ->  | F10: =IFERROR(INDEX('Base de données'!$A$1:$T$200,SMALL(IF('Base de données'!$C$3:$C$200=MONTH($G$1),ROW($3:$199)),ROWS($1:9)),MATCH(F$1,'Base de données'!$E$2:$T$2,0)+4),"") ->  | K10: =SUM(K8+L8) -> 0 | M10: 2016-03-03 | N10: 0 | O10: 0 | P10: 0 | Q10: 0 | R10: 0 | S10: 0 | T10: 0 | U10: 0 | V10: 0 | W10: 0 | X10: 0 | Y10: 0 | Z10: 0
A11: =IFERROR(INDEX('Base de données'!$A$1:$T$200,SMALL(IF('Base de données'!$C$3:$C$200=MONTH($G$1),ROW($3:$199)),ROWS($1:10)),MATCH(A$1,'Base de données'!$E$2:$T$2,0)+4),"") ->  | B11: =IFERROR(INDEX('Base de données'!$A$1:$T$200,SMALL(IF('Base de données'!$C$3:$C$200=MONTH($G$1),ROW($3:$199)),ROWS($1:10)),MATCH(B$1,'Base de données'!$E$2:$T$2,0)+4),"") ->  | C11: =IFERROR(INDEX('Base de données'!$A$1:$T$200,SMALL(IF('Base de données'!$C$3:$C$200=MONTH($G$1),ROW($3:$199)),ROWS($1:10)),MATCH(C$1,'Base de données'!$E$2:$T$2,0)+4),"") ->  | D11: =IFERROR(INDEX('Base de données'!$A$1:$T$200,SMALL(IF('Base de données'!$C$3:$C$200=MONTH($G$1),ROW($3:$199)),ROWS($1:10)),MATCH(D$1,'Base de données'!$E$2:$T$2,0)+4),"") ->  | E11: =IFERROR(INDEX('Base de données'!$A$1:$T$200,SMALL(IF('Base de données'!$C$3:$C$200=MONTH($G$1),ROW($3:$199)),ROWS($1:10)),MATCH(E$1,'Base de données'!$E$2:$T$2,0)+4),"") ->  | F11: =IFERROR(INDEX('Base de données'!$A$1:$T$200,SMALL(IF('Base de données'!$C$3:$C$200=MONTH($G$1),ROW($3:$199)),ROWS($1:10)),MATCH(F$1,'Base de données'!$E$2:$T$2,0)+4),"") ->  | G11: 6 | H11: 7 | I11: 8 | K11: 9 | L11: 10 | M11: 2016-03-04 | N11: 0 | O11: 0 | P11: 0 | Q11: 0 | R11: 0 | S11: 0 | T11: 0 | U11: 0 | V11: 0 | W11: 0 | X11: 0 | Y11: 0 | Z11: 0
A12: =IFERROR(INDEX('Base de données'!$A$1:$T$200,SMALL(IF('Base de données'!$C$3:$C$200=MONTH($G$1),ROW($3:$199)),ROWS($1:11)),MATCH(A$1,'Base de données'!$E$2:$T$2,0)+4),"") ->  | B12: =IFERROR(INDEX('Base de données'!$A$1:$T$200,SMALL(IF('Base de données'!$C$3:$C$200=MONTH($G$1),ROW($3:$199)),ROWS($1:11)),MATCH(B$1,'Base de données'!$E$2:$T$2,0)+4),"") ->  | C12: =IFERROR(INDEX('Base de données'!$A$1:$T$200,SMALL(IF('Base de données'!$C$3:$C$200=MONTH($G$1),ROW($3:$199)),ROWS($1:11)),MATCH(C$1,'Base de données'!$E$2:$T$2,0)+4),"") ->  | D12: =IFERROR(INDEX('Base de données'!$A$1:$T$200,SMALL(IF('Base de données'!$C$3:$C$200=MONTH($G$1),ROW($3:$199)),ROWS($1:11)),MATCH(D$1,'Base de données'!$E$2:$T$2,0)+4),"") ->  | E12: =IFERROR(INDEX('Base de données'!$A$1:$T$200,SMALL(IF('Base de données'!$C$3:$C$200=MONTH($G$1),ROW($3:$199)),ROWS($1:11)),MATCH(E$1,'Base de données'!$E$2:$T$2,0)+4),"") ->  | F12: =IFERROR(INDEX('Base de données'!$A$1:$T$200,SMALL(IF('Base de données'!$C$3:$C$200=MONTH($G$1),ROW($3:$199)),ROWS($1:11)),MATCH(F$1,'Base de données'!$E$2:$T$2,0)+4),"") ->  | G12: Aluminium | H12: Aluminium | I12: Acier mixte | K12: Acier | L12: Fil | M12: 2016-03-05 | N12: 0 | O12: 0 | P12: 0 | Q12: 0 | R12: 0 | S12: 0 | T12: 0 | U12: 0 | V12: 0 | W12: 0 | X12: 0 | Y12: 0 | Z12: 0
A13: =IFERROR(INDEX('Base de données'!$A$1:$T$200,SMALL(IF('Base de données'!$C$3:$C$200=MONTH($G$1),ROW($3:$199)),ROWS($1:12)),MATCH(A$1,'Base de données'!$E$2:$T$2,0)+4),"") ->  | B13: =IFERROR(INDEX('Base de données'!$A$1:$T$200,SMALL(IF('Base de données'!$C$3:$C$200=MONTH($G$1),ROW($3:$199)),ROWS($1:12)),MATCH(B$1,'Base de données'!$E$2:$T$2,0)+4),"") ->  | C13: =IFERROR(INDEX('Base de données'!$A$1:$T$200,SMALL(IF('Base de données'!$C$3:$C$200=MONTH($G$1),ROW($3:$199)),ROWS($1:12)),MATCH(C$1,'Base de données'!$E$2:$T$2,0)+4),"") ->  | D13: =IFERROR(INDEX('Base de données'!$A$1:$T$200,SMALL(IF('Base de données'!$C$3:$C$200=MONTH($G$1),ROW($3:$199)),ROWS($1:12)),MATCH(D$1,'Base de données'!$E$2:$T$2,0)+4),"") ->  | E13: =IFERROR(INDEX('Base de données'!$A$1:$T$200,SMALL(IF('Base de données'!$C$3:$C$200=MONTH($G$1),ROW($3:$199)),ROWS($1:12)),MATCH(E$1,'Base de données'!$E$2:$T$2,0)+4),"") ->  | F13: =IFERROR(INDEX('Base de données'!$A$1:$T$200,SMALL(IF('Base de données'!$C$3:$C$200=MONTH($G$1),ROW($3:$199)),ROWS($1:12)),MATCH(F$1,'Base de données'!$E$2:$T$2,0)+4),"") ->  | G13: mixte en | H13: série 7000 | I13: en morceau | K13: inoxydable | L13: de | M13: 2016-03-06 | N13: 0 | O13: 0 | P13: 0 | Q13: 0 | R13: 0 | S13: 0 | T13: 0 | U13: 0 | V13: 0 | W13: 0 | X13: 0 | Y13: 0 | Z13: 0
A14: =IFERROR(INDEX('Base de données'!$A$1:$T$200,SMALL(IF('Base de données'!$C$3:$C$200=MONTH($G$1),ROW($3:$199)),ROWS($1:13)),MATCH(A$1,'Base de données'!$E$2:$T$2,0)+4),"") ->  | B14: =IFERROR(INDEX('Base de données'!$A$1:$T$200,SMALL(IF('Base de données'!$C$3:$C$200=MONTH($G$1),ROW($3:$199)),ROWS($1:13)),MATCH(B$1,'Base de données'!$E$2:$T$2,0)+4),"") ->  | C14: =IFERROR(INDEX('Base de données'!$A$1:$T$200,SMALL(IF('Base de données'!$C$3:$C$200=MONTH($G$1),ROW($3:$199)),ROWS($1:13)),MATCH(C$1,'Base de données'!$E$2:$T$2,0)+4),"") ->  | D14: =IFERROR(INDEX('Base de données'!$A$1:$T$200,SMALL(IF('Base de données'!$C$3:$C$200=MONTH($G$1),ROW($3:$199)),ROWS($1:13)),MATCH(D$1,'Base de données'!$E$2:$T$2,0)+4),"") ->  | E14: =IFERROR(INDEX('Base de données'!$A$1:$T$200,SMALL(IF('Base de données'!$C$3:$C$200=MONTH($G$1),ROW($3:$199)),ROWS($1:13)),MATCH(E$1,'Base de données'!$E$2:$T$2,0)+4),"") ->  | F14: =IFERROR(INDEX('Base de données'!$A$1:$T$200,SMALL(IF('Base de données'!$C$3:$C$200=MONTH($G$1),ROW($3:$199)),ROWS($1:13)),MATCH(F$1,'Base de données'!$E$2:$T$2,0)+4),"") ->  | G14: morceau | H14: en morceau | K14: mixte en | L14: cuivre | M14: 2016-03-07 | N14: 0 | O14: 0 | P14: 0 | Q14: 0 | R14: 0 | S14: 0 | T14: 0 | U14: 0 | V14: 0 | W14: 0 | X14: 0 | Y14: 0 | Z14: 0
A15: =IFERROR(INDEX('Base de données'!$A$1:$T$200,SMALL(IF('Base de données'!$C$3:$C$200=MONTH($G$1),ROW($3:$199)),ROWS($1:14)),MATCH(A$1,'Base de données'!$E$2:$T$2,0)+4),"") ->  | B15: =IFERROR(INDEX('Base de données'!$A$1:$T$200,SMALL(IF('Base de données'!$C$3:$C$200=MONTH($G$1),ROW($3:$199)),ROWS($1:14)),MATCH(B$1,'Base de données'!$E$2:$T$2,0)+4),"") ->  | C15: =IFERROR(INDEX('Base de données'!$A$1:$T$200,SMALL(IF('Base de données'!$C$3:$C$200=MONTH($G$1),ROW($3:$199)),ROWS($1:14)),MATCH(C$1,'Base de données'!$E$2:$T$2,0)+4),"") ->  | D15: =IFERROR(INDEX('Base de données'!$A$1:$T$200,SMALL(IF('Base de données'!$C$3:$C$200=MONTH($G$1),ROW($3:$199)),ROWS($1:14)),MATCH(D$1,'Base de données'!$E$2:$T$2,0)+4),"") ->  | E15: =IFERROR(INDEX('Base de données'!$A$1:$T$200,SMALL(IF('Base de données'!$C$3:$C$200=MONTH($G$1),ROW($3:$199)),ROWS($1:14)),MATCH(E$1,'Base de données'!$E$2:$T$2,0)+4),"") ->  | F15: =IFERROR(INDEX('Base de données'!$A$1:$T$200,SMALL(IF('Base de données'!$C$3:$C$200=MONTH($G$1),ROW($3:$199)),ROWS($1:14)),MATCH(F$1,'Base de données'!$E$2:$T$2,0)+4),"") ->  | G15: 2024 | H15: surdimension | I15: U.S 1 | J15: U.S 3 | K15: morceau | M15: 2016-03-08 | N15: 0 | O15: 0 | P15: 0 | Q15: 0 | R15: 0 | S15: 0 | T15: 0 | U15: 0 | V15: 0 | W15: 0 | X15: 0 | Y15: 0 | Z15: 0
A16: =IFERROR(INDEX('Base de données'!$A$1:$T$200,SMALL(IF('Base de données'!$C$3:$C$200=MONTH($G$1),ROW($3:$199)),ROWS($1:15)),MATCH(A$1,'Base de données'!$E$2:$T$2,0)+4),"") ->  | B16: =IFERROR(INDEX('Base de données'!$A$1:$T$200,SMALL(IF('Base de données'!$C$3:$C$200=MONTH($G$1),ROW($3:$199)),ROWS($1:15)),MATCH(B$1,'Base de données'!$E$2:$T$2,0)+4),"") ->  | C16: =IFERROR(INDEX('Base de données'!$A$1:$T$200,SMALL(IF('Base de données'!$C$3:$C$200=MONTH($G$1),ROW($3:$199)),ROWS($1:15)),MATCH(C$1,'Base de données'!$E$2:$T$2,0)+4),"") ->  | D16: =IFERROR(INDEX('Base de données'!$A$1:$T$200,SMALL(IF('Base de données'!$C$3:$C$200=MONTH($G$1),ROW($3:$199)),ROWS($1:15)),MATCH(D$1,'Base de données'!$E$2:$T$2,0)+4),"") ->  | E16: =IFERROR(INDEX('Base de données'!$A$1:$T$200,SMALL(IF('Base de données'!$C$3:$C$200=MONTH($G$1),ROW($3:$199)),ROWS($1:15)),MATCH(E$1,'Base de données'!$E$2:$T$2,0)+4),"") ->  | F16: =IFERROR(INDEX('Base de données'!$A$1:$T$200,SMALL(IF('Base de données'!$C$3:$C$200=MONTH($G$1),ROW($3:$199)),ROWS($1:15)),MATCH(F$1,'Base de données'!$E$2:$T$2,0)+4),"") ->  | G16: =SUMIF(C2:C46,"6",E2:E46) -> 0 | H16: =SUMIF(C2:C46,"7",E2:E46) -> 0 | I16: =SUMIFS(E2:E46,C2:C46,"8",D2:D46,"0") -> 0 | J16: =SUMIFS(E2:E46,C2:C46,"8",D2:D46,"U.S 3") -> 0 | K16: =SUMIF(C2:C46,"9",E2:E46) -> 0 | L16: =SUMIF(C2:C46,"10",E2:E46) -> 0 | M16: 2016-03-09 | N16: 0 | O16: 0 | P16: 0 | Q16: 0 | R16: 0 | S16: 0 | T16: 0 | U16: 0 | V16: 0 | W16: 0 | X16: 0 | Y16: 0 | Z16: 0
A17: =IFERROR(INDEX('Base de données'!$A$1:$T$200,SMALL(IF('Base de données'!$C$3:$C$200=MONTH($G$1),ROW($3:$199)),ROWS($1:16)),MATCH(A$1,'Base de données'!$E$2:$T$2,0)+4),"") ->  | B17: =IFERROR(INDEX('Base de données'!$A$1:$T$200,SMALL(IF('Base de données'!$C$3:$C$200=MONTH($G$1),ROW($3:$199)),ROWS($1:16)),MATCH(B$1,'Base de données'!$E$2:$T$2,0)+4),"") ->  | C17: =IFERROR(INDEX('Base de données'!$A$1:$T$200,SMALL(IF('Base de données'!$C$3:$C$200=MONTH($G$1),ROW($3:$199)),ROWS($1:16)),MATCH(C$1,'Base de données'!$E$2:$T$2,0)+4),"") ->  | D17: =IFERROR(INDEX('Base de données'!$A$1:$T$200,SMALL(IF('Base de données'!$C$3:$C$200=MONTH($G$1),ROW($3:$199)),ROWS($1:16)),MATCH(D$1,'Base de données'!$E$2:$T$2,0)+4),"") ->  | E17: =IFERROR(INDEX('Base de données'!$A$1:$T$200,SMALL(IF('Base de données'!$C$3:$C$200=MONTH($G$1),ROW($3:$199)),ROWS($1:16)),MATCH(E$1,'Base de données'!$E$2:$T$2,0)+4),"") ->  | F17: =IFERROR(INDEX('Base de données'!$A$1:$T$200,SMALL(IF('Base de données'!$C$3:$C$200=MONTH($G$1),ROW($3:$199)),ROWS($1:16)),MATCH(F$1,'Base de données'!$E$2:$T$2,0)+4),"") ->  | I17: U.S 8 | J17: Total | M17: 2016-03-10 | N17: 0 | O17: 0 | P17: 0 | Q17: 0 | R17: 0 | S17: 0 | T17: 0 | U17: 0 | V17: 0 | W17: 0 | X17: 0 | Y17: 0 | Z17: 0
A18: =IFERROR(INDEX('Base de données'!$A$1:$T$200,SMALL(IF('Base de données'!$C$3:$C$200=MONTH($G$1),ROW($3:$199)),ROWS($1:17)),MATCH(A$1,'Base de données'!$E$2:$T$2,0)+4),"") ->  | B18: =IFERROR(INDEX('Base de données'!$A$1:$T$200,SMALL(IF('Base de données'!$C$3:$C$200=MONTH($G$1),ROW($3:$199)),ROWS($1:17)),MATCH(B$1,'Base de données'!$E$2:$T$2,0)+4),"") ->  | C18: =IFERROR(INDEX('Base de données'!$A$1:$T$200,SMALL(IF('Base de données'!$C$3:$C$200=MONTH($G$1),ROW($3:$199)),ROWS($1:17)),MATCH(C$1,'Base de données'!$E$2:$T$2,0)+4),"") ->  | D18: =IFERROR(INDEX('Base de données'!$A$1:$T$200,SMALL(IF('Base de données'!$C$3:$C$200=MONTH($G$1),ROW($3:$199)),ROWS($1:17)),MATCH(D$1,'Base de données'!$E$2:$T$2,0)+4),"") ->  | E18: =IFERROR(INDEX('Base de données'!$A$1:$T$200,SMALL(IF('Base de données'!$C$3:$C$200=MONTH($G$1),ROW($3:$199)),ROWS($1:17)),MATCH(E$1,'Base de données'!$E$2:$T$2,0)+4),"") ->  | F18: =IFERROR(INDEX('Base de données'!$A$1:$T$200,SMALL(IF('Base de données'!$C$3:$C$200=MONTH($G$1),ROW($3:$199)),ROWS($1:17)),MATCH(F$1,'Base de données'!$E$2:$T$2,0)+4),"") ->  | I18: =SUMIFS(E2:E46,C2:C46,"8",D2:D46,"U.S 8") -> 0 | J18: =SUM(I16+J16+I18) -> 0 | M18: 2016-03-11 | N18: 0 | O18: 0 | P18: 0 | Q18: 0 | R18: 0 | S18: 0 | T18: 0 | U18: 0 | V18: 0 | W18: 0 | X18: 0 | Y18: 0 | Z18: 0
A19: =IFERROR(INDEX('Base de données'!$A$1:$T$200,SMALL(IF('Base de données'!$C$3:$C$200=MONTH($G$1),ROW($3:$199)),ROWS($1:18)),MATCH(A$1,'Base de données'!$E$2:$T$2,0)+4),"") ->  | B19: =IFERROR(INDEX('Base de données'!$A$1:$T$200,SMALL(IF('Base de données'!$C$3:$C$200=MONTH($G$1),ROW($3:$199)),ROWS($1:18)),MATCH(B$1,'Base de données'!$E$2:$T$2,0)+4),"") ->  | C19: =IFERROR(INDEX('Base de données'!$A$1:$T$200,SMALL(IF('Base de données'!$C$3:$C$200=MONTH($G$1),ROW($3:$199)),ROWS($1:18)),MATCH(C$1,'Base de données'!$E$2:$T$2,0)+4),"") ->  | D19: =IFERROR(INDEX('Base de données'!$A$1:$T$200,SMALL(IF('Base de données'!$C$3:$C$200=MONTH($G$1),ROW($3:$199)),ROWS($1:18)),MATCH(D$1,'Base de données'!$E$2:$T$2,0)+4),"") ->  | E19: =IFERROR(INDEX('Base de données'!$A$1:$T$200,SMALL(IF('Base de données'!$C$3:$C$200=MONTH($G$1),ROW($3:$199)),ROWS($1:18)),MATCH(E$1,'Base de données'!$E$2:$T$2,0)+4),"") ->  | F19: =IFERROR(INDEX('Base de données'!$A$1:$T$200,SMALL(IF('Base de données'!$C$3:$C$200=MONTH($G$1),ROW($3:$199)),ROWS($1:18)),MATCH(F$1,'Base de données'!$E$2:$T$2,0)+4),"") ->  | M19: 2016-03-12 | N19: 0 | O19: 0 | P19: 0 | Q19: 0 | R19: 0 | S19: 0 | T19: 0 | U19: 0 | V19: 0 | W19: 0 | X19: 0 | Y19: 0 | Z19: 0
A20: =IFERROR(INDEX('Base de données'!$A$1:$T$200,SMALL(IF('Base de données'!$C$3:$C$200=MONTH($G$1),ROW($3:$199)),ROWS($1:19)),MATCH(A$1,'Base de données'!$E$2:$T$2,0)+4),"") ->  | B20: =IFERROR(INDEX('Base de données'!$A$1:$T$200,SMALL(IF('Base de données'!$C$3:$C$200=MONTH($G$1),ROW($3:$199)),ROWS($1:19)),MATCH(B$1,'Base de données'!$E$2:$T$2,0)+4),"") ->  | C20: =IFERROR(INDEX('Base de données'!$A$1:$T$200,SMALL(IF('Base de données'!$C$3:$C$200=MONTH($G$1),ROW($3:$199)),ROWS($1:19)),MATCH(C$1,'Base de données'!$E$2:$T$2,0)+4),"") ->  | D20: =IFERROR(INDEX('Base de données'!$A$1:$T$200,SMALL(IF('Base de données'!$C$3:$C$200=MONTH($G$1),ROW($3:$199)),ROWS($1:19)),MATCH(D$1,'Base de données'!$E$2:$T$2,0)+4),"") ->  | E20: =IFERROR(INDEX('Base de données'!$A$1:$T$200,SMALL(IF('Base de données'!$C$3:$C$200=MONTH($G$1),ROW($3:$199)),ROWS($1:19)),MATCH(E$1,'Base de données'!$E$2:$T$2,0)+4),"") ->  | F20: =IFERROR(INDEX('Base de données'!$A$1:$T$200,SMALL(IF('Base de données'!$C$3:$C$200=MONTH($G$1),ROW($3:$199)),ROWS($1:19)),MATCH(F$1,'Base de données'!$E$2:$T$2,0)+4),"") ->  | M20: 2016-03-13 | N20: 0 | O20: 0 | P20: 0 | Q20: 0 | R20: 0 | S20: 0 | T20: 0 | U20: 0 | V20: 0 | W20: 0 | X20: 0 | Y20: 0 | Z20: 0
A21: =IFERROR(INDEX('Base de données'!$A$1:$T$200,SMALL(IF('Base de données'!$C$3:$C$200=MONTH($G$1),ROW($3:$199)),ROWS($1:20)),MATCH(A$1,'Base de données'!$E$2:$T$2,0)+4),"") ->  | B21: =IFERROR(INDEX('Base de données'!$A$1:$T$200,SMALL(IF('Base de données'!$C$3:$C$200=MONTH($G$1),ROW($3:$199)),ROWS($1:20)),MATCH(B$1,'Base de données'!$E$2:$T$2,0)+4),"") ->  | C21: =IFERROR(INDEX('Base de données'!$A$1:$T$200,SMALL(IF('Base de données'!$C$3:$C$200=MONTH($G$1),ROW($3:$199)),ROWS($1:20)),MATCH(C$1,'Base de données'!$E$2:$T$2,0)+4),"") ->  | D21: =IFERROR(INDEX('Base de données'!$A$1:$T$200,SMALL(IF('Base de données'!$C$3:$C$200=MONTH($G$1),ROW($3:$199)),ROWS($1:20)),MATCH(D$1,'Base de données'!$E$2:$T$2,0)+4),"") ->  | E21: =IFERROR(INDEX('Base de données'!$A$1:$T$200,SMALL(IF('Base de données'!$C$3:$C$200=MONTH($G$1),ROW($3:$199)),ROWS($1:20)),MATCH(E$1,'Base de données'!$E$2:$T$2,0)+4),"") ->  | F21: =IFERROR(INDEX('Base de données'!$A$1:$T$200,SMALL(IF('Base de données'!$C$3:$C$200=MONTH($G$1),ROW($3:$199)),ROWS($1:20)),MATCH(F$1,'Base de données'!$E$2:$T$2,0)+4),"") ->  | M21: 2016-03-14 | N21: 0 | O21: 0 | P21: 0 | Q21: 0 | R21: 0 | S21: 0 | T21: 0 | U21: 0 | V21: 0 | W21: 0 | X21: 0 | Y21: 0 | Z21: 0
A22: =IFERROR(INDEX('Base de données'!$A$1:$T$200,SMALL(IF('Base de données'!$C$3:$C$200=MONTH($G$1),ROW($3:$199)),ROWS($1:21)),MATCH(A$1,'Base de données'!$E$2:$T$2,0)+4),"") ->  | B22: =IFERROR(INDEX('Base de données'!$A$1:$T$200,SMALL(IF('Base de données'!$C$3:$C$200=MONTH($G$1),ROW($3:$199)),ROWS($1:21)),MATCH(B$1,'Base de données'!$E$2:$T$2,0)+4),"") ->  | C22: =IFERROR(INDEX('Base de données'!$A$1:$T$200,SMALL(IF('Base de données'!$C$3:$C$200=MONTH($G$1),ROW($3:$199)),ROWS($1:21)),MATCH(C$1,'Base de données'!$E$2:$T$2,0)+4),"") ->  | D22: =IFERROR(INDEX('Base de données'!$A$1:$T$200,SMALL(IF('Base de données'!$C$3:$C$200=MONTH($G$1),ROW($3:$199)),ROWS($1:21)),MATCH(D$1,'Base de données'!$E$2:$T$2,0)+4),"") ->  | E22: =IFERROR(INDEX('Base de données'!$A$1:$T$200,SMALL(IF('Base de données'!$C$3:$C$200=MONTH($G$1),ROW($3:$199)),ROWS($1:21)),MATCH(E$1,'Base de données'!$E$2:$T$2,0)+4),"") ->  | F22: =IFERROR(INDEX('Base de données'!$A$1:$T$200,SMALL(IF('Base de données'!$C$3:$C$200=MONTH($G$1),ROW($3:$199)),ROWS($1:21)),MATCH(F$1,'Base de données'!$E$2:$T$2,0)+4),"") ->  | M22: 2016-03-15 | N22: 0 | O22: 0 | P22: 0 | Q22: 0 | R22: 0 | S22: 0 | T22: 0 | U22: 0 | V22: 0 | W22: 0 | X22: 0 | Y22: 0 | Z22: 0
A23: =IFERROR(INDEX('Base de données'!$A$1:$T$200,SMALL(IF('Base de données'!$C$3:$C$200=MONTH($G$1),ROW($3:$199)),ROWS($1:22)),MATCH(A$1,'Base de données'!$E$2:$T$2,0)+4),"") ->  | B23: =IFERROR(INDEX('Base de données'!$A$1:$T$200,SMALL(IF('Base de données'!$C$3:$C$200=MONTH($G$1),ROW($3:$199)),ROWS($1:22)),MATCH(B$1,'Base de données'!$E$2:$T$2,0)+4),"") ->  | C23: =IFERROR(INDEX('Base de données'!$A$1:$T$200,SMALL(IF('Base de données'!$C$3:$C$200=MONTH($G$1),ROW($3:$199)),ROWS($1:22)),MATCH(C$1,'Base de données'!$E$2:$T$2,0)+4),"") ->  | D23: =IFERROR(INDEX('Base de données'!$A$1:$T$200,SMALL(IF('Base de données'!$C$3:$C$200=MONTH($G$1),ROW($3:$199)),ROWS($1:22)),MATCH(D$1,'Base de données'!$E$2:$T$2,0)+4),"") ->  | E23: =IFERROR(INDEX('Base de données'!$A$1:$T$200,SMALL(IF('Base de données'!$C$3:$C$200=MONTH($G$1),ROW($3:$199)),ROWS($1:22)),MATCH(E$1,'Base de données'!$E$2:$T$2,0)+4),"") ->  | F23: =IFERROR(INDEX('Base de données'!$A$1:$T$200,SMALL(IF('Base de données'!$C$3:$C$200=MONTH($G$1),ROW($3:$199)),ROWS($1:22)),MATCH(F$1,'Base de données'!$E$2:$T$2,0)+4),"") ->  | M23: 2016-03-16 | N23: 0 | O23: 0 | P23: 0 | Q23: 0 | R23: 0 | S23: 0 | T23: 0 | U23: 0 | V23: 0 | W23: 0 | X23: 0 | Y23: 0 | Z23: 0
A24: =IFERROR(INDEX('Base de données'!$A$1:$T$200,SMALL(IF('Base de données'!$C$3:$C$200=MONTH($G$1),ROW($3:$199)),ROWS($1:23)),MATCH(A$1,'Base de données'!$E$2:$T$2,0)+4),"") ->  | B24: =IFERROR(INDEX('Base de données'!$A$1:$T$200,SMALL(IF('Base de données'!$C$3:$C$200=MONTH($G$1),ROW($3:$199)),ROWS($1:23)),MATCH(B$1,'Base de données'!$E$2:$T$2,0)+4),"") ->  | C24: =IFERROR(INDEX('Base de données'!$A$1:$T$200,SMALL(IF('Base de données'!$C$3:$C$200=MONTH($G$1),ROW($3:$199)),ROWS($1:23)),MATCH(C$1,'Base de données'!$E$2:$T$2,0)+4),"") ->  | D24: =IFERROR(INDEX('Base de données'!$A$1:$T$200,SMALL(IF('Base de données'!$C$3:$C$200=MONTH($G$1),ROW($3:$199)),ROWS($1:23)),MATCH(D$1,'Base de données'!$E$2:$T$2,0)+4),"") ->  | E24: =IFERROR(INDEX('Base de données'!$A$1:$T$200,SMALL(IF('Base de données'!$C$3:$C$200=MONTH($G$1),ROW($3:$199)),ROWS($1:23)),MATCH(E$1,'Base de données'!$E$2:$T$2,0)+4),"") ->  | F24: =IFERROR(INDEX('Base de données'!$A$1:$T$200,SMALL(IF('Base de données'!$C$3:$C$200=MONTH($G$1),ROW($3:$199)),ROWS($1:23)),MATCH(F$1,'Base de données'!$E$2:$T$2,0)+4),"") ->  | M24: 2016-03-17 | N24: 0 | O24: 0 | P24: 0 | Q24: 0 | R24: 0 | S24: 0 | T24: 0 | U24: 0 | V24: 0 | W24: 0 | X24: 0 | Y24: 0 | Z24: 0
A25: =IFERROR(INDEX('Base de données'!$A$1:$T$200,SMALL(IF('Base de données'!$C$3:$C$200=MONTH($G$1),ROW($3:$199)),ROWS($1:24)),MATCH(A$1,'Base de données'!$E$2:$T$2,0)+4),"") ->  | B25: =IFERROR(INDEX('Base de données'!$A$1:$T$200,SMALL(IF('Base de données'!$C$3:$C$200=MONTH($G$1),ROW($3:$199)),ROWS($1:24)),MATCH(B$1,'Base de données'!$E$2:$T$2,0)+4),"") ->  | C25: =IFERROR(INDEX('Base de données'!$A$1:$T$200,SMALL(IF('Base de données'!$C$3:$C$200=MONTH($G$1),ROW($3:$199)),ROWS($1:24)),MATCH(C$1,'Base de données'!$E$2:$T$2,0)+4),"") ->  | D25: =IFERROR(INDEX('Base de données'!$A$1:$T$200,SMALL(IF('Base de données'!$C$3:$C$200=MONTH($G$1),ROW($3:$199)),ROWS($1:24)),MATCH(D$1,'Base de données'!$E$2:$T$2,0)+4),"") ->  | E25: =IFERROR(INDEX('Base de données'!$A$1:$T$200,SMALL(IF('Base de données'!$C$3:$C$200=MONTH($G$1),ROW($3:$199)),ROWS($1:24)),MATCH(E$1,'Base de données'!$E$2:$T$2,0)+4),"") ->  | F25: =IFERROR(INDEX('Base de données'!$A$1:$T$200,SMALL(IF('Base de données'!$C$3:$C$200=MONTH($G$1),ROW($3:$199)),ROWS($1:24)),MATCH(F$1,'Base de données'!$E$2:$T$2,0)+4),"") ->  | M25: 2016-03-18 | N25: 0 | O25: 0 | P25: 0 | Q25: 0 | R25: 0 | S25: 0 | T25: 0 | U25: 0 | V25: 0 | W25: 0 | X25: 0 | Y25: 0 | Z25: 0
A26: =IFERROR(INDEX('Base de données'!$A$1:$T$200,SMALL(IF('Base de données'!$C$3:$C$200=MONTH($G$1),ROW($3:$199)),ROWS($1:25)),MATCH(A$1,'Base de données'!$E$2:$T$2,0)+4),"") ->  | B26: =IFERROR(INDEX('Base de données'!$A$1:$T$200,SMALL(IF('Base de données'!$C$3:$C$200=MONTH($G$1),ROW($3:$199)),ROWS($1:25)),MATCH(B$1,'Base de données'!$E$2:$T$2,0)+4),"") ->  | C26: =IFERROR(INDEX('Base de données'!$A$1:$T$200,SMALL(IF('Base de données'!$C$3:$C$200=MONTH($G$1),ROW($3:$199)),ROWS($1:25)),MATCH(C$1,'Base de données'!$E$2:$T$2,0)+4),"") ->  | D26: =IFERROR(INDEX('Base de données'!$A$1:$T$200,SMALL(IF('Base de données'!$C$3:$C$200=MONTH($G$1),ROW($3:$199)),ROWS($1:25)),MATCH(D$1,'Base de données'!$E$2:$T$2,0)+4),"") ->  | E26: =IFERROR(INDEX('Base de données'!$A$1:$T$200,SMALL(IF('Base de données'!$C$3:$C$200=MONTH($G$1),ROW($3:$199)),ROWS($1:25)),MATCH(E$1,'Base de données'!$E$2:$T$2,0)+4),"") ->  | F26: =IFERROR(INDEX('Base de données'!$A$1:$T$200,SMALL(IF('Base de données'!$C$3:$C$200=MONTH($G$1),ROW($3:$199)),ROWS($1:25)),MATCH(F$1,'Base de données'!$E$2:$T$2,0)+4),"") ->  | M26: 2016-03-19 | N26: 0 | O26: 0 | P26: 0 | Q26: 0 | R26: 0 | S26: 0 | T26: 0 | U26: 0 | V26: 0 | W26: 0 | X26: 0 | Y26: 0 | Z26: 0
A27: =IFERROR(INDEX('Base de données'!$A$1:$T$200,SMALL(IF('Base de données'!$C$3:$C$200=MONTH($G$1),ROW($3:$199)),ROWS($1:26)),MATCH(A$1,'Base de données'!$E$2:$T$2,0)+4),"") ->  | B27: =IFERROR(INDEX('Base de données'!$A$1:$T$200,SMALL(IF('Base de données'!$C$3:$C$200=MONTH($G$1),ROW($3:$199)),ROWS($1:26)),MATCH(B$1,'Base de données'!$E$2:$T$2,0)+4),"") ->  | C27: =IFERROR(INDEX('Base de données'!$A$1:$T$200,SMALL(IF('Base de données'!$C$3:$C$200=MONTH($G$1),ROW($3:$199)),ROWS($1:26)),MATCH(C$1,'Base de données'!$E$2:$T$2,0)+4),"") ->  | D27: =IFERROR(INDEX('Base de données'!$A$1:$T$200,SMALL(IF('Base de données'!$C$3:$C$200=MONTH($G$1),ROW($3:$199)),ROWS($1:26)),MATCH(D$1,'Base de données'!$E$2:$T$2,0)+4),"") ->  | E27: =IFERROR(INDEX('Base de données'!$A$1:$T$200,SMALL(IF('Base de données'!$C$3:$C$200=MONTH($G$1),ROW($3:$199)),ROWS($1:26)),MATCH(E$1,'Base de données'!$E$2:$T$2,0)+4),"") ->  | F27: =IFERROR(INDEX('Base de données'!$A$1:$T$200,SMALL(IF('Base de données'!$C$3:$C$200=MONTH($G$1),ROW($3:$199)),ROWS($1:26)),MATCH(F$1,'Base de données'!$E$2:$T$2,0)+4),"") ->  | M27: 2016-03-20 | N27: 0 | O27: 0 | P27: 0 | Q27: 0 | R27: 0 | S27: 0 | T27: 0 | U27: 0 | V27: 0 | W27: 0 | X27: 0 | Y27: 0 | Z27: 0
A28: =IFERROR(INDEX('Base de données'!$A$1:$T$200,SMALL(IF('Base de données'!$C$3:$C$200=MONTH($G$1),ROW($3:$199)),ROWS($1:27)),MATCH(A$1,'Base de données'!$E$2:$T$2,0)+4),"") ->  | B28: =IFERROR(INDEX('Base de données'!$A$1:$T$200,SMALL(IF('Base de données'!$C$3:$C$200=MONTH($G$1),ROW($3:$199)),ROWS($1:27)),MATCH(B$1,'Base de données'!$E$2:$T$2,0)+4),"") ->  | C28: =IFERROR(INDEX('Base de données'!$A$1:$T$200,SMALL(IF('Base de données'!$C$3:$C$200=MONTH($G$1),ROW($3:$199)),ROWS($1:27)),MATCH(C$1,'Base de données'!$E$2:$T$2,0)+4),"") ->  | D28: =IFERROR(INDEX('Base de données'!$A$1:$T$200,SMALL(IF('Base de données'!$C$3:$C$200=MONTH($G$1),ROW($3:$199)),ROWS($1:27)),MATCH(D$1,'Base de données'!$E$2:$T$2,0)+4),"") ->  | E28: =IFERROR(INDEX('Base de données'!$A$1:$T$200,SMALL(IF('Base de données'!$C$3:$C$200=MONTH($G$1),ROW($3:$199)),ROWS($1:27)),MATCH(E$1,'Base de données'!$E$2:$T$2,0)+4),"") ->  | F28: =IFERROR(INDEX('Base de données'!$A$1:$T$200,SMALL(IF('Base de données'!$C$3:$C$200=MONTH($G$1),ROW($3:$199)),ROWS($1:27)),MATCH(F$1,'Base de données'!$E$2:$T$2,0)+4),"") ->  | M28: 2016-03-21 | N28: 0 | O28: 0 | P28: 0 | Q28: 0 | R28: 0 | S28: 0 | T28: 0 | U28: 0 | V28: 0 | W28: 0 | X28: 0 | Y28: 0 | Z28: 0
A29: =IFERROR(INDEX('Base de données'!$A$1:$T$200,SMALL(IF('Base de données'!$C$3:$C$200=MONTH($G$1),ROW($3:$199)),ROWS($1:28)),MATCH(A$1,'Base de données'!$E$2:$T$2,0)+4),"") ->  | B29: =IFERROR(INDEX('Base de données'!$A$1:$T$200,SMALL(IF('Base de données'!$C$3:$C$200=MONTH($G$1),ROW($3:$199)),ROWS($1:28)),MATCH(B$1,'Base de données'!$E$2:$T$2,0)+4),"") ->  | C29: =IFERROR(INDEX('Base de données'!$A$1:$T$200,SMALL(IF('Base de données'!$C$3:$C$200=MONTH($G$1),ROW($3:$199)),ROWS($1:28)),MATCH(C$1,'Base de données'!$E$2:$T$2,0)+4),"") ->  | D29: =IFERROR(INDEX('Base de données'!$A$1:$T$200,SMALL(IF('Base de données'!$C$3:$C$200=MONTH($G$1),ROW($3:$199)),ROWS($1:28)),MATCH(D$1,'Base de données'!$E$2:$T$2,0)+4),"") ->  | E29: =IFERROR(INDEX('Base de données'!$A$1:$T$200,SMALL(IF('Base de données'!$C$3:$C$200=MONTH($G$1),ROW($3:$199)),ROWS($1:28)),MATCH(E$1,'Base de données'!$E$2:$T$2,0)+4),"") ->  | F29: =IFERROR(INDEX('Base de données'!$A$1:$T$200,SMALL(IF('Base de données'!$C$3:$C$200=MONTH($G$1),ROW($3:$199)),ROWS($1:28)),MATCH(F$1,'Base de données'!$E$2:$T$2,0)+4),"") ->  | M29: 2016-03-22 | N29: 0 | O29: 0 | P29: 0 | Q29: 0 | R29: 0 | S29: 0 | T29: 0 | U29: 0 | V29: 0 | W29: 0 | X29: 0 | Y29: 0 | Z29: 0
A30: =IFERROR(INDEX('Base de données'!$A$1:$T$200,SMALL(IF('Base de données'!$C$3:$C$200=MONTH($G$1),ROW($3:$199)),ROWS($1:29)),MATCH(A$1,'Base de données'!$E$2:$T$2,0)+4),"") ->  | B30: =IFERROR(INDEX('Base de données'!$A$1:$T$200,SMALL(IF('Base de données'!$C$3:$C$200=MONTH($G$1),ROW($3:$199)),ROWS($1:29)),MATCH(B$1,'Base de données'!$E$2:$T$2,0)+4),"") ->  | C30: =IFERROR(INDEX('Base de données'!$A$1:$T$200,SMALL(IF('Base de données'!$C$3:$C$200=MONTH($G$1),ROW($3:$199)),ROWS($1:29)),MATCH(C$1,'Base de données'!$E$2:$T$2,0)+4),"") ->  | D30: =IFERROR(INDEX('Base de données'!$A$1:$T$200,SMALL(IF('Base de données'!$C$3:$C$200=MONTH($G$1),ROW($3:$199)),ROWS($1:29)),MATCH(D$1,'Base de données'!$E$2:$T$2,0)+4),"") ->  | E30: =IFERROR(INDEX('Base de données'!$A$1:$T$200,SMALL(IF('Base de données'!$C$3:$C$200=MONTH($G$1),ROW($3:$199)),ROWS($1:29)),MATCH(E$1,'Base de données'!$E$2:$T$2,0)+4),"") ->  | F30: =IFERROR(INDEX('Base de données'!$A$1:$T$200,SMALL(IF('Base de données'!$C$3:$C$200=MONTH($G$1),ROW($3:$199)),ROWS($1:29)),MATCH(F$1,'Base de données'!$E$2:$T$2,0)+4),"") ->  | M30: 2016-03-23 | N30: 0 | O30: 0 | P30: 0 | Q30: 0 | R30: 0 | S30: 0 | T30: 0 | U30: 0 | V30: 0 | W30: 0 | X30: 0 | Y30: 0 | Z30: 0
A31: =IFERROR(INDEX('Base de données'!$A$1:$T$200,SMALL(IF('Base de données'!$C$3:$C$200=MONTH($G$1),ROW($3:$199)),ROWS($1:30)),MATCH(A$1,'Base de données'!$E$2:$T$2,0)+4),"") ->  | B31: =IFERROR(INDEX('Base de données'!$A$1:$T$200,SMALL(IF('Base de données'!$C$3:$C$200=MONTH($G$1),ROW($3:$199)),ROWS($1:30)),MATCH(B$1,'Base de données'!$E$2:$T$2,0)+4),"") ->  | C31: =IFERROR(INDEX('Base de données'!$A$1:$T$200,SMALL(IF('Base de données'!$C$3:$C$200=MONTH($G$1),ROW($3:$199)),ROWS($1:30)),MATCH(C$1,'Base de données'!$E$2:$T$2,0)+4),"") ->  | D31: =IFERROR(INDEX('Base de données'!$A$1:$T$200,SMALL(IF('Base de données'!$C$3:$C$200=MONTH($G$1),ROW($3:$199)),ROWS($1:30)),MATCH(D$1,'Base de données'!$E$2:$T$2,0)+4),"") ->  | E31: =IFERROR(INDEX('Base de données'!$A$1:$T$200,SMALL(IF('Base de données'!$C$3:$C$200=MONTH($G$1),ROW($3:$199)),ROWS($1:30)),MATCH(E$1,'Base de données'!$E$2:$T$2,0)+4),"") ->  | F31: =IFERROR(INDEX('Base de données'!$A$1:$T$200,SMALL(IF('Base de données'!$C$3:$C$200=MONTH($G$1),ROW($3:$199)),ROWS($1:30)),MATCH(F$1,'Base de données'!$E$2:$T$2,0)+4),"") ->  | M31: 2016-03-24 | N31: 0 | O31: 0 | P31: 0 | Q31: 0 | R31: 0 | S31: 0 | T31: 0 | U31: 0 | V31: 0 | W31: 0 | X31: 0 | Y31: 0 | Z31: 0
A32: =IFERROR(INDEX('Base de données'!$A$1:$T$200,SMALL(IF('Base de données'!$C$3:$C$200=MONTH($G$1),ROW($3:$199)),ROWS($1:31)),MATCH(A$1,'Base de données'!$E$2:$T$2,0)+4),"") ->  | B32: =IFERROR(INDEX('Base de données'!$A$1:$T$200,SMALL(IF('Base de données'!$C$3:$C$200=MONTH($G$1),ROW($3:$199)),ROWS($1:31)),MATCH(B$1,'Base de données'!$E$2:$T$2,0)+4),"") ->  | C32: =IFERROR(INDEX('Base de données'!$A$1:$T$200,SMALL(IF('Base de données'!$C$3:$C$200=MONTH($G$1),ROW($3:$199)),ROWS($1:31)),MATCH(C$1,'Base de données'!$E$2:$T$2,0)+4),"") ->  | D32: =IFERROR(INDEX('Base de données'!$A$1:$T$200,SMALL(IF('Base de données'!$C$3:$C$200=MONTH($G$1),ROW($3:$199)),ROWS($1:31)),MATCH(D$1,'Base de données'!$E$2:$T$2,0)+4),"") ->  | E32: =IFERROR(INDEX('Base de données'!$A$1:$T$200,SMALL(IF('Base de données'!$C$3:$C$200=MONTH($G$1),ROW($3:$199)),ROWS($1:31)),MATCH(E$1,'Base de données'!$E$2:$T$2,0)+4),"") ->  | F32: =IFERROR(INDEX('Base de données'!$A$1:$T$200,SMALL(IF('Base de données'!$C$3:$C$200=MONTH($G$1),ROW($3:$199)),ROWS($1:31)),MATCH(F$1,'Base de données'!$E$2:$T$2,0)+4),"") ->  | M32: 2016-03-25 | N32: 0 | O32: 0 | P32: 0 | Q32: 0 | R32: 0 | S32: 0 | T32: 0 | U32: 0 | V32: 0 | W32: 0 | X32: 0 | Y32: 0 | Z32: 0
A33: =IFERROR(INDEX('Base de données'!$A$1:$T$200,SMALL(IF('Base de données'!$C$3:$C$200=MONTH($G$1),ROW($3:$199)),ROWS($1:32)),MATCH(A$1,'Base de données'!$E$2:$T$2,0)+4),"") ->  | B33: =IFERROR(INDEX('Base de données'!$A$1:$T$200,SMALL(IF('Base de données'!$C$3:$C$200=MONTH($G$1),ROW($3:$199)),ROWS($1:32)),MATCH(B$1,'Base de données'!$E$2:$T$2,0)+4),"") ->  | C33: =IFERROR(INDEX('Base de données'!$A$1:$T$200,SMALL(IF('Base de données'!$C$3:$C$200=MONTH($G$1),ROW($3:$199)),ROWS($1:32)),MATCH(C$1,'Base de données'!$E$2:$T$2,0)+4),"") ->  | D33: =IFERROR(INDEX('Base de données'!$A$1:$T$200,SMALL(IF('Base de données'!$C$3:$C$200=MONTH($G$1),ROW($3:$199)),ROWS($1:32)),MATCH(D$1,'Base de données'!$E$2:$T$2,0)+4),"") ->  | E33: =IFERROR(INDEX('Base de données'!$A$1:$T$200,SMALL(IF('Base de données'!$C$3:$C$200=MONTH($G$1),ROW($3:$199)),ROWS($1:32)),MATCH(E$1,'Base de données'!$E$2:$T$2,0)+4),"") ->  | F33: =IFERROR(INDEX('Base de données'!$A$1:$T$200,SMALL(IF('Base de données'!$C$3:$C$200=MONTH($G$1),ROW($3:$199)),ROWS($1:32)),MATCH(F$1,'Base de données'!$E$2:$T$2,0)+4),"") ->  | M33: 2016-03-26 | N33: 0 | O33: 0 | P33: 0 | Q33: 0 | R33: 0 | S33: 0 | T33: 0 | U33: 0 | V33: 0 | W33: 0 | X33: 0 | Y33: 0 | Z33: 0
A34: =IFERROR(INDEX('Base de données'!$A$1:$T$200,SMALL(IF('Base de données'!$C$3:$C$200=MONTH($G$1),ROW($3:$199)),ROWS($1:33)),MATCH(A$1,'Base de données'!$E$2:$T$2,0)+4),"") ->  | B34: =IFERROR(INDEX('Base de données'!$A$1:$T$200,SMALL(IF('Base de données'!$C$3:$C$200=MONTH($G$1),ROW($3:$199)),ROWS($1:33)),MATCH(B$1,'Base de données'!$E$2:$T$2,0)+4),"") ->  | C34: =IFERROR(INDEX('Base de données'!$A$1:$T$200,SMALL(IF('Base de données'!$C$3:$C$200=MONTH($G$1),ROW($3:$199)),ROWS($1:33)),MATCH(C$1,'Base de données'!$E$2:$T$2,0)+4),"") ->  | D34: =IFERROR(INDEX('Base de données'!$A$1:$T$200,SMALL(IF('Base de données'!$C$3:$C$200=MONTH($G$1),ROW($3:$199)),ROWS($1:33)),MATCH(D$1,'Base de données'!$E$2:$T$2,0)+4),"") ->  | E34: =IFERROR(INDEX('Base de données'!$A$1:$T$200,SMALL(IF('Base de données'!$C$3:$C$200=MONTH($G$1),ROW($3:$199)),ROWS($1:33)),MATCH(E$1,'Base de données'!$E$2:$T$2,0)+4),"") ->  | F34: =IFERROR(INDEX('Base de données'!$A$1:$T$200,SMALL(IF('Base de données'!$C$3:$C$200=MONTH($G$1),ROW($3:$199)),ROWS($1:33)),MATCH(F$1,'Base de données'!$E$2:$T$2,0)+4),"") ->  | M34: 2016-03-27 | N34: 0 | O34: 0 | P34: 0 | Q34: 0 | R34: 0 | S34: 0 | T34: 0 | U34: 0 | V34: 0 | W34: 0 | X34: 0 | Y34: 0 | Z34: 0
A35: =IFERROR(INDEX('Base de données'!$A$1:$T$200,SMALL(IF('Base de données'!$C$3:$C$200=MONTH($G$1),ROW($3:$199)),ROWS($1:34)),MATCH(A$1,'Base de données'!$E$2:$T$2,0)+4),"") ->  | B35: =IFERROR(INDEX('Base de données'!$A$1:$T$200,SMALL(IF('Base de données'!$C$3:$C$200=MONTH($G$1),ROW($3:$199)),ROWS($1:34)),MATCH(B$1,'Base de données'!$E$2:$T$2,0)+4),"") ->  | C35: =IFERROR(INDEX('Base de données'!$A$1:$T$200,SMALL(IF('Base de données'!$C$3:$C$200=MONTH($G$1),ROW($3:$199)),ROWS($1:34)),MATCH(C$1,'Base de données'!$E$2:$T$2,0)+4),"") ->  | D35: =IFERROR(INDEX('Base de données'!$A$1:$T$200,SMALL(IF('Base de données'!$C$3:$C$200=MONTH($G$1),ROW($3:$199)),ROWS($1:34)),MATCH(D$1,'Base de données'!$E$2:$T$2,0)+4),"") ->  | E35: =IFERROR(INDEX('Base de données'!$A$1:$T$200,SMALL(IF('Base de données'!$C$3:$C$200=MONTH($G$1),ROW($3:$199)),ROWS($1:34)),MATCH(E$1,'Base de données'!$E$2:$T$2,0)+4),"") ->  | F35: =IFERROR(INDEX('Base de données'!$A$1:$T$200,SMALL(IF('Base de données'!$C$3:$C$200=MONTH($G$1),ROW($3:$199)),ROWS($1:34)),MATCH(F$1,'Base de données'!$E$2:$T$2,0)+4),"") ->  | M35: 2016-03-28 | N35: 0 | O35: 0 | P35: 0 | Q35: 0 | R35: 0 | S35: 0 | T35: 0 | U35: 0 | V35: 0 | W35: 0 | X35: 0 | Y35: 0 | Z35: 0
A36: =IFERROR(INDEX('Base de données'!$A$1:$T$200,SMALL(IF('Base de données'!$C$3:$C$200=MONTH($G$1),ROW($3:$199)),ROWS($1:35)),MATCH(A$1,'Base de données'!$E$2:$T$2,0)+4),"") ->  | B36: =IFERROR(INDEX('Base de données'!$A$1:$T$200,SMALL(IF('Base de données'!$C$3:$C$200=MONTH($G$1),ROW($3:$199)),ROWS($1:35)),MATCH(B$1,'Base de données'!$E$2:$T$2,0)+4),"") ->  | C36: =IFERROR(INDEX('Base de données'!$A$1:$T$200,SMALL(IF('Base de données'!$C$3:$C$200=MONTH($G$1),ROW($3:$199)),ROWS($1:35)),MATCH(C$1,'Base de données'!$E$2:$T$2,0)+4),"") ->  | D36: =IFERROR(INDEX('Base de données'!$A$1:$T$200,SMALL(IF('Base de données'!$C$3:$C$200=MONTH($G$1),ROW($3:$199)),ROWS($1:35)),MATCH(D$1,'Base de données'!$E$2:$T$2,0)+4),"") ->  | E36: =IFERROR(INDEX('Base de données'!$A$1:$T$200,SMALL(IF('Base de données'!$C$3:$C$200=MONTH($G$1),ROW($3:$199)),ROWS($1:35)),MATCH(E$1,'Base de données'!$E$2:$T$2,0)+4),"") ->  | F36: =IFERROR(INDEX('Base de données'!$A$1:$T$200,SMALL(IF('Base de données'!$C$3:$C$200=MONTH($G$1),ROW($3:$199)),ROWS($1:35)),MATCH(F$1,'Base de données'!$E$2:$T$2,0)+4),"") ->  | M36: 2016-03-29 | N36: 0 | O36: 0 | P36: 0 | Q36: 0 | R36: 0 | S36: 0 | T36: 0 | U36: 0 | V36: 0 | W36: 0 | X36: 0 | Y36: 0 | Z36: 0
A37: =IFERROR(INDEX('Base de données'!$A$1:$T$200,SMALL(IF('Base de données'!$C$3:$C$200=MONTH($G$1),ROW($3:$199)),ROWS($1:36)),MATCH(A$1,'Base de données'!$E$2:$T$2,0)+4),"") ->  | B37: =IFERROR(INDEX('Base de données'!$A$1:$T$200,SMALL(IF('Base de données'!$C$3:$C$200=MONTH($G$1),ROW($3:$199)),ROWS($1:36)),MATCH(B$1,'Base de données'!$E$2:$T$2,0)+4),"") ->  | C37: =IFERROR(INDEX('Base de données'!$A$1:$T$200,SMALL(IF('Base de données'!$C$3:$C$200=MONTH($G$1),ROW($3:$199)),ROWS($1:36)),MATCH(C$1,'Base de données'!$E$2:$T$2,0)+4),"") ->  | D37: =IFERROR(INDEX('Base de données'!$A$1:$T$200,SMALL(IF('Base de données'!$C$3:$C$200=MONTH($G$1),ROW($3:$199)),ROWS($1:36)),MATCH(D$1,'Base de données'!$E$2:$T$2,0)+4),"") ->  | E37: =IFERROR(INDEX('Base de données'!$A$1:$T$200,SMALL(IF('Base de données'!$C$3:$C$200=MONTH($G$1),ROW($3:$199)),ROWS($1:36)),MATCH(E$1,'Base de données'!$E$2:$T$2,0)+4),"") ->  | F37: =IFERROR(INDEX('Base de données'!$A$1:$T$200,SMALL(IF('Base de données'!$C$3:$C$200=MONTH($G$1),ROW($3:$199)),ROWS($1:36)),MATCH(F$1,'Base de données'!$E$2:$T$2,0)+4),"") ->  | M37: 2016-03-30 | N37: 0 | O37: 0 | P37: 0 | Q37: 0 | R37: 0 | S37: 0 | T37: 0 | U37: 0 | V37: 0 | W37: 0 | X37: 0 | Y37: 0 | Z37: 0
A38: =IFERROR(INDEX('Base de données'!$A$1:$T$200,SMALL(IF('Base de données'!$C$3:$C$200=MONTH($G$1),ROW($3:$199)),ROWS($1:37)),MATCH(A$1,'Base de données'!$E$2:$T$2,0)+4),"") ->  | B38: =IFERROR(INDEX('Base de données'!$A$1:$T$200,SMALL(IF('Base de données'!$C$3:$C$200=MONTH($G$1),ROW($3:$199)),ROWS($1:37)),MATCH(B$1,'Base de données'!$E$2:$T$2,0)+4),"") ->  | C38: =IFERROR(INDEX('Base de données'!$A$1:$T$200,SMALL(IF('Base de données'!$C$3:$C$200=MONTH($G$1),ROW($3:$199)),ROWS($1:37)),MATCH(C$1,'Base de données'!$E$2:$T$2,0)+4),"") ->  | D38: =IFERROR(INDEX('Base de données'!$A$1:$T$200,SMALL(IF('Base de données'!$C$3:$C$200=MONTH($G$1),ROW($3:$199)),ROWS($1:37)),MATCH(D$1,'Base de données'!$E$2:$T$2,0)+4),"") ->  | E38: =IFERROR(INDEX('Base de données'!$A$1:$T$200,SMALL(IF('Base de données'!$C$3:$C$200=MONTH($G$1),ROW($3:$199)),ROWS($1:37)),MATCH(E$1,'Base de données'!$E$2:$T$2,0)+4),"") ->  | F38: =IFERROR(INDEX('Base de données'!$A$1:$T$200,SMALL(IF('Base de données'!$C$3:$C$200=MONTH($G$1),ROW($3:$199)),ROWS($1:37)),MATCH(F$1,'Base de données'!$E$2:$T$2,0)+4),"") ->  | M38: 2016-03-31 | N38: 0 | O38: 0 | P38: 0 | Q38: 0 | R38: 0 | S38: 0 | T38: 0 | U38: 0 | V38: 0 | W38: 0 | X38: 0 | Y38: 0 | Z38: 0
A39: =IFERROR(INDEX('Base de données'!$A$1:$T$200,SMALL(IF('Base de données'!$C$3:$C$200=MONTH($G$1),ROW($3:$199)),ROWS($1:38)),MATCH(A$1,'Base de données'!$E$2:$T$2,0)+4),"") ->  | B39: =IFERROR(INDEX('Base de données'!$A$1:$T$200,SMALL(IF('Base de données'!$C$3:$C$200=MONTH($G$1),ROW($3:$199)),ROWS($1:38)),MATCH(B$1,'Base de données'!$E$2:$T$2,0)+4),"") ->  | C39: =IFERROR(INDEX('Base de données'!$A$1:$T$200,SMALL(IF('Base de données'!$C$3:$C$200=MONTH($G$1),ROW($3:$199)),ROWS($1:38)),MATCH(C$1,'Base de données'!$E$2:$T$2,0)+4),"") ->  | D39: =IFERROR(INDEX('Base de données'!$A$1:$T$200,SMALL(IF('Base de données'!$C$3:$C$200=MONTH($G$1),ROW($3:$199)),ROWS($1:38)),MATCH(D$1,'Base de données'!$E$2:$T$2,0)+4),"") ->  | E39: =IFERROR(INDEX('Base de données'!$A$1:$T$200,SMALL(IF('Base de données'!$C$3:$C$200=MONTH($G$1),ROW($3:$199)),ROWS($1:38)),MATCH(E$1,'Base de données'!$E$2:$T$2,0)+4),"") ->  | F39: =IFERROR(INDEX('Base de données'!$A$1:$T$200,SMALL(IF('Base de données'!$C$3:$C$200=MONTH($G$1),ROW($3:$199)),ROWS($1:38)),MATCH(F$1,'Base de données'!$E$2:$T$2,0)+4),"") -> 
A40: =IFERROR(INDEX('Base de données'!$A$1:$T$200,SMALL(IF('Base de données'!$C$3:$C$200=MONTH($G$1),ROW($3:$199)),ROWS($1:39)),MATCH(A$1,'Base de données'!$E$2:$T$2,0)+4),"") ->  | B40: =IFERROR(INDEX('Base de données'!$A$1:$T$200,SMALL(IF('Base de données'!$C$3:$C$200=MONTH($G$1),ROW($3:$199)),ROWS($1:39)),MATCH(B$1,'Base de données'!$E$2:$T$2,0)+4),"") ->  | C40: =IFERROR(INDEX('Base de données'!$A$1:$T$200,SMALL(IF('Base de données'!$C$3:$C$200=MONTH($G$1),ROW($3:$199)),ROWS($1:39)),MATCH(C$1,'Base de données'!$E$2:$T$2,0)+4),"") ->  | D40: =IFERROR(INDEX('Base de données'!$A$1:$T$200,SMALL(IF('Base de données'!$C$3:$C$200=MONTH($G$1),ROW($3:$199)),ROWS($1:39)),MATCH(D$1,'Base de données'!$E$2:$T$2,0)+4),"") ->  | E40: =IFERROR(INDEX('Base de données'!$A$1:$T$200,SMALL(IF('Base de données'!$C$3:$C$200=MONTH($G$1),ROW($3:$199)),ROWS($1:39)),MATCH(E$1,'Base de données'!$E$2:$T$2,0)+4),"") ->  | F40: =IFERROR(INDEX('Base de données'!$A$1:$T$200,SMALL(IF('Base de données'!$C$3:$C$200=MONTH($G$1),ROW($3:$199)),ROWS($1:39)),MATCH(F$1,'Base de données'!$E$2:$T$2,0)+4),"") -> 
A41: =IFERROR(INDEX('Base de données'!$A$1:$T$200,SMALL(IF('Base de données'!$C$3:$C$200=MONTH($G$1),ROW($3:$199)),ROWS($1:40)),MATCH(A$1,'Base de données'!$E$2:$T$2,0)+4),"") ->  | B41: =IFERROR(INDEX('Base de données'!$A$1:$T$200,SMALL(IF('Base de données'!$C$3:$C$200=MONTH($G$1),ROW($3:$199)),ROWS($1:40)),MATCH(B$1,'Base de données'!$E$2:$T$2,0)+4),"") ->  | C41: =IFERROR(INDEX('Base de données'!$A$1:$T$200,SMALL(IF('Base de données'!$C$3:$C$200=MONTH($G$1),ROW($3:$199)),ROWS($1:40)),MATCH(C$1,'Base de données'!$E$2:$T$2,0)+4),"") ->  | D41: =IFERROR(INDEX('Base de données'!$A$1:$T$200,SMALL(IF('Base de données'!$C$3:$C$200=MONTH($G$1),ROW($3:$199)),ROWS($1:40)),MATCH(D$1,'Base de données'!$E$2:$T$2,0)+4),"") ->  | E41: =IFERROR(INDEX('Base de données'!$A$1:$T$200,SMALL(IF('Base de données'!$C$3:$C$200=MONTH($G$1),ROW($3:$199)),ROWS($1:40)),MATCH(E$1,'Base de données'!$E$2:$T$2,0)+4),"") ->  | F41: =IFERROR(INDEX('Base de données'!$A$1:$T$200,SMALL(IF('Base de données'!$C$3:$C$200=MONTH($G$1),ROW($3:$199)),ROWS($1:40)),MATCH(F$1,'Base de données'!$E$2:$T$2,0)+4),"") -> 
A42: =IFERROR(INDEX('Base de données'!$A$1:$T$200,SMALL(IF('Base de données'!$C$3:$C$200=MONTH($G$1),ROW($3:$199)),ROWS($1:41)),MATCH(A$1,'Base de données'!$E$2:$T$2,0)+4),"") ->  | B42: =IFERROR(INDEX('Base de données'!$A$1:$T$200,SMALL(IF('Base de données'!$C$3:$C$200=MONTH($G$1),ROW($3:$199)),ROWS($1:41)),MATCH(B$1,'Base de données'!$E$2:$T$2,0)+4),"") ->  | C42: =IFERROR(INDEX('Base de données'!$A$1:$T$200,SMALL(IF('Base de données'!$C$3:$C$200=MONTH($G$1),ROW($3:$199)),ROWS($1:41)),MATCH(C$1,'Base de données'!$E$2:$T$2,0)+4),"") ->  | D42: =IFERROR(INDEX('Base de données'!$A$1:$T$200,SMALL(IF('Base de données'!$C$3:$C$200=MONTH($G$1),ROW($3:$199)),ROWS($1:41)),MATCH(D$1,'Base de données'!$E$2:$T$2,0)+4),"") ->  | E42: =IFERROR(INDEX('Base de données'!$A$1:$T$200,SMALL(IF('Base de données'!$C$3:$C$200=MONTH($G$1),ROW($3:$199)),ROWS($1:41)),MATCH(E$1,'Base de données'!$E$2:$T$2,0)+4),"") ->  | F42: =IFERROR(INDEX('Base de données'!$A$1:$T$200,SMALL(IF('Base de données'!$C$3:$C$200=MONTH($G$1),ROW($3:$199)),ROWS($1:41)),MATCH(F$1,'Base de données'!$E$2:$T$2,0)+4),"") -> 
A43: =IFERROR(INDEX('Base de données'!$A$1:$T$200,SMALL(IF('Base de données'!$C$3:$C$200=MONTH($G$1),ROW($3:$199)),ROWS($1:42)),MATCH(A$1,'Base de données'!$E$2:$T$2,0)+4),"") ->  | B43: =IFERROR(INDEX('Base de données'!$A$1:$T$200,SMALL(IF('Base de données'!$C$3:$C$200=MONTH($G$1),ROW($3:$199)),ROWS($1:42)),MATCH(B$1,'Base de données'!$E$2:$T$2,0)+4),"") ->  | C43: =IFERROR(INDEX('Base de données'!$A$1:$T$200,SMALL(IF('Base de données'!$C$3:$C$200=MONTH($G$1),ROW($3:$199)),ROWS($1:42)),MATCH(C$1,'Base de données'!$E$2:$T$2,0)+4),"") ->  | D43: =IFERROR(INDEX('Base de données'!$A$1:$T$200,SMALL(IF('Base de données'!$C$3:$C$200=MONTH($G$1),ROW($3:$199)),ROWS($1:42)),MATCH(D$1,'Base de données'!$E$2:$T$2,0)+4),"") ->  | E43: =IFERROR(INDEX('Base de données'!$A$1:$T$200,SMALL(IF('Base de données'!$C$3:$C$200=MONTH($G$1),ROW($3:$199)),ROWS($1:42)),MATCH(E$1,'Base de données'!$E$2:$T$2,0)+4),"") ->  | F43: =IFERROR(INDEX('Base de données'!$A$1:$T$200,SMALL(IF('Base de données'!$C$3:$C$200=MONTH($G$1),ROW($3:$199)),ROWS($1:42)),MATCH(F$1,'Base de données'!$E$2:$T$2,0)+4),"") -> 
A44: =IFERROR(INDEX('Base de données'!$A$1:$T$200,SMALL(IF('Base de données'!$C$3:$C$200=MONTH($G$1),ROW($3:$199)),ROWS($1:43)),MATCH(A$1,'Base de données'!$E$2:$T$2,0)+4),"") ->  | B44: =IFERROR(INDEX('Base de données'!$A$1:$T$200,SMALL(IF('Base de données'!$C$3:$C$200=MONTH($G$1),ROW($3:$199)),ROWS($1:43)),MATCH(B$1,'Base de données'!$E$2:$T$2,0)+4),"") ->  | C44: =IFERROR(INDEX('Base de données'!$A$1:$T$200,SMALL(IF('Base de données'!$C$3:$C$200=MONTH($G$1),ROW($3:$199)),ROWS($1:43)),MATCH(C$1,'Base de données'!$E$2:$T$2,0)+4),"") ->  | D44: =IFERROR(INDEX('Base de données'!$A$1:$T$200,SMALL(IF('Base de données'!$C$3:$C$200=MONTH($G$1),ROW($3:$199)),ROWS($1:43)),MATCH(D$1,'Base de données'!$E$2:$T$2,0)+4),"") ->  | E44: =IFERROR(INDEX('Base de données'!$A$1:$T$200,SMALL(IF('Base de données'!$C$3:$C$200=MONTH($G$1),ROW($3:$199)),ROWS($1:43)),MATCH(E$1,'Base de données'!$E$2:$T$2,0)+4),"") ->  | F44: =IFERROR(INDEX('Base de données'!$A$1:$T$200,SMALL(IF('Base de données'!$C$3:$C$200=MONTH($G$1),ROW($3:$199)),ROWS($1:43)),MATCH(F$1,'Base de données'!$E$2:$T$2,0)+4),"") -> 
A45: =IFERROR(INDEX('Base de données'!$A$1:$T$200,SMALL(IF('Base de données'!$C$3:$C$200=MONTH($G$1),ROW($3:$199)),ROWS($1:44)),MATCH(A$1,'Base de données'!$E$2:$T$2,0)+4),"") ->  | B45: =IFERROR(INDEX('Base de données'!$A$1:$T$200,SMALL(IF('Base de données'!$C$3:$C$200=MONTH($G$1),ROW($3:$199)),ROWS($1:44)),MATCH(B$1,'Base de données'!$E$2:$T$2,0)+4),"") ->  | C45: =IFERROR(INDEX('Base de données'!$A$1:$T$200,SMALL(IF('Base de données'!$C$3:$C$200=MONTH($G$1),ROW($3:$199)),ROWS($1:44)),MATCH(C$1,'Base de données'!$E$2:$T$2,0)+4),"") ->  | D45: =IFERROR(INDEX('Base de données'!$A$1:$T$200,SMALL(IF('Base de données'!$C$3:$C$200=MONTH($G$1),ROW($3:$199)),ROWS($1:44)),MATCH(D$1,'Base de données'!$E$2:$T$2,0)+4),"") ->  | E45: =IFERROR(INDEX('Base de données'!$A$1:$T$200,SMALL(IF('Base de données'!$C$3:$C$200=MONTH($G$1),ROW($3:$199)),ROWS($1:44)),MATCH(E$1,'Base de données'!$E$2:$T$2,0)+4),"") ->  | F45: =IFERROR(INDEX('Base de données'!$A$1:$T$200,SMALL(IF('Base de données'!$C$3:$C$200=MONTH($G$1),ROW($3:$199)),ROWS($1:44)),MATCH(F$1,'Base de données'!$E$2:$T$2,0)+4),"") -> 
B46: Total mois | E46: =SUM(E2:E45) -> 0

Sheet Avril
A1: Date | B1: # CR | C1: # Catégorie | D1: Provenance | E1: poids | F1: Commentaire | G1: 2016-04-01 | M1: Date | N1: 1 | O1: 2 | P1: 3 | Q1: 4 | R1: 5 | T1: 6 | U1: 7 | V1: 8 | Y1: 9 | Z1: 10
A2: =IFERROR(INDEX('Base de données'!$A$1:$T$200,SMALL(IF('Base de données'!$C$3:$C$200=MONTH($G$1),ROW($3:$199)),ROWS($1:1)),MATCH(A$1,'Base de données'!$E$2:$T$2,0)+4),"") ->  | B2: =IFERROR(INDEX('Base de données'!$A$1:$T$200,SMALL(IF('Base de données'!$C$3:$C$200=MONTH($G$1),ROW($3:$199)),ROWS($1:1)),MATCH(B$1,'Base de données'!$E$2:$T$2,0)+4),"") ->  | C2: =IFERROR(INDEX('Base de données'!$A$1:$T$200,SMALL(IF('Base de données'!$C$3:$C$200=MONTH($G$1),ROW($3:$199)),ROWS($1:1)),MATCH(C$1,'Base de données'!$E$2:$T$2,0)+4),"") ->  | D2: =IFERROR(INDEX('Base de données'!$A$1:$T$200,SMALL(IF('Base de données'!$C$3:$C$200=MONTH($G$1),ROW($3:$199)),ROWS($1:1)),MATCH(D$1,'Base de données'!$E$2:$T$2,0)+4),"") ->  | E2: =IFERROR(INDEX('Base de données'!$A$1:$T$200,SMALL(IF('Base de données'!$C$3:$C$200=MONTH($G$1),ROW($3:$199)),ROWS($1:1)),MATCH(E$1,'Base de données'!$E$2:$T$2,0)+4),"") ->  | F2: =IFERROR(INDEX('Base de données'!$A$1:$T$200,SMALL(IF('Base de données'!$C$3:$C$200=MONTH($G$1),ROW($3:$199)),ROWS($1:1)),MATCH(F$1,'Base de données'!$E$2:$T$2,0)+4),"") ->  | N2: Copeaux d'aluminium propre et sec | O2: Copeaux d'aluminium propre et humides | P2: Copeaux d'aliminium contaminés | Q2: Aluminium en morceau (blocs/plaques) 7000 | R2: Aluminium contaminer mixte en morceau (blocs/plaques) | T2: Aluminium mixte en morceau (autre que blocs/plaques) 2024 | U2: Aluminium de série 7000 en morceau (surdimensionné) | V2: Acier mixte en morceau | Y2: Acier inoxydable mixte en morceau | Z2: Fil de cuivre
A3: =IFERROR(INDEX('Base de données'!$A$1:$T$200,SMALL(IF('Base de données'!$C$3:$C$200=MONTH($G$1),ROW($3:$199)),ROWS($1:2)),MATCH(A$1,'Base de données'!$E$2:$T$2,0)+4),"") ->  | B3: =IFERROR(INDEX('Base de données'!$A$1:$T$200,SMALL(IF('Base de données'!$C$3:$C$200=MONTH($G$1),ROW($3:$199)),ROWS($1:2)),MATCH(B$1,'Base de données'!$E$2:$T$2,0)+4),"") ->  | C3: =IFERROR(INDEX('Base de données'!$A$1:$T$200,SMALL(IF('Base de données'!$C$3:$C$200=MONTH($G$1),ROW($3:$199)),ROWS($1:2)),MATCH(C$1,'Base de données'!$E$2:$T$2,0)+4),"") ->  | D3: =IFERROR(INDEX('Base de données'!$A$1:$T$200,SMALL(IF('Base de données'!$C$3:$C$200=MONTH($G$1),ROW($3:$199)),ROWS($1:2)),MATCH(D$1,'Base de données'!$E$2:$T$2,0)+4),"") ->  | E3: =IFERROR(INDEX('Base de données'!$A$1:$T$200,SMALL(IF('Base de données'!$C$3:$C$200=MONTH($G$1),ROW($3:$199)),ROWS($1:2)),MATCH(E$1,'Base de données'!$E$2:$T$2,0)+4),"") ->  | F3: =IFERROR(INDEX('Base de données'!$A$1:$T$200,SMALL(IF('Base de données'!$C$3:$C$200=MONTH($G$1),ROW($3:$199)),ROWS($1:2)),MATCH(F$1,'Base de données'!$E$2:$T$2,0)+4),"") ->  | G3: 1 | H3: 2 | I3: 3 | J3: 4 | K3: 5
A4: =IFERROR(INDEX('Base de données'!$A$1:$T$200,SMALL(IF('Base de données'!$C$3:$C$200=MONTH($G$1),ROW($3:$199)),ROWS($1:3)),MATCH(A$1,'Base de données'!$E$2:$T$2,0)+4),"") ->  | B4: =IFERROR(INDEX('Base de données'!$A$1:$T$200,SMALL(IF('Base de données'!$C$3:$C$200=MONTH($G$1),ROW($3:$199)),ROWS($1:3)),MATCH(B$1,'Base de données'!$E$2:$T$2,0)+4),"") ->  | C4: =IFERROR(INDEX('Base de données'!$A$1:$T$200,SMALL(IF('Base de données'!$C$3:$C$200=MONTH($G$1),ROW($3:$199)),ROWS($1:3)),MATCH(C$1,'Base de données'!$E$2:$T$2,0)+4),"") ->  | D4: =IFERROR(INDEX('Base de données'!$A$1:$T$200,SMALL(IF('Base de données'!$C$3:$C$200=MONTH($G$1),ROW($3:$199)),ROWS($1:3)),MATCH(D$1,'Base de données'!$E$2:$T$2,0)+4),"") ->  | E4: =IFERROR(INDEX('Base de données'!$A$1:$T$200,SMALL(IF('Base de données'!$C$3:$C$200=MONTH($G$1),ROW($3:$199)),ROWS($1:3)),MATCH(E$1,'Base de données'!$E$2:$T$2,0)+4),"") ->  | F4: =IFERROR(INDEX('Base de données'!$A$1:$T$200,SMALL(IF('Base de données'!$C$3:$C$200=MONTH($G$1),ROW($3:$199)),ROWS($1:3)),MATCH(F$1,'Base de données'!$E$2:$T$2,0)+4),"") ->  | G4: Copeaux | H4: Copeaux | I4: Copeaux | J4: Aluminium | K4: Aluminium contaminés
A5: =IFERROR(INDEX('Base de données'!$A$1:$T$200,SMALL(IF('Base de données'!$C$3:$C$200=MONTH($G$1),ROW($3:$199)),ROWS($1:4)),MATCH(A$1,'Base de données'!$E$2:$T$2,0)+4),"") ->  | B5: =IFERROR(INDEX('Base de données'!$A$1:$T$200,SMALL(IF('Base de données'!$C$3:$C$200=MONTH($G$1),ROW($3:$199)),ROWS($1:4)),MATCH(B$1,'Base de données'!$E$2:$T$2,0)+4),"") ->  | C5: =IFERROR(INDEX('Base de données'!$A$1:$T$200,SMALL(IF('Base de données'!$C$3:$C$200=MONTH($G$1),ROW($3:$199)),ROWS($1:4)),MATCH(C$1,'Base de données'!$E$2:$T$2,0)+4),"") ->  | D5: =IFERROR(INDEX('Base de données'!$A$1:$T$200,SMALL(IF('Base de données'!$C$3:$C$200=MONTH($G$1),ROW($3:$199)),ROWS($1:4)),MATCH(D$1,'Base de données'!$E$2:$T$2,0)+4),"") ->  | E5: =IFERROR(INDEX('Base de données'!$A$1:$T$200,SMALL(IF('Base de données'!$C$3:$C$200=MONTH($G$1),ROW($3:$199)),ROWS($1:4)),MATCH(E$1,'Base de données'!$E$2:$T$2,0)+4),"") ->  | F5: =IFERROR(INDEX('Base de données'!$A$1:$T$200,SMALL(IF('Base de données'!$C$3:$C$200=MONTH($G$1),ROW($3:$199)),ROWS($1:4)),MATCH(F$1,'Base de données'!$E$2:$T$2,0)+4),"") ->  | G5: D'aluminium | H5: D'aluminium | I5: D'aluminium | J5: en morceau | K5: mixte en morceau
A6: =IFERROR(INDEX('Base de données'!$A$1:$T$200,SMALL(IF('Base de données'!$C$3:$C$200=MONTH($G$1),ROW($3:$199)),ROWS($1:5)),MATCH(A$1,'Base de données'!$E$2:$T$2,0)+4),"") ->  | B6: =IFERROR(INDEX('Base de données'!$A$1:$T$200,SMALL(IF('Base de données'!$C$3:$C$200=MONTH($G$1),ROW($3:$199)),ROWS($1:5)),MATCH(B$1,'Base de données'!$E$2:$T$2,0)+4),"") ->  | C6: =IFERROR(INDEX('Base de données'!$A$1:$T$200,SMALL(IF('Base de données'!$C$3:$C$200=MONTH($G$1),ROW($3:$199)),ROWS($1:5)),MATCH(C$1,'Base de données'!$E$2:$T$2,0)+4),"") ->  | D6: =IFERROR(INDEX('Base de données'!$A$1:$T$200,SMALL(IF('Base de données'!$C$3:$C$200=MONTH($G$1),ROW($3:$199)),ROWS($1:5)),MATCH(D$1,'Base de données'!$E$2:$T$2,0)+4),"") ->  | E6: =IFERROR(INDEX('Base de données'!$A$1:$T$200,SMALL(IF('Base de données'!$C$3:$C$200=MONTH($G$1),ROW($3:$199)),ROWS($1:5)),MATCH(E$1,'Base de données'!$E$2:$T$2,0)+4),"") ->  | F6: =IFERROR(INDEX('Base de données'!$A$1:$T$200,SMALL(IF('Base de données'!$C$3:$C$200=MONTH($G$1),ROW($3:$199)),ROWS($1:5)),MATCH(F$1,'Base de données'!$E$2:$T$2,0)+4),"") ->  | G6: propre et sec | H6: propre et | I6: Contaminés | J6: blocs/plaque | K6: (Blocs/plaques)
A7: =IFERROR(INDEX('Base de données'!$A$1:$T$200,SMALL(IF('Base de données'!$C$3:$C$200=MONTH($G$1),ROW($3:$199)),ROWS($1:6)),MATCH(A$1,'Base de données'!$E$2:$T$2,0)+4),"") ->  | B7: =IFERROR(INDEX('Base de données'!$A$1:$T$200,SMALL(IF('Base de données'!$C$3:$C$200=MONTH($G$1),ROW($3:$199)),ROWS($1:6)),MATCH(B$1,'Base de données'!$E$2:$T$2,0)+4),"") ->  | C7: =IFERROR(INDEX('Base de données'!$A$1:$T$200,SMALL(IF('Base de données'!$C$3:$C$200=MONTH($G$1),ROW($3:$199)),ROWS($1:6)),MATCH(C$1,'Base de données'!$E$2:$T$2,0)+4),"") ->  | D7: =IFERROR(INDEX('Base de données'!$A$1:$T$200,SMALL(IF('Base de données'!$C$3:$C$200=MONTH($G$1),ROW($3:$199)),ROWS($1:6)),MATCH(D$1,'Base de données'!$E$2:$T$2,0)+4),"") ->  | E7: =IFERROR(INDEX('Base de données'!$A$1:$T$200,SMALL(IF('Base de données'!$C$3:$C$200=MONTH($G$1),ROW($3:$199)),ROWS($1:6)),MATCH(E$1,'Base de données'!$E$2:$T$2,0)+4),"") ->  | F7: =IFERROR(INDEX('Base de données'!$A$1:$T$200,SMALL(IF('Base de données'!$C$3:$C$200=MONTH($G$1),ROW($3:$199)),ROWS($1:6)),MATCH(F$1,'Base de données'!$E$2:$T$2,0)+4),"") ->  | H7: humides | J7: 7000 | K7: U.S 1 | L7: U.S 3 | R7: U.S 1 | S7: U.S 3 | V7: U.S 1 | W7: U.S 3 | X7: U.S 8
A8: =IFERROR(INDEX('Base de données'!$A$1:$T$200,SMALL(IF('Base de données'!$C$3:$C$200=MONTH($G$1),ROW($3:$199)),ROWS($1:7)),MATCH(A$1,'Base de données'!$E$2:$T$2,0)+4),"") ->  | B8: =IFERROR(INDEX('Base de données'!$A$1:$T$200,SMALL(IF('Base de données'!$C$3:$C$200=MONTH($G$1),ROW($3:$199)),ROWS($1:7)),MATCH(B$1,'Base de données'!$E$2:$T$2,0)+4),"") ->  | C8: =IFERROR(INDEX('Base de données'!$A$1:$T$200,SMALL(IF('Base de données'!$C$3:$C$200=MONTH($G$1),ROW($3:$199)),ROWS($1:7)),MATCH(C$1,'Base de données'!$E$2:$T$2,0)+4),"") ->  | D8: =IFERROR(INDEX('Base de données'!$A$1:$T$200,SMALL(IF('Base de données'!$C$3:$C$200=MONTH($G$1),ROW($3:$199)),ROWS($1:7)),MATCH(D$1,'Base de données'!$E$2:$T$2,0)+4),"") ->  | E8: =IFERROR(INDEX('Base de données'!$A$1:$T$200,SMALL(IF('Base de données'!$C$3:$C$200=MONTH($G$1),ROW($3:$199)),ROWS($1:7)),MATCH(E$1,'Base de données'!$E$2:$T$2,0)+4),"") ->  | F8: =IFERROR(INDEX('Base de données'!$A$1:$T$200,SMALL(IF('Base de données'!$C$3:$C$200=MONTH($G$1),ROW($3:$199)),ROWS($1:7)),MATCH(F$1,'Base de données'!$E$2:$T$2,0)+4),"") ->  | G8: =SUMIF(C2:C46,"1",E2:E46) -> 0 | H8: =SUMIF(C2:C46,"2",E2:E46) -> 0 | I8: =SUMIF(C2:C46,"3",E2:E46) -> 0 | J8: =SUMIF(C2:C46,"4",E2:E46) -> 0 | K8: =SUMIFS(E2:E46,C2:C46,"5",D2:D46,"0") -> 0 | L8: =SUMIFS(E2:E46,C2:C46,"5",D2:D46,"U.S 3") -> 0 | M8: 2016-04-01 | N8: =SUMIFS(E:E,A:A,M$8:M$46,C:C,"1") -> 0 | O8: =SUMIFS(E:E,A:A,M$8:M$46,C:C,"2") -> 0 | P8: =SUMIFS(E:E,A:A,M$8:M$46,C:C,"3") -> 0 | Q8: =SUMIFS(E:E,A:A,M$8:M$46,C:C,"4") -> 0 | R8: =SUMIFS(E:E,A:A,M$8:M$46,C:C,"5",D:D,"0") -> 0 | S8: =SUMIFS(E:E,A:A,M$8:M$46,C:C,"5",D:D,"U.S 3") -> 0 | T8: =SUMIFS(E:E,A:A,M$8:M$46,C:C,"6") -> 0 | U8: =SUMIFS(E:E,A:A,M$8:M$46,C:C,"7") -> 0 | V8: =SUMIFS(E:E,A:A,M$8:M$46,C:C,"8",D:D,"0") -> 0 | W8: =SUMIFS(E:E,A:A,M$8:M$46,C:C,"8",D:D,"U.S 3") -> 0 | X8: =SUMIFS(E:E,A:A,M$8:M$46,C:C,"8",D:D,"U.S 8") -> 0 | Y8: =SUMIFS(E:E,A:A,M$8:M$46,C:C,"9") -> 0 | Z8: =SUMIFS(E:E,A:A,M$8:M$46,C:C,"10") -> 0
A9: =IFERROR(INDEX('Base de données'!$A$1:$T$200,SMALL(IF('Base de données'!$C$3:$C$200=MONTH($G$1),ROW($3:$199)),ROWS($1:8)),MATCH(A$1,'Base de données'!$E$2:$T$2,0)+4),"") ->  | B9: =IFERROR(INDEX('Base de données'!$A$1:$T$200,SMALL(IF('Base de données'!$C$3:$C$200=MONTH($G$1),ROW($3:$199)),ROWS($1:8)),MATCH(B$1,'Base de données'!$E$2:$T$2,0)+4),"") ->  | C9: =IFERROR(INDEX('Base de données'!$A$1:$T$200,SMALL(IF('Base de données'!$C$3:$C$200=MONTH($G$1),ROW($3:$199)),ROWS($1:8)),MATCH(C$1,'Base de données'!$E$2:$T$2,0)+4),"") ->  | D9: =IFERROR(INDEX('Base de données'!$A$1:$T$200,SMALL(IF('Base de données'!$C$3:$C$200=MONTH($G$1),ROW($3:$199)),ROWS($1:8)),MATCH(D$1,'Base de données'!$E$2:$T$2,0)+4),"") ->  | E9: =IFERROR(INDEX('Base de données'!$A$1:$T$200,SMALL(IF('Base de données'!$C$3:$C$200=MONTH($G$1),ROW($3:$199)),ROWS($1:8)),MATCH(E$1,'Base de données'!$E$2:$T$2,0)+4),"") ->  | F9: =IFERROR(INDEX('Base de données'!$A$1:$T$200,SMALL(IF('Base de données'!$C$3:$C$200=MONTH($G$1),ROW($3:$199)),ROWS($1:8)),MATCH(F$1,'Base de données'!$E$2:$T$2,0)+4),"") ->  | K9: Total | M9: 2016-04-02 | N9: 0 | O9: 0 | P9: 0 | Q9: 0 | R9: =SUMIFS(E:E,A:A,M$8:M$46,C:C,"5",D:D,"0") -> 0 | S9: 0 | T9: 0 | U9: 0 | V9: =SUMIFS(E:E,A:A,M$8:M$46,C:C,"8",D:D,"0") -> 0 | W9: 0 | X9: 0 | Y9: 0 | Z9: 0
A10: =IFERROR(INDEX('Base de données'!$A$1:$T$200,SMALL(IF('Base de données'!$C$3:$C$200=MONTH($G$1),ROW($3:$199)),ROWS($1:9)),MATCH(A$1,'Base de données'!$E$2:$T$2,0)+4),"") ->  | B10: =IFERROR(INDEX('Base de données'!$A$1:$T$200,SMALL(IF('Base de données'!$C$3:$C$200=MONTH($G$1),ROW($3:$199)),ROWS($1:9)),MATCH(B$1,'Base de données'!$E$2:$T$2,0)+4),"") ->  | C10: =IFERROR(INDEX('Base de données'!$A$1:$T$200,SMALL(IF('Base de données'!$C$3:$C$200=MONTH($G$1),ROW($3:$199)),ROWS($1:9)),MATCH(C$1,'Base de données'!$E$2:$T$2,0)+4),"") ->  | D10: =IFERROR(INDEX('Base de données'!$A$1:$T$200,SMALL(IF('Base de données'!$C$3:$C$200=MONTH($G$1),ROW($3:$199)),ROWS($1:9)),MATCH(D$1,'Base de données'!$E$2:$T$2,0)+4),"") ->  | E10: =IFERROR(INDEX('Base de données'!$A$1:$T$200,SMALL(IF('Base de données'!$C$3:$C$200=MONTH($G$1),ROW($3:$199)),ROWS($1:9)),MATCH(E$1,'Base de données'!$E$2:$T$2,0)+4),"") ->  | F10: =IFERROR(INDEX('Base de données'!$A$1:$T$200,SMALL(IF('Base de données'!$C$3:$C$200=MONTH($G$1),ROW($3:$199)),ROWS($1:9)),MATCH(F$1,'Base de données'!$E$2:$T$2,0)+4),"") ->  | K10: =SUM(K8+L8) -> 0 | M10: 2016-04-03 | N10: 0 | O10: 0 | P10: 0 | Q10: 0 | R10: 0 | S10: 0 | T10: 0 | U10: 0 | V10: 0 | W10: 0 | X10: 0 | Y10: 0 | Z10: 0
A11: =IFERROR(INDEX('Base de données'!$A$1:$T$200,SMALL(IF('Base de données'!$C$3:$C$200=MONTH($G$1),ROW($3:$199)),ROWS($1:10)),MATCH(A$1,'Base de données'!$E$2:$T$2,0)+4),"") ->  | B11: =IFERROR(INDEX('Base de données'!$A$1:$T$200,SMALL(IF('Base de données'!$C$3:$C$200=MONTH($G$1),ROW($3:$199)),ROWS($1:10)),MATCH(B$1,'Base de données'!$E$2:$T$2,0)+4),"") ->  | C11: =IFERROR(INDEX('Base de données'!$A$1:$T$200,SMALL(IF('Base de données'!$C$3:$C$200=MONTH($G$1),ROW($3:$199)),ROWS($1:10)),MATCH(C$1,'Base de données'!$E$2:$T$2,0)+4),"") ->  | D11: =IFERROR(INDEX('Base de données'!$A$1:$T$200,SMALL(IF('Base de données'!$C$3:$C$200=MONTH($G$1),ROW($3:$199)),ROWS($1:10)),MATCH(D$1,'Base de données'!$E$2:$T$2,0)+4),"") ->  | E11: =IFERROR(INDEX('Base de données'!$A$1:$T$200,SMALL(IF('Base de données'!$C$3:$C$200=MONTH($G$1),ROW($3:$199)),ROWS($1:10)),MATCH(E$1,'Base de données'!$E$2:$T$2,0)+4),"") ->  | F11: =IFERROR(INDEX('Base de données'!$A$1:$T$200,SMALL(IF('Base de données'!$C$3:$C$200=MONTH($G$1),ROW($3:$199)),ROWS($1:10)),MATCH(F$1,'Base de données'!$E$2:$T$2,0)+4),"") ->  | G11: 6 | H11: 7 | I11: 8 | K11: 9 | L11: 10 | M11: 2016-04-04 | N11: 0 | O11: 0 | P11: 0 | Q11: 0 | R11: 0 | S11: 0 | T11: 0 | U11: 0 | V11: 0 | W11: 0 | X11: 0 | Y11: 0 | Z11: 0
A12: =IFERROR(INDEX('Base de données'!$A$1:$T$200,SMALL(IF('Base de données'!$C$3:$C$200=MONTH($G$1),ROW($3:$199)),ROWS($1:11)),MATCH(A$1,'Base de données'!$E$2:$T$2,0)+4),"") ->  | B12: =IFERROR(INDEX('Base de données'!$A$1:$T$200,SMALL(IF('Base de données'!$C$3:$C$200=MONTH($G$1),ROW($3:$199)),ROWS($1:11)),MATCH(B$1,'Base de données'!$E$2:$T$2,0)+4),"") ->  | C12: =IFERROR(INDEX('Base de données'!$A$1:$T$200,SMALL(IF('Base de données'!$C$3:$C$200=MONTH($G$1),ROW($3:$199)),ROWS($1:11)),MATCH(C$1,'Base de données'!$E$2:$T$2,0)+4),"") ->  | D12: =IFERROR(INDEX('Base de données'!$A$1:$T$200,SMALL(IF('Base de données'!$C$3:$C$200=MONTH($G$1),ROW($3:$199)),ROWS($1:11)),MATCH(D$1,'Base de données'!$E$2:$T$2,0)+4),"") ->  | E12: =IFERROR(INDEX('Base de données'!$A$1:$T$200,SMALL(IF('Base de données'!$C$3:$C$200=MONTH($G$1),ROW($3:$199)),ROWS($1:11)),MATCH(E$1,'Base de données'!$E$2:$T$2,0)+4),"") ->  | F12: =IFERROR(INDEX('Base de données'!$A$1:$T$200,SMALL(IF('Base de données'!$C$3:$C$200=MONTH($G$1),ROW($3:$199)),ROWS($1:11)),MATCH(F$1,'Base de données'!$E$2:$T$2,0)+4),"") ->  | G12: Aluminium | H12: Aluminium | I12: Acier mixte | K12: Acier | L12: Fil | M12: 2016-04-05 | N12: 0 | O12: 0 | P12: 0 | Q12: 0 | R12: 0 | S12: 0 | T12: 0 | U12: 0 | V12: 0 | W12: 0 | X12: 0 | Y12: 0 | Z12: 0
A13: =IFERROR(INDEX('Base de données'!$A$1:$T$200,SMALL(IF('Base de données'!$C$3:$C$200=MONTH($G$1),ROW($3:$199)),ROWS($1:12)),MATCH(A$1,'Base de données'!$E$2:$T$2,0)+4),"") ->  | B13: =IFERROR(INDEX('Base de données'!$A$1:$T$200,SMALL(IF('Base de données'!$C$3:$C$200=MONTH($G$1),ROW($3:$199)),ROWS($1:12)),MATCH(B$1,'Base de données'!$E$2:$T$2,0)+4),"") ->  | C13: =IFERROR(INDEX('Base de données'!$A$1:$T$200,SMALL(IF('Base de données'!$C$3:$C$200=MONTH($G$1),ROW($3:$199)),ROWS($1:12)),MATCH(C$1,'Base de données'!$E$2:$T$2,0)+4),"") ->  | D13: =IFERROR(INDEX('Base de données'!$A$1:$T$200,SMALL(IF('Base de données'!$C$3:$C$200=MONTH($G$1),ROW($3:$199)),ROWS($1:12)),MATCH(D$1,'Base de données'!$E$2:$T$2,0)+4),"") ->  | E13: =IFERROR(INDEX('Base de données'!$A$1:$T$200,SMALL(IF('Base de données'!$C$3:$C$200=MONTH($G$1),ROW($3:$199)),ROWS($1:12)),MATCH(E$1,'Base de données'!$E$2:$T$2,0)+4),"") ->  | F13: =IFERROR(INDEX('Base de données'!$A$1:$T$200,SMALL(IF('Base de données'!$C$3:$C$200=MONTH($G$1),ROW($3:$199)),ROWS($1:12)),MATCH(F$1,'Base de données'!$E$2:$T$2,0)+4),"") ->  | G13: mixte en | H13: série 7000 | I13: en morceau | K13: inoxydable | L13: de | M13: 2016-04-06 | N13: 0 | O13: 0 | P13: 0 | Q13: 0 | R13: 0 | S13: 0 | T13: 0 | U13: 0 | V13: 0 | W13: 0 | X13: 0 | Y13: 0 | Z13: 0
A14: =IFERROR(INDEX('Base de données'!$A$1:$T$200,SMALL(IF('Base de données'!$C$3:$C$200=MONTH($G$1),ROW($3:$199)),ROWS($1:13)),MATCH(A$1,'Base de données'!$E$2:$T$2,0)+4),"") ->  | B14: =IFERROR(INDEX('Base de données'!$A$1:$T$200,SMALL(IF('Base de données'!$C$3:$C$200=MONTH($G$1),ROW($3:$199)),ROWS($1:13)),MATCH(B$1,'Base de données'!$E$2:$T$2,0)+4),"") ->  | C14: =IFERROR(INDEX('Base de données'!$A$1:$T$200,SMALL(IF('Base de données'!$C$3:$C$200=MONTH($G$1),ROW($3:$199)),ROWS($1:13)),MATCH(C$1,'Base de données'!$E$2:$T$2,0)+4),"") ->  | D14: =IFERROR(INDEX('Base de données'!$A$1:$T$200,SMALL(IF('Base de données'!$C$3:$C$200=MONTH($G$1),ROW($3:$199)),ROWS($1:13)),MATCH(D$1,'Base de données'!$E$2:$T$2,0)+4),"") ->  | E14: =IFERROR(INDEX('Base de données'!$A$1:$T$200,SMALL(IF('Base de données'!$C$3:$C$200=MONTH($G$1),ROW($3:$199)),ROWS($1:13)),MATCH(E$1,'Base de données'!$E$2:$T$2,0)+4),"") ->  | F14: =IFERROR(INDEX('Base de données'!$A$1:$T$200,SMALL(IF('Base de données'!$C$3:$C$200=MONTH($G$1),ROW($3:$199)),ROWS($1:13)),MATCH(F$1,'Base de données'!$E$2:$T$2,0)+4),"") ->  | G14: morceau | H14: en morceau | K14: mixte en | L14: cuivre | M14: 2016-04-07 | N14: 0 | O14: 0 | P14: 0 | Q14: 0 | R14: 0 | S14: 0 | T14: 0 | U14: 0 | V14: 0 | W14: 0 | X14: 0 | Y14: 0 | Z14: 0
A15: =IFERROR(INDEX('Base de données'!$A$1:$T$200,SMALL(IF('Base de données'!$C$3:$C$200=MONTH($G$1),ROW($3:$199)),ROWS($1:14)),MATCH(A$1,'Base de données'!$E$2:$T$2,0)+4),"") ->  | B15: =IFERROR(INDEX('Base de données'!$A$1:$T$200,SMALL(IF('Base de données'!$C$3:$C$200=MONTH($G$1),ROW($3:$199)),ROWS($1:14)),MATCH(B$1,'Base de données'!$E$2:$T$2,0)+4),"") ->  | C15: =IFERROR(INDEX('Base de données'!$A$1:$T$200,SMALL(IF('Base de données'!$C$3:$C$200=MONTH($G$1),ROW($3:$199)),ROWS($1:14)),MATCH(C$1,'Base de données'!$E$2:$T$2,0)+4),"") ->  | D15: =IFERROR(INDEX('Base de données'!$A$1:$T$200,SMALL(IF('Base de données'!$C$3:$C$200=MONTH($G$1),ROW($3:$199)),ROWS($1:14)),MATCH(D$1,'Base de données'!$E$2:$T$2,0)+4),"") ->  | E15: =IFERROR(INDEX('Base de données'!$A$1:$T$200,SMALL(IF('Base de données'!$C$3:$C$200=MONTH($G$1),ROW($3:$199)),ROWS($1:14)),MATCH(E$1,'Base de données'!$E$2:$T$2,0)+4),"") ->  | F15: =IFERROR(INDEX('Base de données'!$A$1:$T$200,SMALL(IF('Base de données'!$C$3:$C$200=MONTH($G$1),ROW($3:$199)),ROWS($1:14)),MATCH(F$1,'Base de données'!$E$2:$T$2,0)+4),"") ->  | G15: 2024 | H15: surdimension | I15: U.S 1 | J15: U.S 3 | K15: morceau | M15: 2016-04-08 | N15: 0 | O15: 0 | P15: 0 | Q15: 0 | R15: 0 | S15: 0 | T15: 0 | U15: 0 | V15: 0 | W15: 0 | X15: 0 | Y15: 0 | Z15: 0
A16: =IFERROR(INDEX('Base de données'!$A$1:$T$200,SMALL(IF('Base de données'!$C$3:$C$200=MONTH($G$1),ROW($3:$199)),ROWS($1:15)),MATCH(A$1,'Base de données'!$E$2:$T$2,0)+4),"") ->  | B16: =IFERROR(INDEX('Base de données'!$A$1:$T$200,SMALL(IF('Base de données'!$C$3:$C$200=MONTH($G$1),ROW($3:$199)),ROWS($1:15)),MATCH(B$1,'Base de données'!$E$2:$T$2,0)+4),"") ->  | C16: =IFERROR(INDEX('Base de données'!$A$1:$T$200,SMALL(IF('Base de données'!$C$3:$C$200=MONTH($G$1),ROW($3:$199)),ROWS($1:15)),MATCH(C$1,'Base de données'!$E$2:$T$2,0)+4),"") ->  | D16: =IFERROR(INDEX('Base de données'!$A$1:$T$200,SMALL(IF('Base de données'!$C$3:$C$200=MONTH($G$1),ROW($3:$199)),ROWS($1:15)),MATCH(D$1,'Base de données'!$E$2:$T$2,0)+4),"") ->  | E16: =IFERROR(INDEX('Base de données'!$A$1:$T$200,SMALL(IF('Base de données'!$C$3:$C$200=MONTH($G$1),ROW($3:$199)),ROWS($1:15)),MATCH(E$1,'Base de données'!$E$2:$T$2,0)+4),"") ->  | F16: =IFERROR(INDEX('Base de données'!$A$1:$T$200,SMALL(IF('Base de données'!$C$3:$C$200=MONTH($G$1),ROW($3:$199)),ROWS($1:15)),MATCH(F$1,'Base de données'!$E$2:$T$2,0)+4),"") ->  | G16: =SUMIF(C2:C46,"6",E2:E46) -> 0 | H16: =SUMIF(C2:C46,"7",E2:E46) -> 0 | I16: =SUMIFS(E2:E46,C2:C46,"8",D2:D46,"0") -> 0 | J16: =SUMIFS(E2:E46,C2:C46,"8",D2:D46,"U.S 3") -> 0 | K16: =SUMIF(C2:C46,"9",E2:E46) -> 0 | L16: =SUMIF(C2:C46,"10",E2:E46) -> 0 | M16: 2016-04-09 | N16: 0 | O16: 0 | P16: 0 | Q16: 0 | R16: 0 | S16: 0 | T16: 0 | U16: 0 | V16: 0 | W16: 0 | X16: 0 | Y16: 0 | Z16: 0
A17: =IFERROR(INDEX('Base de données'!$A$1:$T$200,SMALL(IF('Base de données'!$C$3:$C$200=MONTH($G$1),ROW($3:$199)),ROWS($1:16)),MATCH(A$1,'Base de données'!$E$2:$T$2,0)+4),"") ->  | B17: =IFERROR(INDEX('Base de données'!$A$1:$T$200,SMALL(IF('Base de données'!$C$3:$C$200=MONTH($G$1),ROW($3:$199)),ROWS($1:16)),MATCH(B$1,'Base de données'!$E$2:$T$2,0)+4),"") ->  | C17: =IFERROR(INDEX('Base de données'!$A$1:$T$200,SMALL(IF('Base de données'!$C$3:$C$200=MONTH($G$1),ROW($3:$199)),ROWS($1:16)),MATCH(C$1,'Base de données'!$E$2:$T$2,0)+4),"") ->  | D17: =IFERROR(INDEX('Base de données'!$A$1:$T$200,SMALL(IF('Base de données'!$C$3:$C$200=MONTH($G$1),ROW($3:$199)),ROWS($1:16)),MATCH(D$1,'Base de données'!$E$2:$T$2,0)+4),"") ->  | E17: =IFERROR(INDEX('Base de données'!$A$1:$T$200,SMALL(IF('Base de données'!$C$3:$C$200=MONTH($G$1),ROW($3:$199)),ROWS($1:16)),MATCH(E$1,'Base de données'!$E$2:$T$2,0)+4),"") ->  | F17: =IFERROR(INDEX('Base de données'!$A$1:$T$200,SMALL(IF('Base de données'!$C$3:$C$200=MONTH($G$1),ROW($3:$199)),ROWS($1:16)),MATCH(F$1,'Base de données'!$E$2:$T$2,0)+4),"") ->  | I17: U.S 8 | J17: Total | M17: 2016-04-10 | N17: 0 | O17: 0 | P17: 0 | Q17: 0 | R17: 0 | S17: 0 | T17: 0 | U17: 0 | V17: 0 | W17: 0 | X17: 0 | Y17: 0 | Z17: 0
A18: =IFERROR(INDEX('Base de données'!$A$1:$T$200,SMALL(IF('Base de données'!$C$3:$C$200=MONTH($G$1),ROW($3:$199)),ROWS($1:17)),MATCH(A$1,'Base de données'!$E$2:$T$2,0)+4),"") ->  | B18: =IFERROR(INDEX('Base de données'!$A$1:$T$200,SMALL(IF('Base de données'!$C$3:$C$200=MONTH($G$1),ROW($3:$199)),ROWS($1:17)),MATCH(B$1,'Base de données'!$E$2:$T$2,0)+4),"") ->  | C18: =IFERROR(INDEX('Base de données'!$A$1:$T$200,SMALL(IF('Base de données'!$C$3:$C$200=MONTH($G$1),ROW($3:$199)),ROWS($1:17)),MATCH(C$1,'Base de données'!$E$2:$T$2,0)+4),"") ->  | D18: =IFERROR(INDEX('Base de données'!$A$1:$T$200,SMALL(IF('Base de données'!$C$3:$C$200=MONTH($G$1),ROW($3:$199)),ROWS($1:17)),MATCH(D$1,'Base de données'!$E$2:$T$2,0)+4),"") ->  | E18: =IFERROR(INDEX('Base de données'!$A$1:$T$200,SMALL(IF('Base de données'!$C$3:$C$200=MONTH($G$1),ROW($3:$199)),ROWS($1:17)),MATCH(E$1,'Base de données'!$E$2:$T$2,0)+4),"") ->  | F18: =IFERROR(INDEX('Base de données'!$A$1:$T$200,SMALL(IF('Base de données'!$C$3:$C$200=MONTH($G$1),ROW($3:$199)),ROWS($1:17)),MATCH(F$1,'Base de données'!$E$2:$T$2,0)+4),"") ->  | I18: =SUMIFS(E2:E46,C2:C46,"8",D2:D46,"U.S 8") -> 0 | J18: =SUM(I16+J16+I18) -> 0 | M18: 2016-04-11 | N18: 0 | O18: 0 | P18: 0 | Q18: 0 | R18: 0 | S18: 0 | T18: 0 | U18: 0 | V18: 0 | W18: 0 | X18: 0 | Y18: 0 | Z18: 0
A19: =IFERROR(INDEX('Base de données'!$A$1:$T$200,SMALL(IF('Base de données'!$C$3:$C$200=MONTH($G$1),ROW($3:$199)),ROWS($1:18)),MATCH(A$1,'Base de données'!$E$2:$T$2,0)+4),"") ->  | B19: =IFERROR(INDEX('Base de données'!$A$1:$T$200,SMALL(IF('Base de données'!$C$3:$C$200=MONTH($G$1),ROW($3:$199)),ROWS($1:18)),MATCH(B$1,'Base de données'!$E$2:$T$2,0)+4),"") ->  | C19: =IFERROR(INDEX('Base de données'!$A$1:$T$200,SMALL(IF('Base de données'!$C$3:$C$200=MONTH($G$1),ROW($3:$199)),ROWS($1:18)),MATCH(C$1,'Base de données'!$E$2:$T$2,0)+4),"") ->  | D19: =IFERROR(INDEX('Base de données'!$A$1:$T$200,SMALL(IF('Base de données'!$C$3:$C$200=MONTH($G$1),ROW($3:$199)),ROWS($1:18)),MATCH(D$1,'Base de données'!$E$2:$T$2,0)+4),"") ->  | E19: =IFERROR(INDEX('Base de données'!$A$1:$T$200,SMALL(IF('Base de données'!$C$3:$C$200=MONTH($G$1),ROW($3:$199)),ROWS($1:18)),MATCH(E$1,'Base de données'!$E$2:$T$2,0)+4),"") ->  | F19: =IFERROR(INDEX('Base de données'!$A$1:$T$200,SMALL(IF('Base de données'!$C$3:$C$200=MONTH($G$1),ROW($3:$199)),ROWS($1:18)),MATCH(F$1,'Base de données'!$E$2:$T$2,0)+4),"") ->  | M19: 2016-04-12 | N19: 0 | O19: 0 | P19: 0 | Q19: 0 | R19: 0 | S19: 0 | T19: 0 | U19: 0 | V19: 0 | W19: 0 | X19: 0 | Y19: 0 | Z19: 0
A20: =IFERROR(INDEX('Base de données'!$A$1:$T$200,SMALL(IF('Base de données'!$C$3:$C$200=MONTH($G$1),ROW($3:$199)),ROWS($1:19)),MATCH(A$1,'Base de données'!$E$2:$T$2,0)+4),"") ->  | B20: =IFERROR(INDEX('Base de données'!$A$1:$T$200,SMALL(IF('Base de données'!$C$3:$C$200=MONTH($G$1),ROW($3:$199)),ROWS($1:19)),MATCH(B$1,'Base de données'!$E$2:$T$2,0)+4),"") ->  | C20: =IFERROR(INDEX('Base de données'!$A$1:$T$200,SMALL(IF('Base de données'!$C$3:$C$200=MONTH($G$1),ROW($3:$199)),ROWS($1:19)),MATCH(C$1,'Base de données'!$E$2:$T$2,0)+4),"") ->  | D20: =IFERROR(INDEX('Base de données'!$A$1:$T$200,SMALL(IF('Base de données'!$C$3:$C$200=MONTH($G$1),ROW($3:$199)),ROWS($1:19)),MATCH(D$1,'Base de données'!$E$2:$T$2,0)+4),"") ->  | E20: =IFERROR(INDEX('Base de données'!$A$1:$T$200,SMALL(IF('Base de données'!$C$3:$C$200=MONTH($G$1),ROW($3:$199)),ROWS($1:19)),MATCH(E$1,'Base de données'!$E$2:$T$2,0)+4),"") ->  | F20: =IFERROR(INDEX('Base de données'!$A$1:$T$200,SMALL(IF('Base de données'!$C$3:$C$200=MONTH($G$1),ROW($3:$199)),ROWS($1:19)),MATCH(F$1,'Base de données'!$E$2:$T$2,0)+4),"") ->  | M20: 2016-04-13 | N20: 0 | O20: 0 | P20: 0 | Q20: 0 | R20: 0 | S20: 0 | T20: 0 | U20: 0 | V20: 0 | W20: 0 | X20: 0 | Y20: 0 | Z20: 0
A21: =IFERROR(INDEX('Base de données'!$A$1:$T$200,SMALL(IF('Base de données'!$C$3:$C$200=MONTH($G$1),ROW($3:$199)),ROWS($1:20)),MATCH(A$1,'Base de données'!$E$2:$T$2,0)+4),"") ->  | B21: =IFERROR(INDEX('Base de données'!$A$1:$T$200,SMALL(IF('Base de données'!$C$3:$C$200=MONTH($G$1),ROW($3:$199)),ROWS($1:20)),MATCH(B$1,'Base de données'!$E$2:$T$2,0)+4),"") ->  | C21: =IFERROR(INDEX('Base de données'!$A$1:$T$200,SMALL(IF('Base de données'!$C$3:$C$200=MONTH($G$1),ROW($3:$199)),ROWS($1:20)),MATCH(C$1,'Base de données'!$E$2:$T$2,0)+4),"") ->  | D21: =IFERROR(INDEX('Base de données'!$A$1:$T$200,SMALL(IF('Base de données'!$C$3:$C$200=MONTH($G$1),ROW($3:$199)),ROWS($1:20)),MATCH(D$1,'Base de données'!$E$2:$T$2,0)+4),"") ->  | E21: =IFERROR(INDEX('Base de données'!$A$1:$T$200,SMALL(IF('Base de données'!$C$3:$C$200=MONTH($G$1),ROW($3:$199)),ROWS($1:20)),MATCH(E$1,'Base de données'!$E$2:$T$2,0)+4),"") ->  | F21: =IFERROR(INDEX('Base de données'!$A$1:$T$200,SMALL(IF('Base de données'!$C$3:$C$200=MONTH($G$1),ROW($3:$199)),ROWS($1:20)),MATCH(F$1,'Base de données'!$E$2:$T$2,0)+4),"") ->  | M21: 2016-04-14 | N21: 0 | O21: 0 | P21: 0 | Q21: 0 | R21: 0 | S21: 0 | T21: 0 | U21: 0 | V21: 0 | W21: 0 | X21: 0 | Y21: 0 | Z21: 0
A22: =IFERROR(INDEX('Base de données'!$A$1:$T$200,SMALL(IF('Base de données'!$C$3:$C$200=MONTH($G$1),ROW($3:$199)),ROWS($1:21)),MATCH(A$1,'Base de données'!$E$2:$T$2,0)+4),"") ->  | B22: =IFERROR(INDEX('Base de données'!$A$1:$T$200,SMALL(IF('Base de données'!$C$3:$C$200=MONTH($G$1),ROW($3:$199)),ROWS($1:21)),MATCH(B$1,'Base de données'!$E$2:$T$2,0)+4),"") ->  | C22: =IFERROR(INDEX('Base de données'!$A$1:$T$200,SMALL(IF('Base de données'!$C$3:$C$200=MONTH($G$1),ROW($3:$199)),ROWS($1:21)),MATCH(C$1,'Base de données'!$E$2:$T$2,0)+4),"") ->  | D22: =IFERROR(INDEX('Base de données'!$A$1:$T$200,SMALL(IF('Base de données'!$C$3:$C$200=MONTH($G$1),ROW($3:$199)),ROWS($1:21)),MATCH(D$1,'Base de données'!$E$2:$T$2,0)+4),"") ->  | E22: =IFERROR(INDEX('Base de données'!$A$1:$T$200,SMALL(IF('Base de données'!$C$3:$C$200=MONTH($G$1),ROW($3:$199)),ROWS($1:21)),MATCH(E$1,'Base de données'!$E$2:$T$2,0)+4),"") ->  | F22: =IFERROR(INDEX('Base de données'!$A$1:$T$200,SMALL(IF('Base de données'!$C$3:$C$200=MONTH($G$1),ROW($3:$199)),ROWS($1:21)),MATCH(F$1,'Base de données'!$E$2:$T$2,0)+4),"") ->  | M22: 2016-04-15 | N22: 0 | O22: 0 | P22: 0 | Q22: 0 | R22: 0 | S22: 0 | T22: 0 | U22: 0 | V22: 0 | W22: 0 | X22: 0 | Y22: 0 | Z22: 0
A23: =IFERROR(INDEX('Base de données'!$A$1:$T$200,SMALL(IF('Base de données'!$C$3:$C$200=MONTH($G$1),ROW($3:$199)),ROWS($1:22)),MATCH(A$1,'Base de données'!$E$2:$T$2,0)+4),"") ->  | B23: =IFERROR(INDEX('Base de données'!$A$1:$T$200,SMALL(IF('Base de données'!$C$3:$C$200=MONTH($G$1),ROW($3:$199)),ROWS($1:22)),MATCH(B$1,'Base de données'!$E$2:$T$2,0)+4),"") ->  | C23: =IFERROR(INDEX('Base de données'!$A$1:$T$200,SMALL(IF('Base de données'!$C$3:$C$200=MONTH($G$1),ROW($3:$199)),ROWS($1:22)),MATCH(C$1,'Base de données'!$E$2:$T$2,0)+4),"") ->  | D23: =IFERROR(INDEX('Base de données'!$A$1:$T$200,SMALL(IF('Base de données'!$C$3:$C$200=MONTH($G$1),ROW($3:$199)),ROWS($1:22)),MATCH(D$1,'Base de données'!$E$2:$T$2,0)+4),"") ->  | E23: =IFERROR(INDEX('Base de données'!$A$1:$T$200,SMALL(IF('Base de données'!$C$3:$C$200=MONTH($G$1),ROW($3:$199)),ROWS($1:22)),MATCH(E$1,'Base de données'!$E$2:$T$2,0)+4),"") ->  | F23: =IFERROR(INDEX('Base de données'!$A$1:$T$200,SMALL(IF('Base de données'!$C$3:$C$200=MONTH($G$1),ROW($3:$199)),ROWS($1:22)),MATCH(F$1,'Base de données'!$E$2:$T$2,0)+4),"") ->  | M23: 2016-04-16 | N23: 0 | O23: 0 | P23: 0 | Q23: 0 | R23: 0 | S23: 0 | T23: 0 | U23: 0 | V23: 0 | W23: 0 | X23: 0 | Y23: 0 | Z23: 0
A24: =IFERROR(INDEX('Base de données'!$A$1:$T$200,SMALL(IF('Base de données'!$C$3:$C$200=MONTH($G$1),ROW($3:$199)),ROWS($1:23)),MATCH(A$1,'Base de données'!$E$2:$T$2,0)+4),"") ->  | B24: =IFERROR(INDEX('Base de données'!$A$1:$T$200,SMALL(IF('Base de données'!$C$3:$C$200=MONTH($G$1),ROW($3:$199)),ROWS($1:23)),MATCH(B$1,'Base de données'!$E$2:$T$2,0)+4),"") ->  | C24: =IFERROR(INDEX('Base de données'!$A$1:$T$200,SMALL(IF('Base de données'!$C$3:$C$200=MONTH($G$1),ROW($3:$199)),ROWS($1:23)),MATCH(C$1,'Base de données'!$E$2:$T$2,0)+4),"") ->  | D24: =IFERROR(INDEX('Base de données'!$A$1:$T$200,SMALL(IF('Base de données'!$C$3:$C$200=MONTH($G$1),ROW($3:$199)),ROWS($1:23)),MATCH(D$1,'Base de données'!$E$2:$T$2,0)+4),"") ->  | E24: =IFERROR(INDEX('Base de données'!$A$1:$T$200,SMALL(IF('Base de données'!$C$3:$C$200=MONTH($G$1),ROW($3:$199)),ROWS($1:23)),MATCH(E$1,'Base de données'!$E$2:$T$2,0)+4),"") ->  | F24: =IFERROR(INDEX('Base de données'!$A$1:$T$200,SMALL(IF('Base de données'!$C$3:$C$200=MONTH($G$1),ROW($3:$199)),ROWS($1:23)),MATCH(F$1,'Base de données'!$E$2:$T$2,0)+4),"") ->  | M24: 2016-04-17 | N24: 0 | O24: 0 | P24: 0 | Q24: 0 | R24: 0 | S24: 0 | T24: 0 | U24: 0 | V24: 0 | W24: 0 | X24: 0 | Y24: 0 | Z24: 0
A25: =IFERROR(INDEX('Base de données'!$A$1:$T$200,SMALL(IF('Base de données'!$C$3:$C$200=MONTH($G$1),ROW($3:$199)),ROWS($1:24)),MATCH(A$1,'Base de données'!$E$2:$T$2,0)+4),"") ->  | B25: =IFERROR(INDEX('Base de données'!$A$1:$T$200,SMALL(IF('Base de données'!$C$3:$C$200=MONTH($G$1),ROW($3:$199)),ROWS($1:24)),MATCH(B$1,'Base de données'!$E$2:$T$2,0)+4),"") ->  | C25: =IFERROR(INDEX('Base de données'!$A$1:$T$200,SMALL(IF('Base de données'!$C$3:$C$200=MONTH($G$1),ROW($3:$199)),ROWS($1:24)),MATCH(C$1,'Base de données'!$E$2:$T$2,0)+4),"") ->  | D25: =IFERROR(INDEX('Base de données'!$A$1:$T$200,SMALL(IF('Base de données'!$C$3:$C$200=MONTH($G$1),ROW($3:$199)),ROWS($1:24)),MATCH(D$1,'Base de données'!$E$2:$T$2,0)+4),"") ->  | E25: =IFERROR(INDEX('Base de données'!$A$1:$T$200,SMALL(IF('Base de données'!$C$3:$C$200=MONTH($G$1),ROW($3:$199)),ROWS($1:24)),MATCH(E$1,'Base de données'!$E$2:$T$2,0)+4),"") ->  | F25: =IFERROR(INDEX('Base de données'!$A$1:$T$200,SMALL(IF('Base de données'!$C$3:$C$200=MONTH($G$1),ROW($3:$199)),ROWS($1:24)),MATCH(F$1,'Base de données'!$E$2:$T$2,0)+4),"") ->  | M25: 2016-04-18 | N25: 0 | O25: 0 | P25: 0 | Q25: 0 | R25: 0 | S25: 0 | T25: 0 | U25: 0 | V25: 0 | W25: 0 | X25: 0 | Y25: 0 | Z25: 0
A26: =IFERROR(INDEX('Base de données'!$A$1:$T$200,SMALL(IF('Base de données'!$C$3:$C$200=MONTH($G$1),ROW($3:$199)),ROWS($1:25)),MATCH(A$1,'Base de données'!$E$2:$T$2,0)+4),"") ->  | B26: =IFERROR(INDEX('Base de données'!$A$1:$T$200,SMALL(IF('Base de données'!$C$3:$C$200=MONTH($G$1),ROW($3:$199)),ROWS($1:25)),MATCH(B$1,'Base de données'!$E$2:$T$2,0)+4),"") ->  | C26: =IFERROR(INDEX('Base de données'!$A$1:$T$200,SMALL(IF('Base de données'!$C$3:$C$200=MONTH($G$1),ROW($3:$199)),ROWS($1:25)),MATCH(C$1,'Base de données'!$E$2:$T$2,0)+4),"") ->  | D26: =IFERROR(INDEX('Base de données'!$A$1:$T$200,SMALL(IF('Base de données'!$C$3:$C$200=MONTH($G$1),ROW($3:$199)),ROWS($1:25)),MATCH(D$1,'Base de données'!$E$2:$T$2,0)+4),"") ->  | E26: =IFERROR(INDEX('Base de données'!$A$1:$T$200,SMALL(IF('Base de données'!$C$3:$C$200=MONTH($G$1),ROW($3:$199)),ROWS($1:25)),MATCH(E$1,'Base de données'!$E$2:$T$2,0)+4),"") ->  | F26: =IFERROR(INDEX('Base de données'!$A$1:$T$200,SMALL(IF('Base de données'!$C$3:$C$200=MONTH($G$1),ROW($3:$199)),ROWS($1:25)),MATCH(F$1,'Base de données'!$E$2:$T$2,0)+4),"") ->  | M26: 2016-04-19 | N26: 0 | O26: 0 | P26: 0 | Q26: 0 | R26: 0 | S26: 0 | T26: 0 | U26: 0 | V26: 0 | W26: 0 | X26: 0 | Y26: 0 | Z26: 0
A27: =IFERROR(INDEX('Base de données'!$A$1:$T$200,SMALL(IF('Base de données'!$C$3:$C$200=MONTH($G$1),ROW($3:$199)),ROWS($1:26)),MATCH(A$1,'Base de données'!$E$2:$T$2,0)+4),"") ->  | B27: =IFERROR(INDEX('Base de données'!$A$1:$T$200,SMALL(IF('Base de données'!$C$3:$C$200=MONTH($G$1),ROW($3:$199)),ROWS($1:26)),MATCH(B$1,'Base de données'!$E$2:$T$2,0)+4),"") ->  | C27: =IFERROR(INDEX('Base de données'!$A$1:$T$200,SMALL(IF('Base de données'!$C$3:$C$200=MONTH($G$1),ROW($3:$199)),ROWS($1:26)),MATCH(C$1,'Base de données'!$E$2:$T$2,0)+4),"") ->  | D27: =IFERROR(INDEX('Base de données'!$A$1:$T$200,SMALL(IF('Base de données'!$C$3:$C$200=MONTH($G$1),ROW($3:$199)),ROWS($1:26)),MATCH(D$1,'Base de données'!$E$2:$T$2,0)+4),"") ->  | E27: =IFERROR(INDEX('Base de données'!$A$1:$T$200,SMALL(IF('Base de données'!$C$3:$C$200=MONTH($G$1),ROW($3:$199)),ROWS($1:26)),MATCH(E$1,'Base de données'!$E$2:$T$2,0)+4),"") ->  | F27: =IFERROR(INDEX('Base de données'!$A$1:$T$200,SMALL(IF('Base de données'!$C$3:$C$200=MONTH($G$1),ROW($3:$199)),ROWS($1:26)),MATCH(F$1,'Base de données'!$E$2:$T$2,0)+4),"") ->  | M27: 2016-04-20 | N27: 0 | O27: 0 | P27: 0 | Q27: 0 | R27: 0 | S27: 0 | T27: 0 | U27: 0 | V27: 0 | W27: 0 | X27: 0 | Y27: 0 | Z27: 0
A28: =IFERROR(INDEX('Base de données'!$A$1:$T$200,SMALL(IF('Base de données'!$C$3:$C$200=MONTH($G$1),ROW($3:$199)),ROWS($1:27)),MATCH(A$1,'Base de données'!$E$2:$T$2,0)+4),"") ->  | B28: =IFERROR(INDEX('Base de données'!$A$1:$T$200,SMALL(IF('Base de données'!$C$3:$C$200=MONTH($G$1),ROW($3:$199)),ROWS($1:27)),MATCH(B$1,'Base de données'!$E$2:$T$2,0)+4),"") ->  | C28: =IFERROR(INDEX('Base de données'!$A$1:$T$200,SMALL(IF('Base de données'!$C$3:$C$200=MONTH($G$1),ROW($3:$199)),ROWS($1:27)),MATCH(C$1,'Base de données'!$E$2:$T$2,0)+4),"") ->  | D28: =IFERROR(INDEX('Base de données'!$A$1:$T$200,SMALL(IF('Base de données'!$C$3:$C$200=MONTH($G$1),ROW($3:$199)),ROWS($1:27)),MATCH(D$1,'Base de données'!$E$2:$T$2,0)+4),"") ->  | E28: =IFERROR(INDEX('Base de données'!$A$1:$T$200,SMALL(IF('Base de données'!$C$3:$C$200=MONTH($G$1),ROW($3:$199)),ROWS($1:27)),MATCH(E$1,'Base de données'!$E$2:$T$2,0)+4),"") ->  | F28: =IFERROR(INDEX('Base de données'!$A$1:$T$200,SMALL(IF('Base de données'!$C$3:$C$200=MONTH($G$1),ROW($3:$199)),ROWS($1:27)),MATCH(F$1,'Base de données'!$E$2:$T$2,0)+4),"") ->  | M28: 2016-04-21 | N28: 0 | O28: 0 | P28: 0 | Q28: 0 | R28: 0 | S28: 0 | T28: 0 | U28: 0 | V28: 0 | W28: 0 | X28: 0 | Y28: 0 | Z28: 0
A29: =IFERROR(INDEX('Base de données'!$A$1:$T$200,SMALL(IF('Base de données'!$C$3:$C$200=MONTH($G$1),ROW($3:$199)),ROWS($1:28)),MATCH(A$1,'Base de données'!$E$2:$T$2,0)+4),"") ->  | B29: =IFERROR(INDEX('Base de données'!$A$1:$T$200,SMALL(IF('Base de données'!$C$3:$C$200=MONTH($G$1),ROW($3:$199)),ROWS($1:28)),MATCH(B$1,'Base de données'!$E$2:$T$2,0)+4),"") ->  | C29: =IFERROR(INDEX('Base de données'!$A$1:$T$200,SMALL(IF('Base de données'!$C$3:$C$200=MONTH($G$1),ROW($3:$199)),ROWS($1:28)),MATCH(C$1,'Base de données'!$E$2:$T$2,0)+4),"") ->  | D29: =IFERROR(INDEX('Base de données'!$A$1:$T$200,SMALL(IF('Base de données'!$C$3:$C$200=MONTH($G$1),ROW($3:$199)),ROWS($1:28)),MATCH(D$1,'Base de données'!$E$2:$T$2,0)+4),"") ->  | E29: =IFERROR(INDEX('Base de données'!$A$1:$T$200,SMALL(IF('Base de données'!$C$3:$C$200=MONTH($G$1),ROW($3:$199)),ROWS($1:28)),MATCH(E$1,'Base de données'!$E$2:$T$2,0)+4),"") ->  | F29: =IFERROR(INDEX('Base de données'!$A$1:$T$200,SMALL(IF('Base de données'!$C$3:$C$200=MONTH($G$1),ROW($3:$199)),ROWS($1:28)),MATCH(F$1,'Base de données'!$E$2:$T$2,0)+4),"") ->  | M29: 2016-04-22 | N29: 0 | O29: 0 | P29: 0 | Q29: 0 | R29: 0 | S29: 0 | T29: 0 | U29: 0 | V29: 0 | W29: 0 | X29: 0 | Y29: 0 | Z29: 0
A30: =IFERROR(INDEX('Base de données'!$A$1:$T$200,SMALL(IF('Base de données'!$C$3:$C$200=MONTH($G$1),ROW($3:$199)),ROWS($1:29)),MATCH(A$1,'Base de données'!$E$2:$T$2,0)+4),"") ->  | B30: =IFERROR(INDEX('Base de données'!$A$1:$T$200,SMALL(IF('Base de données'!$C$3:$C$200=MONTH($G$1),ROW($3:$199)),ROWS($1:29)),MATCH(B$1,'Base de données'!$E$2:$T$2,0)+4),"") ->  | C30: =IFERROR(INDEX('Base de données'!$A$1:$T$200,SMALL(IF('Base de données'!$C$3:$C$200=MONTH($G$1),ROW($3:$199)),ROWS($1:29)),MATCH(C$1,'Base de données'!$E$2:$T$2,0)+4),"") ->  | D30: =IFERROR(INDEX('Base de données'!$A$1:$T$200,SMALL(IF('Base de données'!$C$3:$C$200=MONTH($G$1),ROW($3:$199)),ROWS($1:29)),MATCH(D$1,'Base de données'!$E$2:$T$2,0)+4),"") ->  | E30: =IFERROR(INDEX('Base de données'!$A$1:$T$200,SMALL(IF('Base de données'!$C$3:$C$200=MONTH($G$1),ROW($3:$199)),ROWS($1:29)),MATCH(E$1,'Base de données'!$E$2:$T$2,0)+4),"") ->  | F30: =IFERROR(INDEX('Base de données'!$A$1:$T$200,SMALL(IF('Base de données'!$C$3:$C$200=MONTH($G$1),ROW($3:$199)),ROWS($1:29)),MATCH(F$1,'Base de données'!$E$2:$T$2,0)+4),"") ->  | M30: 2016-04-23 | N30: 0 | O30: 0 | P30: 0 | Q30: 0 | R30: 0 | S30: 0 | T30: 0 | U30: 0 | V30: 0 | W30: 0 | X30: 0 | Y30: 0 | Z30: 0
A31: =IFERROR(INDEX('Base de données'!$A$1:$T$200,SMALL(IF('Base de données'!$C$3:$C$200=MONTH($G$1),ROW($3:$199)),ROWS($1:30)),MATCH(A$1,'Base de données'!$E$2:$T$2,0)+4),"") ->  | B31: =IFERROR(INDEX('Base de données'!$A$1:$T$200,SMALL(IF('Base de données'!$C$3:$C$200=MONTH($G$1),ROW($3:$199)),ROWS($1:30)),MATCH(B$1,'Base de données'!$E$2:$T$2,0)+4),"") ->  | C31: =IFERROR(INDEX('Base de données'!$A$1:$T$200,SMALL(IF('Base de données'!$C$3:$C$200=MONTH($G$1),ROW($3:$199)),ROWS($1:30)),MATCH(C$1,'Base de données'!$E$2:$T$2,0)+4),"") ->  | D31: =IFERROR(INDEX('Base de données'!$A$1:$T$200,SMALL(IF('Base de données'!$C$3:$C$200=MONTH($G$1),ROW($3:$199)),ROWS($1:30)),MATCH(D$1,'Base de données'!$E$2:$T$2,0)+4),"") ->  | E31: =IFERROR(INDEX('Base de données'!$A$1:$T$200,SMALL(IF('Base de données'!$C$3:$C$200=MONTH($G$1),ROW($3:$199)),ROWS($1:30)),MATCH(E$1,'Base de données'!$E$2:$T$2,0)+4),"") ->  | F31: =IFERROR(INDEX('Base de données'!$A$1:$T$200,SMALL(IF('Base de données'!$C$3:$C$200=MONTH($G$1),ROW($3:$199)),ROWS($1:30)),MATCH(F$1,'Base de données'!$E$2:$T$2,0)+4),"") ->  | M31: 2016-04-24 | N31: 0 | O31: 0 | P31: 0 | Q31: 0 | R31: 0 | S31: 0 | T31: 0 | U31: 0 | V31: 0 | W31: 0 | X31: 0 | Y31: 0 | Z31: 0
A32: =IFERROR(INDEX('Base de données'!$A$1:$T$200,SMALL(IF('Base de données'!$C$3:$C$200=MONTH($G$1),ROW($3:$199)),ROWS($1:31)),MATCH(A$1,'Base de données'!$E$2:$T$2,0)+4),"") ->  | B32: =IFERROR(INDEX('Base de données'!$A$1:$T$200,SMALL(IF('Base de données'!$C$3:$C$200=MONTH($G$1),ROW($3:$199)),ROWS($1:31)),MATCH(B$1,'Base de données'!$E$2:$T$2,0)+4),"") ->  | C32: =IFERROR(INDEX('Base de données'!$A$1:$T$200,SMALL(IF('Base de données'!$C$3:$C$200=MONTH($G$1),ROW($3:$199)),ROWS($1:31)),MATCH(C$1,'Base de données'!$E$2:$T$2,0)+4),"") ->  | D32: =IFERROR(INDEX('Base de données'!$A$1:$T$200,SMALL(IF('Base de données'!$C$3:$C$200=MONTH($G$1),ROW($3:$199)),ROWS($1:31)),MATCH(D$1,'Base de données'!$E$2:$T$2,0)+4),"") ->  | E32: =IFERROR(INDEX('Base de données'!$A$1:$T$200,SMALL(IF('Base de données'!$C$3:$C$200=MONTH($G$1),ROW($3:$199)),ROWS($1:31)),MATCH(E$1,'Base de données'!$E$2:$T$2,0)+4),"") ->  | F32: =IFERROR(INDEX('Base de données'!$A$1:$T$200,SMALL(IF('Base de données'!$C$3:$C$200=MONTH($G$1),ROW($3:$199)),ROWS($1:31)),MATCH(F$1,'Base de données'!$E$2:$T$2,0)+4),"") ->  | M32: 2016-04-25 | N32: 0 | O32: 0 | P32: 0 | Q32: 0 | R32: 0 | S32: 0 | T32: 0 | U32: 0 | V32: 0 | W32: 0 | X32: 0 | Y32: 0 | Z32: 0
A33: =IFERROR(INDEX('Base de données'!$A$1:$T$200,SMALL(IF('Base de données'!$C$3:$C$200=MONTH($G$1),ROW($3:$199)),ROWS($1:32)),MATCH(A$1,'Base de données'!$E$2:$T$2,0)+4),"") ->  | B33: =IFERROR(INDEX('Base de données'!$A$1:$T$200,SMALL(IF('Base de données'!$C$3:$C$200=MONTH($G$1),ROW($3:$199)),ROWS($1:32)),MATCH(B$1,'Base de données'!$E$2:$T$2,0)+4),"") ->  | C33: =IFERROR(INDEX('Base de données'!$A$1:$T$200,SMALL(IF('Base de données'!$C$3:$C$200=MONTH($G$1),ROW($3:$199)),ROWS($1:32)),MATCH(C$1,'Base de données'!$E$2:$T$2,0)+4),"") ->  | D33: =IFERROR(INDEX('Base de données'!$A$1:$T$200,SMALL(IF('Base de données'!$C$3:$C$200=MONTH($G$1),ROW($3:$199)),ROWS($1:32)),MATCH(D$1,'Base de données'!$E$2:$T$2,0)+4),"") ->  | E33: =IFERROR(INDEX('Base de données'!$A$1:$T$200,SMALL(IF('Base de données'!$C$3:$C$200=MONTH($G$1),ROW($3:$199)),ROWS($1:32)),MATCH(E$1,'Base de données'!$E$2:$T$2,0)+4),"") ->  | F33: =IFERROR(INDEX('Base de données'!$A$1:$T$200,SMALL(IF('Base de données'!$C$3:$C$200=MONTH($G$1),ROW($3:$199)),ROWS($1:32)),MATCH(F$1,'Base de données'!$E$2:$T$2,0)+4),"") ->  | M33: 2016-04-26 | N33: 0 | O33: 0 | P33: 0 | Q33: 0 | R33: 0 | S33: 0 | T33: 0 | U33: 0 | V33: 0 | W33: 0 | X33: 0 | Y33: 0 | Z33: 0
A34: =IFERROR(INDEX('Base de données'!$A$1:$T$200,SMALL(IF('Base de données'!$C$3:$C$200=MONTH($G$1),ROW($3:$199)),ROWS($1:33)),MATCH(A$1,'Base de données'!$E$2:$T$2,0)+4),"") ->  | B34: =IFERROR(INDEX('Base de données'!$A$1:$T$200,SMALL(IF('Base de données'!$C$3:$C$200=MONTH($G$1),ROW($3:$199)),ROWS($1:33)),MATCH(B$1,'Base de données'!$E$2:$T$2,0)+4),"") ->  | C34: =IFERROR(INDEX('Base de données'!$A$1:$T$200,SMALL(IF('Base de données'!$C$3:$C$200=MONTH($G$1),ROW($3:$199)),ROWS($1:33)),MATCH(C$1,'Base de données'!$E$2:$T$2,0)+4),"") ->  | D34: =IFERROR(INDEX('Base de données'!$A$1:$T$200,SMALL(IF('Base de données'!$C$3:$C$200=MONTH($G$1),ROW($3:$199)),ROWS($1:33)),MATCH(D$1,'Base de données'!$E$2:$T$2,0)+4),"") ->  | E34: =IFERROR(INDEX('Base de données'!$A$1:$T$200,SMALL(IF('Base de données'!$C$3:$C$200=MONTH($G$1),ROW($3:$199)),ROWS($1:33)),MATCH(E$1,'Base de données'!$E$2:$T$2,0)+4),"") ->  | F34: =IFERROR(INDEX('Base de données'!$A$1:$T$200,SMALL(IF('Base de données'!$C$3:$C$200=MONTH($G$1),ROW($3:$199)),ROWS($1:33)),MATCH(F$1,'Base de données'!$E$2:$T$2,0)+4),"") ->  | M34: 2016-04-27 | N34: 0 | O34: 0 | P34: 0 | Q34: 0 | R34: 0 | S34: 0 | T34: 0 | U34: 0 | V34: 0 | W34: 0 | X34: 0 | Y34: 0 | Z34: 0
A35: =IFERROR(INDEX('Base de données'!$A$1:$T$200,SMALL(IF('Base de données'!$C$3:$C$200=MONTH($G$1),ROW($3:$199)),ROWS($1:34)),MATCH(A$1,'Base de données'!$E$2:$T$2,0)+4),"") ->  | B35: =IFERROR(INDEX('Base de données'!$A$1:$T$200,SMALL(IF('Base de données'!$C$3:$C$200=MONTH($G$1),ROW($3:$199)),ROWS($1:34)),MATCH(B$1,'Base de données'!$E$2:$T$2,0)+4),"") ->  | C35: =IFERROR(INDEX('Base de données'!$A$1:$T$200,SMALL(IF('Base de données'!$C$3:$C$200=MONTH($G$1),ROW($3:$199)),ROWS($1:34)),MATCH(C$1,'Base de données'!$E$2:$T$2,0)+4),"") ->  | D35: =IFERROR(INDEX('Base de données'!$A$1:$T$200,SMALL(IF('Base de données'!$C$3:$C$200=MONTH($G$1),ROW($3:$199)),ROWS($1:34)),MATCH(D$1,'Base de données'!$E$2:$T$2,0)+4),"") ->  | E35: =IFERROR(INDEX('Base de données'!$A$1:$T$200,SMALL(IF('Base de données'!$C$3:$C$200=MONTH($G$1),ROW($3:$199)),ROWS($1:34)),MATCH(E$1,'Base de données'!$E$2:$T$2,0)+4),"") ->  | F35: =IFERROR(INDEX('Base de données'!$A$1:$T$200,SMALL(IF('Base de données'!$C$3:$C$200=MONTH($G$1),ROW($3:$199)),ROWS($1:34)),MATCH(F$1,'Base de données'!$E$2:$T$2,0)+4),"") ->  | M35: 2016-04-28 | N35: 0 | O35: 0 | P35: 0 | Q35: 0 | R35: 0 | S35: 0 | T35: 0 | U35: 0 | V35: 0 | W35: 0 | X35: 0 | Y35: 0 | Z35: 0
A36: =IFERROR(INDEX('Base de données'!$A$1:$T$200,SMALL(IF('Base de données'!$C$3:$C$200=MONTH($G$1),ROW($3:$199)),ROWS($1:35)),MATCH(A$1,'Base de données'!$E$2:$T$2,0)+4),"") ->  | B36: =IFERROR(INDEX('Base de données'!$A$1:$T$200,SMALL(IF('Base de données'!$C$3:$C$200=MONTH($G$1),ROW($3:$199)),ROWS($1:35)),MATCH(B$1,'Base de données'!$E$2:$T$2,0)+4),"") ->  | C36: =IFERROR(INDEX('Base de données'!$A$1:$T$200,SMALL(IF('Base de données'!$C$3:$C$200=MONTH($G$1),ROW($3:$199)),ROWS($1:35)),MATCH(C$1,'Base de données'!$E$2:$T$2,0)+4),"") ->  | D36: =IFERROR(INDEX('Base de données'!$A$1:$T$200,SMALL(IF('Base de données'!$C$3:$C$200=MONTH($G$1),ROW($3:$199)),ROWS($1:35)),MATCH(D$1,'Base de données'!$E$2:$T$2,0)+4),"") ->  | E36: =IFERROR(INDEX('Base de données'!$A$1:$T$200,SMALL(IF('Base de données'!$C$3:$C$200=MONTH($G$1),ROW($3:$199)),ROWS($1:35)),MATCH(E$1,'Base de données'!$E$2:$T$2,0)+4),"") ->  | F36: =IFERROR(INDEX('Base de données'!$A$1:$T$200,SMALL(IF('Base de données'!$C$3:$C$200=MONTH($G$1),ROW($3:$199)),ROWS($1:35)),MATCH(F$1,'Base de données'!$E$2:$T$2,0)+4),"") ->  | M36: 2016-04-29 | N36: 0 | O36: 0 | P36: 0 | Q36: 0 | R36: 0 | S36: 0 | T36: 0 | U36: 0 | V36: 0 | W36: 0 | X36: 0 | Y36: 0 | Z36: 0
A37: =IFERROR(INDEX('Base de données'!$A$1:$T$200,SMALL(IF('Base de données'!$C$3:$C$200=MONTH($G$1),ROW($3:$199)),ROWS($1:36)),MATCH(A$1,'Base de données'!$E$2:$T$2,0)+4),"") ->  | B37: =IFERROR(INDEX('Base de données'!$A$1:$T$200,SMALL(IF('Base de données'!$C$3:$C$200=MONTH($G$1),ROW($3:$199)),ROWS($1:36)),MATCH(B$1,'Base de données'!$E$2:$T$2,0)+4),"") ->  | C37: =IFERROR(INDEX('Base de données'!$A$1:$T$200,SMALL(IF('Base de données'!$C$3:$C$200=MONTH($G$1),ROW($3:$199)),ROWS($1:36)),MATCH(C$1,'Base de données'!$E$2:$T$2,0)+4),"") ->  | D37: =IFERROR(INDEX('Base de données'!$A$1:$T$200,SMALL(IF('Base de données'!$C$3:$C$200=MONTH($G$1),ROW($3:$199)),ROWS($1:36)),MATCH(D$1,'Base de données'!$E$2:$T$2,0)+4),"") ->  | E37: =IFERROR(INDEX('Base de données'!$A$1:$T$200,SMALL(IF('Base de données'!$C$3:$C$200=MONTH($G$1),ROW($3:$199)),ROWS($1:36)),MATCH(E$1,'Base de données'!$E$2:$T$2,0)+4),"") ->  | F37: =IFERROR(INDEX('Base de données'!$A$1:$T$200,SMALL(IF('Base de données'!$C$3:$C$200=MONTH($G$1),ROW($3:$199)),ROWS($1:36)),MATCH(F$1,'Base de données'!$E$2:$T$2,0)+4),"") ->  | M37: 2016-04-30 | N37: 0 | O37: 0 | P37: 0 | Q37: 0 | R37: 0 | S37: 0 | T37: 0 | U37: 0 | V37: 0 | W37: 0 | X37: 0 | Y37: 0 | Z37: 0
A38: =IFERROR(INDEX('Base de données'!$A$1:$T$200,SMALL(IF('Base de données'!$C$3:$C$200=MONTH($G$1),ROW($3:$199)),ROWS($1:37)),MATCH(A$1,'Base de données'!$E$2:$T$2,0)+4),"") ->  | B38: =IFERROR(INDEX('Base de données'!$A$1:$T$200,SMALL(IF('Base de données'!$C$3:$C$200=MONTH($G$1),ROW($3:$199)),ROWS($1:37)),MATCH(B$1,'Base de données'!$E$2:$T$2,0)+4),"") ->  | C38: =IFERROR(INDEX('Base de données'!$A$1:$T$200,SMALL(IF('Base de données'!$C$3:$C$200=MONTH($G$1),ROW($3:$199)),ROWS($1:37)),MATCH(C$1,'Base de données'!$E$2:$T$2,0)+4),"") ->  | D38: =IFERROR(INDEX('Base de données'!$A$1:$T$200,SMALL(IF('Base de données'!$C$3:$C$200=MONTH($G$1),ROW($3:$199)),ROWS($1:37)),MATCH(D$1,'Base de données'!$E$2:$T$2,0)+4),"") ->  | E38: =IFERROR(INDEX('Base de données'!$A$1:$T$200,SMALL(IF('Base de données'!$C$3:$C$200=MONTH($G$1),ROW($3:$199)),ROWS($1:37)),MATCH(E$1,'Base de données'!$E$2:$T$2,0)+4),"") ->  | F38: =IFERROR(INDEX('Base de données'!$A$1:$T$200,SMALL(IF('Base de données'!$C$3:$C$200=MONTH($G$1),ROW($3:$199)),ROWS($1:37)),MATCH(F$1,'Base de données'!$E$2:$T$2,0)+4),"") -> 
A39: =IFERROR(INDEX('Base de données'!$A$1:$T$200,SMALL(IF('Base de données'!$C$3:$C$200=MONTH($G$1),ROW($3:$199)),ROWS($1:38)),MATCH(A$1,'Base de données'!$E$2:$T$2,0)+4),"") ->  | B39: =IFERROR(INDEX('Base de données'!$A$1:$T$200,SMALL(IF('Base de données'!$C$3:$C$200=MONTH($G$1),ROW($3:$199)),ROWS($1:38)),MATCH(B$1,'Base de données'!$E$2:$T$2,0)+4),"") ->  | C39: =IFERROR(INDEX('Base de données'!$A$1:$T$200,SMALL(IF('Base de données'!$C$3:$C$200=MONTH($G$1),ROW($3:$199)),ROWS($1:38)),MATCH(C$1,'Base de données'!$E$2:$T$2,0)+4),"") ->  | D39: =IFERROR(INDEX('Base de données'!$A$1:$T$200,SMALL(IF('Base de données'!$C$3:$C$200=MONTH($G$1),ROW($3:$199)),ROWS($1:38)),MATCH(D$1,'Base de données'!$E$2:$T$2,0)+4),"") ->  | E39: =IFERROR(INDEX('Base de données'!$A$1:$T$200,SMALL(IF('Base de données'!$C$3:$C$200=MONTH($G$1),ROW($3:$199)),ROWS($1:38)),MATCH(E$1,'Base de données'!$E$2:$T$2,0)+4),"") ->  | F39: =IFERROR(INDEX('Base de données'!$A$1:$T$200,SMALL(IF('Base de données'!$C$3:$C$200=MONTH($G$1),ROW($3:$199)),ROWS($1:38)),MATCH(F$1,'Base de données'!$E$2:$T$2,0)+4),"") -> 
A40: =IFERROR(INDEX('Base de données'!$A$1:$T$200,SMALL(IF('Base de données'!$C$3:$C$200=MONTH($G$1),ROW($3:$199)),ROWS($1:39)),MATCH(A$1,'Base de données'!$E$2:$T$2,0)+4),"") ->  | B40: =IFERROR(INDEX('Base de données'!$A$1:$T$200,SMALL(IF('Base de données'!$C$3:$C$200=MONTH($G$1),ROW($3:$199)),ROWS($1:39)),MATCH(B$1,'Base de données'!$E$2:$T$2,0)+4),"") ->  | C40: =IFERROR(INDEX('Base de données'!$A$1:$T$200,SMALL(IF('Base de données'!$C$3:$C$200=MONTH($G$1),ROW($3:$199)),ROWS($1:39)),MATCH(C$1,'Base de données'!$E$2:$T$2,0)+4),"") ->  | D40: =IFERROR(INDEX('Base de données'!$A$1:$T$200,SMALL(IF('Base de données'!$C$3:$C$200=MONTH($G$1),ROW($3:$199)),ROWS($1:39)),MATCH(D$1,'Base de données'!$E$2:$T$2,0)+4),"") ->  | E40: =IFERROR(INDEX('Base de données'!$A$1:$T$200,SMALL(IF('Base de données'!$C$3:$C$200=MONTH($G$1),ROW($3:$199)),ROWS($1:39)),MATCH(E$1,'Base de données'!$E$2:$T$2,0)+4),"") ->  | F40: =IFERROR(INDEX('Base de données'!$A$1:$T$200,SMALL(IF('Base de données'!$C$3:$C$200=MONTH($G$1),ROW($3:$199)),ROWS($1:39)),MATCH(F$1,'Base de données'!$E$2:$T$2,0)+4),"") -> 
A41: =IFERROR(INDEX('Base de données'!$A$1:$T$200,SMALL(IF('Base de données'!$C$3:$C$200=MONTH($G$1),ROW($3:$199)),ROWS($1:40)),MATCH(A$1,'Base de données'!$E$2:$T$2,0)+4),"") ->  | B41: =IFERROR(INDEX('Base de données'!$A$1:$T$200,SMALL(IF('Base de données'!$C$3:$C$200=MONTH($G$1),ROW($3:$199)),ROWS($1:40)),MATCH(B$1,'Base de données'!$E$2:$T$2,0)+4),"") ->  | C41: =IFERROR(INDEX('Base de données'!$A$1:$T$200,SMALL(IF('Base de données'!$C$3:$C$200=MONTH($G$1),ROW($3:$199)),ROWS($1:40)),MATCH(C$1,'Base de données'!$E$2:$T$2,0)+4),"") ->  | D41: =IFERROR(INDEX('Base de données'!$A$1:$T$200,SMALL(IF('Base de données'!$C$3:$C$200=MONTH($G$1),ROW($3:$199)),ROWS($1:40)),MATCH(D$1,'Base de données'!$E$2:$T$2,0)+4),"") ->  | E41: =IFERROR(INDEX('Base de données'!$A$1:$T$200,SMALL(IF('Base de données'!$C$3:$C$200=MONTH($G$1),ROW($3:$199)),ROWS($1:40)),MATCH(E$1,'Base de données'!$E$2:$T$2,0)+4),"") ->  | F41: =IFERROR(INDEX('Base de données'!$A$1:$T$200,SMALL(IF('Base de données'!$C$3:$C$200=MONTH($G$1),ROW($3:$199)),ROWS($1:40)),MATCH(F$1,'Base de données'!$E$2:$T$2,0)+4),"") -> 
A42: =IFERROR(INDEX('Base de données'!$A$1:$T$200,SMALL(IF('Base de données'!$C$3:$C$200=MONTH($G$1),ROW($3:$199)),ROWS($1:41)),MATCH(A$1,'Base de données'!$E$2:$T$2,0)+4),"") ->  | B42: =IFERROR(INDEX('Base de données'!$A$1:$T$200,SMALL(IF('Base de données'!$C$3:$C$200=MONTH($G$1),ROW($3:$199)),ROWS($1:41)),MATCH(B$1,'Base de données'!$E$2:$T$2,0)+4),"") ->  | C42: =IFERROR(INDEX('Base de données'!$A$1:$T$200,SMALL(IF('Base de données'!$C$3:$C$200=MONTH($G$1),ROW($3:$199)),ROWS($1:41)),MATCH(C$1,'Base de données'!$E$2:$T$2,0)+4),"") ->  | D42: =IFERROR(INDEX('Base de données'!$A$1:$T$200,SMALL(IF('Base de données'!$C$3:$C$200=MONTH($G$1),ROW($3:$199)),ROWS($1:41)),MATCH(D$1,'Base de données'!$E$2:$T$2,0)+4),"") ->  | E42: =IFERROR(INDEX('Base de données'!$A$1:$T$200,SMALL(IF('Base de données'!$C$3:$C$200=MONTH($G$1),ROW($3:$199)),ROWS($1:41)),MATCH(E$1,'Base de données'!$E$2:$T$2,0)+4),"") ->  | F42: =IFERROR(INDEX('Base de données'!$A$1:$T$200,SMALL(IF('Base de données'!$C$3:$C$200=MONTH($G$1),ROW($3:$199)),ROWS($1:41)),MATCH(F$1,'Base de données'!$E$2:$T$2,0)+4),"") -> 
A43: =IFERROR(INDEX('Base de données'!$A$1:$T$200,SMALL(IF('Base de données'!$C$3:$C$200=MONTH($G$1),ROW($3:$199)),ROWS($1:42)),MATCH(A$1,'Base de données'!$E$2:$T$2,0)+4),"") ->  | B43: =IFERROR(INDEX('Base de données'!$A$1:$T$200,SMALL(IF('Base de données'!$C$3:$C$200=MONTH($G$1),ROW($3:$199)),ROWS($1:42)),MATCH(B$1,'Base de données'!$E$2:$T$2,0)+4),"") ->  | C43: =IFERROR(INDEX('Base de données'!$A$1:$T$200,SMALL(IF('Base de données'!$C$3:$C$200=MONTH($G$1),ROW($3:$199)),ROWS($1:42)),MATCH(C$1,'Base de données'!$E$2:$T$2,0)+4),"") ->  | D43: =IFERROR(INDEX('Base de données'!$A$1:$T$200,SMALL(IF('Base de données'!$C$3:$C$200=MONTH($G$1),ROW($3:$199)),ROWS($1:42)),MATCH(D$1,'Base de données'!$E$2:$T$2,0)+4),"") ->  | E43: =IFERROR(INDEX('Base de données'!$A$1:$T$200,SMALL(IF('Base de données'!$C$3:$C$200=MONTH($G$1),ROW($3:$199)),ROWS($1:42)),MATCH(E$1,'Base de données'!$E$2:$T$2,0)+4),"") ->  | F43: =IFERROR(INDEX('Base de données'!$A$1:$T$200,SMALL(IF('Base de données'!$C$3:$C$200=MONTH($G$1),ROW($3:$199)),ROWS($1:42)),MATCH(F$1,'Base de données'!$E$2:$T$2,0)+4),"") -> 
A44: =IFERROR(INDEX('Base de données'!$A$1:$T$200,SMALL(IF('Base de données'!$C$3:$C$200=MONTH($G$1),ROW($3:$199)),ROWS($1:43)),MATCH(A$1,'Base de données'!$E$2:$T$2,0)+4),"") ->  | B44: =IFERROR(INDEX('Base de données'!$A$1:$T$200,SMALL(IF('Base de données'!$C$3:$C$200=MONTH($G$1),ROW($3:$199)),ROWS($1:43)),MATCH(B$1,'Base de données'!$E$2:$T$2,0)+4),"") ->  | C44: =IFERROR(INDEX('Base de données'!$A$1:$T$200,SMALL(IF('Base de données'!$C$3:$C$200=MONTH($G$1),ROW($3:$199)),ROWS($1:43)),MATCH(C$1,'Base de données'!$E$2:$T$2,0)+4),"") ->  | D44: =IFERROR(INDEX('Base de données'!$A$1:$T$200,SMALL(IF('Base de données'!$C$3:$C$200=MONTH($G$1),ROW($3:$199)),ROWS($1:43)),MATCH(D$1,'Base de données'!$E$2:$T$2,0)+4),"") ->  | E44: =IFERROR(INDEX('Base de données'!$A$1:$T$200,SMALL(IF('Base de données'!$C$3:$C$200=MONTH($G$1),ROW($3:$199)),ROWS($1:43)),MATCH(E$1,'Base de données'!$E$2:$T$2,0)+4),"") ->  | F44: =IFERROR(INDEX('Base de données'!$A$1:$T$200,SMALL(IF('Base de données'!$C$3:$C$200=MONTH($G$1),ROW($3:$199)),ROWS($1:43)),MATCH(F$1,'Base de données'!$E$2:$T$2,0)+4),"") -> 
A45: =IFERROR(INDEX('Base de données'!$A$1:$T$200,SMALL(IF('Base de données'!$C$3:$C$200=MONTH($G$1),ROW($3:$199)),ROWS($1:44)),MATCH(A$1,'Base de données'!$E$2:$T$2,0)+4),"") ->  | B45: =IFERROR(INDEX('Base de données'!$A$1:$T$200,SMALL(IF('Base de données'!$C$3:$C$200=MONTH($G$1),ROW($3:$199)),ROWS($1:44)),MATCH(B$1,'Base de données'!$E$2:$T$2,0)+4),"") ->  | C45: =IFERROR(INDEX('Base de données'!$A$1:$T$200,SMALL(IF('Base de données'!$C$3:$C$200=MONTH($G$1),ROW($3:$199)),ROWS($1:44)),MATCH(C$1,'Base de données'!$E$2:$T$2,0)+4),"") ->  | D45: =IFERROR(INDEX('Base de données'!$A$1:$T$200,SMALL(IF('Base de données'!$C$3:$C$200=MONTH($G$1),ROW($3:$199)),ROWS($1:44)),MATCH(D$1,'Base de données'!$E$2:$T$2,0)+4),"") ->  | E45: =IFERROR(INDEX('Base de données'!$A$1:$T$200,SMALL(IF('Base de données'!$C$3:$C$200=MONTH($G$1),ROW($3:$199)),ROWS($1:44)),MATCH(E$1,'Base de données'!$E$2:$T$2,0)+4),"") ->  | F45: =IFERROR(INDEX('Base de données'!$A$1:$T$200,SMALL(IF('Base de données'!$C$3:$C$200=MONTH($G$1),ROW($3:$199)),ROWS($1:44)),MATCH(F$1,'Base de données'!$E$2:$T$2,0)+4),"") -> 
B46: Total mois | E46: =SUM(E2:E45) -> 0

Sheet Mai
A1: Date | B1: # CR | C1: # Catégorie | D1: Provenance | E1: poids | F1: Commentaire | G1: 2016-05-01 | M1: Date | N1: 1 | O1: 2 | P1: 3 | Q1: 4 | R1: 5 | T1: 6 | U1: 7 | V1: 8 | Y1: 9 | Z1: 10
A2: =IFERROR(INDEX('Base de données'!$A$1:$T$200,SMALL(IF('Base de données'!$C$3:$C$200=MONTH($G$1),ROW($3:$199)),ROWS($1:1)),MATCH(A$1,'Base de données'!$E$2:$T$2,0)+4),"") ->  | B2: =IFERROR(INDEX('Base de données'!$A$1:$T$200,SMALL(IF('Base de données'!$C$3:$C$200=MONTH($G$1),ROW($3:$199)),ROWS($1:1)),MATCH(B$1,'Base de données'!$E$2:$T$2,0)+4),"") ->  | C2: =IFERROR(INDEX('Base de données'!$A$1:$T$200,SMALL(IF('Base de données'!$C$3:$C$200=MONTH($G$1),ROW($3:$199)),ROWS($1:1)),MATCH(C$1,'Base de données'!$E$2:$T$2,0)+4),"") ->  | D2: =IFERROR(INDEX('Base de données'!$A$1:$T$200,SMALL(IF('Base de données'!$C$3:$C$200=MONTH($G$1),ROW($3:$199)),ROWS($1:1)),MATCH(D$1,'Base de données'!$E$2:$T$2,0)+4),"") ->  | E2: =IFERROR(INDEX('Base de données'!$A$1:$T$200,SMALL(IF('Base de données'!$C$3:$C$200=MONTH($G$1),ROW($3:$199)),ROWS($1:1)),MATCH(E$1,'Base de données'!$E$2:$T$2,0)+4),"") ->  | F2: =IFERROR(INDEX('Base de données'!$A$1:$T$200,SMALL(IF('Base de données'!$C$3:$C$200=MONTH($G$1),ROW($3:$199)),ROWS($1:1)),MATCH(F$1,'Base de données'!$E$2:$T$2,0)+4),"") ->  | N2: Copeaux d'aluminium propre et sec | O2: Copeaux d'aluminium propre et humides | P2: Copeaux d'aliminium contaminés | Q2: Aluminium en morceau (blocs/plaques) 7000 | R2: Aluminium contaminer mixte en morceau (blocs/plaques) | T2: Aluminium mixte en morceau (autre que blocs/plaques) 2024 | U2: Aluminium de série 7000 en morceau (surdimensionné) | V2: Acier mixte en morceau | Y2: Acier inoxydable mixte en morceau | Z2: Fil de cuivre
A3: =IFERROR(INDEX('Base de données'!$A$1:$T$200,SMALL(IF('Base de données'!$C$3:$C$200=MONTH($G$1),ROW($3:$199)),ROWS($1:2)),MATCH(A$1,'Base de données'!$E$2:$T$2,0)+4),"") ->  | B3: =IFERROR(INDEX('Base de données'!$A$1:$T$200,SMALL(IF('Base de données'!$C$3:$C$200=MONTH($G$1),ROW($3:$199)),ROWS($1:2)),MATCH(B$1,'Base de données'!$E$2:$T$2,0)+4),"") ->  | C3: =IFERROR(INDEX('Base de données'!$A$1:$T$200,SMALL(IF('Base de données'!$C$3:$C$200=MONTH($G$1),ROW($3:$199)),ROWS($1:2)),MATCH(C$1,'Base de données'!$E$2:$T$2,0)+4),"") ->  | D3: =IFERROR(INDEX('Base de données'!$A$1:$T$200,SMALL(IF('Base de données'!$C$3:$C$200=MONTH($G$1),ROW($3:$199)),ROWS($1:2)),MATCH(D$1,'Base de données'!$E$2:$T$2,0)+4),"") ->  | E3: =IFERROR(INDEX('Base de données'!$A$1:$T$200,SMALL(IF('Base de données'!$C$3:$C$200=MONTH($G$1),ROW($3:$199)),ROWS($1:2)),MATCH(E$1,'Base de données'!$E$2:$T$2,0)+4),"") ->  | F3: =IFERROR(INDEX('Base de données'!$A$1:$T$200,SMALL(IF('Base de données'!$C$3:$C$200=MONTH($G$1),ROW($3:$199)),ROWS($1:2)),MATCH(F$1,'Base de données'!$E$2:$T$2,0)+4),"") ->  | G3: 1 | H3: 2 | I3: 3 | J3: 4 | K3: 5
A4: =IFERROR(INDEX('Base de données'!$A$1:$T$200,SMALL(IF('Base de données'!$C$3:$C$200=MONTH($G$1),ROW($3:$199)),ROWS($1:3)),MATCH(A$1,'Base de données'!$E$2:$T$2,0)+4),"") ->  | B4: =IFERROR(INDEX('Base de données'!$A$1:$T$200,SMALL(IF('Base de données'!$C$3:$C$200=MONTH($G$1),ROW($3:$199)),ROWS($1:3)),MATCH(B$1,'Base de données'!$E$2:$T$2,0)+4),"") ->  | C4: =IFERROR(INDEX('Base de données'!$A$1:$T$200,SMALL(IF('Base de données'!$C$3:$C$200=MONTH($G$1),ROW($3:$199)),ROWS($1:3)),MATCH(C$1,'Base de données'!$E$2:$T$2,0)+4),"") ->  | D4: =IFERROR(INDEX('Base de données'!$A$1:$T$200,SMALL(IF('Base de données'!$C$3:$C$200=MONTH($G$1),ROW($3:$199)),ROWS($1:3)),MATCH(D$1,'Base de données'!$E$2:$T$2,0)+4),"") ->  | E4: =IFERROR(INDEX('Base de données'!$A$1:$T$200,SMALL(IF('Base de données'!$C$3:$C$200=MONTH($G$1),ROW($3:$199)),ROWS($1:3)),MATCH(E$1,'Base de données'!$E$2:$T$2,0)+4),"") ->  | F4: =IFERROR(INDEX('Base de données'!$A$1:$T$200,SMALL(IF('Base de données'!$C$3:$C$200=MONTH($G$1),ROW($3:$199)),ROWS($1:3)),MATCH(F$1,'Base de données'!$E$2:$T$2,0)+4),"") ->  | G4: Copeaux | H4: Copeaux | I4: Copeaux | J4: Aluminium | K4: Aluminium contaminés
A5: =IFERROR(INDEX('Base de données'!$A$1:$T$200,SMALL(IF('Base de données'!$C$3:$C$200=MONTH($G$1),ROW($3:$199)),ROWS($1:4)),MATCH(A$1,'Base de données'!$E$2:$T$2,0)+4),"") ->  | B5: =IFERROR(INDEX('Base de données'!$A$1:$T$200,SMALL(IF('Base de données'!$C$3:$C$200=MONTH($G$1),ROW($3:$199)),ROWS($1:4)),MATCH(B$1,'Base de données'!$E$2:$T$2,0)+4),"") ->  | C5: =IFERROR(INDEX('Base de données'!$A$1:$T$200,SMALL(IF('Base de données'!$C$3:$C$200=MONTH($G$1),ROW($3:$199)),ROWS($1:4)),MATCH(C$1,'Base de données'!$E$2:$T$2,0)+4),"") ->  | D5: =IFERROR(INDEX('Base de données'!$A$1:$T$200,SMALL(IF('Base de données'!$C$3:$C$200=MONTH($G$1),ROW($3:$199)),ROWS($1:4)),MATCH(D$1,'Base de données'!$E$2:$T$2,0)+4),"") ->  | E5: =IFERROR(INDEX('Base de données'!$A$1:$T$200,SMALL(IF('Base de données'!$C$3:$C$200=MONTH($G$1),ROW($3:$199)),ROWS($1:4)),MATCH(E$1,'Base de données'!$E$2:$T$2,0)+4),"") ->  | F5: =IFERROR(INDEX('Base de données'!$A$1:$T$200,SMALL(IF('Base de données'!$C$3:$C$200=MONTH($G$1),ROW($3:$199)),ROWS($1:4)),MATCH(F$1,'Base de données'!$E$2:$T$2,0)+4),"") ->  | G5: D'aluminium | H5: D'aluminium | I5: D'aluminium | J5: en morceau | K5: mixte en morceau
A6: =IFERROR(INDEX('Base de données'!$A$1:$T$200,SMALL(IF('Base de données'!$C$3:$C$200=MONTH($G$1),ROW($3:$199)),ROWS($1:5)),MATCH(A$1,'Base de données'!$E$2:$T$2,0)+4),"") ->  | B6: =IFERROR(INDEX('Base de données'!$A$1:$T$200,SMALL(IF('Base de données'!$C$3:$C$200=MONTH($G$1),ROW($3:$199)),ROWS($1:5)),MATCH(B$1,'Base de données'!$E$2:$T$2,0)+4),"") ->  | C6: =IFERROR(INDEX('Base de données'!$A$1:$T$200,SMALL(IF('Base de données'!$C$3:$C$200=MONTH($G$1),ROW($3:$199)),ROWS($1:5)),MATCH(C$1,'Base de données'!$E$2:$T$2,0)+4),"") ->  | D6: =IFERROR(INDEX('Base de données'!$A$1:$T$200,SMALL(IF('Base de données'!$C$3:$C$200=MONTH($G$1),ROW($3:$199)),ROWS($1:5)),MATCH(D$1,'Base de données'!$E$2:$T$2,0)+4),"") ->  | E6: =IFERROR(INDEX('Base de données'!$A$1:$T$200,SMALL(IF('Base de données'!$C$3:$C$200=MONTH($G$1),ROW($3:$199)),ROWS($1:5)),MATCH(E$1,'Base de données'!$E$2:$T$2,0)+4),"") ->  | F6: =IFERROR(INDEX('Base de données'!$A$1:$T$200,SMALL(IF('Base de données'!$C$3:$C$200=MONTH($G$1),ROW($3:$199)),ROWS($1:5)),MATCH(F$1,'Base de données'!$E$2:$T$2,0)+4),"") ->  | G6: propre et sec | H6: propre et | I6: Contaminés | J6: blocs/plaque | K6: (Blocs/plaques)
A7: =IFERROR(INDEX('Base de données'!$A$1:$T$200,SMALL(IF('Base de données'!$C$3:$C$200=MONTH($G$1),ROW($3:$199)),ROWS($1:6)),MATCH(A$1,'Base de données'!$E$2:$T$2,0)+4),"") ->  | B7: =IFERROR(INDEX('Base de données'!$A$1:$T$200,SMALL(IF('Base de données'!$C$3:$C$200=MONTH($G$1),ROW($3:$199)),ROWS($1:6)),MATCH(B$1,'Base de données'!$E$2:$T$2,0)+4),"") ->  | C7: =IFERROR(INDEX('Base de données'!$A$1:$T$200,SMALL(IF('Base de données'!$C$3:$C$200=MONTH($G$1),ROW($3:$199)),ROWS($1:6)),MATCH(C$1,'Base de données'!$E$2:$T$2,0)+4),"") ->  | D7: =IFERROR(INDEX('Base de données'!$A$1:$T$200,SMALL(IF('Base de données'!$C$3:$C$200=MONTH($G$1),ROW($3:$199)),ROWS($1:6)),MATCH(D$1,'Base de données'!$E$2:$T$2,0)+4),"") ->  | E7: =IFERROR(INDEX('Base de données'!$A$1:$T$200,SMALL(IF('Base de données'!$C$3:$C$200=MONTH($G$1),ROW($3:$199)),ROWS($1:6)),MATCH(E$1,'Base de données'!$E$2:$T$2,0)+4),"") ->  | F7: =IFERROR(INDEX('Base de données'!$A$1:$T$200,SMALL(IF('Base de données'!$C$3:$C$200=MONTH($G$1),ROW($3:$199)),ROWS($1:6)),MATCH(F$1,'Base de données'!$E$2:$T$2,0)+4),"") ->  | H7: humides | J7: 7000 | K7: U.S 1 | L7: U.S 3 | R7: U.S 1 | S7: U.S 3 | V7: U.S 1 | W7: U.S 3 | X7: U.S 8
A8: =IFERROR(INDEX('Base de données'!$A$1:$T$200,SMALL(IF('Base de données'!$C$3:$C$200=MONTH($G$1),ROW($3:$199)),ROWS($1:7)),MATCH(A$1,'Base de données'!$E$2:$T$2,0)+4),"") ->  | B8: =IFERROR(INDEX('Base de données'!$A$1:$T$200,SMALL(IF('Base de données'!$C$3:$C$200=MONTH($G$1),ROW($3:$199)),ROWS($1:7)),MATCH(B$1,'Base de données'!$E$2:$T$2,0)+4),"") ->  | C8: =IFERROR(INDEX('Base de données'!$A$1:$T$200,SMALL(IF('Base de données'!$C$3:$C$200=MONTH($G$1),ROW($3:$199)),ROWS($1:7)),MATCH(C$1,'Base de données'!$E$2:$T$2,0)+4),"") ->  | D8: =IFERROR(INDEX('Base de données'!$A$1:$T$200,SMALL(IF('Base de données'!$C$3:$C$200=MONTH($G$1),ROW($3:$199)),ROWS($1:7)),MATCH(D$1,'Base de données'!$E$2:$T$2,0)+4),"") ->  | E8: =IFERROR(INDEX('Base de données'!$A$1:$T$200,SMALL(IF('Base de données'!$C$3:$C$200=MONTH($G$1),ROW($3:$199)),ROWS($1:7)),MATCH(E$1,'Base de données'!$E$2:$T$2,0)+4),"") ->  | F8: =IFERROR(INDEX('Base de données'!$A$1:$T$200,SMALL(IF('Base de données'!$C$3:$C$200=MONTH($G$1),ROW($3:$199)),ROWS($1:7)),MATCH(F$1,'Base de données'!$E$2:$T$2,0)+4),"") ->  | G8: =SUMIF(C2:C46,"1",E2:E46) -> 0 | H8: =SUMIF(C2:C46,"2",E2:E46) -> 0 | I8: =SUMIF(C2:C46,"3",E2:E46) -> 0 | J8: =SUMIF(C2:C46,"4",E2:E46) -> 0 | K8: =SUMIFS(E2:E46,C2:C46,"5",D2:D46,"0") -> 0 | L8: =SUMIFS(E2:E46,C2:C46,"5",D2:D46,"U.S 3") -> 0 | M8: 2016-05-01 | N8: =SUMIFS(E:E,A:A,M$8:M$46,C:C,"1") -> 0 | O8: =SUMIFS(E:E,A:A,M$8:M$46,C:C,"2") -> 0 | P8: =SUMIFS(E:E,A:A,M$8:M$46,C:C,"3") -> 0 | Q8: =SUMIFS(E:E,A:A,M$8:M$46,C:C,"4") -> 0 | R8: =SUMIFS(E:E,A:A,M$8:M$46,C:C,"5",D:D,"0") -> 0 | S8: =SUMIFS(E:E,A:A,M$8:M$46,C:C,"5",D:D,"U.S 3") -> 0 | T8: =SUMIFS(E:E,A:A,M$8:M$46,C:C,"6") -> 0 | U8: =SUMIFS(E:E,A:A,M$8:M$46,C:C,"7") -> 0 | V8: =SUMIFS(E:E,A:A,M$8:M$46,C:C,"8",D:D,"0") -> 0 | W8: =SUMIFS(E:E,A:A,M$8:M$46,C:C,"8",D:D,"U.S 3") -> 0 | X8: =SUMIFS(E:E,A:A,M$8:M$46,C:C,"8",D:D,"U.S 8") -> 0 | Y8: =SUMIFS(E:E,A:A,M$8:M$46,C:C,"9") -> 0 | Z8: =SUMIFS(E:E,A:A,M$8:M$46,C:C,"10") -> 0
A9: =IFERROR(INDEX('Base de données'!$A$1:$T$200,SMALL(IF('Base de données'!$C$3:$C$200=MONTH($G$1),ROW($3:$199)),ROWS($1:8)),MATCH(A$1,'Base de données'!$E$2:$T$2,0)+4),"") ->  | B9: =IFERROR(INDEX('Base de données'!$A$1:$T$200,SMALL(IF('Base de données'!$C$3:$C$200=MONTH($G$1),ROW($3:$199)),ROWS($1:8)),MATCH(B$1,'Base de données'!$E$2:$T$2,0)+4),"") ->  | C9: =IFERROR(INDEX('Base de données'!$A$1:$T$200,SMALL(IF('Base de données'!$C$3:$C$200=MONTH($G$1),ROW($3:$199)),ROWS($1:8)),MATCH(C$1,'Base de données'!$E$2:$T$2,0)+4),"") ->  | D9: =IFERROR(INDEX('Base de données'!$A$1:$T$200,SMALL(IF('Base de données'!$C$3:$C$200=MONTH($G$1),ROW($3:$199)),ROWS($1:8)),MATCH(D$1,'Base de données'!$E$2:$T$2,0)+4),"") ->  | E9: =IFERROR(INDEX('Base de données'!$A$1:$T$200,SMALL(IF('Base de données'!$C$3:$C$200=MONTH($G$1),ROW($3:$199)),ROWS($1:8)),MATCH(E$1,'Base de données'!$E$2:$T$2,0)+4),"") ->  | F9: =IFERROR(INDEX('Base de données'!$A$1:$T$200,SMALL(IF('Base de données'!$C$3:$C$200=MONTH($G$1),ROW($3:$199)),ROWS($1:8)),MATCH(F$1,'Base de données'!$E$2:$T$2,0)+4),"") ->  | K9: Total | M9: 2016-05-02 | N9: 0 | O9: 0 | P9: 0 | Q9: 0 | R9: =SUMIFS(E:E,A:A,M$8:M$46,C:C,"5",D:D,"0") -> 0 | S9: 0 | T9: 0 | U9: 0 | V9: =SUMIFS(E:E,A:A,M$8:M$46,C:C,"8",D:D,"0") -> 0 | W9: 0 | X9: 0 | Y9: 0 | Z9: 0
A10: =IFERROR(INDEX('Base de données'!$A$1:$T$200,SMALL(IF('Base de données'!$C$3:$C$200=MONTH($G$1),ROW($3:$199)),ROWS($1:9)),MATCH(A$1,'Base de données'!$E$2:$T$2,0)+4),"") ->  | B10: =IFERROR(INDEX('Base de données'!$A$1:$T$200,SMALL(IF('Base de données'!$C$3:$C$200=MONTH($G$1),ROW($3:$199)),ROWS($1:9)),MATCH(B$1,'Base de données'!$E$2:$T$2,0)+4),"") ->  | C10: =IFERROR(INDEX('Base de données'!$A$1:$T$200,SMALL(IF('Base de données'!$C$3:$C$200=MONTH($G$1),ROW($3:$199)),ROWS($1:9)),MATCH(C$1,'Base de données'!$E$2:$T$2,0)+4),"") ->  | D10: =IFERROR(INDEX('Base de données'!$A$1:$T$200,SMALL(IF('Base de données'!$C$3:$C$200=MONTH($G$1),ROW($3:$199)),ROWS($1:9)),MATCH(D$1,'Base de données'!$E$2:$T$2,0)+4),"") ->  | E10: =IFERROR(INDEX('Base de données'!$A$1:$T$200,SMALL(IF('Base de données'!$C$3:$C$200=MONTH($G$1),ROW($3:$199)),ROWS($1:9)),MATCH(E$1,'Base de données'!$E$2:$T$2,0)+4),"") ->  | F10: =IFERROR(INDEX('Base de données'!$A$1:$T$200,SMALL(IF('Base de données'!$C$3:$C$200=MONTH($G$1),ROW($3:$199)),ROWS($1:9)),MATCH(F$1,'Base de données'!$E$2:$T$2,0)+4),"") ->  | K10: =SUM(K8+L8) -> 0 | M10: 2016-05-03 | N10: 0 | O10: 0 | P10: 0 | Q10: 0 | R10: 0 | S10: 0 | T10: 0 | U10: 0 | V10: 0 | W10: 0 | X10: 0 | Y10: 0 | Z10: 0
A11: =IFERROR(INDEX('Base de données'!$A$1:$T$200,SMALL(IF('Base de données'!$C$3:$C$200=MONTH($G$1),ROW($3:$199)),ROWS($1:10)),MATCH(A$1,'Base de données'!$E$2:$T$2,0)+4),"") ->  | B11: =IFERROR(INDEX('Base de données'!$A$1:$T$200,SMALL(IF('Base de données'!$C$3:$C$200=MONTH($G$1),ROW($3:$199)),ROWS($1:10)),MATCH(B$1,'Base de données'!$E$2:$T$2,0)+4),"") ->  | C11: =IFERROR(INDEX('Base de données'!$A$1:$T$200,SMALL(IF('Base de données'!$C$3:$C$200=MONTH($G$1),ROW($3:$199)),ROWS($1:10)),MATCH(C$1,'Base de données'!$E$2:$T$2,0)+4),"") ->  | D11: =IFERROR(INDEX('Base de données'!$A$1:$T$200,SMALL(IF('Base de données'!$C$3:$C$200=MONTH($G$1),ROW($3:$199)),ROWS($1:10)),MATCH(D$1,'Base de données'!$E$2:$T$2,0)+4),"") ->  | E11: =IFERROR(INDEX('Base de données'!$A$1:$T$200,SMALL(IF('Base de données'!$C$3:$C$200=MONTH($G$1),ROW($3:$199)),ROWS($1:10)),MATCH(E$1,'Base de données'!$E$2:$T$2,0)+4),"") ->  | F11: =IFERROR(INDEX('Base de données'!$A$1:$T$200,SMALL(IF('Base de données'!$C$3:$C$200=MONTH($G$1),ROW($3:$199)),ROWS($1:10)),MATCH(F$1,'Base de données'!$E$2:$T$2,0)+4),"") ->  | G11: 6 | H11: 7 | I11: 8 | K11: 9 | L11: 10 | M11: 2016-05-04 | N11: 0 | O11: 0 | P11: 0 | Q11: 0 | R11: 0 | S11: 0 | T11: 0 | U11: 0 | V11: 0 | W11: 0 | X11: 0 | Y11: 0 | Z11: 0
A12: =IFERROR(INDEX('Base de données'!$A$1:$T$200,SMALL(IF('Base de données'!$C$3:$C$200=MONTH($G$1),ROW($3:$199)),ROWS($1:11)),MATCH(A$1,'Base de données'!$E$2:$T$2,0)+4),"") ->  | B12: =IFERROR(INDEX('Base de données'!$A$1:$T$200,SMALL(IF('Base de données'!$C$3:$C$200=MONTH($G$1),ROW($3:$199)),ROWS($1:11)),MATCH(B$1,'Base de données'!$E$2:$T$2,0)+4),"") ->  | C12: =IFERROR(INDEX('Base de données'!$A$1:$T$200,SMALL(IF('Base de données'!$C$3:$C$200=MONTH($G$1),ROW($3:$199)),ROWS($1:11)),MATCH(C$1,'Base de données'!$E$2:$T$2,0)+4),"") ->  | D12: =IFERROR(INDEX('Base de données'!$A$1:$T$200,SMALL(IF('Base de données'!$C$3:$C$200=MONTH($G$1),ROW($3:$199)),ROWS($1:11)),MATCH(D$1,'Base de données'!$E$2:$T$2,0)+4),"") ->  | E12: =IFERROR(INDEX('Base de données'!$A$1:$T$200,SMALL(IF('Base de données'!$C$3:$C$200=MONTH($G$1),ROW($3:$199)),ROWS($1:11)),MATCH(E$1,'Base de données'!$E$2:$T$2,0)+4),"") ->  | F12: =IFERROR(INDEX('Base de données'!$A$1:$T$200,SMALL(IF('Base de données'!$C$3:$C$200=MONTH($G$1),ROW($3:$199)),ROWS($1:11)),MATCH(F$1,'Base de données'!$E$2:$T$2,0)+4),"") ->  | G12: Aluminium | H12: Aluminium | I12: Acier mixte | K12: Acier | L12: Fil | M12: 2016-05-05 | N12: 0 | O12: 0 | P12: 0 | Q12: 0 | R12: 0 | S12: 0 | T12: 0 | U12: 0 | V12: 0 | W12: 0 | X12: 0 | Y12: 0 | Z12: 0
A13: =IFERROR(INDEX('Base de données'!$A$1:$T$200,SMALL(IF('Base de données'!$C$3:$C$200=MONTH($G$1),ROW($3:$199)),ROWS($1:12)),MATCH(A$1,'Base de données'!$E$2:$T$2,0)+4),"") ->  | B13: =IFERROR(INDEX('Base de données'!$A$1:$T$200,SMALL(IF('Base de données'!$C$3:$C$200=MONTH($G$1),ROW($3:$199)),ROWS($1:12)),MATCH(B$1,'Base de données'!$E$2:$T$2,0)+4),"") ->  | C13: =IFERROR(INDEX('Base de données'!$A$1:$T$200,SMALL(IF('Base de données'!$C$3:$C$200=MONTH($G$1),ROW($3:$199)),ROWS($1:12)),MATCH(C$1,'Base de données'!$E$2:$T$2,0)+4),"") ->  | D13: =IFERROR(INDEX('Base de données'!$A$1:$T$200,SMALL(IF('Base de données'!$C$3:$C$200=MONTH($G$1),ROW($3:$199)),ROWS($1:12)),MATCH(D$1,'Base de données'!$E$2:$T$2,0)+4),"") ->  | E13: =IFERROR(INDEX('Base de données'!$A$1:$T$200,SMALL(IF('Base de données'!$C$3:$C$200=MONTH($G$1),ROW($3:$199)),ROWS($1:12)),MATCH(E$1,'Base de données'!$E$2:$T$2,0)+4),"") ->  | F13: =IFERROR(INDEX('Base de données'!$A$1:$T$200,SMALL(IF('Base de données'!$C$3:$C$200=MONTH($G$1),ROW($3:$199)),ROWS($1:12)),MATCH(F$1,'Base de données'!$E$2:$T$2,0)+4),"") ->  | G13: mixte en | H13: série 7000 | I13: en morceau | K13: inoxydable | L13: de | M13: 2016-05-06 | N13: 0 | O13: 0 | P13: 0 | Q13: 0 | R13: 0 | S13: 0 | T13: 0 | U13: 0 | V13: 0 | W13: 0 | X13: 0 | Y13: 0 | Z13: 0
A14: =IFERROR(INDEX('Base de données'!$A$1:$T$200,SMALL(IF('Base de données'!$C$3:$C$200=MONTH($G$1),ROW($3:$199)),ROWS($1:13)),MATCH(A$1,'Base de données'!$E$2:$T$2,0)+4),"") ->  | B14: =IFERROR(INDEX('Base de données'!$A$1:$T$200,SMALL(IF('Base de données'!$C$3:$C$200=MONTH($G$1),ROW($3:$199)),ROWS($1:13)),MATCH(B$1,'Base de données'!$E$2:$T$2,0)+4),"") ->  | C14: =IFERROR(INDEX('Base de données'!$A$1:$T$200,SMALL(IF('Base de données'!$C$3:$C$200=MONTH($G$1),ROW($3:$199)),ROWS($1:13)),MATCH(C$1,'Base de données'!$E$2:$T$2,0)+4),"") ->  | D14: =IFERROR(INDEX('Base de données'!$A$1:$T$200,SMALL(IF('Base de données'!$C$3:$C$200=MONTH($G$1),ROW($3:$199)),ROWS($1:13)),MATCH(D$1,'Base de données'!$E$2:$T$2,0)+4),"") ->  | E14: =IFERROR(INDEX('Base de données'!$A$1:$T$200,SMALL(IF('Base de données'!$C$3:$C$200=MONTH($G$1),ROW($3:$199)),ROWS($1:13)),MATCH(E$1,'Base de données'!$E$2:$T$2,0)+4),"") ->  | F14: =IFERROR(INDEX('Base de données'!$A$1:$T$200,SMALL(IF('Base de données'!$C$3:$C$200=MONTH($G$1),ROW($3:$199)),ROWS($1:13)),MATCH(F$1,'Base de données'!$E$2:$T$2,0)+4),"") ->  | G14: morceau | H14: en morceau | K14: mixte en | L14: cuivre | M14: 2016-05-07 | N14: 0 | O14: 0 | P14: 0 | Q14: 0 | R14: 0 | S14: 0 | T14: 0 | U14: 0 | V14: 0 | W14: 0 | X14: 0 | Y14: 0 | Z14: 0
A15: =IFERROR(INDEX('Base de données'!$A$1:$T$200,SMALL(IF('Base de données'!$C$3:$C$200=MONTH($G$1),ROW($3:$199)),ROWS($1:14)),MATCH(A$1,'Base de données'!$E$2:$T$2,0)+4),"") ->  | B15: =IFERROR(INDEX('Base de données'!$A$1:$T$200,SMALL(IF('Base de données'!$C$3:$C$200=MONTH($G$1),ROW($3:$199)),ROWS($1:14)),MATCH(B$1,'Base de données'!$E$2:$T$2,0)+4),"") ->  | C15: =IFERROR(INDEX('Base de données'!$A$1:$T$200,SMALL(IF('Base de données'!$C$3:$C$200=MONTH($G$1),ROW($3:$199)),ROWS($1:14)),MATCH(C$1,'Base de données'!$E$2:$T$2,0)+4),"") ->  | D15: =IFERROR(INDEX('Base de données'!$A$1:$T$200,SMALL(IF('Base de données'!$C$3:$C$200=MONTH($G$1),ROW($3:$199)),ROWS($1:14)),MATCH(D$1,'Base de données'!$E$2:$T$2,0)+4),"") ->  | E15: =IFERROR(INDEX('Base de données'!$A$1:$T$200,SMALL(IF('Base de données'!$C$3:$C$200=MONTH($G$1),ROW($3:$199)),ROWS($1:14)),MATCH(E$1,'Base de données'!$E$2:$T$2,0)+4),"") ->  | F15: =IFERROR(INDEX('Base de données'!$A$1:$T$200,SMALL(IF('Base de données'!$C$3:$C$200=MONTH($G$1),ROW($3:$199)),ROWS($1:14)),MATCH(F$1,'Base de données'!$E$2:$T$2,0)+4),"") ->  | G15: 2024 | H15: surdimension | I15: U.S 1 | J15: U.S 3 | K15: morceau | M15: 2016-05-08 | N15: 0 | O15: 0 | P15: 0 | Q15: 0 | R15: 0 | S15: 0 | T15: 0 | U15: 0 | V15: 0 | W15: 0 | X15: 0 | Y15: 0 | Z15: 0
A16: =IFERROR(INDEX('Base de données'!$A$1:$T$200,SMALL(IF('Base de données'!$C$3:$C$200=MONTH($G$1),ROW($3:$199)),ROWS($1:15)),MATCH(A$1,'Base de données'!$E$2:$T$2,0)+4),"") ->  | B16: =IFERROR(INDEX('Base de données'!$A$1:$T$200,SMALL(IF('Base de données'!$C$3:$C$200=MONTH($G$1),ROW($3:$199)),ROWS($1:15)),MATCH(B$1,'Base de données'!$E$2:$T$2,0)+4),"") ->  | C16: =IFERROR(INDEX('Base de données'!$A$1:$T$200,SMALL(IF('Base de données'!$C$3:$C$200=MONTH($G$1),ROW($3:$199)),ROWS($1:15)),MATCH(C$1,'Base de données'!$E$2:$T$2,0)+4),"") ->  | D16: =IFERROR(INDEX('Base de données'!$A$1:$T$200,SMALL(IF('Base de données'!$C$3:$C$200=MONTH($G$1),ROW($3:$199)),ROWS($1:15)),MATCH(D$1,'Base de données'!$E$2:$T$2,0)+4),"") ->  | E16: =IFERROR(INDEX('Base de données'!$A$1:$T$200,SMALL(IF('Base de données'!$C$3:$C$200=MONTH($G$1),ROW($3:$199)),ROWS($1:15)),MATCH(E$1,'Base de données'!$E$2:$T$2,0)+4),"") ->  | F16: =IFERROR(INDEX('Base de données'!$A$1:$T$200,SMALL(IF('Base de données'!$C$3:$C$200=MONTH($G$1),ROW($3:$199)),ROWS($1:15)),MATCH(F$1,'Base de données'!$E$2:$T$2,0)+4),"") ->  | G16: =SUMIF(C2:C46,"6",E2:E46) -> 0 | H16: =SUMIF(C2:C46,"7",E2:E46) -> 0 | I16: =SUMIFS(E2:E46,C2:C46,"8",D2:D46,"0") -> 0 | J16: =SUMIFS(E2:E46,C2:C46,"8",D2:D46,"U.S 3") -> 0 | K16: =SUMIF(C2:C46,"9",E2:E46) -> 0 | L16: =SUMIF(C2:C46,"10",E2:E46) -> 0 | M16: 2016-05-09 | N16: 0 | O16: 0 | P16: 0 | Q16: 0 | R16: 0 | S16: 0 | T16: 0 | U16: 0 | V16: 0 | W16: 0 | X16: 0 | Y16: 0 | Z16: 0
A17: =IFERROR(INDEX('Base de données'!$A$1:$T$200,SMALL(IF('Base de données'!$C$3:$C$200=MONTH($G$1),ROW($3:$199)),ROWS($1:16)),MATCH(A$1,'Base de données'!$E$2:$T$2,0)+4),"") ->  | B17: =IFERROR(INDEX('Base de données'!$A$1:$T$200,SMALL(IF('Base de données'!$C$3:$C$200=MONTH($G$1),ROW($3:$199)),ROWS($1:16)),MATCH(B$1,'Base de données'!$E$2:$T$2,0)+4),"") ->  | C17: =IFERROR(INDEX('Base de données'!$A$1:$T$200,SMALL(IF('Base de données'!$C$3:$C$200=MONTH($G$1),ROW($3:$199)),ROWS($1:16)),MATCH(C$1,'Base de données'!$E$2:$T$2,0)+4),"") ->  | D17: =IFERROR(INDEX('Base de données'!$A$1:$T$200,SMALL(IF('Base de données'!$C$3:$C$200=MONTH($G$1),ROW($3:$199)),ROWS($1:16)),MATCH(D$1,'Base de données'!$E$2:$T$2,0)+4),"") ->  | E17: =IFERROR(INDEX('Base de données'!$A$1:$T$200,SMALL(IF('Base de données'!$C$3:$C$200=MONTH($G$1),ROW($3:$199)),ROWS($1:16)),MATCH(E$1,'Base de données'!$E$2:$T$2,0)+4),"") ->  | F17: =IFERROR(INDEX('Base de données'!$A$1:$T$200,SMALL(IF('Base de données'!$C$3:$C$200=MONTH($G$1),ROW($3:$199)),ROWS($1:16)),MATCH(F$1,'Base de données'!$E$2:$T$2,0)+4),"") ->  | I17: U.S 8 | J17: Total | M17: 2016-05-10 | N17: 0 | O17: 0 | P17: 0 | Q17: 0 | R17: 0 | S17: 0 | T17: 0 | U17: 0 | V17: 0 | W17: 0 | X17: 0 | Y17: 0 | Z17: 0
A18: =IFERROR(INDEX('Base de données'!$A$1:$T$200,SMALL(IF('Base de données'!$C$3:$C$200=MONTH($G$1),ROW($3:$199)),ROWS($1:17)),MATCH(A$1,'Base de données'!$E$2:$T$2,0)+4),"") ->  | B18: =IFERROR(INDEX('Base de données'!$A$1:$T$200,SMALL(IF('Base de données'!$C$3:$C$200=MONTH($G$1),ROW($3:$199)),ROWS($1:17)),MATCH(B$1,'Base de données'!$E$2:$T$2,0)+4),"") ->  | C18: =IFERROR(INDEX('Base de données'!$A$1:$T$200,SMALL(IF('Base de données'!$C$3:$C$200=MONTH($G$1),ROW($3:$199)),ROWS($1:17)),MATCH(C$1,'Base de données'!$E$2:$T$2,0)+4),"") ->  | D18: =IFERROR(INDEX('Base de données'!$A$1:$T$200,SMALL(IF('Base de données'!$C$3:$C$200=MONTH($G$1),ROW($3:$199)),ROWS($1:17)),MATCH(D$1,'Base de données'!$E$2:$T$2,0)+4),"") ->  | E18: =IFERROR(INDEX('Base de données'!$A$1:$T$200,SMALL(IF('Base de données'!$C$3:$C$200=MONTH($G$1),ROW($3:$199)),ROWS($1:17)),MATCH(E$1,'Base de données'!$E$2:$T$2,0)+4),"") ->  | F18: =IFERROR(INDEX('Base de données'!$A$1:$T$200,SMALL(IF('Base de données'!$C$3:$C$200=MONTH($G$1),ROW($3:$199)),ROWS($1:17)),MATCH(F$1,'Base de données'!$E$2:$T$2,0)+4),"") ->  | I18: =SUMIFS(E2:E46,C2:C46,"8",D2:D46,"U.S 8") -> 0 | J18: =SUM(I16+J16+I18) -> 0 | M18: 2016-05-11 | N18: 0 | O18: 0 | P18: 0 | Q18: 0 | R18: 0 | S18: 0 | T18: 0 | U18: 0 | V18: 0 | W18: 0 | X18: 0 | Y18: 0 | Z18: 0
A19: =IFERROR(INDEX('Base de données'!$A$1:$T$200,SMALL(IF('Base de données'!$C$3:$C$200=MONTH($G$1),ROW($3:$199)),ROWS($1:18)),MATCH(A$1,'Base de données'!$E$2:$T$2,0)+4),"") ->  | B19: =IFERROR(INDEX('Base de données'!$A$1:$T$200,SMALL(IF('Base de données'!$C$3:$C$200=MONTH($G$1),ROW($3:$199)),ROWS($1:18)),MATCH(B$1,'Base de données'!$E$2:$T$2,0)+4),"") ->  | C19: =IFERROR(INDEX('Base de données'!$A$1:$T$200,SMALL(IF('Base de données'!$C$3:$C$200=MONTH($G$1),ROW($3:$199)),ROWS($1:18)),MATCH(C$1,'Base de données'!$E$2:$T$2,0)+4),"") ->  | D19: =IFERROR(INDEX('Base de données'!$A$1:$T$200,SMALL(IF('Base de données'!$C$3:$C$200=MONTH($G$1),ROW($3:$199)),ROWS($1:18)),MATCH(D$1,'Base de données'!$E$2:$T$2,0)+4),"") ->  | E19: =IFERROR(INDEX('Base de données'!$A$1:$T$200,SMALL(IF('Base de données'!$C$3:$C$200=MONTH($G$1),ROW($3:$199)),ROWS($1:18)),MATCH(E$1,'Base de données'!$E$2:$T$2,0)+4),"") ->  | F19: =IFERROR(INDEX('Base de données'!$A$1:$T$200,SMALL(IF('Base de données'!$C$3:$C$200=MONTH($G$1),ROW($3:$199)),ROWS($1:18)),MATCH(F$1,'Base de données'!$E$2:$T$2,0)+4),"") ->  | M19: 2016-05-12 | N19: 0 | O19: 0 | P19: 0 | Q19: 0 | R19: 0 | S19: 0 | T19: 0 | U19: 0 | V19: 0 | W19: 0 | X19: 0 | Y19: 0 | Z19: 0
A20: =IFERROR(INDEX('Base de données'!$A$1:$T$200,SMALL(IF('Base de données'!$C$3:$C$200=MONTH($G$1),ROW($3:$199)),ROWS($1:19)),MATCH(A$1,'Base de données'!$E$2:$T$2,0)+4),"") ->  | B20: =IFERROR(INDEX('Base de données'!$A$1:$T$200,SMALL(IF('Base de données'!$C$3:$C$200=MONTH($G$1),ROW($3:$199)),ROWS($1:19)),MATCH(B$1,'Base de données'!$E$2:$T$2,0)+4),"") ->  | C20: =IFERROR(INDEX('Base de données'!$A$1:$T$200,SMALL(IF('Base de données'!$C$3:$C$200=MONTH($G$1),ROW($3:$199)),ROWS($1:19)),MATCH(C$1,'Base de données'!$E$2:$T$2,0)+4),"") ->  | D20: =IFERROR(INDEX('Base de données'!$A$1:$T$200,SMALL(IF('Base de données'!$C$3:$C$200=MONTH($G$1),ROW($3:$199)),ROWS($1:19)),MATCH(D$1,'Base de données'!$E$2:$T$2,0)+4),"") ->  | E20: =IFERROR(INDEX('Base de données'!$A$1:$T$200,SMALL(IF('Base de données'!$C$3:$C$200=MONTH($G$1),ROW($3:$199)),ROWS($1:19)),MATCH(E$1,'Base de données'!$E$2:$T$2,0)+4),"") ->  | F20: =IFERROR(INDEX('Base de données'!$A$1:$T$200,SMALL(IF('Base de données'!$C$3:$C$200=MONTH($G$1),ROW($3:$199)),ROWS($1:19)),MATCH(F$1,'Base de données'!$E$2:$T$2,0)+4),"") ->  | M20: 2016-05-13 | N20: 0 | O20: 0 | P20: 0 | Q20: 0 | R20: 0 | S20: 0 | T20: 0 | U20: 0 | V20: 0 | W20: 0 | X20: 0 | Y20: 0 | Z20: 0
A21: =IFERROR(INDEX('Base de données'!$A$1:$T$200,SMALL(IF('Base de données'!$C$3:$C$200=MONTH($G$1),ROW($3:$199)),ROWS($1:20)),MATCH(A$1,'Base de données'!$E$2:$T$2,0)+4),"") ->  | B21: =IFERROR(INDEX('Base de données'!$A$1:$T$200,SMALL(IF('Base de données'!$C$3:$C$200=MONTH($G$1),ROW($3:$199)),ROWS($1:20)),MATCH(B$1,'Base de données'!$E$2:$T$2,0)+4),"") ->  | C21: =IFERROR(INDEX('Base de données'!$A$1:$T$200,SMALL(IF('Base de données'!$C$3:$C$200=MONTH($G$1),ROW($3:$199)),ROWS($1:20)),MATCH(C$1,'Base de données'!$E$2:$T$2,0)+4),"") ->  | D21: =IFERROR(INDEX('Base de données'!$A$1:$T$200,SMALL(IF('Base de données'!$C$3:$C$200=MONTH($G$1),ROW($3:$199)),ROWS($1:20)),MATCH(D$1,'Base de données'!$E$2:$T$2,0)+4),"") ->  | E21: =IFERROR(INDEX('Base de données'!$A$1:$T$200,SMALL(IF('Base de données'!$C$3:$C$200=MONTH($G$1),ROW($3:$199)),ROWS($1:20)),MATCH(E$1,'Base de données'!$E$2:$T$2,0)+4),"") ->  | F21: =IFERROR(INDEX('Base de données'!$A$1:$T$200,SMALL(IF('Base de données'!$C$3:$C$200=MONTH($G$1),ROW($3:$199)),ROWS($1:20)),MATCH(F$1,'Base de données'!$E$2:$T$2,0)+4),"") ->  | M21: 2016-05-14 | N21: 0 | O21: 0 | P21: 0 | Q21: 0 | R21: 0 | S21: 0 | T21: 0 | U21: 0 | V21: 0 | W21: 0 | X21: 0 | Y21: 0 | Z21: 0
A22: =IFERROR(INDEX('Base de données'!$A$1:$T$200,SMALL(IF('Base de données'!$C$3:$C$200=MONTH($G$1),ROW($3:$199)),ROWS($1:21)),MATCH(A$1,'Base de données'!$E$2:$T$2,0)+4),"") ->  | B22: =IFERROR(INDEX('Base de données'!$A$1:$T$200,SMALL(IF('Base de données'!$C$3:$C$200=MONTH($G$1),ROW($3:$199)),ROWS($1:21)),MATCH(B$1,'Base de données'!$E$2:$T$2,0)+4),"") ->  | C22: =IFERROR(INDEX('Base de données'!$A$1:$T$200,SMALL(IF('Base de données'!$C$3:$C$200=MONTH($G$1),ROW($3:$199)),ROWS($1:21)),MATCH(C$1,'Base de données'!$E$2:$T$2,0)+4),"") ->  | D22: =IFERROR(INDEX('Base de données'!$A$1:$T$200,SMALL(IF('Base de données'!$C$3:$C$200=MONTH($G$1),ROW($3:$199)),ROWS($1:21)),MATCH(D$1,'Base de données'!$E$2:$T$2,0)+4),"") ->  | E22: =IFERROR(INDEX('Base de données'!$A$1:$T$200,SMALL(IF('Base de données'!$C$3:$C$200=MONTH($G$1),ROW($3:$199)),ROWS($1:21)),MATCH(E$1,'Base de données'!$E$2:$T$2,0)+4),"") ->  | F22: =IFERROR(INDEX('Base de données'!$A$1:$T$200,SMALL(IF('Base de données'!$C$3:$C$200=MONTH($G$1),ROW($3:$199)),ROWS($1:21)),MATCH(F$1,'Base de données'!$E$2:$T$2,0)+4),"") ->  | M22: 2016-05-15 | N22: 0 | O22: 0 | P22: 0 | Q22: 0 | R22: 0 | S22: 0 | T22: 0 | U22: 0 | V22: 0 | W22: 0 | X22: 0 | Y22: 0 | Z22: 0
A23: =IFERROR(INDEX('Base de données'!$A$1:$T$200,SMALL(IF('Base de données'!$C$3:$C$200=MONTH($G$1),ROW($3:$199)),ROWS($1:22)),MATCH(A$1,'Base de données'!$E$2:$T$2,0)+4),"") ->  | B23: =IFERROR(INDEX('Base de données'!$A$1:$T$200,SMALL(IF('Base de données'!$C$3:$C$200=MONTH($G$1),ROW($3:$199)),ROWS($1:22)),MATCH(B$1,'Base de données'!$E$2:$T$2,0)+4),"") ->  | C23: =IFERROR(INDEX('Base de données'!$A$1:$T$200,SMALL(IF('Base de données'!$C$3:$C$200=MONTH($G$1),ROW($3:$199)),ROWS($1:22)),MATCH(C$1,'Base de données'!$E$2:$T$2,0)+4),"") ->  | D23: =IFERROR(INDEX('Base de données'!$A$1:$T$200,SMALL(IF('Base de données'!$C$3:$C$200=MONTH($G$1),ROW($3:$199)),ROWS($1:22)),MATCH(D$1,'Base de données'!$E$2:$T$2,0)+4),"") ->  | E23: =IFERROR(INDEX('Base de données'!$A$1:$T$200,SMALL(IF('Base de données'!$C$3:$C$200=MONTH($G$1),ROW($3:$199)),ROWS($1:22)),MATCH(E$1,'Base de données'!$E$2:$T$2,0)+4),"") ->  | F23: =IFERROR(INDEX('Base de données'!$A$1:$T$200,SMALL(IF('Base de données'!$C$3:$C$200=MONTH($G$1),ROW($3:$199)),ROWS($1:22)),MATCH(F$1,'Base de données'!$E$2:$T$2,0)+4),"") ->  | M23: 2016-05-16 | N23: 0 | O23: 0 | P23: 0 | Q23: 0 | R23: 0 | S23: 0 | T23: 0 | U23: 0 | V23: 0 | W23: 0 | X23: 0 | Y23: 0 | Z23: 0
A24: =IFERROR(INDEX('Base de données'!$A$1:$T$200,SMALL(IF('Base de données'!$C$3:$C$200=MONTH($G$1),ROW($3:$199)),ROWS($1:23)),MATCH(A$1,'Base de données'!$E$2:$T$2,0)+4),"") ->  | B24: =IFERROR(INDEX('Base de données'!$A$1:$T$200,SMALL(IF('Base de données'!$C$3:$C$200=MONTH($G$1),ROW($3:$199)),ROWS($1:23)),MATCH(B$1,'Base de données'!$E$2:$T$2,0)+4),"") ->  | C24: =IFERROR(INDEX('Base de données'!$A$1:$T$200,SMALL(IF('Base de données'!$C$3:$C$200=MONTH($G$1),ROW($3:$199)),ROWS($1:23)),MATCH(C$1,'Base de données'!$E$2:$T$2,0)+4),"") ->  | D24: =IFERROR(INDEX('Base de données'!$A$1:$T$200,SMALL(IF('Base de données'!$C$3:$C$200=MONTH($G$1),ROW($3:$199)),ROWS($1:23)),MATCH(D$1,'Base de données'!$E$2:$T$2,0)+4),"") ->  | E24: =IFERROR(INDEX('Base de données'!$A$1:$T$200,SMALL(IF('Base de données'!$C$3:$C$200=MONTH($G$1),ROW($3:$199)),ROWS($1:23)),MATCH(E$1,'Base de données'!$E$2:$T$2,0)+4),"") ->  | F24: =IFERROR(INDEX('Base de données'!$A$1:$T$200,SMALL(IF('Base de données'!$C$3:$C$200=MONTH($G$1),ROW($3:$199)),ROWS($1:23)),MATCH(F$1,'Base de données'!$E$2:$T$2,0)+4),"") ->  | M24: 2016-05-17 | N24: 0 | O24: 0 | P24: 0 | Q24: 0 | R24: 0 | S24: 0 | T24: 0 | U24: 0 | V24: 0 | W24: 0 | X24: 0 | Y24: 0 | Z24: 0
A25: =IFERROR(INDEX('Base de données'!$A$1:$T$200,SMALL(IF('Base de données'!$C$3:$C$200=MONTH($G$1),ROW($3:$199)),ROWS($1:24)),MATCH(A$1,'Base de données'!$E$2:$T$2,0)+4),"") ->  | B25: =IFERROR(INDEX('Base de données'!$A$1:$T$200,SMALL(IF('Base de données'!$C$3:$C$200=MONTH($G$1),ROW($3:$199)),ROWS($1:24)),MATCH(B$1,'Base de données'!$E$2:$T$2,0)+4),"") ->  | C25: =IFERROR(INDEX('Base de données'!$A$1:$T$200,SMALL(IF('Base de données'!$C$3:$C$200=MONTH($G$1),ROW($3:$199)),ROWS($1:24)),MATCH(C$1,'Base de données'!$E$2:$T$2,0)+4),"") ->  | D25: =IFERROR(INDEX('Base de données'!$A$1:$T$200,SMALL(IF('Base de données'!$C$3:$C$200=MONTH($G$1),ROW($3:$199)),ROWS($1:24)),MATCH(D$1,'Base de données'!$E$2:$T$2,0)+4),"") ->  | E25: =IFERROR(INDEX('Base de données'!$A$1:$T$200,SMALL(IF('Base de données'!$C$3:$C$200=MONTH($G$1),ROW($3:$199)),ROWS($1:24)),MATCH(E$1,'Base de données'!$E$2:$T$2,0)+4),"") ->  | F25: =IFERROR(INDEX('Base de données'!$A$1:$T$200,SMALL(IF('Base de données'!$C$3:$C$200=MONTH($G$1),ROW($3:$199)),ROWS($1:24)),MATCH(F$1,'Base de données'!$E$2:$T$2,0)+4),"") ->  | M25: 2016-05-18 | N25: 0 | O25: 0 | P25: 0 | Q25: 0 | R25: 0 | S25: 0 | T25: 0 | U25: 0 | V25: 0 | W25: 0 | X25: 0 | Y25: 0 | Z25: 0
A26: =IFERROR(INDEX('Base de données'!$A$1:$T$200,SMALL(IF('Base de données'!$C$3:$C$200=MONTH($G$1),ROW($3:$199)),ROWS($1:25)),MATCH(A$1,'Base de données'!$E$2:$T$2,0)+4),"") ->  | B26: =IFERROR(INDEX('Base de données'!$A$1:$T$200,SMALL(IF('Base de données'!$C$3:$C$200=MONTH($G$1),ROW($3:$199)),ROWS($1:25)),MATCH(B$1,'Base de données'!$E$2:$T$2,0)+4),"") ->  | C26: =IFERROR(INDEX('Base de données'!$A$1:$T$200,SMALL(IF('Base de données'!$C$3:$C$200=MONTH($G$1),ROW($3:$199)),ROWS($1:25)),MATCH(C$1,'Base de données'!$E$2:$T$2,0)+4),"") ->  | D26: =IFERROR(INDEX('Base de données'!$A$1:$T$200,SMALL(IF('Base de données'!$C$3:$C$200=MONTH($G$1),ROW($3:$199)),ROWS($1:25)),MATCH(D$1,'Base de données'!$E$2:$T$2,0)+4),"") ->  | E26: =IFERROR(INDEX('Base de données'!$A$1:$T$200,SMALL(IF('Base de données'!$C$3:$C$200=MONTH($G$1),ROW($3:$199)),ROWS($1:25)),MATCH(E$1,'Base de données'!$E$2:$T$2,0)+4),"") ->  | F26: =IFERROR(INDEX('Base de données'!$A$1:$T$200,SMALL(IF('Base de données'!$C$3:$C$200=MONTH($G$1),ROW($3:$199)),ROWS($1:25)),MATCH(F$1,'Base de données'!$E$2:$T$2,0)+4),"") ->  | M26: 2016-05-19 | N26: 0 | O26: 0 | P26: 0 | Q26: 0 | R26: 0 | S26: 0 | T26: 0 | U26: 0 | V26: 0 | W26: 0 | X26: 0 | Y26: 0 | Z26: 0
A27: =IFERROR(INDEX('Base de données'!$A$1:$T$200,SMALL(IF('Base de données'!$C$3:$C$200=MONTH($G$1),ROW($3:$199)),ROWS($1:26)),MATCH(A$1,'Base de données'!$E$2:$T$2,0)+4),"") ->  | B27: =IFERROR(INDEX('Base de données'!$A$1:$T$200,SMALL(IF('Base de données'!$C$3:$C$200=MONTH($G$1),ROW($3:$199)),ROWS($1:26)),MATCH(B$1,'Base de données'!$E$2:$T$2,0)+4),"") ->  | C27: =IFERROR(INDEX('Base de données'!$A$1:$T$200,SMALL(IF('Base de données'!$C$3:$C$200=MONTH($G$1),ROW($3:$199)),ROWS($1:26)),MATCH(C$1,'Base de données'!$E$2:$T$2,0)+4),"") ->  | D27: =IFERROR(INDEX('Base de données'!$A$1:$T$200,SMALL(IF('Base de données'!$C$3:$C$200=MONTH($G$1),ROW($3:$199)),ROWS($1:26)),MATCH(D$1,'Base de données'!$E$2:$T$2,0)+4),"") ->  | E27: =IFERROR(INDEX('Base de données'!$A$1:$T$200,SMALL(IF('Base de données'!$C$3:$C$200=MONTH($G$1),ROW($3:$199)),ROWS($1:26)),MATCH(E$1,'Base de données'!$E$2:$T$2,0)+4),"") ->  | F27: =IFERROR(INDEX('Base de données'!$A$1:$T$200,SMALL(IF('Base de données'!$C$3:$C$200=MONTH($G$1),ROW($3:$199)),ROWS($1:26)),MATCH(F$1,'Base de données'!$E$2:$T$2,0)+4),"") ->  | M27: 2016-05-20 | N27: 0 | O27: 0 | P27: 0 | Q27: 0 | R27: 0 | S27: 0 | T27: 0 | U27: 0 | V27: 0 | W27: 0 | X27: 0 | Y27: 0 | Z27: 0
A28: =IFERROR(INDEX('Base de données'!$A$1:$T$200,SMALL(IF('Base de données'!$C$3:$C$200=MONTH($G$1),ROW($3:$199)),ROWS($1:27)),MATCH(A$1,'Base de données'!$E$2:$T$2,0)+4),"") ->  | B28: =IFERROR(INDEX('Base de données'!$A$1:$T$200,SMALL(IF('Base de données'!$C$3:$C$200=MONTH($G$1),ROW($3:$199)),ROWS($1:27)),MATCH(B$1,'Base de données'!$E$2:$T$2,0)+4),"") ->  | C28: =IFERROR(INDEX('Base de données'!$A$1:$T$200,SMALL(IF('Base de données'!$C$3:$C$200=MONTH($G$1),ROW($3:$199)),ROWS($1:27)),MATCH(C$1,'Base de données'!$E$2:$T$2,0)+4),"") ->  | D28: =IFERROR(INDEX('Base de données'!$A$1:$T$200,SMALL(IF('Base de données'!$C$3:$C$200=MONTH($G$1),ROW($3:$199)),ROWS($1:27)),MATCH(D$1,'Base de données'!$E$2:$T$2,0)+4),"") ->  | E28: =IFERROR(INDEX('Base de données'!$A$1:$T$200,SMALL(IF('Base de données'!$C$3:$C$200=MONTH($G$1),ROW($3:$199)),ROWS($1:27)),MATCH(E$1,'Base de données'!$E$2:$T$2,0)+4),"") ->  | F28: =IFERROR(INDEX('Base de données'!$A$1:$T$200,SMALL(IF('Base de données'!$C$3:$C$200=MONTH($G$1),ROW($3:$199)),ROWS($1:27)),MATCH(F$1,'Base de données'!$E$2:$T$2,0)+4),"") ->  | M28: 2016-05-21 | N28: 0 | O28: 0 | P28: 0 | Q28: 0 | R28: 0 | S28: 0 | T28: 0 | U28: 0 | V28: 0 | W28: 0 | X28: 0 | Y28: 0 | Z28: 0
A29: =IFERROR(INDEX('Base de données'!$A$1:$T$200,SMALL(IF('Base de données'!$C$3:$C$200=MONTH($G$1),ROW($3:$199)),ROWS($1:28)),MATCH(A$1,'Base de données'!$E$2:$T$2,0)+4),"") ->  | B29: =IFERROR(INDEX('Base de données'!$A$1:$T$200,SMALL(IF('Base de données'!$C$3:$C$200=MONTH($G$1),ROW($3:$199)),ROWS($1:28)),MATCH(B$1,'Base de données'!$E$2:$T$2,0)+4),"") ->  | C29: =IFERROR(INDEX('Base de données'!$A$1:$T$200,SMALL(IF('Base de données'!$C$3:$C$200=MONTH($G$1),ROW($3:$199)),ROWS($1:28)),MATCH(C$1,'Base de données'!$E$2:$T$2,0)+4),"") ->  | D29: =IFERROR(INDEX('Base de données'!$A$1:$T$200,SMALL(IF('Base de données'!$C$3:$C$200=MONTH($G$1),ROW($3:$199)),ROWS($1:28)),MATCH(D$1,'Base de données'!$E$2:$T$2,0)+4),"") ->  | E29: =IFERROR(INDEX('Base de données'!$A$1:$T$200,SMALL(IF('Base de données'!$C$3:$C$200=MONTH($G$1),ROW($3:$199)),ROWS($1:28)),MATCH(E$1,'Base de données'!$E$2:$T$2,0)+4),"") ->  | F29: =IFERROR(INDEX('Base de données'!$A$1:$T$200,SMALL(IF('Base de données'!$C$3:$C$200=MONTH($G$1),ROW($3:$199)),ROWS($1:28)),MATCH(F$1,'Base de données'!$E$2:$T$2,0)+4),"") ->  | M29: 2016-05-22 | N29: 0 | O29: 0 | P29: 0 | Q29: 0 | R29: 0 | S29: 0 | T29: 0 | U29: 0 | V29: 0 | W29: 0 | X29: 0 | Y29: 0 | Z29: 0
A30: =IFERROR(INDEX('Base de données'!$A$1:$T$200,SMALL(IF('Base de données'!$C$3:$C$200=MONTH($G$1),ROW($3:$199)),ROWS($1:29)),MATCH(A$1,'Base de données'!$E$2:$T$2,0)+4),"") ->  | B30: =IFERROR(INDEX('Base de données'!$A$1:$T$200,SMALL(IF('Base de données'!$C$3:$C$200=MONTH($G$1),ROW($3:$199)),ROWS($1:29)),MATCH(B$1,'Base de données'!$E$2:$T$2,0)+4),"") ->  | C30: =IFERROR(INDEX('Base de données'!$A$1:$T$200,SMALL(IF('Base de données'!$C$3:$C$200=MONTH($G$1),ROW($3:$199)),ROWS($1:29)),MATCH(C$1,'Base de données'!$E$2:$T$2,0)+4),"") ->  | D30: =IFERROR(INDEX('Base de données'!$A$1:$T$200,SMALL(IF('Base de données'!$C$3:$C$200=MONTH($G$1),ROW($3:$199)),ROWS($1:29)),MATCH(D$1,'Base de données'!$E$2:$T$2,0)+4),"") ->  | E30: =IFERROR(INDEX('Base de données'!$A$1:$T$200,SMALL(IF('Base de données'!$C$3:$C$200=MONTH($G$1),ROW($3:$199)),ROWS($1:29)),MATCH(E$1,'Base de données'!$E$2:$T$2,0)+4),"") ->  | F30: =IFERROR(INDEX('Base de données'!$A$1:$T$200,SMALL(IF('Base de données'!$C$3:$C$200=MONTH($G$1),ROW($3:$199)),ROWS($1:29)),MATCH(F$1,'Base de données'!$E$2:$T$2,0)+4),"") ->  | M30: 2016-05-23 | N30: 0 | O30: 0 | P30: 0 | Q30: 0 | R30: 0 | S30: 0 | T30: 0 | U30: 0 | V30: 0 | W30: 0 | X30: 0 | Y30: 0 | Z30: 0
A31: =IFERROR(INDEX('Base de données'!$A$1:$T$200,SMALL(IF('Base de données'!$C$3:$C$200=MONTH($G$1),ROW($3:$199)),ROWS($1:30)),MATCH(A$1,'Base de données'!$E$2:$T$2,0)+4),"") ->  | B31: =IFERROR(INDEX('Base de données'!$A$1:$T$200,SMALL(IF('Base de données'!$C$3:$C$200=MONTH($G$1),ROW($3:$199)),ROWS($1:30)),MATCH(B$1,'Base de données'!$E$2:$T$2,0)+4),"") ->  | C31: =IFERROR(INDEX('Base de données'!$A$1:$T$200,SMALL(IF('Base de données'!$C$3:$C$200=MONTH($G$1),ROW($3:$199)),ROWS($1:30)),MATCH(C$1,'Base de données'!$E$2:$T$2,0)+4),"") ->  | D31: =IFERROR(INDEX('Base de données'!$A$1:$T$200,SMALL(IF('Base de données'!$C$3:$C$200=MONTH($G$1),ROW($3:$199)),ROWS($1:30)),MATCH(D$1,'Base de données'!$E$2:$T$2,0)+4),"") ->  | E31: =IFERROR(INDEX('Base de données'!$A$1:$T$200,SMALL(IF('Base de données'!$C$3:$C$200=MONTH($G$1),ROW($3:$199)),ROWS($1:30)),MATCH(E$1,'Base de données'!$E$2:$T$2,0)+4),"") ->  | F31: =IFERROR(INDEX('Base de données'!$A$1:$T$200,SMALL(IF('Base de données'!$C$3:$C$200=MONTH($G$1),ROW($3:$199)),ROWS($1:30)),MATCH(F$1,'Base de données'!$E$2:$T$2,0)+4),"") ->  | M31: 2016-05-24 | N31: 0 | O31: 0 | P31: 0 | Q31: 0 | R31: 0 | S31: 0 | T31: 0 | U31: 0 | V31: 0 | W31: 0 | X31: 0 | Y31: 0 | Z31: 0
A32: =IFERROR(INDEX('Base de données'!$A$1:$T$200,SMALL(IF('Base de données'!$C$3:$C$200=MONTH($G$1),ROW($3:$199)),ROWS($1:31)),MATCH(A$1,'Base de données'!$E$2:$T$2,0)+4),"") ->  | B32: =IFERROR(INDEX('Base de données'!$A$1:$T$200,SMALL(IF('Base de données'!$C$3:$C$200=MONTH($G$1),ROW($3:$199)),ROWS($1:31)),MATCH(B$1,'Base de données'!$E$2:$T$2,0)+4),"") ->  | C32: =IFERROR(INDEX('Base de données'!$A$1:$T$200,SMALL(IF('Base de données'!$C$3:$C$200=MONTH($G$1),ROW($3:$199)),ROWS($1:31)),MATCH(C$1,'Base de données'!$E$2:$T$2,0)+4),"") ->  | D32: =IFERROR(INDEX('Base de données'!$A$1:$T$200,SMALL(IF('Base de données'!$C$3:$C$200=MONTH($G$1),ROW($3:$199)),ROWS($1:31)),MATCH(D$1,'Base de données'!$E$2:$T$2,0)+4),"") ->  | E32: =IFERROR(INDEX('Base de données'!$A$1:$T$200,SMALL(IF('Base de données'!$C$3:$C$200=MONTH($G$1),ROW($3:$199)),ROWS($1:31)),MATCH(E$1,'Base de données'!$E$2:$T$2,0)+4),"") ->  | F32: =IFERROR(INDEX('Base de données'!$A$1:$T$200,SMALL(IF('Base de données'!$C$3:$C$200=MONTH($G$1),ROW($3:$199)),ROWS($1:31)),MATCH(F$1,'Base de données'!$E$2:$T$2,0)+4),"") ->  | M32: 2016-05-25 | N32: 0 | O32: 0 | P32: 0 | Q32: 0 | R32: 0 | S32: 0 | T32: 0 | U32: 0 | V32: 0 | W32: 0 | X32: 0 | Y32: 0 | Z32: 0
A33: =IFERROR(INDEX('Base de données'!$A$1:$T$200,SMALL(IF('Base de données'!$C$3:$C$200=MONTH($G$1),ROW($3:$199)),ROWS($1:32)),MATCH(A$1,'Base de données'!$E$2:$T$2,0)+4),"") ->  | B33: =IFERROR(INDEX('Base de données'!$A$1:$T$200,SMALL(IF('Base de données'!$C$3:$C$200=MONTH($G$1),ROW($3:$199)),ROWS($1:32)),MATCH(B$1,'Base de données'!$E$2:$T$2,0)+4),"") ->  | C33: =IFERROR(INDEX('Base de données'!$A$1:$T$200,SMALL(IF('Base de données'!$C$3:$C$200=MONTH($G$1),ROW($3:$199)),ROWS($1:32)),MATCH(C$1,'Base de données'!$E$2:$T$2,0)+4),"") ->  | D33: =IFERROR(INDEX('Base de données'!$A$1:$T$200,SMALL(IF('Base de données'!$C$3:$C$200=MONTH($G$1),ROW($3:$199)),ROWS($1:32)),MATCH(D$1,'Base de données'!$E$2:$T$2,0)+4),"") ->  | E33: =IFERROR(INDEX('Base de données'!$A$1:$T$200,SMALL(IF('Base de données'!$C$3:$C$200=MONTH($G$1),ROW($3:$199)),ROWS($1:32)),MATCH(E$1,'Base de données'!$E$2:$T$2,0)+4),"") ->  | F33: =IFERROR(INDEX('Base de données'!$A$1:$T$200,SMALL(IF('Base de données'!$C$3:$C$200=MONTH($G$1),ROW($3:$199)),ROWS($1:32)),MATCH(F$1,'Base de données'!$E$2:$T$2,0)+4),"") ->  | M33: 2016-05-26 | N33: 0 | O33: 0 | P33: 0 | Q33: 0 | R33: 0 | S33: 0 | T33: 0 | U33: 0 | V33: 0 | W33: 0 | X33: 0 | Y33: 0 | Z33: 0
A34: =IFERROR(INDEX('Base de données'!$A$1:$T$200,SMALL(IF('Base de données'!$C$3:$C$200=MONTH($G$1),ROW($3:$199)),ROWS($1:33)),MATCH(A$1,'Base de données'!$E$2:$T$2,0)+4),"") ->  | B34: =IFERROR(INDEX('Base de données'!$A$1:$T$200,SMALL(IF('Base de données'!$C$3:$C$200=MONTH($G$1),ROW($3:$199)),ROWS($1:33)),MATCH(B$1,'Base de données'!$E$2:$T$2,0)+4),"") ->  | C34: =IFERROR(INDEX('Base de données'!$A$1:$T$200,SMALL(IF('Base de données'!$C$3:$C$200=MONTH($G$1),ROW($3:$199)),ROWS($1:33)),MATCH(C$1,'Base de données'!$E$2:$T$2,0)+4),"") ->  | D34: =IFERROR(INDEX('Base de données'!$A$1:$T$200,SMALL(IF('Base de données'!$C$3:$C$200=MONTH($G$1),ROW($3:$199)),ROWS($1:33)),MATCH(D$1,'Base de données'!$E$2:$T$2,0)+4),"") ->  | E34: =IFERROR(INDEX('Base de données'!$A$1:$T$200,SMALL(IF('Base de données'!$C$3:$C$200=MONTH($G$1),ROW($3:$199)),ROWS($1:33)),MATCH(E$1,'Base de données'!$E$2:$T$2,0)+4),"") ->  | F34: =IFERROR(INDEX('Base de données'!$A$1:$T$200,SMALL(IF('Base de données'!$C$3:$C$200=MONTH($G$1),ROW($3:$199)),ROWS($1:33)),MATCH(F$1,'Base de données'!$E$2:$T$2,0)+4),"") ->  | M34: 2016-05-27 | N34: 0 | O34: 0 | P34: 0 | Q34: 0 | R34: 0 | S34: 0 | T34: 0 | U34: 0 | V34: 0 | W34: 0 | X34: 0 | Y34: 0 | Z34: 0
A35: =IFERROR(INDEX('Base de données'!$A$1:$T$200,SMALL(IF('Base de données'!$C$3:$C$200=MONTH($G$1),ROW($3:$199)),ROWS($1:34)),MATCH(A$1,'Base de données'!$E$2:$T$2,0)+4),"") ->  | B35: =IFERROR(INDEX('Base de données'!$A$1:$T$200,SMALL(IF('Base de données'!$C$3:$C$200=MONTH($G$1),ROW($3:$199)),ROWS($1:34)),MATCH(B$1,'Base de données'!$E$2:$T$2,0)+4),"") ->  | C35: =IFERROR(INDEX('Base de données'!$A$1:$T$200,SMALL(IF('Base de données'!$C$3:$C$200=MONTH($G$1),ROW($3:$199)),ROWS($1:34)),MATCH(C$1,'Base de données'!$E$2:$T$2,0)+4),"") ->  | D35: =IFERROR(INDEX('Base de données'!$A$1:$T$200,SMALL(IF('Base de données'!$C$3:$C$200=MONTH($G$1),ROW($3:$199)),ROWS($1:34)),MATCH(D$1,'Base de données'!$E$2:$T$2,0)+4),"") ->  | E35: =IFERROR(INDEX('Base de données'!$A$1:$T$200,SMALL(IF('Base de données'!$C$3:$C$200=MONTH($G$1),ROW($3:$199)),ROWS($1:34)),MATCH(E$1,'Base de données'!$E$2:$T$2,0)+4),"") ->  | F35: =IFERROR(INDEX('Base de données'!$A$1:$T$200,SMALL(IF('Base de données'!$C$3:$C$200=MONTH($G$1),ROW($3:$199)),ROWS($1:34)),MATCH(F$1,'Base de données'!$E$2:$T$2,0)+4),"") ->  | M35: 2016-05-28 | N35: 0 | O35: 0 | P35: 0 | Q35: 0 | R35: 0 | S35: 0 | T35: 0 | U35: 0 | V35: 0 | W35: 0 | X35: 0 | Y35: 0 | Z35: 0
A36: =IFERROR(INDEX('Base de données'!$A$1:$T$200,SMALL(IF('Base de données'!$C$3:$C$200=MONTH($G$1),ROW($3:$199)),ROWS($1:35)),MATCH(A$1,'Base de données'!$E$2:$T$2,0)+4),"") ->  | B36: =IFERROR(INDEX('Base de données'!$A$1:$T$200,SMALL(IF('Base de données'!$C$3:$C$200=MONTH($G$1),ROW($3:$199)),ROWS($1:35)),MATCH(B$1,'Base de données'!$E$2:$T$2,0)+4),"") ->  | C36: =IFERROR(INDEX('Base de données'!$A$1:$T$200,SMALL(IF('Base de données'!$C$3:$C$200=MONTH($G$1),ROW($3:$199)),ROWS($1:35)),MATCH(C$1,'Base de données'!$E$2:$T$2,0)+4),"") ->  | D36: =IFERROR(INDEX('Base de données'!$A$1:$T$200,SMALL(IF('Base de données'!$C$3:$C$200=MONTH($G$1),ROW($3:$199)),ROWS($1:35)),MATCH(D$1,'Base de données'!$E$2:$T$2,0)+4),"") ->  | E36: =IFERROR(INDEX('Base de données'!$A$1:$T$200,SMALL(IF('Base de données'!$C$3:$C$200=MONTH($G$1),ROW($3:$199)),ROWS($1:35)),MATCH(E$1,'Base de données'!$E$2:$T$2,0)+4),"") ->  | F36: =IFERROR(INDEX('Base de données'!$A$1:$T$200,SMALL(IF('Base de données'!$C$3:$C$200=MONTH($G$1),ROW($3:$199)),ROWS($1:35)),MATCH(F$1,'Base de données'!$E$2:$T$2,0)+4),"") ->  | M36: 2016-05-29 | N36: 0 | O36: 0 | P36: 0 | Q36: 0 | R36: 0 | S36: 0 | T36: 0 | U36: 0 | V36: 0 | W36: 0 | X36: 0 | Y36: 0 | Z36: 0
A37: =IFERROR(INDEX('Base de données'!$A$1:$T$200,SMALL(IF('Base de données'!$C$3:$C$200=MONTH($G$1),ROW($3:$199)),ROWS($1:36)),MATCH(A$1,'Base de données'!$E$2:$T$2,0)+4),"") ->  | B37: =IFERROR(INDEX('Base de données'!$A$1:$T$200,SMALL(IF('Base de données'!$C$3:$C$200=MONTH($G$1),ROW($3:$199)),ROWS($1:36)),MATCH(B$1,'Base de données'!$E$2:$T$2,0)+4),"") ->  | C37: =IFERROR(INDEX('Base de données'!$A$1:$T$200,SMALL(IF('Base de données'!$C$3:$C$200=MONTH($G$1),ROW($3:$199)),ROWS($1:36)),MATCH(C$1,'Base de données'!$E$2:$T$2,0)+4),"") ->  | D37: =IFERROR(INDEX('Base de données'!$A$1:$T$200,SMALL(IF('Base de données'!$C$3:$C$200=MONTH($G$1),ROW($3:$199)),ROWS($1:36)),MATCH(D$1,'Base de données'!$E$2:$T$2,0)+4),"") ->  | E37: =IFERROR(INDEX('Base de données'!$A$1:$T$200,SMALL(IF('Base de données'!$C$3:$C$200=MONTH($G$1),ROW($3:$199)),ROWS($1:36)),MATCH(E$1,'Base de données'!$E$2:$T$2,0)+4),"") ->  | F37: =IFERROR(INDEX('Base de données'!$A$1:$T$200,SMALL(IF('Base de données'!$C$3:$C$200=MONTH($G$1),ROW($3:$199)),ROWS($1:36)),MATCH(F$1,'Base de données'!$E$2:$T$2,0)+4),"") ->  | M37: 2016-05-30 | N37: 0 | O37: 0 | P37: 0 | Q37: 0 | R37: 0 | S37: 0 | T37: 0 | U37: 0 | V37: 0 | W37: 0 | X37: 0 | Y37: 0 | Z37: 0
A38: =IFERROR(INDEX('Base de données'!$A$1:$T$200,SMALL(IF('Base de données'!$C$3:$C$200=MONTH($G$1),ROW($3:$199)),ROWS($1:37)),MATCH(A$1,'Base de données'!$E$2:$T$2,0)+4),"") ->  | B38: =IFERROR(INDEX('Base de données'!$A$1:$T$200,SMALL(IF('Base de données'!$C$3:$C$200=MONTH($G$1),ROW($3:$199)),ROWS($1:37)),MATCH(B$1,'Base de données'!$E$2:$T$2,0)+4),"") ->  | C38: =IFERROR(INDEX('Base de données'!$A$1:$T$200,SMALL(IF('Base de données'!$C$3:$C$200=MONTH($G$1),ROW($3:$199)),ROWS($1:37)),MATCH(C$1,'Base de données'!$E$2:$T$2,0)+4),"") ->  | D38: =IFERROR(INDEX('Base de données'!$A$1:$T$200,SMALL(IF('Base de données'!$C$3:$C$200=MONTH($G$1),ROW($3:$199)),ROWS($1:37)),MATCH(D$1,'Base de données'!$E$2:$T$2,0)+4),"") ->  | E38: =IFERROR(INDEX('Base de données'!$A$1:$T$200,SMALL(IF('Base de données'!$C$3:$C$200=MONTH($G$1),ROW($3:$199)),ROWS($1:37)),MATCH(E$1,'Base de données'!$E$2:$T$2,0)+4),"") ->  | F38: =IFERROR(INDEX('Base de données'!$A$1:$T$200,SMALL(IF('Base de données'!$C$3:$C$200=MONTH($G$1),ROW($3:$199)),ROWS($1:37)),MATCH(F$1,'Base de données'!$E$2:$T$2,0)+4),"") ->  | M38: 2016-05-31 | N38: 0 | O38: 0 | P38: 0 | Q38: 0 | R38: 0 | S38: 0 | T38: 0 | U38: 0 | V38: 0 | W38: 0 | X38: 0 | Y38: 0 | Z38: 0
A39: =IFERROR(INDEX('Base de données'!$A$1:$T$200,SMALL(IF('Base de données'!$C$3:$C$200=MONTH($G$1),ROW($3:$199)),ROWS($1:38)),MATCH(A$1,'Base de données'!$E$2:$T$2,0)+4),"") ->  | B39: =IFERROR(INDEX('Base de données'!$A$1:$T$200,SMALL(IF('Base de données'!$C$3:$C$200=MONTH($G$1),ROW($3:$199)),ROWS($1:38)),MATCH(B$1,'Base de données'!$E$2:$T$2,0)+4),"") ->  | C39: =IFERROR(INDEX('Base de données'!$A$1:$T$200,SMALL(IF('Base de données'!$C$3:$C$200=MONTH($G$1),ROW($3:$199)),ROWS($1:38)),MATCH(C$1,'Base de données'!$E$2:$T$2,0)+4),"") ->  | D39: =IFERROR(INDEX('Base de données'!$A$1:$T$200,SMALL(IF('Base de données'!$C$3:$C$200=MONTH($G$1),ROW($3:$199)),ROWS($1:38)),MATCH(D$1,'Base de données'!$E$2:$T$2,0)+4),"") ->  | E39: =IFERROR(INDEX('Base de données'!$A$1:$T$200,SMALL(IF('Base de données'!$C$3:$C$200=MONTH($G$1),ROW($3:$199)),ROWS($1:38)),MATCH(E$1,'Base de données'!$E$2:$T$2,0)+4),"") ->  | F39: =IFERROR(INDEX('Base de données'!$A$1:$T$200,SMALL(IF('Base de données'!$C$3:$C$200=MONTH($G$1),ROW($3:$199)),ROWS($1:38)),MATCH(F$1,'Base de données'!$E$2:$T$2,0)+4),"") -> 
A40: =IFERROR(INDEX('Base de données'!$A$1:$T$200,SMALL(IF('Base de données'!$C$3:$C$200=MONTH($G$1),ROW($3:$199)),ROWS($1:39)),MATCH(A$1,'Base de données'!$E$2:$T$2,0)+4),"") ->  | B40: =IFERROR(INDEX('Base de données'!$A$1:$T$200,SMALL(IF('Base de données'!$C$3:$C$200=MONTH($G$1),ROW($3:$199)),ROWS($1:39)),MATCH(B$1,'Base de données'!$E$2:$T$2,0)+4),"") ->  | C40: =IFERROR(INDEX('Base de données'!$A$1:$T$200,SMALL(IF('Base de données'!$C$3:$C$200=MONTH($G$1),ROW($3:$199)),ROWS($1:39)),MATCH(C$1,'Base de données'!$E$2:$T$2,0)+4),"") ->  | D40: =IFERROR(INDEX('Base de données'!$A$1:$T$200,SMALL(IF('Base de données'!$C$3:$C$200=MONTH($G$1),ROW($3:$199)),ROWS($1:39)),MATCH(D$1,'Base de données'!$E$2:$T$2,0)+4),"") ->  | E40: =IFERROR(INDEX('Base de données'!$A$1:$T$200,SMALL(IF('Base de données'!$C$3:$C$200=MONTH($G$1),ROW($3:$199)),ROWS($1:39)),MATCH(E$1,'Base de données'!$E$2:$T$2,0)+4),"") ->  | F40: =IFERROR(INDEX('Base de données'!$A$1:$T$200,SMALL(IF('Base de données'!$C$3:$C$200=MONTH($G$1),ROW($3:$199)),ROWS($1:39)),MATCH(F$1,'Base de données'!$E$2:$T$2,0)+4),"") -> 
A41: =IFERROR(INDEX('Base de données'!$A$1:$T$200,SMALL(IF('Base de données'!$C$3:$C$200=MONTH($G$1),ROW($3:$199)),ROWS($1:40)),MATCH(A$1,'Base de données'!$E$2:$T$2,0)+4),"") ->  | B41: =IFERROR(INDEX('Base de données'!$A$1:$T$200,SMALL(IF('Base de données'!$C$3:$C$200=MONTH($G$1),ROW($3:$199)),ROWS($1:40)),MATCH(B$1,'Base de données'!$E$2:$T$2,0)+4),"") ->  | C41: =IFERROR(INDEX('Base de données'!$A$1:$T$200,SMALL(IF('Base de données'!$C$3:$C$200=MONTH($G$1),ROW($3:$199)),ROWS($1:40)),MATCH(C$1,'Base de données'!$E$2:$T$2,0)+4),"") ->  | D41: =IFERROR(INDEX('Base de données'!$A$1:$T$200,SMALL(IF('Base de données'!$C$3:$C$200=MONTH($G$1),ROW($3:$199)),ROWS($1:40)),MATCH(D$1,'Base de données'!$E$2:$T$2,0)+4),"") ->  | E41: =IFERROR(INDEX('Base de données'!$A$1:$T$200,SMALL(IF('Base de données'!$C$3:$C$200=MONTH($G$1),ROW($3:$199)),ROWS($1:40)),MATCH(E$1,'Base de données'!$E$2:$T$2,0)+4),"") ->  | F41: =IFERROR(INDEX('Base de données'!$A$1:$T$200,SMALL(IF('Base de données'!$C$3:$C$200=MONTH($G$1),ROW($3:$199)),ROWS($1:40)),MATCH(F$1,'Base de données'!$E$2:$T$2,0)+4),"") -> 
A42: =IFERROR(INDEX('Base de données'!$A$1:$T$200,SMALL(IF('Base de données'!$C$3:$C$200=MONTH($G$1),ROW($3:$199)),ROWS($1:41)),MATCH(A$1,'Base de données'!$E$2:$T$2,0)+4),"") ->  | B42: =IFERROR(INDEX('Base de données'!$A$1:$T$200,SMALL(IF('Base de données'!$C$3:$C$200=MONTH($G$1),ROW($3:$199)),ROWS($1:41)),MATCH(B$1,'Base de données'!$E$2:$T$2,0)+4),"") ->  | C42: =IFERROR(INDEX('Base de données'!$A$1:$T$200,SMALL(IF('Base de données'!$C$3:$C$200=MONTH($G$1),ROW($3:$199)),ROWS($1:41)),MATCH(C$1,'Base de données'!$E$2:$T$2,0)+4),"") ->  | D42: =IFERROR(INDEX('Base de données'!$A$1:$T$200,SMALL(IF('Base de données'!$C$3:$C$200=MONTH($G$1),ROW($3:$199)),ROWS($1:41)),MATCH(D$1,'Base de données'!$E$2:$T$2,0)+4),"") ->  | E42: =IFERROR(INDEX('Base de données'!$A$1:$T$200,SMALL(IF('Base de données'!$C$3:$C$200=MONTH($G$1),ROW($3:$199)),ROWS($1:41)),MATCH(E$1,'Base de données'!$E$2:$T$2,0)+4),"") ->  | F42: =IFERROR(INDEX('Base de données'!$A$1:$T$200,SMALL(IF('Base de données'!$C$3:$C$200=MONTH($G$1),ROW($3:$199)),ROWS($1:41)),MATCH(F$1,'Base de données'!$E$2:$T$2,0)+4),"") -> 
A43: =IFERROR(INDEX('Base de données'!$A$1:$T$200,SMALL(IF('Base de données'!$C$3:$C$200=MONTH($G$1),ROW($3:$199)),ROWS($1:42)),MATCH(A$1,'Base de données'!$E$2:$T$2,0)+4),"") ->  | B43: =IFERROR(INDEX('Base de données'!$A$1:$T$200,SMALL(IF('Base de données'!$C$3:$C$200=MONTH($G$1),ROW($3:$199)),ROWS($1:42)),MATCH(B$1,'Base de données'!$E$2:$T$2,0)+4),"") ->  | C43: =IFERROR(INDEX('Base de données'!$A$1:$T$200,SMALL(IF('Base de données'!$C$3:$C$200=MONTH($G$1),ROW($3:$199)),ROWS($1:42)),MATCH(C$1,'Base de données'!$E$2:$T$2,0)+4),"") ->  | D43: =IFERROR(INDEX('Base de données'!$A$1:$T$200,SMALL(IF('Base de données'!$C$3:$C$200=MONTH($G$1),ROW($3:$199)),ROWS($1:42)),MATCH(D$1,'Base de données'!$E$2:$T$2,0)+4),"") ->  | E43: =IFERROR(INDEX('Base de données'!$A$1:$T$200,SMALL(IF('Base de données'!$C$3:$C$200=MONTH($G$1),ROW($3:$199)),ROWS($1:42)),MATCH(E$1,'Base de données'!$E$2:$T$2,0)+4),"") ->  | F43: =IFERROR(INDEX('Base de données'!$A$1:$T$200,SMALL(IF('Base de données'!$C$3:$C$200=MONTH($G$1),ROW($3:$199)),ROWS($1:42)),MATCH(F$1,'Base de données'!$E$2:$T$2,0)+4),"") -> 
A44: =IFERROR(INDEX('Base de données'!$A$1:$T$200,SMALL(IF('Base de données'!$C$3:$C$200=MONTH($G$1),ROW($3:$199)),ROWS($1:43)),MATCH(A$1,'Base de données'!$E$2:$T$2,0)+4),"") ->  | B44: =IFERROR(INDEX('Base de données'!$A$1:$T$200,SMALL(IF('Base de données'!$C$3:$C$200=MONTH($G$1),ROW($3:$199)),ROWS($1:43)),MATCH(B$1,'Base de données'!$E$2:$T$2,0)+4),"") ->  | C44: =IFERROR(INDEX('Base de données'!$A$1:$T$200,SMALL(IF('Base de données'!$C$3:$C$200=MONTH($G$1),ROW($3:$199)),ROWS($1:43)),MATCH(C$1,'Base de données'!$E$2:$T$2,0)+4),"") ->  | D44: =IFERROR(INDEX('Base de données'!$A$1:$T$200,SMALL(IF('Base de données'!$C$3:$C$200=MONTH($G$1),ROW($3:$199)),ROWS($1:43)),MATCH(D$1,'Base de données'!$E$2:$T$2,0)+4),"") ->  | E44: =IFERROR(INDEX('Base de données'!$A$1:$T$200,SMALL(IF('Base de données'!$C$3:$C$200=MONTH($G$1),ROW($3:$199)),ROWS($1:43)),MATCH(E$1,'Base de données'!$E$2:$T$2,0)+4),"") ->  | F44: =IFERROR(INDEX('Base de données'!$A$1:$T$200,SMALL(IF('Base de données'!$C$3:$C$200=MONTH($G$1),ROW($3:$199)),ROWS($1:43)),MATCH(F$1,'Base de données'!$E$2:$T$2,0)+4),"") -> 
A45: =IFERROR(INDEX('Base de données'!$A$1:$T$200,SMALL(IF('Base de données'!$C$3:$C$200=MONTH($G$1),ROW($3:$199)),ROWS($1:44)),MATCH(A$1,'Base de données'!$E$2:$T$2,0)+4),"") ->  | B45: =IFERROR(INDEX('Base de données'!$A$1:$T$200,SMALL(IF('Base de données'!$C$3:$C$200=MONTH($G$1),ROW($3:$199)),ROWS($1:44)),MATCH(B$1,'Base de données'!$E$2:$T$2,0)+4),"") ->  | C45: =IFERROR(INDEX('Base de données'!$A$1:$T$200,SMALL(IF('Base de données'!$C$3:$C$200=MONTH($G$1),ROW($3:$199)),ROWS($1:44)),MATCH(C$1,'Base de données'!$E$2:$T$2,0)+4),"") ->  | D45: =IFERROR(INDEX('Base de données'!$A$1:$T$200,SMALL(IF('Base de données'!$C$3:$C$200=MONTH($G$1),ROW($3:$199)),ROWS($1:44)),MATCH(D$1,'Base de données'!$E$2:$T$2,0)+4),"") ->  | E45: =IFERROR(INDEX('Base de données'!$A$1:$T$200,SMALL(IF('Base de données'!$C$3:$C$200=MONTH($G$1),ROW($3:$199)),ROWS($1:44)),MATCH(E$1,'Base de données'!$E$2:$T$2,0)+4),"") ->  | F45: =IFERROR(INDEX('Base de données'!$A$1:$T$200,SMALL(IF('Base de données'!$C$3:$C$200=MONTH($G$1),ROW($3:$199)),ROWS($1:44)),MATCH(F$1,'Base de données'!$E$2:$T$2,0)+4),"") -> 
B46: Total mois | E46: =SUM(E2:E45) -> 0

Sheet Juin
A1: Date | B1: # CR | C1: # Catégorie | D1: Provenance | E1: poids | F1: Commentaire | G1: 2016-06-01 | M1: Date | N1: 1 | O1: 2 | P1: 3 | Q1: 4 | R1: 5 | T1: 6 | U1: 7 | V1: 8 | Y1: 9 | Z1: 10
A2: =IFERROR(INDEX('Base de données'!$A$1:$T$200,SMALL(IF('Base de données'!$C$3:$C$200=MONTH($G$1),ROW($3:$199)),ROWS($1:1)),MATCH(A$1,'Base de données'!$E$2:$T$2,0)+4),"") ->  | B2: =IFERROR(INDEX('Base de données'!$A$1:$T$200,SMALL(IF('Base de données'!$C$3:$C$200=MONTH($G$1),ROW($3:$199)),ROWS($1:1)),MATCH(B$1,'Base de données'!$E$2:$T$2,0)+4),"") ->  | C2: =IFERROR(INDEX('Base de données'!$A$1:$T$200,SMALL(IF('Base de données'!$C$3:$C$200=MONTH($G$1),ROW($3:$199)),ROWS($1:1)),MATCH(C$1,'Base de données'!$E$2:$T$2,0)+4),"") ->  | D2: =IFERROR(INDEX('Base de données'!$A$1:$T$200,SMALL(IF('Base de données'!$C$3:$C$200=MONTH($G$1),ROW($3:$199)),ROWS($1:1)),MATCH(D$1,'Base de données'!$E$2:$T$2,0)+4),"") ->  | E2: =IFERROR(INDEX('Base de données'!$A$1:$T$200,SMALL(IF('Base de données'!$C$3:$C$200=MONTH($G$1),ROW($3:$199)),ROWS($1:1)),MATCH(E$1,'Base de données'!$E$2:$T$2,0)+4),"") ->  | F2: =IFERROR(INDEX('Base de données'!$A$1:$T$200,SMALL(IF('Base de données'!$C$3:$C$200=MONTH($G$1),ROW($3:$199)),ROWS($1:1)),MATCH(F$1,'Base de données'!$E$2:$T$2,0)+4),"") ->  | N2: Copeaux d'aluminium propre et sec | O2: Copeaux d'aluminium propre et humides | P2: Copeaux d'aliminium contaminés | Q2: Aluminium en morceau (blocs/plaques) 7000 | R2: Aluminium contaminer mixte en morceau (blocs/plaques) | T2: Aluminium mixte en morceau (autre que blocs/plaques) 2024 | U2: Aluminium de série 7000 en morceau (surdimensionné) | V2: Acier mixte en morceau | Y2: Acier inoxydable mixte en morceau | Z2: Fil de cuivre
A3: =IFERROR(INDEX('Base de données'!$A$1:$T$200,SMALL(IF('Base de données'!$C$3:$C$200=MONTH($G$1),ROW($3:$199)),ROWS($1:2)),MATCH(A$1,'Base de données'!$E$2:$T$2,0)+4),"") ->  | B3: =IFERROR(INDEX('Base de données'!$A$1:$T$200,SMALL(IF('Base de données'!$C$3:$C$200=MONTH($G$1),ROW($3:$199)),ROWS($1:2)),MATCH(B$1,'Base de données'!$E$2:$T$2,0)+4),"") ->  | C3: =IFERROR(INDEX('Base de données'!$A$1:$T$200,SMALL(IF('Base de données'!$C$3:$C$200=MONTH($G$1),ROW($3:$199)),ROWS($1:2)),MATCH(C$1,'Base de données'!$E$2:$T$2,0)+4),"") ->  | D3: =IFERROR(INDEX('Base de données'!$A$1:$T$200,SMALL(IF('Base de données'!$C$3:$C$200=MONTH($G$1),ROW($3:$199)),ROWS($1:2)),MATCH(D$1,'Base de données'!$E$2:$T$2,0)+4),"") ->  | E3: =IFERROR(INDEX('Base de données'!$A$1:$T$200,SMALL(IF('Base de données'!$C$3:$C$200=MONTH($G$1),ROW($3:$199)),ROWS($1:2)),MATCH(E$1,'Base de données'!$E$2:$T$2,0)+4),"") ->  | F3: =IFERROR(INDEX('Base de données'!$A$1:$T$200,SMALL(IF('Base de données'!$C$3:$C$200=MONTH($G$1),ROW($3:$199)),ROWS($1:2)),MATCH(F$1,'Base de données'!$E$2:$T$2,0)+4),"") ->  | G3: 1 | H3: 2 | I3: 3 | J3: 4 | K3: 5
A4: =IFERROR(INDEX('Base de données'!$A$1:$T$200,SMALL(IF('Base de données'!$C$3:$C$200=MONTH($G$1),ROW($3:$199)),ROWS($1:3)),MATCH(A$1,'Base de données'!$E$2:$T$2,0)+4),"") ->  | B4: =IFERROR(INDEX('Base de données'!$A$1:$T$200,SMALL(IF('Base de données'!$C$3:$C$200=MONTH($G$1),ROW($3:$199)),ROWS($1:3)),MATCH(B$1,'Base de données'!$E$2:$T$2,0)+4),"") ->  | C4: =IFERROR(INDEX('Base de données'!$A$1:$T$200,SMALL(IF('Base de données'!$C$3:$C$200=MONTH($G$1),ROW($3:$199)),ROWS($1:3)),MATCH(C$1,'Base de données'!$E$2:$T$2,0)+4),"") ->  | D4: =IFERROR(INDEX('Base de données'!$A$1:$T$200,SMALL(IF('Base de données'!$C$3:$C$200=MONTH($G$1),ROW($3:$199)),ROWS($1:3)),MATCH(D$1,'Base de données'!$E$2:$T$2,0)+4),"") ->  | E4: =IFERROR(INDEX('Base de données'!$A$1:$T$200,SMALL(IF('Base de données'!$C$3:$C$200=MONTH($G$1),ROW($3:$199)),ROWS($1:3)),MATCH(E$1,'Base de données'!$E$2:$T$2,0)+4),"") ->  | F4: =IFERROR(INDEX('Base de données'!$A$1:$T$200,SMALL(IF('Base de données'!$C$3:$C$200=MONTH($G$1),ROW($3:$199)),ROWS($1:3)),MATCH(F$1,'Base de données'!$E$2:$T$2,0)+4),"") ->  | G4: Copeaux | H4: Copeaux | I4: Copeaux | J4: Aluminium | K4: Aluminium contaminés
A5: =IFERROR(INDEX('Base de données'!$A$1:$T$200,SMALL(IF('Base de données'!$C$3:$C$200=MONTH($G$1),ROW($3:$199)),ROWS($1:4)),MATCH(A$1,'Base de données'!$E$2:$T$2,0)+4),"") ->  | B5: =IFERROR(INDEX('Base de données'!$A$1:$T$200,SMALL(IF('Base de données'!$C$3:$C$200=MONTH($G$1),ROW($3:$199)),ROWS($1:4)),MATCH(B$1,'Base de données'!$E$2:$T$2,0)+4),"") ->  | C5: =IFERROR(INDEX('Base de données'!$A$1:$T$200,SMALL(IF('Base de données'!$C$3:$C$200=MONTH($G$1),ROW($3:$199)),ROWS($1:4)),MATCH(C$1,'Base de données'!$E$2:$T$2,0)+4),"") ->  | D5: =IFERROR(INDEX('Base de données'!$A$1:$T$200,SMALL(IF('Base de données'!$C$3:$C$200=MONTH($G$1),ROW($3:$199)),ROWS($1:4)),MATCH(D$1,'Base de données'!$E$2:$T$2,0)+4),"") ->  | E5: =IFERROR(INDEX('Base de données'!$A$1:$T$200,SMALL(IF('Base de données'!$C$3:$C$200=MONTH($G$1),ROW($3:$199)),ROWS($1:4)),MATCH(E$1,'Base de données'!$E$2:$T$2,0)+4),"") ->  | F5: =IFERROR(INDEX('Base de données'!$A$1:$T$200,SMALL(IF('Base de données'!$C$3:$C$200=MONTH($G$1),ROW($3:$199)),ROWS($1:4)),MATCH(F$1,'Base de données'!$E$2:$T$2,0)+4),"") ->  | G5: D'aluminium | H5: D'aluminium | I5: D'aluminium | J5: en morceau | K5: mixte en morceau
A6: =IFERROR(INDEX('Base de données'!$A$1:$T$200,SMALL(IF('Base de données'!$C$3:$C$200=MONTH($G$1),ROW($3:$199)),ROWS($1:5)),MATCH(A$1,'Base de données'!$E$2:$T$2,0)+4),"") ->  | B6: =IFERROR(INDEX('Base de données'!$A$1:$T$200,SMALL(IF('Base de données'!$C$3:$C$200=MONTH($G$1),ROW($3:$199)),ROWS($1:5)),MATCH(B$1,'Base de données'!$E$2:$T$2,0)+4),"") ->  | C6: =IFERROR(INDEX('Base de données'!$A$1:$T$200,SMALL(IF('Base de données'!$C$3:$C$200=MONTH($G$1),ROW($3:$199)),ROWS($1:5)),MATCH(C$1,'Base de données'!$E$2:$T$2,0)+4),"") ->  | D6: =IFERROR(INDEX('Base de données'!$A$1:$T$200,SMALL(IF('Base de données'!$C$3:$C$200=MONTH($G$1),ROW($3:$199)),ROWS($1:5)),MATCH(D$1,'Base de données'!$E$2:$T$2,0)+4),"") ->  | E6: =IFERROR(INDEX('Base de données'!$A$1:$T$200,SMALL(IF('Base de données'!$C$3:$C$200=MONTH($G$1),ROW($3:$199)),ROWS($1:5)),MATCH(E$1,'Base de données'!$E$2:$T$2,0)+4),"") ->  | F6: =IFERROR(INDEX('Base de données'!$A$1:$T$200,SMALL(IF('Base de données'!$C$3:$C$200=MONTH($G$1),ROW($3:$199)),ROWS($1:5)),MATCH(F$1,'Base de données'!$E$2:$T$2,0)+4),"") ->  | G6: propre et sec | H6: propre et | I6: Contaminés | J6: blocs/plaque | K6: (Blocs/plaques)
A7: =IFERROR(INDEX('Base de données'!$A$1:$T$200,SMALL(IF('Base de données'!$C$3:$C$200=MONTH($G$1),ROW($3:$199)),ROWS($1:6)),MATCH(A$1,'Base de données'!$E$2:$T$2,0)+4),"") ->  | B7: =IFERROR(INDEX('Base de données'!$A$1:$T$200,SMALL(IF('Base de données'!$C$3:$C$200=MONTH($G$1),ROW($3:$199)),ROWS($1:6)),MATCH(B$1,'Base de données'!$E$2:$T$2,0)+4),"") ->  | C7: =IFERROR(INDEX('Base de données'!$A$1:$T$200,SMALL(IF('Base de données'!$C$3:$C$200=MONTH($G$1),ROW($3:$199)),ROWS($1:6)),MATCH(C$1,'Base de données'!$E$2:$T$2,0)+4),"") ->  | D7: =IFERROR(INDEX('Base de données'!$A$1:$T$200,SMALL(IF('Base de données'!$C$3:$C$200=MONTH($G$1),ROW($3:$199)),ROWS($1:6)),MATCH(D$1,'Base de données'!$E$2:$T$2,0)+4),"") ->  | E7: =IFERROR(INDEX('Base de données'!$A$1:$T$200,SMALL(IF('Base de données'!$C$3:$C$200=MONTH($G$1),ROW($3:$199)),ROWS($1:6)),MATCH(E$1,'Base de données'!$E$2:$T$2,0)+4),"") ->  | F7: =IFERROR(INDEX('Base de données'!$A$1:$T$200,SMALL(IF('Base de données'!$C$3:$C$200=MONTH($G$1),ROW($3:$199)),ROWS($1:6)),MATCH(F$1,'Base de données'!$E$2:$T$2,0)+4),"") ->  | H7: humides | J7: 7000 | K7: U.S 1 | L7: U.S 3 | R7: U.S 1 | S7: U.S 3 | V7: U.S 1 | W7: U.S 3 | X7: U.S 8
A8: =IFERROR(INDEX('Base de données'!$A$1:$T$200,SMALL(IF('Base de données'!$C$3:$C$200=MONTH($G$1),ROW($3:$199)),ROWS($1:7)),MATCH(A$1,'Base de données'!$E$2:$T$2,0)+4),"") ->  | B8: =IFERROR(INDEX('Base de données'!$A$1:$T$200,SMALL(IF('Base de données'!$C$3:$C$200=MONTH($G$1),ROW($3:$199)),ROWS($1:7)),MATCH(B$1,'Base de données'!$E$2:$T$2,0)+4),"") ->  | C8: =IFERROR(INDEX('Base de données'!$A$1:$T$200,SMALL(IF('Base de données'!$C$3:$C$200=MONTH($G$1),ROW($3:$199)),ROWS($1:7)),MATCH(C$1,'Base de données'!$E$2:$T$2,0)+4),"") ->  | D8: =IFERROR(INDEX('Base de données'!$A$1:$T$200,SMALL(IF('Base de données'!$C$3:$C$200=MONTH($G$1),ROW($3:$199)),ROWS($1:7)),MATCH(D$1,'Base de données'!$E$2:$T$2,0)+4),"") ->  | E8: =IFERROR(INDEX('Base de données'!$A$1:$T$200,SMALL(IF('Base de données'!$C$3:$C$200=MONTH($G$1),ROW($3:$199)),ROWS($1:7)),MATCH(E$1,'Base de données'!$E$2:$T$2,0)+4),"") ->  | F8: =IFERROR(INDEX('Base de données'!$A$1:$T$200,SMALL(IF('Base de données'!$C$3:$C$200=MONTH($G$1),ROW($3:$199)),ROWS($1:7)),MATCH(F$1,'Base de données'!$E$2:$T$2,0)+4),"") ->  | G8: =SUMIF(C2:C46,"1",E2:E46) -> 0 | H8: =SUMIF(C2:C46,"2",E2:E46) -> 0 | I8: =SUMIF(C2:C46,"3",E2:E46) -> 0 | J8: =SUMIF(C2:C46,"4",E2:E46) -> 0 | K8: =SUMIFS(E2:E46,C2:C46,"5",D2:D46,"0") -> 0 | L8: =SUMIFS(E2:E46,C2:C46,"5",D2:D46,"U.S 3") -> 0 | M8: 2016-06-01 | N8: =SUMIFS(E:E,A:A,M$8:M$46,C:C,"1") -> 0 | O8: =SUMIFS(E:E,A:A,M$8:M$46,C:C,"2") -> 0 | P8: =SUMIFS(E:E,A:A,M$8:M$46,C:C,"3") -> 0 | Q8: =SUMIFS(E:E,A:A,M$8:M$46,C:C,"4") -> 0 | R8: =SUMIFS(E:E,A:A,M$8:M$46,C:C,"5",D:D,"0") -> 0 | S8: =SUMIFS(E:E,A:A,M$8:M$46,C:C,"5",D:D,"U.S 3") -> 0 | T8: =SUMIFS(E:E,A:A,M$8:M$46,C:C,"6") -> 0 | U8: =SUMIFS(E:E,A:A,M$8:M$46,C:C,"7") -> 0 | V8: =SUMIFS(E:E,A:A,M$8:M$46,C:C,"8",D:D,"0") -> 0 | W8: =SUMIFS(E:E,A:A,M$8:M$46,C:C,"8",D:D,"U.S 3") -> 0 | X8: =SUMIFS(E:E,A:A,M$8:M$46,C:C,"8",D:D,"U.S 8") -> 0 | Y8: =SUMIFS(E:E,A:A,M$8:M$46,C:C,"9") -> 0 | Z8: =SUMIFS(E:E,A:A,M$8:M$46,C:C,"10") -> 0
A9: =IFERROR(INDEX('Base de données'!$A$1:$T$200,SMALL(IF('Base de données'!$C$3:$C$200=MONTH($G$1),ROW($3:$199)),ROWS($1:8)),MATCH(A$1,'Base de données'!$E$2:$T$2,0)+4),"") ->  | B9: =IFERROR(INDEX('Base de données'!$A$1:$T$200,SMALL(IF('Base de données'!$C$3:$C$200=MONTH($G$1),ROW($3:$199)),ROWS($1:8)),MATCH(B$1,'Base de données'!$E$2:$T$2,0)+4),"") ->  | C9: =IFERROR(INDEX('Base de données'!$A$1:$T$200,SMALL(IF('Base de données'!$C$3:$C$200=MONTH($G$1),ROW($3:$199)),ROWS($1:8)),MATCH(C$1,'Base de données'!$E$2:$T$2,0)+4),"") ->  | D9: =IFERROR(INDEX('Base de données'!$A$1:$T$200,SMALL(IF('Base de données'!$C$3:$C$200=MONTH($G$1),ROW($3:$199)),ROWS($1:8)),MATCH(D$1,'Base de données'!$E$2:$T$2,0)+4),"") ->  | E9: =IFERROR(INDEX('Base de données'!$A$1:$T$200,SMALL(IF('Base de données'!$C$3:$C$200=MONTH($G$1),ROW($3:$199)),ROWS($1:8)),MATCH(E$1,'Base de données'!$E$2:$T$2,0)+4),"") ->  | F9: =IFERROR(INDEX('Base de données'!$A$1:$T$200,SMALL(IF('Base de données'!$C$3:$C$200=MONTH($G$1),ROW($3:$199)),ROWS($1:8)),MATCH(F$1,'Base de données'!$E$2:$T$2,0)+4),"") ->  | K9: Total | M9: 2016-06-02 | N9: 0 | O9: 0 | P9: 0 | Q9: 0 | R9: =SUMIFS(E:E,A:A,M$8:M$46,C:C,"5",D:D,"0") -> 0 | S9: 0 | T9: 0 | U9: 0 | V9: =SUMIFS(E:E,A:A,M$8:M$46,C:C,"8",D:D,"0") -> 0 | W9: 0 | X9: 0 | Y9: 0 | Z9: 0
A10: =IFERROR(INDEX('Base de données'!$A$1:$T$200,SMALL(IF('Base de données'!$C$3:$C$200=MONTH($G$1),ROW($3:$199)),ROWS($1:9)),MATCH(A$1,'Base de données'!$E$2:$T$2,0)+4),"") ->  | B10: =IFERROR(INDEX('Base de données'!$A$1:$T$200,SMALL(IF('Base de données'!$C$3:$C$200=MONTH($G$1),ROW($3:$199)),ROWS($1:9)),MATCH(B$1,'Base de données'!$E$2:$T$2,0)+4),"") ->  | C10: =IFERROR(INDEX('Base de données'!$A$1:$T$200,SMALL(IF('Base de données'!$C$3:$C$200=MONTH($G$1),ROW($3:$199)),ROWS($1:9)),MATCH(C$1,'Base de données'!$E$2:$T$2,0)+4),"") ->  | D10: =IFERROR(INDEX('Base de données'!$A$1:$T$200,SMALL(IF('Base de données'!$C$3:$C$200=MONTH($G$1),ROW($3:$199)),ROWS($1:9)),MATCH(D$1,'Base de données'!$E$2:$T$2,0)+4),"") ->  | E10: =IFERROR(INDEX('Base de données'!$A$1:$T$200,SMALL(IF('Base de données'!$C$3:$C$200=MONTH($G$1),ROW($3:$199)),ROWS($1:9)),MATCH(E$1,'Base de données'!$E$2:$T$2,0)+4),"") ->  | F10: =IFERROR(INDEX('Base de données'!$A$1:$T$200,SMALL(IF('Base de données'!$C$3:$C$200=MONTH($G$1),ROW($3:$199)),ROWS($1:9)),MATCH(F$1,'Base de données'!$E$2:$T$2,0)+4),"") ->  | K10: =SUM(K8+L8) -> 0 | M10: 2016-06-03 | N10: 0 | O10: 0 | P10: 0 | Q10: 0 | R10: 0 | S10: 0 | T10: 0 | U10: 0 | V10: 0 | W10: 0 | X10: 0 | Y10: 0 | Z10: 0
A11: =IFERROR(INDEX('Base de données'!$A$1:$T$200,SMALL(IF('Base de données'!$C$3:$C$200=MONTH($G$1),ROW($3:$199)),ROWS($1:10)),MATCH(A$1,'Base de données'!$E$2:$T$2,0)+4),"") ->  | B11: =IFERROR(INDEX('Base de données'!$A$1:$T$200,SMALL(IF('Base de données'!$C$3:$C$200=MONTH($G$1),ROW($3:$199)),ROWS($1:10)),MATCH(B$1,'Base de données'!$E$2:$T$2,0)+4),"") ->  | C11: =IFERROR(INDEX('Base de données'!$A$1:$T$200,SMALL(IF('Base de données'!$C$3:$C$200=MONTH($G$1),ROW($3:$199)),ROWS($1:10)),MATCH(C$1,'Base de données'!$E$2:$T$2,0)+4),"") ->  | D11: =IFERROR(INDEX('Base de données'!$A$1:$T$200,SMALL(IF('Base de données'!$C$3:$C$200=MONTH($G$1),ROW($3:$199)),ROWS($1:10)),MATCH(D$1,'Base de données'!$E$2:$T$2,0)+4),"") ->  | E11: =IFERROR(INDEX('Base de données'!$A$1:$T$200,SMALL(IF('Base de données'!$C$3:$C$200=MONTH($G$1),ROW($3:$199)),ROWS($1:10)),MATCH(E$1,'Base de données'!$E$2:$T$2,0)+4),"") ->  | F11: =IFERROR(INDEX('Base de données'!$A$1:$T$200,SMALL(IF('Base de données'!$C$3:$C$200=MONTH($G$1),ROW($3:$199)),ROWS($1:10)),MATCH(F$1,'Base de données'!$E$2:$T$2,0)+4),"") ->  | G11: 6 | H11: 7 | I11: 8 | K11: 9 | L11: 10 | M11: 2016-06-04 | N11: 0 | O11: 0 | P11: 0 | Q11: 0 | R11: 0 | S11: 0 | T11: 0 | U11: 0 | V11: 0 | W11: 0 | X11: 0 | Y11: 0 | Z11: 0
A12: =IFERROR(INDEX('Base de données'!$A$1:$T$200,SMALL(IF('Base de données'!$C$3:$C$200=MONTH($G$1),ROW($3:$199)),ROWS($1:11)),MATCH(A$1,'Base de données'!$E$2:$T$2,0)+4),"") ->  | B12: =IFERROR(INDEX('Base de données'!$A$1:$T$200,SMALL(IF('Base de données'!$C$3:$C$200=MONTH($G$1),ROW($3:$199)),ROWS($1:11)),MATCH(B$1,'Base de données'!$E$2:$T$2,0)+4),"") ->  | C12: =IFERROR(INDEX('Base de données'!$A$1:$T$200,SMALL(IF('Base de données'!$C$3:$C$200=MONTH($G$1),ROW($3:$199)),ROWS($1:11)),MATCH(C$1,'Base de données'!$E$2:$T$2,0)+4),"") ->  | D12: =IFERROR(INDEX('Base de données'!$A$1:$T$200,SMALL(IF('Base de données'!$C$3:$C$200=MONTH($G$1),ROW($3:$199)),ROWS($1:11)),MATCH(D$1,'Base de données'!$E$2:$T$2,0)+4),"") ->  | E12: =IFERROR(INDEX('Base de données'!$A$1:$T$200,SMALL(IF('Base de données'!$C$3:$C$200=MONTH($G$1),ROW($3:$199)),ROWS($1:11)),MATCH(E$1,'Base de données'!$E$2:$T$2,0)+4),"") ->  | F12: =IFERROR(INDEX('Base de données'!$A$1:$T$200,SMALL(IF('Base de données'!$C$3:$C$200=MONTH($G$1),ROW($3:$199)),ROWS($1:11)),MATCH(F$1,'Base de données'!$E$2:$T$2,0)+4),"") ->  | G12: Aluminium | H12: Aluminium | I12: Acier mixte | K12: Acier | L12: Fil | M12: 2016-06-05 | N12: 0 | O12: 0 | P12: 0 | Q12: 0 | R12: 0 | S12: 0 | T12: 0 | U12: 0 | V12: 0 | W12: 0 | X12: 0 | Y12: 0 | Z12: 0
A13: =IFERROR(INDEX('Base de données'!$A$1:$T$200,SMALL(IF('Base de données'!$C$3:$C$200=MONTH($G$1),ROW($3:$199)),ROWS($1:12)),MATCH(A$1,'Base de données'!$E$2:$T$2,0)+4),"") ->  | B13: =IFERROR(INDEX('Base de données'!$A$1:$T$200,SMALL(IF('Base de données'!$C$3:$C$200=MONTH($G$1),ROW($3:$199)),ROWS($1:12)),MATCH(B$1,'Base de données'!$E$2:$T$2,0)+4),"") ->  | C13: =IFERROR(INDEX('Base de données'!$A$1:$T$200,SMALL(IF('Base de données'!$C$3:$C$200=MONTH($G$1),ROW($3:$199)),ROWS($1:12)),MATCH(C$1,'Base de données'!$E$2:$T$2,0)+4),"") ->  | D13: =IFERROR(INDEX('Base de données'!$A$1:$T$200,SMALL(IF('Base de données'!$C$3:$C$200=MONTH($G$1),ROW($3:$199)),ROWS($1:12)),MATCH(D$1,'Base de données'!$E$2:$T$2,0)+4),"") ->  | E13: =IFERROR(INDEX('Base de données'!$A$1:$T$200,SMALL(IF('Base de données'!$C$3:$C$200=MONTH($G$1),ROW($3:$199)),ROWS($1:12)),MATCH(E$1,'Base de données'!$E$2:$T$2,0)+4),"") ->  | F13: =IFERROR(INDEX('Base de données'!$A$1:$T$200,SMALL(IF('Base de données'!$C$3:$C$200=MONTH($G$1),ROW($3:$199)),ROWS($1:12)),MATCH(F$1,'Base de données'!$E$2:$T$2,0)+4),"") ->  | G13: mixte en | H13: série 7000 | I13: en morceau | K13: inoxydable | L13: de | M13: 2016-06-06 | N13: 0 | O13: 0 | P13: 0 | Q13: 0 | R13: 0 | S13: 0 | T13: 0 | U13: 0 | V13: 0 | W13: 0 | X13: 0 | Y13: 0 | Z13: 0
A14: =IFERROR(INDEX('Base de données'!$A$1:$T$200,SMALL(IF('Base de données'!$C$3:$C$200=MONTH($G$1),ROW($3:$199)),ROWS($1:13)),MATCH(A$1,'Base de données'!$E$2:$T$2,0)+4),"") ->  | B14: =IFERROR(INDEX('Base de données'!$A$1:$T$200,SMALL(IF('Base de données'!$C$3:$C$200=MONTH($G$1),ROW($3:$199)),ROWS($1:13)),MATCH(B$1,'Base de données'!$E$2:$T$2,0)+4),"") ->  | C14: =IFERROR(INDEX('Base de données'!$A$1:$T$200,SMALL(IF('Base de données'!$C$3:$C$200=MONTH($G$1),ROW($3:$199)),ROWS($1:13)),MATCH(C$1,'Base de données'!$E$2:$T$2,0)+4),"") ->  | D14: =IFERROR(INDEX('Base de données'!$A$1:$T$200,SMALL(IF('Base de données'!$C$3:$C$200=MONTH($G$1),ROW($3:$199)),ROWS($1:13)),MATCH(D$1,'Base de données'!$E$2:$T$2,0)+4),"") ->  | E14: =IFERROR(INDEX('Base de données'!$A$1:$T$200,SMALL(IF('Base de données'!$C$3:$C$200=MONTH($G$1),ROW($3:$199)),ROWS($1:13)),MATCH(E$1,'Base de données'!$E$2:$T$2,0)+4),"") ->  | F14: =IFERROR(INDEX('Base de données'!$A$1:$T$200,SMALL(IF('Base de données'!$C$3:$C$200=MONTH($G$1),ROW($3:$199)),ROWS($1:13)),MATCH(F$1,'Base de données'!$E$2:$T$2,0)+4),"") ->  | G14: morceau | H14: en morceau | K14: mixte en | L14: cuivre | M14: 2016-06-07 | N14: 0 | O14: 0 | P14: 0 | Q14: 0 | R14: 0 | S14: 0 | T14: 0 | U14: 0 | V14: 0 | W14: 0 | X14: 0 | Y14: 0 | Z14: 0
A15: =IFERROR(INDEX('Base de données'!$A$1:$T$200,SMALL(IF('Base de données'!$C$3:$C$200=MONTH($G$1),ROW($3:$199)),ROWS($1:14)),MATCH(A$1,'Base de données'!$E$2:$T$2,0)+4),"") ->  | B15: =IFERROR(INDEX('Base de données'!$A$1:$T$200,SMALL(IF('Base de données'!$C$3:$C$200=MONTH($G$1),ROW($3:$199)),ROWS($1:14)),MATCH(B$1,'Base de données'!$E$2:$T$2,0)+4),"") ->  | C15: =IFERROR(INDEX('Base de données'!$A$1:$T$200,SMALL(IF('Base de données'!$C$3:$C$200=MONTH($G$1),ROW($3:$199)),ROWS($1:14)),MATCH(C$1,'Base de données'!$E$2:$T$2,0)+4),"") ->  | D15: =IFERROR(INDEX('Base de données'!$A$1:$T$200,SMALL(IF('Base de données'!$C$3:$C$200=MONTH($G$1),ROW($3:$199)),ROWS($1:14)),MATCH(D$1,'Base de données'!$E$2:$T$2,0)+4),"") ->  | E15: =IFERROR(INDEX('Base de données'!$A$1:$T$200,SMALL(IF('Base de données'!$C$3:$C$200=MONTH($G$1),ROW($3:$199)),ROWS($1:14)),MATCH(E$1,'Base de données'!$E$2:$T$2,0)+4),"") ->  | F15: =IFERROR(INDEX('Base de données'!$A$1:$T$200,SMALL(IF('Base de données'!$C$3:$C$200=MONTH($G$1),ROW($3:$199)),ROWS($1:14)),MATCH(F$1,'Base de données'!$E$2:$T$2,0)+4),"") ->  | G15: 2024 | H15: surdimension | I15: U.S 1 | J15: U.S 3 | K15: morceau | M15: 2016-06-08 | N15: 0 | O15: 0 | P15: 0 | Q15: 0 | R15: 0 | S15: 0 | T15: 0 | U15: 0 | V15: 0 | W15: 0 | X15: 0 | Y15: 0 | Z15: 0
A16: =IFERROR(INDEX('Base de données'!$A$1:$T$200,SMALL(IF('Base de données'!$C$3:$C$200=MONTH($G$1),ROW($3:$199)),ROWS($1:15)),MATCH(A$1,'Base de données'!$E$2:$T$2,0)+4),"") ->  | B16: =IFERROR(INDEX('Base de données'!$A$1:$T$200,SMALL(IF('Base de données'!$C$3:$C$200=MONTH($G$1),ROW($3:$199)),ROWS($1:15)),MATCH(B$1,'Base de données'!$E$2:$T$2,0)+4),"") ->  | C16: =IFERROR(INDEX('Base de données'!$A$1:$T$200,SMALL(IF('Base de données'!$C$3:$C$200=MONTH($G$1),ROW($3:$199)),ROWS($1:15)),MATCH(C$1,'Base de données'!$E$2:$T$2,0)+4),"") ->  | D16: =IFERROR(INDEX('Base de données'!$A$1:$T$200,SMALL(IF('Base de données'!$C$3:$C$200=MONTH($G$1),ROW($3:$199)),ROWS($1:15)),MATCH(D$1,'Base de données'!$E$2:$T$2,0)+4),"") ->  | E16: =IFERROR(INDEX('Base de données'!$A$1:$T$200,SMALL(IF('Base de données'!$C$3:$C$200=MONTH($G$1),ROW($3:$199)),ROWS($1:15)),MATCH(E$1,'Base de données'!$E$2:$T$2,0)+4),"") ->  | F16: =IFERROR(INDEX('Base de données'!$A$1:$T$200,SMALL(IF('Base de données'!$C$3:$C$200=MONTH($G$1),ROW($3:$199)),ROWS($1:15)),MATCH(F$1,'Base de données'!$E$2:$T$2,0)+4),"") ->  | G16: =SUMIF(C2:C46,"6",E2:E46) -> 0 | H16: =SUMIF(C2:C46,"7",E2:E46) -> 0 | I16: =SUMIFS(E2:E46,C2:C46,"8",D2:D46,"0") -> 0 | J16: =SUMIFS(E2:E46,C2:C46,"8",D2:D46,"U.S 3") -> 0 | K16: =SUMIF(C2:C46,"9",E2:E46) -> 0 | L16: =SUMIF(C2:C46,"10",E2:E46) -> 0 | M16: 2016-06-09 | N16: 0 | O16: 0 | P16: 0 | Q16: 0 | R16: 0 | S16: 0 | T16: 0 | U16: 0 | V16: 0 | W16: 0 | X16: 0 | Y16: 0 | Z16: 0
A17: =IFERROR(INDEX('Base de données'!$A$1:$T$200,SMALL(IF('Base de données'!$C$3:$C$200=MONTH($G$1),ROW($3:$199)),ROWS($1:16)),MATCH(A$1,'Base de données'!$E$2:$T$2,0)+4),"") ->  | B17: =IFERROR(INDEX('Base de données'!$A$1:$T$200,SMALL(IF('Base de données'!$C$3:$C$200=MONTH($G$1),ROW($3:$199)),ROWS($1:16)),MATCH(B$1,'Base de données'!$E$2:$T$2,0)+4),"") ->  | C17: =IFERROR(INDEX('Base de données'!$A$1:$T$200,SMALL(IF('Base de données'!$C$3:$C$200=MONTH($G$1),ROW($3:$199)),ROWS($1:16)),MATCH(C$1,'Base de données'!$E$2:$T$2,0)+4),"") ->  | D17: =IFERROR(INDEX('Base de données'!$A$1:$T$200,SMALL(IF('Base de données'!$C$3:$C$200=MONTH($G$1),ROW($3:$199)),ROWS($1:16)),MATCH(D$1,'Base de données'!$E$2:$T$2,0)+4),"") ->  | E17: =IFERROR(INDEX('Base de données'!$A$1:$T$200,SMALL(IF('Base de données'!$C$3:$C$200=MONTH($G$1),ROW($3:$199)),ROWS($1:16)),MATCH(E$1,'Base de données'!$E$2:$T$2,0)+4),"") ->  | F17: =IFERROR(INDEX('Base de données'!$A$1:$T$200,SMALL(IF('Base de données'!$C$3:$C$200=MONTH($G$1),ROW($3:$199)),ROWS($1:16)),MATCH(F$1,'Base de données'!$E$2:$T$2,0)+4),"") ->  | I17: U.S 8 | J17: Total | M17: 2016-06-10 | N17: 0 | O17: 0 | P17: 0 | Q17: 0 | R17: 0 | S17: 0 | T17: 0 | U17: 0 | V17: 0 | W17: 0 | X17: 0 | Y17: 0 | Z17: 0
A18: =IFERROR(INDEX('Base de données'!$A$1:$T$200,SMALL(IF('Base de données'!$C$3:$C$200=MONTH($G$1),ROW($3:$199)),ROWS($1:17)),MATCH(A$1,'Base de données'!$E$2:$T$2,0)+4),"") ->  | B18: =IFERROR(INDEX('Base de données'!$A$1:$T$200,SMALL(IF('Base de données'!$C$3:$C$200=MONTH($G$1),ROW($3:$199)),ROWS($1:17)),MATCH(B$1,'Base de données'!$E$2:$T$2,0)+4),"") ->  | C18: =IFERROR(INDEX('Base de données'!$A$1:$T$200,SMALL(IF('Base de données'!$C$3:$C$200=MONTH($G$1),ROW($3:$199)),ROWS($1:17)),MATCH(C$1,'Base de données'!$E$2:$T$2,0)+4),"") ->  | D18: =IFERROR(INDEX('Base de données'!$A$1:$T$200,SMALL(IF('Base de données'!$C$3:$C$200=MONTH($G$1),ROW($3:$199)),ROWS($1:17)),MATCH(D$1,'Base de données'!$E$2:$T$2,0)+4),"") ->  | E18: =IFERROR(INDEX('Base de données'!$A$1:$T$200,SMALL(IF('Base de données'!$C$3:$C$200=MONTH($G$1),ROW($3:$199)),ROWS($1:17)),MATCH(E$1,'Base de données'!$E$2:$T$2,0)+4),"") ->  | F18: =IFERROR(INDEX('Base de données'!$A$1:$T$200,SMALL(IF('Base de données'!$C$3:$C$200=MONTH($G$1),ROW($3:$199)),ROWS($1:17)),MATCH(F$1,'Base de données'!$E$2:$T$2,0)+4),"") ->  | I18: =SUMIFS(E2:E46,C2:C46,"8",D2:D46,"U.S 8") -> 0 | J18: =SUM(I16+J16+I18) -> 0 | M18: 2016-06-11 | N18: 0 | O18: 0 | P18: 0 | Q18: 0 | R18: 0 | S18: 0 | T18: 0 | U18: 0 | V18: 0 | W18: 0 | X18: 0 | Y18: 0 | Z18: 0
A19: =IFERROR(INDEX('Base de données'!$A$1:$T$200,SMALL(IF('Base de données'!$C$3:$C$200=MONTH($G$1),ROW($3:$199)),ROWS($1:18)),MATCH(A$1,'Base de données'!$E$2:$T$2,0)+4),"") ->  | B19: =IFERROR(INDEX('Base de données'!$A$1:$T$200,SMALL(IF('Base de données'!$C$3:$C$200=MONTH($G$1),ROW($3:$199)),ROWS($1:18)),MATCH(B$1,'Base de données'!$E$2:$T$2,0)+4),"") ->  | C19: =IFERROR(INDEX('Base de données'!$A$1:$T$200,SMALL(IF('Base de données'!$C$3:$C$200=MONTH($G$1),ROW($3:$199)),ROWS($1:18)),MATCH(C$1,'Base de données'!$E$2:$T$2,0)+4),"") ->  | D19: =IFERROR(INDEX('Base de données'!$A$1:$T$200,SMALL(IF('Base de données'!$C$3:$C$200=MONTH($G$1),ROW($3:$199)),ROWS($1:18)),MATCH(D$1,'Base de données'!$E$2:$T$2,0)+4),"") ->  | E19: =IFERROR(INDEX('Base de données'!$A$1:$T$200,SMALL(IF('Base de données'!$C$3:$C$200=MONTH($G$1),ROW($3:$199)),ROWS($1:18)),MATCH(E$1,'Base de données'!$E$2:$T$2,0)+4),"") ->  | F19: =IFERROR(INDEX('Base de données'!$A$1:$T$200,SMALL(IF('Base de données'!$C$3:$C$200=MONTH($G$1),ROW($3:$199)),ROWS($1:18)),MATCH(F$1,'Base de données'!$E$2:$T$2,0)+4),"") ->  | M19: 2016-06-12 | N19: 0 | O19: 0 | P19: 0 | Q19: 0 | R19: 0 | S19: 0 | T19: 0 | U19: 0 | V19: 0 | W19: 0 | X19: 0 | Y19: 0 | Z19: 0
